Workbook

Sheet Main
A1: Total Class | B1: =MAX(K:K) -> 10
A2: Start | B2: =ADDRESS(ROW(K8),COLUMN(K8)+1,4) -> L8
A3: End | B3: =ADDRESS(ROW(K8)+10-1,COLUMN(M8),4) -> M17 | H3: Multi Class Financial Statement
A4: Col Start | B4: =COLUMN(INDIRECT(ClassStart)) -> 12
A5: Col End | B5: =COLUMN(INDIRECT(ClassEnd)) -> 13
A6: Row Start | B6: =ROW(INDIRECT(ClassStart)) -> 8 | K6: ="Class Details: " & FundCode -> Class Details: FFSAF
A7: Row End | B7: =ROW(INDIRECT(ClassEnd)) -> 17 | F7: Report Details | K7: No | L7: Class | M7: Currency
K8: 1 | L8: FFSAF-A-MYR | M8: MYR
F9: Company Name: | G9: FORTRESS CAPITAL ASSET MANAGEMENT (M) SDN BHD | K9: 2 | L9: FFSAF-A-SGD | M9: SGD
F10: Company ID: | G10: FC | K10: 3 | L10: FFSAF-A-USD | M10: USD
F11: Fund Code: | G11: FFSAF | K11: 4 | L11: FFSAF-B-MYR | M11: MYR
F12: Fund Name: | G12: =VLOOKUP($G$11,InFund!$A:$I,MATCH("FundName",InFund!$2:$2,0),0) -> Fortress Focus Select Asia Fund | K12: 5 | L12: FFSAF-B-SGD | M12: SGD
F13: Fund Currency: | G13: =VLOOKUP($G$11,InFund!$A:$I,MATCH("FundCurrency",InFund!$2:$2,0),0) -> USD | K13: 6 | L13: FFSAF-B-USD | M13: USD
F14: Islamic Flag | G14: =VLOOKUP($G$11,InFund!$A:$I,MATCH("Islamic",InFund!$2:$2,0),0) -> 0 | K14: 7 | L14: FFSAF-C-MYR | M14: MYR
F15: Last Financial Year End: | G15: =VLOOKUP(FundCode,InFund!A:G,7,0) -> 2019-06-30 | K15: 8 | L15: FFSAF-C-SGD | M15: SGD
F16: Financial Year Start: | G16: =FinanceYrEnd+1 -> 2019-07-01 | K16: 9 | L16: FFSAF-C-USD | M16: USD
F17: Value Date: | G17: 2020-06-30 | K17: 10

Sheet BS
I1: GD1 | J1: =Class1 -> FFSAF-A-MYR | K1: =Class2 -> FFSAF-A-SGD | L1: =Class3 -> FFSAF-A-USD | M1: =Class4 -> FFSAF-B-MYR | N1: =Class5 -> FFSAF-B-SGD | O1: =Class6 -> FFSAF-B-USD | P1: =Class7 -> FFSAF-C-MYR | Q1: =Class8 -> FFSAF-C-SGD | R1: =Class9 -> FFSAF-C-USD | S1: =Class10 -> 0 | T1: =FundCode -> FFSAF
C4: Balance Check | D4: =I101-I122 -> 0
F5: =CompanyName -> FORTRESS CAPITAL ASSET MANAGEMENT (M) SDN BHD
F6: =Main!$G$12 -> Fortress Focus Select Asia Fund
F7: Balance Sheet
F8: ="For The Financial Period Ended " & TEXT(ValueDate,"dd mmmm yyyy") -> For The Financial Period Ended 30 June 2020
I10: =ValueDate -> 2020-06-30 | J10: 2020-06-30 | K10: 2020-06-30 | L10: 2020-06-30 | M10: 2020-06-30 | N10: 2020-06-30 | O10: 2020-06-30 | P10: 2020-06-30 | Q10: 2020-06-30 | R10: 2020-06-30 | S10: 2020-06-30 | T10: 2020-06-30
C11: AssetRptGrp | D11: qCurrencyCode | I11: =FundCurrency -> USD | J11: ="Class " & IF(ISNA(VLOOKUP(J$1,InUP!$A:$P,MATCH(BS!$D11,InUP!$2:$2,0),0)),"",VLOOKUP(J$1,InUP!$A:$P,MATCH(BS!$D11,InUP!$2:$2,0),0)) -> Class MYR | K11: ="Class " & IF(ISNA(VLOOKUP(K$1,InUP!$A:$P,MATCH(BS!$D11,InUP!$2:$2,0),0)),"",VLOOKUP(K$1,InUP!$A:$P,MATCH(BS!$D11,InUP!$2:$2,0),0)) -> Class SGD | L11: ="Class " & IF(ISNA(VLOOKUP(L$1,InUP!$A:$P,MATCH(BS!$D11,InUP!$2:$2,0),0)),"",VLOOKUP(L$1,InUP!$A:$P,MATCH(BS!$D11,InUP!$2:$2,0),0)) -> Class USD | M11: ="Class " & IF(ISNA(VLOOKUP(M$1,InUP!$A:$P,MATCH(BS!$D11,InUP!$2:$2,0),0)),"",VLOOKUP(M$1,InUP!$A:$P,MATCH(BS!$D11,InUP!$2:$2,0),0)) -> Class MYR | N11: ="Class " & IF(ISNA(VLOOKUP(N$1,InUP!$A:$P,MATCH(BS!$D11,InUP!$2:$2,0),0)),"",VLOOKUP(N$1,InUP!$A:$P,MATCH(BS!$D11,InUP!$2:$2,0),0)) -> Class SGD | O11: ="Class " & IF(ISNA(VLOOKUP(O$1,InUP!$A:$P,MATCH(BS!$D11,InUP!$2:$2,0),0)),"",VLOOKUP(O$1,InUP!$A:$P,MATCH(BS!$D11,InUP!$2:$2,0),0)) -> Class USD | P11: ="Class " & IF(ISNA(VLOOKUP(P$1,InUP!$A:$P,MATCH(BS!$D11,InUP!$2:$2,0),0)),"",VLOOKUP(P$1,InUP!$A:$P,MATCH(BS!$D11,InUP!$2:$2,0),0)) -> Class MYR | Q11: ="Class " & IF(ISNA(VLOOKUP(Q$1,InUP!$A:$P,MATCH(BS!$D11,InUP!$2:$2,0),0)),"",VLOOKUP(Q$1,InUP!$A:$P,MATCH(BS!$D11,InUP!$2:$2,0),0)) -> Class SGD | R11: ="Class " & IF(ISNA(VLOOKUP(R$1,InUP!$A:$P,MATCH(BS!$D11,InUP!$2:$2,0),0)),"",VLOOKUP(R$1,InUP!$A:$P,MATCH(BS!$D11,InUP!$2:$2,0),0)) -> Class USD | S11: ="Class " & IF(ISNA(VLOOKUP(S$1,InUP!$A:$P,MATCH(BS!$D11,InUP!$2:$2,0),0)),"",VLOOKUP(S$1,InUP!$A:$P,MATCH(BS!$D11,InUP!$2:$2,0),0)) -> Class | T11: =FundCurrency -> USD
J12: =FundCurrency -> USD | K12: USD | L12: USD | M12: USD | N12: USD | O12: USD | P12: USD | Q12: USD | R12: USD | S12: USD
D14: ASSET | F14: =OFFSET(Label!$E$1,MATCH(BS!D14,Label!$E:$E,0)-1,Main!$G$14+1) -> ASSETS
D15: INV | F15: =OFFSET( Label!$E$1,MATCH(BS!D15, Label!$E:$E,0)-1, Main!$G$14+1) -> INVESTMENTS
D16: UFISCP | F16: =OFFSET( Label!$E$1,MATCH(BS!D16, Label!$E:$E,0)-1, Main!$G$14+1) -> UNQUOTED FIXED INCOME SECURITIES -COMMERCIAL PAPER | I16: =SUM(I17:I19) -> 0 | J16: 0 | K16: 0 | L16: 0 | M16: 0 | N16: 0 | O16: =SUM(O17:O19) -> 0 | P16: 0 | Q16: 0 | R16: =SUM(R17:R19) -> 0 | S16: 0 | T16: =SUM(T17:T19) -> 0 | U16: =ROUND(I16-SUM(J16:S16),1) -> 0
C17: BICOST_CP | D17: UFISCP1 | E17: BIACCP | F17: =OFFSET( Label!$E$1,MATCH(BS!D17, Label!$E:$E,0)-1, Main!$G$14+1) -> Investment Cost -CP | I17: =SUMIF(InTB!$M:$M,$E17,InTB!$K:$K)+SUMIF(InTB!$N:$N,$C17,InTB!$K:$K)+SUMIF(InTB!$N:$N,$B17,InTB!$K:$K) -> 0 | J17: =IF(J$1=0,0,ROUND($T17*J$108,2))+SUMIFS(InTB!$K:$K,InTB!$M:$M,$E17,InTB!$C:$C,BS!J$1)+SUMIFS(InTB!$K:$K,InTB!$N:$N,$C17,InTB!$C:$C,BS!J$1)+SUMIFS(InTB!$K:$K,InTB!$N:$N,$B17,InTB!$C:$C,BS!J$1) -> 0 | K17: =IF(K$1=0,0,ROUND($T17*K$108,2))+SUMIFS(InTB!$K:$K,InTB!$M:$M,$E17,InTB!$C:$C,BS!K$1)+SUMIFS(InTB!$K:$K,InTB!$N:$N,$C17,InTB!$C:$C,BS!K$1)+SUMIFS(InTB!$K:$K,InTB!$N:$N,$B17,InTB!$C:$C,BS!K$1) -> 0 | L17: =IF(L$1=0,0,ROUND($T17*L$108,2))+SUMIFS(InTB!$K:$K,InTB!$M:$M,$E17,InTB!$C:$C,BS!L$1)+SUMIFS(InTB!$K:$K,InTB!$N:$N,$C17,InTB!$C:$C,BS!L$1)+SUMIFS(InTB!$K:$K,InTB!$N:$N,$B17,InTB!$C:$C,BS!L$1) -> 0 | M17: =IF(M$1=0,0,ROUND($T17*M$108,2))+SUMIFS(InTB!$K:$K,InTB!$M:$M,$E17,InTB!$C:$C,BS!M$1)+SUMIFS(InTB!$K:$K,InTB!$N:$N,$C17,InTB!$C:$C,BS!M$1)+SUMIFS(InTB!$K:$K,InTB!$N:$N,$B17,InTB!$C:$C,BS!M$1) -> 0 | N17: =IF(N$1=0,0,ROUND($T17*N$108,2))+SUMIFS(InTB!$K:$K,InTB!$M:$M,$E17,InTB!$C:$C,BS!N$1)+SUMIFS(InTB!$K:$K,InTB!$N:$N,$C17,InTB!$C:$C,BS!N$1)+SUMIFS(InTB!$K:$K,InTB!$N:$N,$B17,InTB!$C:$C,BS!N$1) -> 0 | O17: =IF(O$1=0,0,ROUND($T17*O$108,2))+SUMIFS(InTB!$K:$K,InTB!$M:$M,$E17,InTB!$C:$C,BS!O$1)+SUMIFS(InTB!$K:$K,InTB!$N:$N,$C17,InTB!$C:$C,BS!O$1)+SUMIFS(InTB!$K:$K,InTB!$N:$N,$B17,InTB!$C:$C,BS!O$1) -> 0 | P17: =IF(P$1=0,0,ROUND($T17*P$108,2))+SUMIFS(InTB!$K:$K,InTB!$M:$M,$E17,InTB!$C:$C,BS!P$1)+SUMIFS(InTB!$K:$K,InTB!$N:$N,$C17,InTB!$C:$C,BS!P$1)+SUMIFS(InTB!$K:$K,InTB!$N:$N,$B17,InTB!$C:$C,BS!P$1) -> 0 | Q17: =IF(Q$1=0,0,ROUND($T17*Q$108,2))+SUMIFS(InTB!$K:$K,InTB!$M:$M,$E17,InTB!$C:$C,BS!Q$1)+SUMIFS(InTB!$K:$K,InTB!$N:$N,$C17,InTB!$C:$C,BS!Q$1)+SUMIFS(InTB!$K:$K,InTB!$N:$N,$B17,InTB!$C:$C,BS!Q$1) -> 0 | R17: =IF(R$1=0,0,ROUND($T17*R$108,2))+SUMIFS(InTB!$K:$K,InTB!$M:$M,$E17,InTB!$C:$C,BS!R$1)+SUMIFS(InTB!$K:$K,InTB!$N:$N,$C17,InTB!$C:$C,BS!R$1)+SUMIFS(InTB!$K:$K,InTB!$N:$N,$B17,InTB!$C:$C,BS!R$1) -> 0 | S17: =IF(S$1=0,0,ROUND($T17*S$108,2))+SUMIFS(InTB!$K:$K,InTB!$M:$M,$E17,InTB!$C:$C,BS!S$1)+SUMIFS(InTB!$K:$K,InTB!$N:$N,$C17,InTB!$C:$C,BS!S$1)+SUMIFS(InTB!$K:$K,InTB!$N:$N,$B17,InTB!$C:$C,BS!S$1) -> 0 | T17: =SUMIF(InTBBase!$M:$M,$E17,InTBBase!$K:$K)+SUMIF(InTBBase!$N:$N,$C17,InTBBase!$K:$K)+SUMIF(InTBBase!$N:$N,$B17,InTBBase!$K:$K) -> 0 | U17: =ROUND(I17-SUM(J17:S17),1) -> 0
C18: BIACCE_CP | D18: UFISCP2 | E18: BIADCP | F18: =OFFSET( Label!$E$1,MATCH(BS!D18, Label!$E:$E,0)-1, Main!$G$14+1) -> Accretion of Discount- CP | I18: =SUMIF(InTB!$M:$M,$E18,InTB!$K:$K)+SUMIF(InTB!$N:$N,$C18,InTB!$K:$K)+SUMIF(InTB!$N:$N,$B18,InTB!$K:$K) -> 0 | J18: =IF(J$1=0,0,ROUND($T18*J$108,2))+SUMIFS(InTB!$K:$K,InTB!$M:$M,$E18,InTB!$C:$C,BS!J$1)+SUMIFS(InTB!$K:$K,InTB!$N:$N,$C18,InTB!$C:$C,BS!J$1)+SUMIFS(InTB!$K:$K,InTB!$N:$N,$B18,InTB!$C:$C,BS!J$1) -> 0 | K18: =IF(K$1=0,0,ROUND($T18*K$108,2))+SUMIFS(InTB!$K:$K,InTB!$M:$M,$E18,InTB!$C:$C,BS!K$1)+SUMIFS(InTB!$K:$K,InTB!$N:$N,$C18,InTB!$C:$C,BS!K$1)+SUMIFS(InTB!$K:$K,InTB!$N:$N,$B18,InTB!$C:$C,BS!K$1) -> 0 | L18: =IF(L$1=0,0,ROUND($T18*L$108,2))+SUMIFS(InTB!$K:$K,InTB!$M:$M,$E18,InTB!$C:$C,BS!L$1)+SUMIFS(InTB!$K:$K,InTB!$N:$N,$C18,InTB!$C:$C,BS!L$1)+SUMIFS(InTB!$K:$K,InTB!$N:$N,$B18,InTB!$C:$C,BS!L$1) -> 0 | M18: =IF(M$1=0,0,ROUND($T18*M$108,2))+SUMIFS(InTB!$K:$K,InTB!$M:$M,$E18,InTB!$C:$C,BS!M$1)+SUMIFS(InTB!$K:$K,InTB!$N:$N,$C18,InTB!$C:$C,BS!M$1)+SUMIFS(InTB!$K:$K,InTB!$N:$N,$B18,InTB!$C:$C,BS!M$1) -> 0 | N18: =IF(N$1=0,0,ROUND($T18*N$108,2))+SUMIFS(InTB!$K:$K,InTB!$M:$M,$E18,InTB!$C:$C,BS!N$1)+SUMIFS(InTB!$K:$K,InTB!$N:$N,$C18,InTB!$C:$C,BS!N$1)+SUMIFS(InTB!$K:$K,InTB!$N:$N,$B18,InTB!$C:$C,BS!N$1) -> 0 | O18: =IF(O$1=0,0,ROUND($T18*O$108,2))+SUMIFS(InTB!$K:$K,InTB!$M:$M,$E18,InTB!$C:$C,BS!O$1)+SUMIFS(InTB!$K:$K,InTB!$N:$N,$C18,InTB!$C:$C,BS!O$1)+SUMIFS(InTB!$K:$K,InTB!$N:$N,$B18,InTB!$C:$C,BS!O$1) -> 0 | P18: =IF(P$1=0,0,ROUND($T18*P$108,2))+SUMIFS(InTB!$K:$K,InTB!$M:$M,$E18,InTB!$C:$C,BS!P$1)+SUMIFS(InTB!$K:$K,InTB!$N:$N,$C18,InTB!$C:$C,BS!P$1)+SUMIFS(InTB!$K:$K,InTB!$N:$N,$B18,InTB!$C:$C,BS!P$1) -> 0 | Q18: =IF(Q$1=0,0,ROUND($T18*Q$108,2))+SUMIFS(InTB!$K:$K,InTB!$M:$M,$E18,InTB!$C:$C,BS!Q$1)+SUMIFS(InTB!$K:$K,InTB!$N:$N,$C18,InTB!$C:$C,BS!Q$1)+SUMIFS(InTB!$K:$K,InTB!$N:$N,$B18,InTB!$C:$C,BS!Q$1) -> 0 | R18: =IF(R$1=0,0,ROUND($T18*R$108,2))+SUMIFS(InTB!$K:$K,InTB!$M:$M,$E18,InTB!$C:$C,BS!R$1)+SUMIFS(InTB!$K:$K,InTB!$N:$N,$C18,InTB!$C:$C,BS!R$1)+SUMIFS(InTB!$K:$K,InTB!$N:$N,$B18,InTB!$C:$C,BS!R$1) -> 0 | S18: =IF(S$1=0,0,ROUND($T18*S$108,2))+SUMIFS(InTB!$K:$K,InTB!$M:$M,$E18,InTB!$C:$C,BS!S$1)+SUMIFS(InTB!$K:$K,InTB!$N:$N,$C18,InTB!$C:$C,BS!S$1)+SUMIFS(InTB!$K:$K,InTB!$N:$N,$B18,InTB!$C:$C,BS!S$1) -> 0 | T18: =SUMIF(InTBBase!$M:$M,$E18,InTBBase!$K:$K)+SUMIF(InTBBase!$N:$N,$C18,InTBBase!$K:$K)+SUMIF(InTBBase!$N:$N,$B18,InTBBase!$K:$K) -> 0 | U18: 0
C19: BIURGL_CP | D19: UFISCP3 | E19: BIAUCP | F19: =OFFSET( Label!$E$1,MATCH(BS!D19, Label!$E:$E,0)-1, Main!$G$14+1) -> Unrealised Reserves on Investment -CP | I19: =SUMIF(InTB!$M:$M,$E19,InTB!$K:$K)+SUMIF(InTB!$N:$N,$C19,InTB!$K:$K)+SUMIF(InTB!$N:$N,$B19,InTB!$K:$K) -> 0 | J19: =IF(J$1=0,0,ROUND($T19*J$108,2))+SUMIFS(InTB!$K:$K,InTB!$M:$M,$E19,InTB!$C:$C,BS!J$1)+SUMIFS(InTB!$K:$K,InTB!$N:$N,$C19,InTB!$C:$C,BS!J$1)+SUMIFS(InTB!$K:$K,InTB!$N:$N,$B19,InTB!$C:$C,BS!J$1) -> 0 | K19: =IF(K$1=0,0,ROUND($T19*K$108,2))+SUMIFS(InTB!$K:$K,InTB!$M:$M,$E19,InTB!$C:$C,BS!K$1)+SUMIFS(InTB!$K:$K,InTB!$N:$N,$C19,InTB!$C:$C,BS!K$1)+SUMIFS(InTB!$K:$K,InTB!$N:$N,$B19,InTB!$C:$C,BS!K$1) -> 0 | L19: =IF(L$1=0,0,ROUND($T19*L$108,2))+SUMIFS(InTB!$K:$K,InTB!$M:$M,$E19,InTB!$C:$C,BS!L$1)+SUMIFS(InTB!$K:$K,InTB!$N:$N,$C19,InTB!$C:$C,BS!L$1)+SUMIFS(InTB!$K:$K,InTB!$N:$N,$B19,InTB!$C:$C,BS!L$1) -> 0 | M19: =IF(M$1=0,0,ROUND($T19*M$108,2))+SUMIFS(InTB!$K:$K,InTB!$M:$M,$E19,InTB!$C:$C,BS!M$1)+SUMIFS(InTB!$K:$K,InTB!$N:$N,$C19,InTB!$C:$C,BS!M$1)+SUMIFS(InTB!$K:$K,InTB!$N:$N,$B19,InTB!$C:$C,BS!M$1) -> 0 | N19: =IF(N$1=0,0,ROUND($T19*N$108,2))+SUMIFS(InTB!$K:$K,InTB!$M:$M,$E19,InTB!$C:$C,BS!N$1)+SUMIFS(InTB!$K:$K,InTB!$N:$N,$C19,InTB!$C:$C,BS!N$1)+SUMIFS(InTB!$K:$K,InTB!$N:$N,$B19,InTB!$C:$C,BS!N$1) -> 0 | O19: =IF(O$1=0,0,ROUND($T19*O$108,2))+SUMIFS(InTB!$K:$K,InTB!$M:$M,$E19,InTB!$C:$C,BS!O$1)+SUMIFS(InTB!$K:$K,InTB!$N:$N,$C19,InTB!$C:$C,BS!O$1)+SUMIFS(InTB!$K:$K,InTB!$N:$N,$B19,InTB!$C:$C,BS!O$1) -> 0 | P19: =IF(P$1=0,0,ROUND($T19*P$108,2))+SUMIFS(InTB!$K:$K,InTB!$M:$M,$E19,InTB!$C:$C,BS!P$1)+SUMIFS(InTB!$K:$K,InTB!$N:$N,$C19,InTB!$C:$C,BS!P$1)+SUMIFS(InTB!$K:$K,InTB!$N:$N,$B19,InTB!$C:$C,BS!P$1) -> 0 | Q19: =IF(Q$1=0,0,ROUND($T19*Q$108,2))+SUMIFS(InTB!$K:$K,InTB!$M:$M,$E19,InTB!$C:$C,BS!Q$1)+SUMIFS(InTB!$K:$K,InTB!$N:$N,$C19,InTB!$C:$C,BS!Q$1)+SUMIFS(InTB!$K:$K,InTB!$N:$N,$B19,InTB!$C:$C,BS!Q$1) -> 0 | R19: =IF(R$1=0,0,ROUND($T19*R$108,2))+SUMIFS(InTB!$K:$K,InTB!$M:$M,$E19,InTB!$C:$C,BS!R$1)+SUMIFS(InTB!$K:$K,InTB!$N:$N,$C19,InTB!$C:$C,BS!R$1)+SUMIFS(InTB!$K:$K,InTB!$N:$N,$B19,InTB!$C:$C,BS!R$1) -> 0 | S19: =IF(S$1=0,0,ROUND($T19*S$108,2))+SUMIFS(InTB!$K:$K,InTB!$M:$M,$E19,InTB!$C:$C,BS!S$1)+SUMIFS(InTB!$K:$K,InTB!$N:$N,$C19,InTB!$C:$C,BS!S$1)+SUMIFS(InTB!$K:$K,InTB!$N:$N,$B19,InTB!$C:$C,BS!S$1) -> 0 | T19: =SUMIF(InTBBase!$M:$M,$E19,InTBBase!$K:$K)+SUMIF(InTBBase!$N:$N,$C19,InTBBase!$K:$K)+SUMIF(InTBBase!$N:$N,$B19,InTBBase!$K:$K) -> 0 | U19: 0
U20: 0
D21: UFISCB | F21: =OFFSET( Label!$E$1,MATCH(BS!D21, Label!$E:$E,0)-1, Main!$G$14+1) -> UNQUOTED FIXED INCOME SECURITIES -COMMERCIAL BOND | I21: =SUM(I22:I27) -> 0 | J21: 0 | K21: 0 | L21: 0 | M21: 0 | N21: 0 | O21: =SUM(O22:O27) -> 0 | P21: 0 | Q21: 0 | R21: =SUM(R22:R27) -> 0 | S21: 0 | T21: =SUM(T22:T27) -> 0 | U21: 0
C22: BICOST_*BND | D22: UFISCOST1 | E22: BIACCB | F22: =OFFSET( Label!$E$1,MATCH(BS!D22, Label!$E:$E,0)-1, Main!$G$14+1) -> Investment Cost - CB | I22: =SUMIF(InTB!$M:$M,$E22,InTB!$K:$K)+SUMIF(InTB!$N:$N,$C22,InTB!$K:$K)+SUMIF(InTB!$N:$N,$B22,InTB!$K:$K) -> 0 | J22: =IF(J$1=0,0,ROUND($T22*J$108,2))+SUMIFS(InTB!$K:$K,InTB!$M:$M,$E22,InTB!$C:$C,BS!J$1)+SUMIFS(InTB!$K:$K,InTB!$N:$N,$C22,InTB!$C:$C,BS!J$1)+SUMIFS(InTB!$K:$K,InTB!$N:$N,$B22,InTB!$C:$C,BS!J$1) -> 0 | K22: =IF(K$1=0,0,ROUND($T22*K$108,2))+SUMIFS(InTB!$K:$K,InTB!$M:$M,$E22,InTB!$C:$C,BS!K$1)+SUMIFS(InTB!$K:$K,InTB!$N:$N,$C22,InTB!$C:$C,BS!K$1)+SUMIFS(InTB!$K:$K,InTB!$N:$N,$B22,InTB!$C:$C,BS!K$1) -> 0 | L22: =IF(L$1=0,0,ROUND($T22*L$108,2))+SUMIFS(InTB!$K:$K,InTB!$M:$M,$E22,InTB!$C:$C,BS!L$1)+SUMIFS(InTB!$K:$K,InTB!$N:$N,$C22,InTB!$C:$C,BS!L$1)+SUMIFS(InTB!$K:$K,InTB!$N:$N,$B22,InTB!$C:$C,BS!L$1) -> 0 | M22: =IF(M$1=0,0,ROUND($T22*M$108,2))+SUMIFS(InTB!$K:$K,InTB!$M:$M,$E22,InTB!$C:$C,BS!M$1)+SUMIFS(InTB!$K:$K,InTB!$N:$N,$C22,InTB!$C:$C,BS!M$1)+SUMIFS(InTB!$K:$K,InTB!$N:$N,$B22,InTB!$C:$C,BS!M$1) -> 0 | N22: =IF(N$1=0,0,ROUND($T22*N$108,2))+SUMIFS(InTB!$K:$K,InTB!$M:$M,$E22,InTB!$C:$C,BS!N$1)+SUMIFS(InTB!$K:$K,InTB!$N:$N,$C22,InTB!$C:$C,BS!N$1)+SUMIFS(InTB!$K:$K,InTB!$N:$N,$B22,InTB!$C:$C,BS!N$1) -> 0 | O22: =IF(O$1=0,0,ROUND($T22*O$108,2))+SUMIFS(InTB!$K:$K,InTB!$M:$M,$E22,InTB!$C:$C,BS!O$1)+SUMIFS(InTB!$K:$K,InTB!$N:$N,$C22,InTB!$C:$C,BS!O$1)+SUMIFS(InTB!$K:$K,InTB!$N:$N,$B22,InTB!$C:$C,BS!O$1) -> 0 | P22: =IF(P$1=0,0,ROUND($T22*P$108,2))+SUMIFS(InTB!$K:$K,InTB!$M:$M,$E22,InTB!$C:$C,BS!P$1)+SUMIFS(InTB!$K:$K,InTB!$N:$N,$C22,InTB!$C:$C,BS!P$1)+SUMIFS(InTB!$K:$K,InTB!$N:$N,$B22,InTB!$C:$C,BS!P$1) -> 0 | Q22: =IF(Q$1=0,0,ROUND($T22*Q$108,2))+SUMIFS(InTB!$K:$K,InTB!$M:$M,$E22,InTB!$C:$C,BS!Q$1)+SUMIFS(InTB!$K:$K,InTB!$N:$N,$C22,InTB!$C:$C,BS!Q$1)+SUMIFS(InTB!$K:$K,InTB!$N:$N,$B22,InTB!$C:$C,BS!Q$1) -> 0 | R22: =IF(R$1=0,0,ROUND($T22*R$108,2))+SUMIFS(InTB!$K:$K,InTB!$M:$M,$E22,InTB!$C:$C,BS!R$1)+SUMIFS(InTB!$K:$K,InTB!$N:$N,$C22,InTB!$C:$C,BS!R$1)+SUMIFS(InTB!$K:$K,InTB!$N:$N,$B22,InTB!$C:$C,BS!R$1) -> 0 | S22: =IF(S$1=0,0,ROUND($T22*S$108,2))+SUMIFS(InTB!$K:$K,InTB!$M:$M,$E22,InTB!$C:$C,BS!S$1)+SUMIFS(InTB!$K:$K,InTB!$N:$N,$C22,InTB!$C:$C,BS!S$1)+SUMIFS(InTB!$K:$K,InTB!$N:$N,$B22,InTB!$C:$C,BS!S$1) -> 0 | T22: =SUMIF(InTBBase!$M:$M,$E22,InTBBase!$K:$K)+SUMIF(InTBBase!$N:$N,$C22,InTBBase!$K:$K)+SUMIF(InTBBase!$N:$N,$B22,InTBBase!$K:$K) -> 0 | U22: 0
C23: BIPACQ_*BND | D23: UFISCOST2 | E23: BIAPCB | F23: =OFFSET( Label!$E$1,MATCH(BS!D23, Label!$E:$E,0)-1, Main!$G$14+1) -> Pre-Acq Interest - CB | I23: =SUMIF(InTB!$M:$M,$E23,InTB!$K:$K)+SUMIF(InTB!$N:$N,$C23,InTB!$K:$K)+SUMIF(InTB!$N:$N,$B23,InTB!$K:$K) -> 0 | J23: =IF(J$1=0,0,ROUND($T23*J$108,2))+SUMIFS(InTB!$K:$K,InTB!$M:$M,$E23,InTB!$C:$C,BS!J$1)+SUMIFS(InTB!$K:$K,InTB!$N:$N,$C23,InTB!$C:$C,BS!J$1)+SUMIFS(InTB!$K:$K,InTB!$N:$N,$B23,InTB!$C:$C,BS!J$1) -> 0 | K23: =IF(K$1=0,0,ROUND($T23*K$108,2))+SUMIFS(InTB!$K:$K,InTB!$M:$M,$E23,InTB!$C:$C,BS!K$1)+SUMIFS(InTB!$K:$K,InTB!$N:$N,$C23,InTB!$C:$C,BS!K$1)+SUMIFS(InTB!$K:$K,InTB!$N:$N,$B23,InTB!$C:$C,BS!K$1) -> 0 | L23: =IF(L$1=0,0,ROUND($T23*L$108,2))+SUMIFS(InTB!$K:$K,InTB!$M:$M,$E23,InTB!$C:$C,BS!L$1)+SUMIFS(InTB!$K:$K,InTB!$N:$N,$C23,InTB!$C:$C,BS!L$1)+SUMIFS(InTB!$K:$K,InTB!$N:$N,$B23,InTB!$C:$C,BS!L$1) -> 0 | M23: =IF(M$1=0,0,ROUND($T23*M$108,2))+SUMIFS(InTB!$K:$K,InTB!$M:$M,$E23,InTB!$C:$C,BS!M$1)+SUMIFS(InTB!$K:$K,InTB!$N:$N,$C23,InTB!$C:$C,BS!M$1)+SUMIFS(InTB!$K:$K,InTB!$N:$N,$B23,InTB!$C:$C,BS!M$1) -> 0 | N23: =IF(N$1=0,0,ROUND($T23*N$108,2))+SUMIFS(InTB!$K:$K,InTB!$M:$M,$E23,InTB!$C:$C,BS!N$1)+SUMIFS(InTB!$K:$K,InTB!$N:$N,$C23,InTB!$C:$C,BS!N$1)+SUMIFS(InTB!$K:$K,InTB!$N:$N,$B23,InTB!$C:$C,BS!N$1) -> 0 | O23: =IF(O$1=0,0,ROUND($T23*O$108,2))+SUMIFS(InTB!$K:$K,InTB!$M:$M,$E23,InTB!$C:$C,BS!O$1)+SUMIFS(InTB!$K:$K,InTB!$N:$N,$C23,InTB!$C:$C,BS!O$1)+SUMIFS(InTB!$K:$K,InTB!$N:$N,$B23,InTB!$C:$C,BS!O$1) -> 0 | P23: =IF(P$1=0,0,ROUND($T23*P$108,2))+SUMIFS(InTB!$K:$K,InTB!$M:$M,$E23,InTB!$C:$C,BS!P$1)+SUMIFS(InTB!$K:$K,InTB!$N:$N,$C23,InTB!$C:$C,BS!P$1)+SUMIFS(InTB!$K:$K,InTB!$N:$N,$B23,InTB!$C:$C,BS!P$1) -> 0 | Q23: =IF(Q$1=0,0,ROUND($T23*Q$108,2))+SUMIFS(InTB!$K:$K,InTB!$M:$M,$E23,InTB!$C:$C,BS!Q$1)+SUMIFS(InTB!$K:$K,InTB!$N:$N,$C23,InTB!$C:$C,BS!Q$1)+SUMIFS(InTB!$K:$K,InTB!$N:$N,$B23,InTB!$C:$C,BS!Q$1) -> 0 | R23: =IF(R$1=0,0,ROUND($T23*R$108,2))+SUMIFS(InTB!$K:$K,InTB!$M:$M,$E23,InTB!$C:$C,BS!R$1)+SUMIFS(InTB!$K:$K,InTB!$N:$N,$C23,InTB!$C:$C,BS!R$1)+SUMIFS(InTB!$K:$K,InTB!$N:$N,$B23,InTB!$C:$C,BS!R$1) -> 0 | S23: =IF(S$1=0,0,ROUND($T23*S$108,2))+SUMIFS(InTB!$K:$K,InTB!$M:$M,$E23,InTB!$C:$C,BS!S$1)+SUMIFS(InTB!$K:$K,InTB!$N:$N,$C23,InTB!$C:$C,BS!S$1)+SUMIFS(InTB!$K:$K,InTB!$N:$N,$B23,InTB!$C:$C,BS!S$1) -> 0 | T23: =SUMIF(InTBBase!$M:$M,$E23,InTBBase!$K:$K)+SUMIF(InTBBase!$N:$N,$C23,InTBBase!$K:$K)+SUMIF(InTBBase!$N:$N,$B23,InTBBase!$K:$K) -> 0 | U23: 0
C24: BIAMRT_*BND | D24: UFISCOST3 | E24: BIAACB | F24: =OFFSET( Label!$E$1,MATCH(BS!D24, Label!$E:$E,0)-1, Main!$G$14+1) -> Premium on Acquisition - CB | I24: =SUMIF(InTB!$M:$M,$E24,InTB!$K:$K)+SUMIF(InTB!$N:$N,$C24,InTB!$K:$K)+SUMIF(InTB!$N:$N,$B24,InTB!$K:$K) -> 0 | J24: =IF(J$1=0,0,ROUND($T24*J$108,2))+SUMIFS(InTB!$K:$K,InTB!$M:$M,$E24,InTB!$C:$C,BS!J$1)+SUMIFS(InTB!$K:$K,InTB!$N:$N,$C24,InTB!$C:$C,BS!J$1)+SUMIFS(InTB!$K:$K,InTB!$N:$N,$B24,InTB!$C:$C,BS!J$1) -> 0 | K24: =IF(K$1=0,0,ROUND($T24*K$108,2))+SUMIFS(InTB!$K:$K,InTB!$M:$M,$E24,InTB!$C:$C,BS!K$1)+SUMIFS(InTB!$K:$K,InTB!$N:$N,$C24,InTB!$C:$C,BS!K$1)+SUMIFS(InTB!$K:$K,InTB!$N:$N,$B24,InTB!$C:$C,BS!K$1) -> 0 | L24: =IF(L$1=0,0,ROUND($T24*L$108,2))+SUMIFS(InTB!$K:$K,InTB!$M:$M,$E24,InTB!$C:$C,BS!L$1)+SUMIFS(InTB!$K:$K,InTB!$N:$N,$C24,InTB!$C:$C,BS!L$1)+SUMIFS(InTB!$K:$K,InTB!$N:$N,$B24,InTB!$C:$C,BS!L$1) -> 0 | M24: =IF(M$1=0,0,ROUND($T24*M$108,2))+SUMIFS(InTB!$K:$K,InTB!$M:$M,$E24,InTB!$C:$C,BS!M$1)+SUMIFS(InTB!$K:$K,InTB!$N:$N,$C24,InTB!$C:$C,BS!M$1)+SUMIFS(InTB!$K:$K,InTB!$N:$N,$B24,InTB!$C:$C,BS!M$1) -> 0 | N24: =IF(N$1=0,0,ROUND($T24*N$108,2))+SUMIFS(InTB!$K:$K,InTB!$M:$M,$E24,InTB!$C:$C,BS!N$1)+SUMIFS(InTB!$K:$K,InTB!$N:$N,$C24,InTB!$C:$C,BS!N$1)+SUMIFS(InTB!$K:$K,InTB!$N:$N,$B24,InTB!$C:$C,BS!N$1) -> 0 | O24: =IF(O$1=0,0,ROUND($T24*O$108,2))+SUMIFS(InTB!$K:$K,InTB!$M:$M,$E24,InTB!$C:$C,BS!O$1)+SUMIFS(InTB!$K:$K,InTB!$N:$N,$C24,InTB!$C:$C,BS!O$1)+SUMIFS(InTB!$K:$K,InTB!$N:$N,$B24,InTB!$C:$C,BS!O$1) -> 0 | P24: =IF(P$1=0,0,ROUND($T24*P$108,2))+SUMIFS(InTB!$K:$K,InTB!$M:$M,$E24,InTB!$C:$C,BS!P$1)+SUMIFS(InTB!$K:$K,InTB!$N:$N,$C24,InTB!$C:$C,BS!P$1)+SUMIFS(InTB!$K:$K,InTB!$N:$N,$B24,InTB!$C:$C,BS!P$1) -> 0 | Q24: =IF(Q$1=0,0,ROUND($T24*Q$108,2))+SUMIFS(InTB!$K:$K,InTB!$M:$M,$E24,InTB!$C:$C,BS!Q$1)+SUMIFS(InTB!$K:$K,InTB!$N:$N,$C24,InTB!$C:$C,BS!Q$1)+SUMIFS(InTB!$K:$K,InTB!$N:$N,$B24,InTB!$C:$C,BS!Q$1) -> 0 | R24: =IF(R$1=0,0,ROUND($T24*R$108,2))+SUMIFS(InTB!$K:$K,InTB!$M:$M,$E24,InTB!$C:$C,BS!R$1)+SUMIFS(InTB!$K:$K,InTB!$N:$N,$C24,InTB!$C:$C,BS!R$1)+SUMIFS(InTB!$K:$K,InTB!$N:$N,$B24,InTB!$C:$C,BS!R$1) -> 0 | S24: =IF(S$1=0,0,ROUND($T24*S$108,2))+SUMIFS(InTB!$K:$K,InTB!$M:$M,$E24,InTB!$C:$C,BS!S$1)+SUMIFS(InTB!$K:$K,InTB!$N:$N,$C24,InTB!$C:$C,BS!S$1)+SUMIFS(InTB!$K:$K,InTB!$N:$N,$B24,InTB!$C:$C,BS!S$1) -> 0 | T24: =SUMIF(InTBBase!$M:$M,$E24,InTBBase!$K:$K)+SUMIF(InTBBase!$N:$N,$C24,InTBBase!$K:$K)+SUMIF(InTBBase!$N:$N,$B24,InTBBase!$K:$K) -> 0 | U24: 0
C25: BIACCE_*BND | D25: UFISCOST4 | E25: BIADCB | F25: =OFFSET( Label!$E$1,MATCH(BS!D25, Label!$E:$E,0)-1, Main!$G$14+1) -> Accreation of Discount - CB | I25: =SUMIF(InTB!$M:$M,$E25,InTB!$K:$K)+SUMIF(InTB!$N:$N,$C25,InTB!$K:$K)+SUMIF(InTB!$N:$N,$B25,InTB!$K:$K) -> 0 | J25: =IF(J$1=0,0,ROUND($T25*J$108,2))+SUMIFS(InTB!$K:$K,InTB!$M:$M,$E25,InTB!$C:$C,BS!J$1)+SUMIFS(InTB!$K:$K,InTB!$N:$N,$C25,InTB!$C:$C,BS!J$1)+SUMIFS(InTB!$K:$K,InTB!$N:$N,$B25,InTB!$C:$C,BS!J$1) -> 0 | K25: =IF(K$1=0,0,ROUND($T25*K$108,2))+SUMIFS(InTB!$K:$K,InTB!$M:$M,$E25,InTB!$C:$C,BS!K$1)+SUMIFS(InTB!$K:$K,InTB!$N:$N,$C25,InTB!$C:$C,BS!K$1)+SUMIFS(InTB!$K:$K,InTB!$N:$N,$B25,InTB!$C:$C,BS!K$1) -> 0 | L25: =IF(L$1=0,0,ROUND($T25*L$108,2))+SUMIFS(InTB!$K:$K,InTB!$M:$M,$E25,InTB!$C:$C,BS!L$1)+SUMIFS(InTB!$K:$K,InTB!$N:$N,$C25,InTB!$C:$C,BS!L$1)+SUMIFS(InTB!$K:$K,InTB!$N:$N,$B25,InTB!$C:$C,BS!L$1) -> 0 | M25: =IF(M$1=0,0,ROUND($T25*M$108,2))+SUMIFS(InTB!$K:$K,InTB!$M:$M,$E25,InTB!$C:$C,BS!M$1)+SUMIFS(InTB!$K:$K,InTB!$N:$N,$C25,InTB!$C:$C,BS!M$1)+SUMIFS(InTB!$K:$K,InTB!$N:$N,$B25,InTB!$C:$C,BS!M$1) -> 0 | N25: =IF(N$1=0,0,ROUND($T25*N$108,2))+SUMIFS(InTB!$K:$K,InTB!$M:$M,$E25,InTB!$C:$C,BS!N$1)+SUMIFS(InTB!$K:$K,InTB!$N:$N,$C25,InTB!$C:$C,BS!N$1)+SUMIFS(InTB!$K:$K,InTB!$N:$N,$B25,InTB!$C:$C,BS!N$1) -> 0 | O25: =IF(O$1=0,0,ROUND($T25*O$108,2))+SUMIFS(InTB!$K:$K,InTB!$M:$M,$E25,InTB!$C:$C,BS!O$1)+SUMIFS(InTB!$K:$K,InTB!$N:$N,$C25,InTB!$C:$C,BS!O$1)+SUMIFS(InTB!$K:$K,InTB!$N:$N,$B25,InTB!$C:$C,BS!O$1) -> 0 | P25: =IF(P$1=0,0,ROUND($T25*P$108,2))+SUMIFS(InTB!$K:$K,InTB!$M:$M,$E25,InTB!$C:$C,BS!P$1)+SUMIFS(InTB!$K:$K,InTB!$N:$N,$C25,InTB!$C:$C,BS!P$1)+SUMIFS(InTB!$K:$K,InTB!$N:$N,$B25,InTB!$C:$C,BS!P$1) -> 0 | Q25: =IF(Q$1=0,0,ROUND($T25*Q$108,2))+SUMIFS(InTB!$K:$K,InTB!$M:$M,$E25,InTB!$C:$C,BS!Q$1)+SUMIFS(InTB!$K:$K,InTB!$N:$N,$C25,InTB!$C:$C,BS!Q$1)+SUMIFS(InTB!$K:$K,InTB!$N:$N,$B25,InTB!$C:$C,BS!Q$1) -> 0 | R25: =IF(R$1=0,0,ROUND($T25*R$108,2))+SUMIFS(InTB!$K:$K,InTB!$M:$M,$E25,InTB!$C:$C,BS!R$1)+SUMIFS(InTB!$K:$K,InTB!$N:$N,$C25,InTB!$C:$C,BS!R$1)+SUMIFS(InTB!$K:$K,InTB!$N:$N,$B25,InTB!$C:$C,BS!R$1) -> 0 | S25: =IF(S$1=0,0,ROUND($T25*S$108,2))+SUMIFS(InTB!$K:$K,InTB!$M:$M,$E25,InTB!$C:$C,BS!S$1)+SUMIFS(InTB!$K:$K,InTB!$N:$N,$C25,InTB!$C:$C,BS!S$1)+SUMIFS(InTB!$K:$K,InTB!$N:$N,$B25,InTB!$C:$C,BS!S$1) -> 0 | T25: =SUMIF(InTBBase!$M:$M,$E25,InTBBase!$K:$K)+SUMIF(InTBBase!$N:$N,$C25,InTBBase!$K:$K)+SUMIF(InTBBase!$N:$N,$B25,InTBBase!$K:$K) -> 0 | U25: 0
C26: BIURGL_*BND | D26: UFISCOST5 | E26: BIAUCB | F26: =OFFSET( Label!$E$1,MATCH(BS!D26, Label!$E:$E,0)-1, Main!$G$14+1) -> Unrealised Reserves on Investment - CB | I26: =SUMIF(InTB!$M:$M,$E26,InTB!$K:$K)+SUMIF(InTB!$N:$N,$C26,InTB!$K:$K)+SUMIF(InTB!$N:$N,$B26,InTB!$K:$K) -> 0 | J26: =IF(J$1=0,0,ROUND($T26*J$108,2))+SUMIFS(InTB!$K:$K,InTB!$M:$M,$E26,InTB!$C:$C,BS!J$1)+SUMIFS(InTB!$K:$K,InTB!$N:$N,$C26,InTB!$C:$C,BS!J$1)+SUMIFS(InTB!$K:$K,InTB!$N:$N,$B26,InTB!$C:$C,BS!J$1) -> 0 | K26: =IF(K$1=0,0,ROUND($T26*K$108,2))+SUMIFS(InTB!$K:$K,InTB!$M:$M,$E26,InTB!$C:$C,BS!K$1)+SUMIFS(InTB!$K:$K,InTB!$N:$N,$C26,InTB!$C:$C,BS!K$1)+SUMIFS(InTB!$K:$K,InTB!$N:$N,$B26,InTB!$C:$C,BS!K$1) -> 0 | L26: =IF(L$1=0,0,ROUND($T26*L$108,2))+SUMIFS(InTB!$K:$K,InTB!$M:$M,$E26,InTB!$C:$C,BS!L$1)+SUMIFS(InTB!$K:$K,InTB!$N:$N,$C26,InTB!$C:$C,BS!L$1)+SUMIFS(InTB!$K:$K,InTB!$N:$N,$B26,InTB!$C:$C,BS!L$1) -> 0 | M26: =IF(M$1=0,0,ROUND($T26*M$108,2))+SUMIFS(InTB!$K:$K,InTB!$M:$M,$E26,InTB!$C:$C,BS!M$1)+SUMIFS(InTB!$K:$K,InTB!$N:$N,$C26,InTB!$C:$C,BS!M$1)+SUMIFS(InTB!$K:$K,InTB!$N:$N,$B26,InTB!$C:$C,BS!M$1) -> 0 | N26: =IF(N$1=0,0,ROUND($T26*N$108,2))+SUMIFS(InTB!$K:$K,InTB!$M:$M,$E26,InTB!$C:$C,BS!N$1)+SUMIFS(InTB!$K:$K,InTB!$N:$N,$C26,InTB!$C:$C,BS!N$1)+SUMIFS(InTB!$K:$K,InTB!$N:$N,$B26,InTB!$C:$C,BS!N$1) -> 0 | O26: =IF(O$1=0,0,ROUND($T26*O$108,2))+SUMIFS(InTB!$K:$K,InTB!$M:$M,$E26,InTB!$C:$C,BS!O$1)+SUMIFS(InTB!$K:$K,InTB!$N:$N,$C26,InTB!$C:$C,BS!O$1)+SUMIFS(InTB!$K:$K,InTB!$N:$N,$B26,InTB!$C:$C,BS!O$1) -> 0 | P26: =IF(P$1=0,0,ROUND($T26*P$108,2))+SUMIFS(InTB!$K:$K,InTB!$M:$M,$E26,InTB!$C:$C,BS!P$1)+SUMIFS(InTB!$K:$K,InTB!$N:$N,$C26,InTB!$C:$C,BS!P$1)+SUMIFS(InTB!$K:$K,InTB!$N:$N,$B26,InTB!$C:$C,BS!P$1) -> 0 | Q26: =IF(Q$1=0,0,ROUND($T26*Q$108,2))+SUMIFS(InTB!$K:$K,InTB!$M:$M,$E26,InTB!$C:$C,BS!Q$1)+SUMIFS(InTB!$K:$K,InTB!$N:$N,$C26,InTB!$C:$C,BS!Q$1)+SUMIFS(InTB!$K:$K,InTB!$N:$N,$B26,InTB!$C:$C,BS!Q$1) -> 0 | R26: =IF(R$1=0,0,ROUND($T26*R$108,2))+SUMIFS(InTB!$K:$K,InTB!$M:$M,$E26,InTB!$C:$C,BS!R$1)+SUMIFS(InTB!$K:$K,InTB!$N:$N,$C26,InTB!$C:$C,BS!R$1)+SUMIFS(InTB!$K:$K,InTB!$N:$N,$B26,InTB!$C:$C,BS!R$1) -> 0 | S26: =IF(S$1=0,0,ROUND($T26*S$108,2))+SUMIFS(InTB!$K:$K,InTB!$M:$M,$E26,InTB!$C:$C,BS!S$1)+SUMIFS(InTB!$K:$K,InTB!$N:$N,$C26,InTB!$C:$C,BS!S$1)+SUMIFS(InTB!$K:$K,InTB!$N:$N,$B26,InTB!$C:$C,BS!S$1) -> 0 | T26: =SUMIF(InTBBase!$M:$M,$E26,InTBBase!$K:$K)+SUMIF(InTBBase!$N:$N,$C26,InTBBase!$K:$K)+SUMIF(InTBBase!$N:$N,$B26,InTBBase!$K:$K) -> 0 | U26: 0
C27: BIURFX_*BND | D27: UFISCOST6 | F27: =OFFSET( Label!$E$1,MATCH(BS!D27, Label!$E:$E,0)-1, Main!$G$14+1) -> UNREALISED FOREX GAINS/(LOSS) ON FOREIGN - CB | I27: =SUMIF(InTB!$M:$M,$E27,InTB!$K:$K)+SUMIF(InTB!$N:$N,$C27,InTB!$K:$K)+SUMIF(InTB!$N:$N,$B27,InTB!$K:$K) -> 0 | J27: =IF(J$1=0,0,ROUND($T27*J$108,2))+SUMIFS(InTB!$K:$K,InTB!$M:$M,$E27,InTB!$C:$C,BS!J$1)+SUMIFS(InTB!$K:$K,InTB!$N:$N,$C27,InTB!$C:$C,BS!J$1)+SUMIFS(InTB!$K:$K,InTB!$N:$N,$B27,InTB!$C:$C,BS!J$1) -> 0 | K27: =IF(K$1=0,0,ROUND($T27*K$108,2))+SUMIFS(InTB!$K:$K,InTB!$M:$M,$E27,InTB!$C:$C,BS!K$1)+SUMIFS(InTB!$K:$K,InTB!$N:$N,$C27,InTB!$C:$C,BS!K$1)+SUMIFS(InTB!$K:$K,InTB!$N:$N,$B27,InTB!$C:$C,BS!K$1) -> 0 | L27: =IF(L$1=0,0,ROUND($T27*L$108,2))+SUMIFS(InTB!$K:$K,InTB!$M:$M,$E27,InTB!$C:$C,BS!L$1)+SUMIFS(InTB!$K:$K,InTB!$N:$N,$C27,InTB!$C:$C,BS!L$1)+SUMIFS(InTB!$K:$K,InTB!$N:$N,$B27,InTB!$C:$C,BS!L$1) -> 0 | M27: =IF(M$1=0,0,ROUND($T27*M$108,2))+SUMIFS(InTB!$K:$K,InTB!$M:$M,$E27,InTB!$C:$C,BS!M$1)+SUMIFS(InTB!$K:$K,InTB!$N:$N,$C27,InTB!$C:$C,BS!M$1)+SUMIFS(InTB!$K:$K,InTB!$N:$N,$B27,InTB!$C:$C,BS!M$1) -> 0 | N27: =IF(N$1=0,0,ROUND($T27*N$108,2))+SUMIFS(InTB!$K:$K,InTB!$M:$M,$E27,InTB!$C:$C,BS!N$1)+SUMIFS(InTB!$K:$K,InTB!$N:$N,$C27,InTB!$C:$C,BS!N$1)+SUMIFS(InTB!$K:$K,InTB!$N:$N,$B27,InTB!$C:$C,BS!N$1) -> 0 | O27: =IF(O$1=0,0,ROUND($T27*O$108,2))+SUMIFS(InTB!$K:$K,InTB!$M:$M,$E27,InTB!$C:$C,BS!O$1)+SUMIFS(InTB!$K:$K,InTB!$N:$N,$C27,InTB!$C:$C,BS!O$1)+SUMIFS(InTB!$K:$K,InTB!$N:$N,$B27,InTB!$C:$C,BS!O$1) -> 0 | P27: =IF(P$1=0,0,ROUND($T27*P$108,2))+SUMIFS(InTB!$K:$K,InTB!$M:$M,$E27,InTB!$C:$C,BS!P$1)+SUMIFS(InTB!$K:$K,InTB!$N:$N,$C27,InTB!$C:$C,BS!P$1)+SUMIFS(InTB!$K:$K,InTB!$N:$N,$B27,InTB!$C:$C,BS!P$1) -> 0 | Q27: =IF(Q$1=0,0,ROUND($T27*Q$108,2))+SUMIFS(InTB!$K:$K,InTB!$M:$M,$E27,InTB!$C:$C,BS!Q$1)+SUMIFS(InTB!$K:$K,InTB!$N:$N,$C27,InTB!$C:$C,BS!Q$1)+SUMIFS(InTB!$K:$K,InTB!$N:$N,$B27,InTB!$C:$C,BS!Q$1) -> 0 | R27: =IF(R$1=0,0,ROUND($T27*R$108,2))+SUMIFS(InTB!$K:$K,InTB!$M:$M,$E27,InTB!$C:$C,BS!R$1)+SUMIFS(InTB!$K:$K,InTB!$N:$N,$C27,InTB!$C:$C,BS!R$1)+SUMIFS(InTB!$K:$K,InTB!$N:$N,$B27,InTB!$C:$C,BS!R$1) -> 0 | S27: =IF(S$1=0,0,ROUND($T27*S$108,2))+SUMIFS(InTB!$K:$K,InTB!$M:$M,$E27,InTB!$C:$C,BS!S$1)+SUMIFS(InTB!$K:$K,InTB!$N:$N,$C27,InTB!$C:$C,BS!S$1)+SUMIFS(InTB!$K:$K,InTB!$N:$N,$B27,InTB!$C:$C,BS!S$1) -> 0 | T27: =SUMIF(InTBBase!$M:$M,$E27,InTBBase!$K:$K)+SUMIF(InTBBase!$N:$N,$C27,InTBBase!$K:$K)+SUMIF(InTBBase!$N:$N,$B27,InTBBase!$K:$K) -> 0 | U27: 0
U28: 0
D29: FVUFIS | F29: =OFFSET( Label!$E$1,MATCH(BS!D29, Label!$E:$E,0)-1, Main!$G$14+1) -> FAIR VALUE FOR UNQUOTED FIXED INCOME SECURITIES | I29: =I16+I21 -> 0 | J29: =J16+J21 -> 0 | K29: 0 | L29: 0 | M29: 0 | N29: 0 | O29: 0 | P29: 0 | Q29: 0 | R29: 0 | S29: 0 | T29: =T16+T21 -> 0 | U29: 0
U30: 0
D31: QS | F31: =OFFSET( Label!$E$1,MATCH(BS!D31, Label!$E:$E,0)-1, Main!$G$14+1) -> QUOTED SECURITIES | I31: =SUM(I32:I38) -> 1319966.14 | J31: 0 | K31: 0 | L31: 0 | M31: 0 | N31: 0 | O31: =SUM(O32:O38) -> 0 | P31: 0 | Q31: 0 | R31: =SUM(R32:R38) -> 1319966.14 | S31: 0 | T31: 1319966.14 | U31: 0
B32: BICOST_LNS | C32: BICOST_EQT | D32: QS1 | E32: BIACLS | F32: =UPPER(OFFSET( Label!$E$1,MATCH(BS!D32, Label!$E:$E,0)-1, Main!$G$14+1)) -> LOCAL LISTED SECURITIES | I32: =SUMIF(InTB!$M:$M,$E32,InTB!$K:$K)+SUMIF(InTB!$N:$N,$C32,InTB!$K:$K)+SUMIF(InTB!$N:$N,$B32,InTB!$K:$K) -> 164790.97 | J32: =IF(J$1=0,0,ROUND($T32*J$108,2))+SUMIFS(InTB!$K:$K,InTB!$M:$M,$E32,InTB!$C:$C,BS!J$1)+SUMIFS(InTB!$K:$K,InTB!$N:$N,$C32,InTB!$C:$C,BS!J$1)+SUMIFS(InTB!$K:$K,InTB!$N:$N,$B32,InTB!$C:$C,BS!J$1) -> 0 | K32: =IF(K$1=0,0,ROUND($T32*K$108,2))+SUMIFS(InTB!$K:$K,InTB!$M:$M,$E32,InTB!$C:$C,BS!K$1)+SUMIFS(InTB!$K:$K,InTB!$N:$N,$C32,InTB!$C:$C,BS!K$1)+SUMIFS(InTB!$K:$K,InTB!$N:$N,$B32,InTB!$C:$C,BS!K$1) -> 0 | L32: =IF(L$1=0,0,ROUND($T32*L$108,2))+SUMIFS(InTB!$K:$K,InTB!$M:$M,$E32,InTB!$C:$C,BS!L$1)+SUMIFS(InTB!$K:$K,InTB!$N:$N,$C32,InTB!$C:$C,BS!L$1)+SUMIFS(InTB!$K:$K,InTB!$N:$N,$B32,InTB!$C:$C,BS!L$1) -> 0 | M32: =IF(M$1=0,0,ROUND($T32*M$108,2))+SUMIFS(InTB!$K:$K,InTB!$M:$M,$E32,InTB!$C:$C,BS!M$1)+SUMIFS(InTB!$K:$K,InTB!$N:$N,$C32,InTB!$C:$C,BS!M$1)+SUMIFS(InTB!$K:$K,InTB!$N:$N,$B32,InTB!$C:$C,BS!M$1) -> 0 | N32: =IF(N$1=0,0,ROUND($T32*N$108,2))+SUMIFS(InTB!$K:$K,InTB!$M:$M,$E32,InTB!$C:$C,BS!N$1)+SUMIFS(InTB!$K:$K,InTB!$N:$N,$C32,InTB!$C:$C,BS!N$1)+SUMIFS(InTB!$K:$K,InTB!$N:$N,$B32,InTB!$C:$C,BS!N$1) -> 0 | O32: =IF(O$1=0,0,ROUND($T32*O$108,2))+SUMIFS(InTB!$K:$K,InTB!$M:$M,$E32,InTB!$C:$C,BS!O$1)+SUMIFS(InTB!$K:$K,InTB!$N:$N,$C32,InTB!$C:$C,BS!O$1)+SUMIFS(InTB!$K:$K,InTB!$N:$N,$B32,InTB!$C:$C,BS!O$1) -> 0 | P32: =IF(P$1=0,0,ROUND($T32*P$108,2))+SUMIFS(InTB!$K:$K,InTB!$M:$M,$E32,InTB!$C:$C,BS!P$1)+SUMIFS(InTB!$K:$K,InTB!$N:$N,$C32,InTB!$C:$C,BS!P$1)+SUMIFS(InTB!$K:$K,InTB!$N:$N,$B32,InTB!$C:$C,BS!P$1) -> 0 | Q32: =IF(Q$1=0,0,ROUND($T32*Q$108,2))+SUMIFS(InTB!$K:$K,InTB!$M:$M,$E32,InTB!$C:$C,BS!Q$1)+SUMIFS(InTB!$K:$K,InTB!$N:$N,$C32,InTB!$C:$C,BS!Q$1)+SUMIFS(InTB!$K:$K,InTB!$N:$N,$B32,InTB!$C:$C,BS!Q$1) -> 0 | R32: =IF(R$1=0,0,ROUND($T32*R$108,2))+SUMIFS(InTB!$K:$K,InTB!$M:$M,$E32,InTB!$C:$C,BS!R$1)+SUMIFS(InTB!$K:$K,InTB!$N:$N,$C32,InTB!$C:$C,BS!R$1)+SUMIFS(InTB!$K:$K,InTB!$N:$N,$B32,InTB!$C:$C,BS!R$1) -> 164790.97 | S32: =IF(S$1=0,0,ROUND($T32*S$108,2))+SUMIFS(InTB!$K:$K,InTB!$M:$M,$E32,InTB!$C:$C,BS!S$1)+SUMIFS(InTB!$K:$K,InTB!$N:$N,$C32,InTB!$C:$C,BS!S$1)+SUMIFS(InTB!$K:$K,InTB!$N:$N,$B32,InTB!$C:$C,BS!S$1) -> 0 | T32: =SUMIF(InTBBase!$M:$M,$E32,InTBBase!$K:$K)+SUMIF(InTBBase!$N:$N,$C32,InTBBase!$K:$K)+SUMIF(InTBBase!$N:$N,$B32,InTBBase!$K:$K) -> 164790.97 | U32: 0
B33: BIURGL_LNS | C33: BIURGL_EQT | D33: QS2 | E33: BIAULS | F33: =OFFSET( Label!$E$1,MATCH(BS!D33, Label!$E:$E,0)-1, Main!$G$14+1) -> Unrealised Gains/(Loss) on Local Listed Securities | I33: =SUMIF(InTB!$M:$M,$E33,InTB!$K:$K)+SUMIF(InTB!$N:$N,$C33,InTB!$K:$K)+SUMIF(InTB!$N:$N,$B33,InTB!$K:$K) -> 14294.65 | J33: =IF(J$1=0,0,ROUND($T33*J$108,2))+SUMIFS(InTB!$K:$K,InTB!$M:$M,$E33,InTB!$C:$C,BS!J$1)+SUMIFS(InTB!$K:$K,InTB!$N:$N,$C33,InTB!$C:$C,BS!J$1)+SUMIFS(InTB!$K:$K,InTB!$N:$N,$B33,InTB!$C:$C,BS!J$1) -> 0 | K33: =IF(K$1=0,0,ROUND($T33*K$108,2))+SUMIFS(InTB!$K:$K,InTB!$M:$M,$E33,InTB!$C:$C,BS!K$1)+SUMIFS(InTB!$K:$K,InTB!$N:$N,$C33,InTB!$C:$C,BS!K$1)+SUMIFS(InTB!$K:$K,InTB!$N:$N,$B33,InTB!$C:$C,BS!K$1) -> 0 | L33: =IF(L$1=0,0,ROUND($T33*L$108,2))+SUMIFS(InTB!$K:$K,InTB!$M:$M,$E33,InTB!$C:$C,BS!L$1)+SUMIFS(InTB!$K:$K,InTB!$N:$N,$C33,InTB!$C:$C,BS!L$1)+SUMIFS(InTB!$K:$K,InTB!$N:$N,$B33,InTB!$C:$C,BS!L$1) -> 0 | M33: =IF(M$1=0,0,ROUND($T33*M$108,2))+SUMIFS(InTB!$K:$K,InTB!$M:$M,$E33,InTB!$C:$C,BS!M$1)+SUMIFS(InTB!$K:$K,InTB!$N:$N,$C33,InTB!$C:$C,BS!M$1)+SUMIFS(InTB!$K:$K,InTB!$N:$N,$B33,InTB!$C:$C,BS!M$1) -> 0 | N33: =IF(N$1=0,0,ROUND($T33*N$108,2))+SUMIFS(InTB!$K:$K,InTB!$M:$M,$E33,InTB!$C:$C,BS!N$1)+SUMIFS(InTB!$K:$K,InTB!$N:$N,$C33,InTB!$C:$C,BS!N$1)+SUMIFS(InTB!$K:$K,InTB!$N:$N,$B33,InTB!$C:$C,BS!N$1) -> 0 | O33: =IF(O$1=0,0,ROUND($T33*O$108,2))+SUMIFS(InTB!$K:$K,InTB!$M:$M,$E33,InTB!$C:$C,BS!O$1)+SUMIFS(InTB!$K:$K,InTB!$N:$N,$C33,InTB!$C:$C,BS!O$1)+SUMIFS(InTB!$K:$K,InTB!$N:$N,$B33,InTB!$C:$C,BS!O$1) -> 0 | P33: =IF(P$1=0,0,ROUND($T33*P$108,2))+SUMIFS(InTB!$K:$K,InTB!$M:$M,$E33,InTB!$C:$C,BS!P$1)+SUMIFS(InTB!$K:$K,InTB!$N:$N,$C33,InTB!$C:$C,BS!P$1)+SUMIFS(InTB!$K:$K,InTB!$N:$N,$B33,InTB!$C:$C,BS!P$1) -> 0 | Q33: =IF(Q$1=0,0,ROUND($T33*Q$108,2))+SUMIFS(InTB!$K:$K,InTB!$M:$M,$E33,InTB!$C:$C,BS!Q$1)+SUMIFS(InTB!$K:$K,InTB!$N:$N,$C33,InTB!$C:$C,BS!Q$1)+SUMIFS(InTB!$K:$K,InTB!$N:$N,$B33,InTB!$C:$C,BS!Q$1) -> 0 | R33: =IF(R$1=0,0,ROUND($T33*R$108,2))+SUMIFS(InTB!$K:$K,InTB!$M:$M,$E33,InTB!$C:$C,BS!R$1)+SUMIFS(InTB!$K:$K,InTB!$N:$N,$C33,InTB!$C:$C,BS!R$1)+SUMIFS(InTB!$K:$K,InTB!$N:$N,$B33,InTB!$C:$C,BS!R$1) -> 14294.65 | S33: =IF(S$1=0,0,ROUND($T33*S$108,2))+SUMIFS(InTB!$K:$K,InTB!$M:$M,$E33,InTB!$C:$C,BS!S$1)+SUMIFS(InTB!$K:$K,InTB!$N:$N,$C33,InTB!$C:$C,BS!S$1)+SUMIFS(InTB!$K:$K,InTB!$N:$N,$B33,InTB!$C:$C,BS!S$1) -> 0 | T33: =SUMIF(InTBBase!$M:$M,$E33,InTBBase!$K:$K)+SUMIF(InTBBase!$N:$N,$C33,InTBBase!$K:$K)+SUMIF(InTBBase!$N:$N,$B33,InTBBase!$K:$K) -> 14294.65 | U33: 0
C34: BICOST_O-EQT | D34: QS3 | E34: BIACFS | F34: =UPPER(OFFSET( Label!$E$1,MATCH(BS!D34, Label!$E:$E,0)-1, Main!$G$14+1)) -> FOREIGN LISTED SECURITIES | I34: =SUMIF(InTB!$M:$M,$E34,InTB!$K:$K)+SUMIF(InTB!$N:$N,$C34,InTB!$K:$K)+SUMIF(InTB!$N:$N,$B34,InTB!$K:$K) -> 1053037.68 | J34: =IF(J$1=0,0,ROUND($T34*J$108,2))+SUMIFS(InTB!$K:$K,InTB!$M:$M,$E34,InTB!$C:$C,BS!J$1)+SUMIFS(InTB!$K:$K,InTB!$N:$N,$C34,InTB!$C:$C,BS!J$1)+SUMIFS(InTB!$K:$K,InTB!$N:$N,$B34,InTB!$C:$C,BS!J$1) -> 0 | K34: =IF(K$1=0,0,ROUND($T34*K$108,2))+SUMIFS(InTB!$K:$K,InTB!$M:$M,$E34,InTB!$C:$C,BS!K$1)+SUMIFS(InTB!$K:$K,InTB!$N:$N,$C34,InTB!$C:$C,BS!K$1)+SUMIFS(InTB!$K:$K,InTB!$N:$N,$B34,InTB!$C:$C,BS!K$1) -> 0 | L34: =IF(L$1=0,0,ROUND($T34*L$108,2))+SUMIFS(InTB!$K:$K,InTB!$M:$M,$E34,InTB!$C:$C,BS!L$1)+SUMIFS(InTB!$K:$K,InTB!$N:$N,$C34,InTB!$C:$C,BS!L$1)+SUMIFS(InTB!$K:$K,InTB!$N:$N,$B34,InTB!$C:$C,BS!L$1) -> 0 | M34: =IF(M$1=0,0,ROUND($T34*M$108,2))+SUMIFS(InTB!$K:$K,InTB!$M:$M,$E34,InTB!$C:$C,BS!M$1)+SUMIFS(InTB!$K:$K,InTB!$N:$N,$C34,InTB!$C:$C,BS!M$1)+SUMIFS(InTB!$K:$K,InTB!$N:$N,$B34,InTB!$C:$C,BS!M$1) -> 0 | N34: =IF(N$1=0,0,ROUND($T34*N$108,2))+SUMIFS(InTB!$K:$K,InTB!$M:$M,$E34,InTB!$C:$C,BS!N$1)+SUMIFS(InTB!$K:$K,InTB!$N:$N,$C34,InTB!$C:$C,BS!N$1)+SUMIFS(InTB!$K:$K,InTB!$N:$N,$B34,InTB!$C:$C,BS!N$1) -> 0 | O34: =IF(O$1=0,0,ROUND($T34*O$108,2))+SUMIFS(InTB!$K:$K,InTB!$M:$M,$E34,InTB!$C:$C,BS!O$1)+SUMIFS(InTB!$K:$K,InTB!$N:$N,$C34,InTB!$C:$C,BS!O$1)+SUMIFS(InTB!$K:$K,InTB!$N:$N,$B34,InTB!$C:$C,BS!O$1) -> 0 | P34: =IF(P$1=0,0,ROUND($T34*P$108,2))+SUMIFS(InTB!$K:$K,InTB!$M:$M,$E34,InTB!$C:$C,BS!P$1)+SUMIFS(InTB!$K:$K,InTB!$N:$N,$C34,InTB!$C:$C,BS!P$1)+SUMIFS(InTB!$K:$K,InTB!$N:$N,$B34,InTB!$C:$C,BS!P$1) -> 0 | Q34: =IF(Q$1=0,0,ROUND($T34*Q$108,2))+SUMIFS(InTB!$K:$K,InTB!$M:$M,$E34,InTB!$C:$C,BS!Q$1)+SUMIFS(InTB!$K:$K,InTB!$N:$N,$C34,InTB!$C:$C,BS!Q$1)+SUMIFS(InTB!$K:$K,InTB!$N:$N,$B34,InTB!$C:$C,BS!Q$1) -> 0 | R34: =IF(R$1=0,0,ROUND($T34*R$108,2))+SUMIFS(InTB!$K:$K,InTB!$M:$M,$E34,InTB!$C:$C,BS!R$1)+SUMIFS(InTB!$K:$K,InTB!$N:$N,$C34,InTB!$C:$C,BS!R$1)+SUMIFS(InTB!$K:$K,InTB!$N:$N,$B34,InTB!$C:$C,BS!R$1) -> 1053037.68 | S34: =IF(S$1=0,0,ROUND($T34*S$108,2))+SUMIFS(InTB!$K:$K,InTB!$M:$M,$E34,InTB!$C:$C,BS!S$1)+SUMIFS(InTB!$K:$K,InTB!$N:$N,$C34,InTB!$C:$C,BS!S$1)+SUMIFS(InTB!$K:$K,InTB!$N:$N,$B34,InTB!$C:$C,BS!S$1) -> 0 | T34: =SUMIF(InTBBase!$M:$M,$E34,InTBBase!$K:$K)+SUMIF(InTBBase!$N:$N,$C34,InTBBase!$K:$K)+SUMIF(InTBBase!$N:$N,$B34,InTBBase!$K:$K) -> 1053037.68 | U34: 0
C35: BIURGL_O-EQT | D35: QS4 | E35: BIAUFS | F35: =OFFSET( Label!$E$1,MATCH(BS!D35, Label!$E:$E,0)-1, Main!$G$14+1) -> UNREALISED GAINS/(LOSS) ON FOREIGN LISTED SECURITIES | I35: =SUMIF(InTB!$M:$M,$E35,InTB!$K:$K)+SUMIF(InTB!$N:$N,$C35,InTB!$K:$K)+SUMIF(InTB!$N:$N,$B35,InTB!$K:$K) -> 90650.43 | J35: =IF(J$1=0,0,ROUND($T35*J$108,2))+SUMIFS(InTB!$K:$K,InTB!$M:$M,$E35,InTB!$C:$C,BS!J$1)+SUMIFS(InTB!$K:$K,InTB!$N:$N,$C35,InTB!$C:$C,BS!J$1)+SUMIFS(InTB!$K:$K,InTB!$N:$N,$B35,InTB!$C:$C,BS!J$1) -> 0 | K35: =IF(K$1=0,0,ROUND($T35*K$108,2))+SUMIFS(InTB!$K:$K,InTB!$M:$M,$E35,InTB!$C:$C,BS!K$1)+SUMIFS(InTB!$K:$K,InTB!$N:$N,$C35,InTB!$C:$C,BS!K$1)+SUMIFS(InTB!$K:$K,InTB!$N:$N,$B35,InTB!$C:$C,BS!K$1) -> 0 | L35: =IF(L$1=0,0,ROUND($T35*L$108,2))+SUMIFS(InTB!$K:$K,InTB!$M:$M,$E35,InTB!$C:$C,BS!L$1)+SUMIFS(InTB!$K:$K,InTB!$N:$N,$C35,InTB!$C:$C,BS!L$1)+SUMIFS(InTB!$K:$K,InTB!$N:$N,$B35,InTB!$C:$C,BS!L$1) -> 0 | M35: =IF(M$1=0,0,ROUND($T35*M$108,2))+SUMIFS(InTB!$K:$K,InTB!$M:$M,$E35,InTB!$C:$C,BS!M$1)+SUMIFS(InTB!$K:$K,InTB!$N:$N,$C35,InTB!$C:$C,BS!M$1)+SUMIFS(InTB!$K:$K,InTB!$N:$N,$B35,InTB!$C:$C,BS!M$1) -> 0 | N35: =IF(N$1=0,0,ROUND($T35*N$108,2))+SUMIFS(InTB!$K:$K,InTB!$M:$M,$E35,InTB!$C:$C,BS!N$1)+SUMIFS(InTB!$K:$K,InTB!$N:$N,$C35,InTB!$C:$C,BS!N$1)+SUMIFS(InTB!$K:$K,InTB!$N:$N,$B35,InTB!$C:$C,BS!N$1) -> 0 | O35: =IF(O$1=0,0,ROUND($T35*O$108,2))+SUMIFS(InTB!$K:$K,InTB!$M:$M,$E35,InTB!$C:$C,BS!O$1)+SUMIFS(InTB!$K:$K,InTB!$N:$N,$C35,InTB!$C:$C,BS!O$1)+SUMIFS(InTB!$K:$K,InTB!$N:$N,$B35,InTB!$C:$C,BS!O$1) -> 0 | P35: =IF(P$1=0,0,ROUND($T35*P$108,2))+SUMIFS(InTB!$K:$K,InTB!$M:$M,$E35,InTB!$C:$C,BS!P$1)+SUMIFS(InTB!$K:$K,InTB!$N:$N,$C35,InTB!$C:$C,BS!P$1)+SUMIFS(InTB!$K:$K,InTB!$N:$N,$B35,InTB!$C:$C,BS!P$1) -> 0 | Q35: =IF(Q$1=0,0,ROUND($T35*Q$108,2))+SUMIFS(InTB!$K:$K,InTB!$M:$M,$E35,InTB!$C:$C,BS!Q$1)+SUMIFS(InTB!$K:$K,InTB!$N:$N,$C35,InTB!$C:$C,BS!Q$1)+SUMIFS(InTB!$K:$K,InTB!$N:$N,$B35,InTB!$C:$C,BS!Q$1) -> 0 | R35: =IF(R$1=0,0,ROUND($T35*R$108,2))+SUMIFS(InTB!$K:$K,InTB!$M:$M,$E35,InTB!$C:$C,BS!R$1)+SUMIFS(InTB!$K:$K,InTB!$N:$N,$C35,InTB!$C:$C,BS!R$1)+SUMIFS(InTB!$K:$K,InTB!$N:$N,$B35,InTB!$C:$C,BS!R$1) -> 90650.43 | S35: =IF(S$1=0,0,ROUND($T35*S$108,2))+SUMIFS(InTB!$K:$K,InTB!$M:$M,$E35,InTB!$C:$C,BS!S$1)+SUMIFS(InTB!$K:$K,InTB!$N:$N,$C35,InTB!$C:$C,BS!S$1)+SUMIFS(InTB!$K:$K,InTB!$N:$N,$B35,InTB!$C:$C,BS!S$1) -> 0 | T35: =SUMIF(InTBBase!$M:$M,$E35,InTBBase!$K:$K)+SUMIF(InTBBase!$N:$N,$C35,InTBBase!$K:$K)+SUMIF(InTBBase!$N:$N,$B35,InTBBase!$K:$K) -> 90650.43 | U35: 0
B36: BIURFX_*EQT | C36: BIURFX_LNS | D36: QS5 | E36: BIAFFS | F36: =OFFSET( Label!$E$1,MATCH(BS!D36, Label!$E:$E,0)-1, Main!$G$14+1) -> UNREALISED FOREX GAINS/(LOSS) ON FOREIGN LISTED SECURITIES | I36: =SUMIF(InTB!$M:$M,$E36,InTB!$K:$K)+SUMIF(InTB!$N:$N,$C36,InTB!$K:$K)+SUMIF(InTB!$N:$N,$B36,InTB!$K:$K) -> -2807.59 | J36: =IF(J$1=0,0,ROUND($T36*J$108,2))+SUMIFS(InTB!$K:$K,InTB!$M:$M,$E36,InTB!$C:$C,BS!J$1)+SUMIFS(InTB!$K:$K,InTB!$N:$N,$C36,InTB!$C:$C,BS!J$1)+SUMIFS(InTB!$K:$K,InTB!$N:$N,$B36,InTB!$C:$C,BS!J$1) -> 0 | K36: =IF(K$1=0,0,ROUND($T36*K$108,2))+SUMIFS(InTB!$K:$K,InTB!$M:$M,$E36,InTB!$C:$C,BS!K$1)+SUMIFS(InTB!$K:$K,InTB!$N:$N,$C36,InTB!$C:$C,BS!K$1)+SUMIFS(InTB!$K:$K,InTB!$N:$N,$B36,InTB!$C:$C,BS!K$1) -> 0 | L36: =IF(L$1=0,0,ROUND($T36*L$108,2))+SUMIFS(InTB!$K:$K,InTB!$M:$M,$E36,InTB!$C:$C,BS!L$1)+SUMIFS(InTB!$K:$K,InTB!$N:$N,$C36,InTB!$C:$C,BS!L$1)+SUMIFS(InTB!$K:$K,InTB!$N:$N,$B36,InTB!$C:$C,BS!L$1) -> 0 | M36: =IF(M$1=0,0,ROUND($T36*M$108,2))+SUMIFS(InTB!$K:$K,InTB!$M:$M,$E36,InTB!$C:$C,BS!M$1)+SUMIFS(InTB!$K:$K,InTB!$N:$N,$C36,InTB!$C:$C,BS!M$1)+SUMIFS(InTB!$K:$K,InTB!$N:$N,$B36,InTB!$C:$C,BS!M$1) -> 0 | N36: =IF(N$1=0,0,ROUND($T36*N$108,2))+SUMIFS(InTB!$K:$K,InTB!$M:$M,$E36,InTB!$C:$C,BS!N$1)+SUMIFS(InTB!$K:$K,InTB!$N:$N,$C36,InTB!$C:$C,BS!N$1)+SUMIFS(InTB!$K:$K,InTB!$N:$N,$B36,InTB!$C:$C,BS!N$1) -> 0 | O36: =IF(O$1=0,0,ROUND($T36*O$108,2))+SUMIFS(InTB!$K:$K,InTB!$M:$M,$E36,InTB!$C:$C,BS!O$1)+SUMIFS(InTB!$K:$K,InTB!$N:$N,$C36,InTB!$C:$C,BS!O$1)+SUMIFS(InTB!$K:$K,InTB!$N:$N,$B36,InTB!$C:$C,BS!O$1) -> 0 | P36: =IF(P$1=0,0,ROUND($T36*P$108,2))+SUMIFS(InTB!$K:$K,InTB!$M:$M,$E36,InTB!$C:$C,BS!P$1)+SUMIFS(InTB!$K:$K,InTB!$N:$N,$C36,InTB!$C:$C,BS!P$1)+SUMIFS(InTB!$K:$K,InTB!$N:$N,$B36,InTB!$C:$C,BS!P$1) -> 0 | Q36: =IF(Q$1=0,0,ROUND($T36*Q$108,2))+SUMIFS(InTB!$K:$K,InTB!$M:$M,$E36,InTB!$C:$C,BS!Q$1)+SUMIFS(InTB!$K:$K,InTB!$N:$N,$C36,InTB!$C:$C,BS!Q$1)+SUMIFS(InTB!$K:$K,InTB!$N:$N,$B36,InTB!$C:$C,BS!Q$1) -> 0 | R36: =IF(R$1=0,0,ROUND($T36*R$108,2))+SUMIFS(InTB!$K:$K,InTB!$M:$M,$E36,InTB!$C:$C,BS!R$1)+SUMIFS(InTB!$K:$K,InTB!$N:$N,$C36,InTB!$C:$C,BS!R$1)+SUMIFS(InTB!$K:$K,InTB!$N:$N,$B36,InTB!$C:$C,BS!R$1) -> -2807.59 | S36: =IF(S$1=0,0,ROUND($T36*S$108,2))+SUMIFS(InTB!$K:$K,InTB!$M:$M,$E36,InTB!$C:$C,BS!S$1)+SUMIFS(InTB!$K:$K,InTB!$N:$N,$C36,InTB!$C:$C,BS!S$1)+SUMIFS(InTB!$K:$K,InTB!$N:$N,$B36,InTB!$C:$C,BS!S$1) -> 0 | T36: =SUMIF(InTBBase!$M:$M,$E36,InTBBase!$K:$K)+SUMIF(InTBBase!$N:$N,$C36,InTBBase!$K:$K)+SUMIF(InTBBase!$N:$N,$B36,InTBBase!$K:$K) -> -2807.59 | U36: 0
C37: BICOST_DEV | D37: QS6 | E37: BIACDR | F37: =UPPER(OFFSET( Label!$E$1,MATCH(BS!D37, Label!$E:$E,0)-1, Main!$G$14+1)) -> QUOTED DERIVATIVES | I37: =SUMIF(InTB!$M:$M,$E37,InTB!$K:$K)+SUMIF(InTB!$N:$N,$C37,InTB!$K:$K)+SUMIF(InTB!$N:$N,$B37,InTB!$K:$K) -> 0 | J37: =IF(J$1=0,0,ROUND($T37*J$108,2))+SUMIFS(InTB!$K:$K,InTB!$M:$M,$E37,InTB!$C:$C,BS!J$1)+SUMIFS(InTB!$K:$K,InTB!$N:$N,$C37,InTB!$C:$C,BS!J$1)+SUMIFS(InTB!$K:$K,InTB!$N:$N,$B37,InTB!$C:$C,BS!J$1) -> 0 | K37: =IF(K$1=0,0,ROUND($T37*K$108,2))+SUMIFS(InTB!$K:$K,InTB!$M:$M,$E37,InTB!$C:$C,BS!K$1)+SUMIFS(InTB!$K:$K,InTB!$N:$N,$C37,InTB!$C:$C,BS!K$1)+SUMIFS(InTB!$K:$K,InTB!$N:$N,$B37,InTB!$C:$C,BS!K$1) -> 0 | L37: =IF(L$1=0,0,ROUND($T37*L$108,2))+SUMIFS(InTB!$K:$K,InTB!$M:$M,$E37,InTB!$C:$C,BS!L$1)+SUMIFS(InTB!$K:$K,InTB!$N:$N,$C37,InTB!$C:$C,BS!L$1)+SUMIFS(InTB!$K:$K,InTB!$N:$N,$B37,InTB!$C:$C,BS!L$1) -> 0 | M37: =IF(M$1=0,0,ROUND($T37*M$108,2))+SUMIFS(InTB!$K:$K,InTB!$M:$M,$E37,InTB!$C:$C,BS!M$1)+SUMIFS(InTB!$K:$K,InTB!$N:$N,$C37,InTB!$C:$C,BS!M$1)+SUMIFS(InTB!$K:$K,InTB!$N:$N,$B37,InTB!$C:$C,BS!M$1) -> 0 | N37: =IF(N$1=0,0,ROUND($T37*N$108,2))+SUMIFS(InTB!$K:$K,InTB!$M:$M,$E37,InTB!$C:$C,BS!N$1)+SUMIFS(InTB!$K:$K,InTB!$N:$N,$C37,InTB!$C:$C,BS!N$1)+SUMIFS(InTB!$K:$K,InTB!$N:$N,$B37,InTB!$C:$C,BS!N$1) -> 0 | O37: =IF(O$1=0,0,ROUND($T37*O$108,2))+SUMIFS(InTB!$K:$K,InTB!$M:$M,$E37,InTB!$C:$C,BS!O$1)+SUMIFS(InTB!$K:$K,InTB!$N:$N,$C37,InTB!$C:$C,BS!O$1)+SUMIFS(InTB!$K:$K,InTB!$N:$N,$B37,InTB!$C:$C,BS!O$1) -> 0 | P37: =IF(P$1=0,0,ROUND($T37*P$108,2))+SUMIFS(InTB!$K:$K,InTB!$M:$M,$E37,InTB!$C:$C,BS!P$1)+SUMIFS(InTB!$K:$K,InTB!$N:$N,$C37,InTB!$C:$C,BS!P$1)+SUMIFS(InTB!$K:$K,InTB!$N:$N,$B37,InTB!$C:$C,BS!P$1) -> 0 | Q37: =IF(Q$1=0,0,ROUND($T37*Q$108,2))+SUMIFS(InTB!$K:$K,InTB!$M:$M,$E37,InTB!$C:$C,BS!Q$1)+SUMIFS(InTB!$K:$K,InTB!$N:$N,$C37,InTB!$C:$C,BS!Q$1)+SUMIFS(InTB!$K:$K,InTB!$N:$N,$B37,InTB!$C:$C,BS!Q$1) -> 0 | R37: =IF(R$1=0,0,ROUND($T37*R$108,2))+SUMIFS(InTB!$K:$K,InTB!$M:$M,$E37,InTB!$C:$C,BS!R$1)+SUMIFS(InTB!$K:$K,InTB!$N:$N,$C37,InTB!$C:$C,BS!R$1)+SUMIFS(InTB!$K:$K,InTB!$N:$N,$B37,InTB!$C:$C,BS!R$1) -> 0 | S37: =IF(S$1=0,0,ROUND($T37*S$108,2))+SUMIFS(InTB!$K:$K,InTB!$M:$M,$E37,InTB!$C:$C,BS!S$1)+SUMIFS(InTB!$K:$K,InTB!$N:$N,$C37,InTB!$C:$C,BS!S$1)+SUMIFS(InTB!$K:$K,InTB!$N:$N,$B37,InTB!$C:$C,BS!S$1) -> 0 | T37: =SUMIF(InTBBase!$M:$M,$E37,InTBBase!$K:$K)+SUMIF(InTBBase!$N:$N,$C37,InTBBase!$K:$K)+SUMIF(InTBBase!$N:$N,$B37,InTBBase!$K:$K) -> 0 | U37: 0
C38: BIURGL_DEV | D38: QS7 | E38: BIAUDR | F38: =OFFSET( Label!$E$1,MATCH(BS!D38, Label!$E:$E,0)-1, Main!$G$14+1) -> UNREALISED GAINS/(LOSS) ON QUOTED DERIVATIVES | I38: =SUMIF(InTB!$M:$M,$E38,InTB!$K:$K)+SUMIF(InTB!$N:$N,$C38,InTB!$K:$K)+SUMIF(InTB!$N:$N,$B38,InTB!$K:$K) -> 0 | J38: =IF(J$1=0,0,ROUND($T38*J$108,2))+SUMIFS(InTB!$K:$K,InTB!$M:$M,$E38,InTB!$C:$C,BS!J$1)+SUMIFS(InTB!$K:$K,InTB!$N:$N,$C38,InTB!$C:$C,BS!J$1)+SUMIFS(InTB!$K:$K,InTB!$N:$N,$B38,InTB!$C:$C,BS!J$1) -> 0 | K38: =IF(K$1=0,0,ROUND($T38*K$108,2))+SUMIFS(InTB!$K:$K,InTB!$M:$M,$E38,InTB!$C:$C,BS!K$1)+SUMIFS(InTB!$K:$K,InTB!$N:$N,$C38,InTB!$C:$C,BS!K$1)+SUMIFS(InTB!$K:$K,InTB!$N:$N,$B38,InTB!$C:$C,BS!K$1) -> 0 | L38: =IF(L$1=0,0,ROUND($T38*L$108,2))+SUMIFS(InTB!$K:$K,InTB!$M:$M,$E38,InTB!$C:$C,BS!L$1)+SUMIFS(InTB!$K:$K,InTB!$N:$N,$C38,InTB!$C:$C,BS!L$1)+SUMIFS(InTB!$K:$K,InTB!$N:$N,$B38,InTB!$C:$C,BS!L$1) -> 0 | M38: =IF(M$1=0,0,ROUND($T38*M$108,2))+SUMIFS(InTB!$K:$K,InTB!$M:$M,$E38,InTB!$C:$C,BS!M$1)+SUMIFS(InTB!$K:$K,InTB!$N:$N,$C38,InTB!$C:$C,BS!M$1)+SUMIFS(InTB!$K:$K,InTB!$N:$N,$B38,InTB!$C:$C,BS!M$1) -> 0 | N38: =IF(N$1=0,0,ROUND($T38*N$108,2))+SUMIFS(InTB!$K:$K,InTB!$M:$M,$E38,InTB!$C:$C,BS!N$1)+SUMIFS(InTB!$K:$K,InTB!$N:$N,$C38,InTB!$C:$C,BS!N$1)+SUMIFS(InTB!$K:$K,InTB!$N:$N,$B38,InTB!$C:$C,BS!N$1) -> 0 | O38: =IF(O$1=0,0,ROUND($T38*O$108,2))+SUMIFS(InTB!$K:$K,InTB!$M:$M,$E38,InTB!$C:$C,BS!O$1)+SUMIFS(InTB!$K:$K,InTB!$N:$N,$C38,InTB!$C:$C,BS!O$1)+SUMIFS(InTB!$K:$K,InTB!$N:$N,$B38,InTB!$C:$C,BS!O$1) -> 0 | P38: =IF(P$1=0,0,ROUND($T38*P$108,2))+SUMIFS(InTB!$K:$K,InTB!$M:$M,$E38,InTB!$C:$C,BS!P$1)+SUMIFS(InTB!$K:$K,InTB!$N:$N,$C38,InTB!$C:$C,BS!P$1)+SUMIFS(InTB!$K:$K,InTB!$N:$N,$B38,InTB!$C:$C,BS!P$1) -> 0 | Q38: =IF(Q$1=0,0,ROUND($T38*Q$108,2))+SUMIFS(InTB!$K:$K,InTB!$M:$M,$E38,InTB!$C:$C,BS!Q$1)+SUMIFS(InTB!$K:$K,InTB!$N:$N,$C38,InTB!$C:$C,BS!Q$1)+SUMIFS(InTB!$K:$K,InTB!$N:$N,$B38,InTB!$C:$C,BS!Q$1) -> 0 | R38: =IF(R$1=0,0,ROUND($T38*R$108,2))+SUMIFS(InTB!$K:$K,InTB!$M:$M,$E38,InTB!$C:$C,BS!R$1)+SUMIFS(InTB!$K:$K,InTB!$N:$N,$C38,InTB!$C:$C,BS!R$1)+SUMIFS(InTB!$K:$K,InTB!$N:$N,$B38,InTB!$C:$C,BS!R$1) -> 0 | S38: =IF(S$1=0,0,ROUND($T38*S$108,2))+SUMIFS(InTB!$K:$K,InTB!$M:$M,$E38,InTB!$C:$C,BS!S$1)+SUMIFS(InTB!$K:$K,InTB!$N:$N,$C38,InTB!$C:$C,BS!S$1)+SUMIFS(InTB!$K:$K,InTB!$N:$N,$B38,InTB!$C:$C,BS!S$1) -> 0 | T38: =SUMIF(InTBBase!$M:$M,$E38,InTBBase!$K:$K)+SUMIF(InTBBase!$N:$N,$C38,InTBBase!$K:$K)+SUMIF(InTBBase!$N:$N,$B38,InTBBase!$K:$K) -> 0 | U38: 0
U39: 0
D40: CIS | F40: =OFFSET( Label!$E$1,MATCH(BS!D40, Label!$E:$E,0)-1, Main!$G$14+1) -> COLLECTIVE INVESTMENT SCHEME | I40: =SUM(I41:I45) -> 0 | J40: 0 | K40: 0 | L40: 0 | M40: 0 | N40: 0 | O40: =SUM(O41:O45) -> 0 | P40: 0 | Q40: 0 | R40: =SUM(R41:R45) -> 0 | S40: 0 | T40: =SUM(T41:T45) -> 0 | U40: 0
B41: BICOST_REIT | C41: BICOST_UT | D41: CIS1 | E41: BIACUT | F41: =UPPER(OFFSET( Label!$E$1,MATCH(BS!D41, Label!$E:$E,0)-1, Main!$G$14+1)) -> LOCAL COLLECTIVE INVESTMENT SCHEME | I41: =SUMIF(InTB!$M:$M,$E41,InTB!$K:$K)+SUMIF(InTB!$N:$N,$C41,InTB!$K:$K)+SUMIF(InTB!$N:$N,$B41,InTB!$K:$K) -> 0 | J41: =IF(J$1=0,0,ROUND($T41*J$108,2))+SUMIFS(InTB!$K:$K,InTB!$M:$M,$E41,InTB!$C:$C,BS!J$1)+SUMIFS(InTB!$K:$K,InTB!$N:$N,$C41,InTB!$C:$C,BS!J$1)+SUMIFS(InTB!$K:$K,InTB!$N:$N,$B41,InTB!$C:$C,BS!J$1) -> 0 | K41: =IF(K$1=0,0,ROUND($T41*K$108,2))+SUMIFS(InTB!$K:$K,InTB!$M:$M,$E41,InTB!$C:$C,BS!K$1)+SUMIFS(InTB!$K:$K,InTB!$N:$N,$C41,InTB!$C:$C,BS!K$1)+SUMIFS(InTB!$K:$K,InTB!$N:$N,$B41,InTB!$C:$C,BS!K$1) -> 0 | L41: =IF(L$1=0,0,ROUND($T41*L$108,2))+SUMIFS(InTB!$K:$K,InTB!$M:$M,$E41,InTB!$C:$C,BS!L$1)+SUMIFS(InTB!$K:$K,InTB!$N:$N,$C41,InTB!$C:$C,BS!L$1)+SUMIFS(InTB!$K:$K,InTB!$N:$N,$B41,InTB!$C:$C,BS!L$1) -> 0 | M41: =IF(M$1=0,0,ROUND($T41*M$108,2))+SUMIFS(InTB!$K:$K,InTB!$M:$M,$E41,InTB!$C:$C,BS!M$1)+SUMIFS(InTB!$K:$K,InTB!$N:$N,$C41,InTB!$C:$C,BS!M$1)+SUMIFS(InTB!$K:$K,InTB!$N:$N,$B41,InTB!$C:$C,BS!M$1) -> 0 | N41: =IF(N$1=0,0,ROUND($T41*N$108,2))+SUMIFS(InTB!$K:$K,InTB!$M:$M,$E41,InTB!$C:$C,BS!N$1)+SUMIFS(InTB!$K:$K,InTB!$N:$N,$C41,InTB!$C:$C,BS!N$1)+SUMIFS(InTB!$K:$K,InTB!$N:$N,$B41,InTB!$C:$C,BS!N$1) -> 0 | O41: =IF(O$1=0,0,ROUND($T41*O$108,2))+SUMIFS(InTB!$K:$K,InTB!$M:$M,$E41,InTB!$C:$C,BS!O$1)+SUMIFS(InTB!$K:$K,InTB!$N:$N,$C41,InTB!$C:$C,BS!O$1)+SUMIFS(InTB!$K:$K,InTB!$N:$N,$B41,InTB!$C:$C,BS!O$1) -> 0 | P41: =IF(P$1=0,0,ROUND($T41*P$108,2))+SUMIFS(InTB!$K:$K,InTB!$M:$M,$E41,InTB!$C:$C,BS!P$1)+SUMIFS(InTB!$K:$K,InTB!$N:$N,$C41,InTB!$C:$C,BS!P$1)+SUMIFS(InTB!$K:$K,InTB!$N:$N,$B41,InTB!$C:$C,BS!P$1) -> 0 | Q41: =IF(Q$1=0,0,ROUND($T41*Q$108,2))+SUMIFS(InTB!$K:$K,InTB!$M:$M,$E41,InTB!$C:$C,BS!Q$1)+SUMIFS(InTB!$K:$K,InTB!$N:$N,$C41,InTB!$C:$C,BS!Q$1)+SUMIFS(InTB!$K:$K,InTB!$N:$N,$B41,InTB!$C:$C,BS!Q$1) -> 0 | R41: =IF(R$1=0,0,ROUND($T41*R$108,2))+SUMIFS(InTB!$K:$K,InTB!$M:$M,$E41,InTB!$C:$C,BS!R$1)+SUMIFS(InTB!$K:$K,InTB!$N:$N,$C41,InTB!$C:$C,BS!R$1)+SUMIFS(InTB!$K:$K,InTB!$N:$N,$B41,InTB!$C:$C,BS!R$1) -> 0 | S41: =IF(S$1=0,0,ROUND($T41*S$108,2))+SUMIFS(InTB!$K:$K,InTB!$M:$M,$E41,InTB!$C:$C,BS!S$1)+SUMIFS(InTB!$K:$K,InTB!$N:$N,$C41,InTB!$C:$C,BS!S$1)+SUMIFS(InTB!$K:$K,InTB!$N:$N,$B41,InTB!$C:$C,BS!S$1) -> 0 | T41: =SUMIF(InTBBase!$M:$M,$E41,InTBBase!$K:$K)+SUMIF(InTBBase!$N:$N,$C41,InTBBase!$K:$K)+SUMIF(InTBBase!$N:$N,$B41,InTBBase!$K:$K) -> 0 | U41: 0
B42: BIURGL_REIT | C42: BIURGL_UT | D42: CIS2 | E42: BIAUUT | F42: =OFFSET( Label!$E$1,MATCH(BS!D42, Label!$E:$E,0)-1, Main!$G$14+1) -> Unrealised Gains/(Loss) on Local Collective Investment Scheme | I42: =SUMIF(InTB!$M:$M,$E42,InTB!$K:$K)+SUMIF(InTB!$N:$N,$C42,InTB!$K:$K)+SUMIF(InTB!$N:$N,$B42,InTB!$K:$K) -> 0 | J42: =IF(J$1=0,0,ROUND($T42*J$108,2))+SUMIFS(InTB!$K:$K,InTB!$M:$M,$E42,InTB!$C:$C,BS!J$1)+SUMIFS(InTB!$K:$K,InTB!$N:$N,$C42,InTB!$C:$C,BS!J$1)+SUMIFS(InTB!$K:$K,InTB!$N:$N,$B42,InTB!$C:$C,BS!J$1) -> 0 | K42: =IF(K$1=0,0,ROUND($T42*K$108,2))+SUMIFS(InTB!$K:$K,InTB!$M:$M,$E42,InTB!$C:$C,BS!K$1)+SUMIFS(InTB!$K:$K,InTB!$N:$N,$C42,InTB!$C:$C,BS!K$1)+SUMIFS(InTB!$K:$K,InTB!$N:$N,$B42,InTB!$C:$C,BS!K$1) -> 0 | L42: =IF(L$1=0,0,ROUND($T42*L$108,2))+SUMIFS(InTB!$K:$K,InTB!$M:$M,$E42,InTB!$C:$C,BS!L$1)+SUMIFS(InTB!$K:$K,InTB!$N:$N,$C42,InTB!$C:$C,BS!L$1)+SUMIFS(InTB!$K:$K,InTB!$N:$N,$B42,InTB!$C:$C,BS!L$1) -> 0 | M42: =IF(M$1=0,0,ROUND($T42*M$108,2))+SUMIFS(InTB!$K:$K,InTB!$M:$M,$E42,InTB!$C:$C,BS!M$1)+SUMIFS(InTB!$K:$K,InTB!$N:$N,$C42,InTB!$C:$C,BS!M$1)+SUMIFS(InTB!$K:$K,InTB!$N:$N,$B42,InTB!$C:$C,BS!M$1) -> 0 | N42: =IF(N$1=0,0,ROUND($T42*N$108,2))+SUMIFS(InTB!$K:$K,InTB!$M:$M,$E42,InTB!$C:$C,BS!N$1)+SUMIFS(InTB!$K:$K,InTB!$N:$N,$C42,InTB!$C:$C,BS!N$1)+SUMIFS(InTB!$K:$K,InTB!$N:$N,$B42,InTB!$C:$C,BS!N$1) -> 0 | O42: =IF(O$1=0,0,ROUND($T42*O$108,2))+SUMIFS(InTB!$K:$K,InTB!$M:$M,$E42,InTB!$C:$C,BS!O$1)+SUMIFS(InTB!$K:$K,InTB!$N:$N,$C42,InTB!$C:$C,BS!O$1)+SUMIFS(InTB!$K:$K,InTB!$N:$N,$B42,InTB!$C:$C,BS!O$1) -> 0 | P42: =IF(P$1=0,0,ROUND($T42*P$108,2))+SUMIFS(InTB!$K:$K,InTB!$M:$M,$E42,InTB!$C:$C,BS!P$1)+SUMIFS(InTB!$K:$K,InTB!$N:$N,$C42,InTB!$C:$C,BS!P$1)+SUMIFS(InTB!$K:$K,InTB!$N:$N,$B42,InTB!$C:$C,BS!P$1) -> 0 | Q42: =IF(Q$1=0,0,ROUND($T42*Q$108,2))+SUMIFS(InTB!$K:$K,InTB!$M:$M,$E42,InTB!$C:$C,BS!Q$1)+SUMIFS(InTB!$K:$K,InTB!$N:$N,$C42,InTB!$C:$C,BS!Q$1)+SUMIFS(InTB!$K:$K,InTB!$N:$N,$B42,InTB!$C:$C,BS!Q$1) -> 0 | R42: =IF(R$1=0,0,ROUND($T42*R$108,2))+SUMIFS(InTB!$K:$K,InTB!$M:$M,$E42,InTB!$C:$C,BS!R$1)+SUMIFS(InTB!$K:$K,InTB!$N:$N,$C42,InTB!$C:$C,BS!R$1)+SUMIFS(InTB!$K:$K,InTB!$N:$N,$B42,InTB!$C:$C,BS!R$1) -> 0 | S42: =IF(S$1=0,0,ROUND($T42*S$108,2))+SUMIFS(InTB!$K:$K,InTB!$M:$M,$E42,InTB!$C:$C,BS!S$1)+SUMIFS(InTB!$K:$K,InTB!$N:$N,$C42,InTB!$C:$C,BS!S$1)+SUMIFS(InTB!$K:$K,InTB!$N:$N,$B42,InTB!$C:$C,BS!S$1) -> 0 | T42: =SUMIF(InTBBase!$M:$M,$E42,InTBBase!$K:$K)+SUMIF(InTBBase!$N:$N,$C42,InTBBase!$K:$K)+SUMIF(InTBBase!$N:$N,$B42,InTBBase!$K:$K) -> 0 | U42: 0
B43: BICOST_O-REIT | C43: BICOST_O-UT | D43: CIS3 | E43: BIACUF | F43: =UPPER(OFFSET( Label!$E$1,MATCH(BS!D43, Label!$E:$E,0)-1, Main!$G$14+1)) -> FOREIGN COLLECTIVE INVESTMENT SCHEME | I43: =SUMIF(InTB!$M:$M,$E43,InTB!$K:$K)+SUMIF(InTB!$N:$N,$C43,InTB!$K:$K)+SUMIF(InTB!$N:$N,$B43,InTB!$K:$K) -> 0 | J43: =IF(J$1=0,0,ROUND($T43*J$108,2))+SUMIFS(InTB!$K:$K,InTB!$M:$M,$E43,InTB!$C:$C,BS!J$1)+SUMIFS(InTB!$K:$K,InTB!$N:$N,$C43,InTB!$C:$C,BS!J$1)+SUMIFS(InTB!$K:$K,InTB!$N:$N,$B43,InTB!$C:$C,BS!J$1) -> 0 | K43: =IF(K$1=0,0,ROUND($T43*K$108,2))+SUMIFS(InTB!$K:$K,InTB!$M:$M,$E43,InTB!$C:$C,BS!K$1)+SUMIFS(InTB!$K:$K,InTB!$N:$N,$C43,InTB!$C:$C,BS!K$1)+SUMIFS(InTB!$K:$K,InTB!$N:$N,$B43,InTB!$C:$C,BS!K$1) -> 0 | L43: =IF(L$1=0,0,ROUND($T43*L$108,2))+SUMIFS(InTB!$K:$K,InTB!$M:$M,$E43,InTB!$C:$C,BS!L$1)+SUMIFS(InTB!$K:$K,InTB!$N:$N,$C43,InTB!$C:$C,BS!L$1)+SUMIFS(InTB!$K:$K,InTB!$N:$N,$B43,InTB!$C:$C,BS!L$1) -> 0 | M43: =IF(M$1=0,0,ROUND($T43*M$108,2))+SUMIFS(InTB!$K:$K,InTB!$M:$M,$E43,InTB!$C:$C,BS!M$1)+SUMIFS(InTB!$K:$K,InTB!$N:$N,$C43,InTB!$C:$C,BS!M$1)+SUMIFS(InTB!$K:$K,InTB!$N:$N,$B43,InTB!$C:$C,BS!M$1) -> 0 | N43: =IF(N$1=0,0,ROUND($T43*N$108,2))+SUMIFS(InTB!$K:$K,InTB!$M:$M,$E43,InTB!$C:$C,BS!N$1)+SUMIFS(InTB!$K:$K,InTB!$N:$N,$C43,InTB!$C:$C,BS!N$1)+SUMIFS(InTB!$K:$K,InTB!$N:$N,$B43,InTB!$C:$C,BS!N$1) -> 0 | O43: =IF(O$1=0,0,ROUND($T43*O$108,2))+SUMIFS(InTB!$K:$K,InTB!$M:$M,$E43,InTB!$C:$C,BS!O$1)+SUMIFS(InTB!$K:$K,InTB!$N:$N,$C43,InTB!$C:$C,BS!O$1)+SUMIFS(InTB!$K:$K,InTB!$N:$N,$B43,InTB!$C:$C,BS!O$1) -> 0 | P43: =IF(P$1=0,0,ROUND($T43*P$108,2))+SUMIFS(InTB!$K:$K,InTB!$M:$M,$E43,InTB!$C:$C,BS!P$1)+SUMIFS(InTB!$K:$K,InTB!$N:$N,$C43,InTB!$C:$C,BS!P$1)+SUMIFS(InTB!$K:$K,InTB!$N:$N,$B43,InTB!$C:$C,BS!P$1) -> 0 | Q43: =IF(Q$1=0,0,ROUND($T43*Q$108,2))+SUMIFS(InTB!$K:$K,InTB!$M:$M,$E43,InTB!$C:$C,BS!Q$1)+SUMIFS(InTB!$K:$K,InTB!$N:$N,$C43,InTB!$C:$C,BS!Q$1)+SUMIFS(InTB!$K:$K,InTB!$N:$N,$B43,InTB!$C:$C,BS!Q$1) -> 0 | R43: =IF(R$1=0,0,ROUND($T43*R$108,2))+SUMIFS(InTB!$K:$K,InTB!$M:$M,$E43,InTB!$C:$C,BS!R$1)+SUMIFS(InTB!$K:$K,InTB!$N:$N,$C43,InTB!$C:$C,BS!R$1)+SUMIFS(InTB!$K:$K,InTB!$N:$N,$B43,InTB!$C:$C,BS!R$1) -> 0 | S43: =IF(S$1=0,0,ROUND($T43*S$108,2))+SUMIFS(InTB!$K:$K,InTB!$M:$M,$E43,InTB!$C:$C,BS!S$1)+SUMIFS(InTB!$K:$K,InTB!$N:$N,$C43,InTB!$C:$C,BS!S$1)+SUMIFS(InTB!$K:$K,InTB!$N:$N,$B43,InTB!$C:$C,BS!S$1) -> 0 | T43: =SUMIF(InTBBase!$M:$M,$E43,InTBBase!$K:$K)+SUMIF(InTBBase!$N:$N,$C43,InTBBase!$K:$K)+SUMIF(InTBBase!$N:$N,$B43,InTBBase!$K:$K) -> 0 | U43: 0
B44: BIURGL_O-REIT | C44: BIURGL_O-UT | D44: CIS4 | E44: BIAUUF | F44: =OFFSET( Label!$E$1,MATCH(BS!D44, Label!$E:$E,0)-1, Main!$G$14+1) -> Unrealised Gains/(Loss) on Foreign Collective Investment Scheme | I44: =SUMIF(InTB!$M:$M,$E44,InTB!$K:$K)+SUMIF(InTB!$N:$N,$C44,InTB!$K:$K)+SUMIF(InTB!$N:$N,$B44,InTB!$K:$K) -> 0 | J44: =IF(J$1=0,0,ROUND($T44*J$108,2))+SUMIFS(InTB!$K:$K,InTB!$M:$M,$E44,InTB!$C:$C,BS!J$1)+SUMIFS(InTB!$K:$K,InTB!$N:$N,$C44,InTB!$C:$C,BS!J$1)+SUMIFS(InTB!$K:$K,InTB!$N:$N,$B44,InTB!$C:$C,BS!J$1) -> 0 | K44: =IF(K$1=0,0,ROUND($T44*K$108,2))+SUMIFS(InTB!$K:$K,InTB!$M:$M,$E44,InTB!$C:$C,BS!K$1)+SUMIFS(InTB!$K:$K,InTB!$N:$N,$C44,InTB!$C:$C,BS!K$1)+SUMIFS(InTB!$K:$K,InTB!$N:$N,$B44,InTB!$C:$C,BS!K$1) -> 0 | L44: =IF(L$1=0,0,ROUND($T44*L$108,2))+SUMIFS(InTB!$K:$K,InTB!$M:$M,$E44,InTB!$C:$C,BS!L$1)+SUMIFS(InTB!$K:$K,InTB!$N:$N,$C44,InTB!$C:$C,BS!L$1)+SUMIFS(InTB!$K:$K,InTB!$N:$N,$B44,InTB!$C:$C,BS!L$1) -> 0 | M44: =IF(M$1=0,0,ROUND($T44*M$108,2))+SUMIFS(InTB!$K:$K,InTB!$M:$M,$E44,InTB!$C:$C,BS!M$1)+SUMIFS(InTB!$K:$K,InTB!$N:$N,$C44,InTB!$C:$C,BS!M$1)+SUMIFS(InTB!$K:$K,InTB!$N:$N,$B44,InTB!$C:$C,BS!M$1) -> 0 | N44: =IF(N$1=0,0,ROUND($T44*N$108,2))+SUMIFS(InTB!$K:$K,InTB!$M:$M,$E44,InTB!$C:$C,BS!N$1)+SUMIFS(InTB!$K:$K,InTB!$N:$N,$C44,InTB!$C:$C,BS!N$1)+SUMIFS(InTB!$K:$K,InTB!$N:$N,$B44,InTB!$C:$C,BS!N$1) -> 0 | O44: =IF(O$1=0,0,ROUND($T44*O$108,2))+SUMIFS(InTB!$K:$K,InTB!$M:$M,$E44,InTB!$C:$C,BS!O$1)+SUMIFS(InTB!$K:$K,InTB!$N:$N,$C44,InTB!$C:$C,BS!O$1)+SUMIFS(InTB!$K:$K,InTB!$N:$N,$B44,InTB!$C:$C,BS!O$1) -> 0 | P44: =IF(P$1=0,0,ROUND($T44*P$108,2))+SUMIFS(InTB!$K:$K,InTB!$M:$M,$E44,InTB!$C:$C,BS!P$1)+SUMIFS(InTB!$K:$K,InTB!$N:$N,$C44,InTB!$C:$C,BS!P$1)+SUMIFS(InTB!$K:$K,InTB!$N:$N,$B44,InTB!$C:$C,BS!P$1) -> 0 | Q44: =IF(Q$1=0,0,ROUND($T44*Q$108,2))+SUMIFS(InTB!$K:$K,InTB!$M:$M,$E44,InTB!$C:$C,BS!Q$1)+SUMIFS(InTB!$K:$K,InTB!$N:$N,$C44,InTB!$C:$C,BS!Q$1)+SUMIFS(InTB!$K:$K,InTB!$N:$N,$B44,InTB!$C:$C,BS!Q$1) -> 0 | R44: =IF(R$1=0,0,ROUND($T44*R$108,2))+SUMIFS(InTB!$K:$K,InTB!$M:$M,$E44,InTB!$C:$C,BS!R$1)+SUMIFS(InTB!$K:$K,InTB!$N:$N,$C44,InTB!$C:$C,BS!R$1)+SUMIFS(InTB!$K:$K,InTB!$N:$N,$B44,InTB!$C:$C,BS!R$1) -> 0 | S44: =IF(S$1=0,0,ROUND($T44*S$108,2))+SUMIFS(InTB!$K:$K,InTB!$M:$M,$E44,InTB!$C:$C,BS!S$1)+SUMIFS(InTB!$K:$K,InTB!$N:$N,$C44,InTB!$C:$C,BS!S$1)+SUMIFS(InTB!$K:$K,InTB!$N:$N,$B44,InTB!$C:$C,BS!S$1) -> 0 | T44: =SUMIF(InTBBase!$M:$M,$E44,InTBBase!$K:$K)+SUMIF(InTBBase!$N:$N,$C44,InTBBase!$K:$K)+SUMIF(InTBBase!$N:$N,$B44,InTBBase!$K:$K) -> 0 | U44: 0
B45: BIURFX_O-REIT | C45: BIURFX_O-UT | D45: CIS5 | E45: BIAFFU | F45: =OFFSET( Label!$E$1,MATCH(BS!D45, Label!$E:$E,0)-1, Main!$G$14+1) -> Unrealised FOREX Gains/(Loss) on Foreign Collective Investment Scheme | I45: =SUMIF(InTB!$M:$M,$E45,InTB!$K:$K)+SUMIF(InTB!$N:$N,$C45,InTB!$K:$K)+SUMIF(InTB!$N:$N,$B45,InTB!$K:$K) -> 0 | J45: =IF(J$1=0,0,ROUND($T45*J$108,2))+SUMIFS(InTB!$K:$K,InTB!$M:$M,$E45,InTB!$C:$C,BS!J$1)+SUMIFS(InTB!$K:$K,InTB!$N:$N,$C45,InTB!$C:$C,BS!J$1)+SUMIFS(InTB!$K:$K,InTB!$N:$N,$B45,InTB!$C:$C,BS!J$1) -> 0 | K45: =IF(K$1=0,0,ROUND($T45*K$108,2))+SUMIFS(InTB!$K:$K,InTB!$M:$M,$E45,InTB!$C:$C,BS!K$1)+SUMIFS(InTB!$K:$K,InTB!$N:$N,$C45,InTB!$C:$C,BS!K$1)+SUMIFS(InTB!$K:$K,InTB!$N:$N,$B45,InTB!$C:$C,BS!K$1) -> 0 | L45: =IF(L$1=0,0,ROUND($T45*L$108,2))+SUMIFS(InTB!$K:$K,InTB!$M:$M,$E45,InTB!$C:$C,BS!L$1)+SUMIFS(InTB!$K:$K,InTB!$N:$N,$C45,InTB!$C:$C,BS!L$1)+SUMIFS(InTB!$K:$K,InTB!$N:$N,$B45,InTB!$C:$C,BS!L$1) -> 0 | M45: =IF(M$1=0,0,ROUND($T45*M$108,2))+SUMIFS(InTB!$K:$K,InTB!$M:$M,$E45,InTB!$C:$C,BS!M$1)+SUMIFS(InTB!$K:$K,InTB!$N:$N,$C45,InTB!$C:$C,BS!M$1)+SUMIFS(InTB!$K:$K,InTB!$N:$N,$B45,InTB!$C:$C,BS!M$1) -> 0 | N45: =IF(N$1=0,0,ROUND($T45*N$108,2))+SUMIFS(InTB!$K:$K,InTB!$M:$M,$E45,InTB!$C:$C,BS!N$1)+SUMIFS(InTB!$K:$K,InTB!$N:$N,$C45,InTB!$C:$C,BS!N$1)+SUMIFS(InTB!$K:$K,InTB!$N:$N,$B45,InTB!$C:$C,BS!N$1) -> 0 | O45: =IF(O$1=0,0,ROUND($T45*O$108,2))+SUMIFS(InTB!$K:$K,InTB!$M:$M,$E45,InTB!$C:$C,BS!O$1)+SUMIFS(InTB!$K:$K,InTB!$N:$N,$C45,InTB!$C:$C,BS!O$1)+SUMIFS(InTB!$K:$K,InTB!$N:$N,$B45,InTB!$C:$C,BS!O$1) -> 0 | P45: =IF(P$1=0,0,ROUND($T45*P$108,2))+SUMIFS(InTB!$K:$K,InTB!$M:$M,$E45,InTB!$C:$C,BS!P$1)+SUMIFS(InTB!$K:$K,InTB!$N:$N,$C45,InTB!$C:$C,BS!P$1)+SUMIFS(InTB!$K:$K,InTB!$N:$N,$B45,InTB!$C:$C,BS!P$1) -> 0 | Q45: =IF(Q$1=0,0,ROUND($T45*Q$108,2))+SUMIFS(InTB!$K:$K,InTB!$M:$M,$E45,InTB!$C:$C,BS!Q$1)+SUMIFS(InTB!$K:$K,InTB!$N:$N,$C45,InTB!$C:$C,BS!Q$1)+SUMIFS(InTB!$K:$K,InTB!$N:$N,$B45,InTB!$C:$C,BS!Q$1) -> 0 | R45: =IF(R$1=0,0,ROUND($T45*R$108,2))+SUMIFS(InTB!$K:$K,InTB!$M:$M,$E45,InTB!$C:$C,BS!R$1)+SUMIFS(InTB!$K:$K,InTB!$N:$N,$C45,InTB!$C:$C,BS!R$1)+SUMIFS(InTB!$K:$K,InTB!$N:$N,$B45,InTB!$C:$C,BS!R$1) -> 0 | S45: =IF(S$1=0,0,ROUND($T45*S$108,2))+SUMIFS(InTB!$K:$K,InTB!$M:$M,$E45,InTB!$C:$C,BS!S$1)+SUMIFS(InTB!$K:$K,InTB!$N:$N,$C45,InTB!$C:$C,BS!S$1)+SUMIFS(InTB!$K:$K,InTB!$N:$N,$B45,InTB!$C:$C,BS!S$1) -> 0 | T45: =SUMIF(InTBBase!$M:$M,$E45,InTBBase!$K:$K)+SUMIF(InTBBase!$N:$N,$C45,InTBBase!$K:$K)+SUMIF(InTBBase!$N:$N,$B45,InTBBase!$K:$K) -> 0 | U45: 0
U46: 0
D47: OPT | F47: =OFFSET( Label!$E$1,MATCH(BS!D47, Label!$E:$E,0)-1, Main!$G$14+1) -> OPTIONS | I47: =SUM(I48:I52) -> 0 | J47: 0 | K47: 0 | L47: 0 | M47: 0 | N47: 0 | O47: =SUM(O48:O52) -> 0 | P47: 0 | Q47: 0 | R47: =SUM(R48:R52) -> 0 | S47: 0 | T47: =SUM(T48:T52) -> 0 | U47: 0
C48: BICOST_O-OPT | D48: OPT1 | E48: BIACOF | F48: =UPPER(OFFSET( Label!$E$1,MATCH(BS!D48, Label!$E:$E,0)-1, Main!$G$14+1)) -> FOREIGN OPTIONS | I48: =SUMIF(InTB!$M:$M,$E48,InTB!$K:$K)+SUMIF(InTB!$N:$N,$C48,InTB!$K:$K)+SUMIF(InTB!$N:$N,$B48,InTB!$K:$K) -> 0 | J48: =IF(J$1=0,0,ROUND($T48*J$108,2))+SUMIFS(InTB!$K:$K,InTB!$M:$M,$E48,InTB!$C:$C,BS!J$1)+SUMIFS(InTB!$K:$K,InTB!$N:$N,$C48,InTB!$C:$C,BS!J$1)+SUMIFS(InTB!$K:$K,InTB!$N:$N,$B48,InTB!$C:$C,BS!J$1) -> 0 | K48: =IF(K$1=0,0,ROUND($T48*K$108,2))+SUMIFS(InTB!$K:$K,InTB!$M:$M,$E48,InTB!$C:$C,BS!K$1)+SUMIFS(InTB!$K:$K,InTB!$N:$N,$C48,InTB!$C:$C,BS!K$1)+SUMIFS(InTB!$K:$K,InTB!$N:$N,$B48,InTB!$C:$C,BS!K$1) -> 0 | L48: =IF(L$1=0,0,ROUND($T48*L$108,2))+SUMIFS(InTB!$K:$K,InTB!$M:$M,$E48,InTB!$C:$C,BS!L$1)+SUMIFS(InTB!$K:$K,InTB!$N:$N,$C48,InTB!$C:$C,BS!L$1)+SUMIFS(InTB!$K:$K,InTB!$N:$N,$B48,InTB!$C:$C,BS!L$1) -> 0 | M48: =IF(M$1=0,0,ROUND($T48*M$108,2))+SUMIFS(InTB!$K:$K,InTB!$M:$M,$E48,InTB!$C:$C,BS!M$1)+SUMIFS(InTB!$K:$K,InTB!$N:$N,$C48,InTB!$C:$C,BS!M$1)+SUMIFS(InTB!$K:$K,InTB!$N:$N,$B48,InTB!$C:$C,BS!M$1) -> 0 | N48: =IF(N$1=0,0,ROUND($T48*N$108,2))+SUMIFS(InTB!$K:$K,InTB!$M:$M,$E48,InTB!$C:$C,BS!N$1)+SUMIFS(InTB!$K:$K,InTB!$N:$N,$C48,InTB!$C:$C,BS!N$1)+SUMIFS(InTB!$K:$K,InTB!$N:$N,$B48,InTB!$C:$C,BS!N$1) -> 0 | O48: =IF(O$1=0,0,ROUND($T48*O$108,2))+SUMIFS(InTB!$K:$K,InTB!$M:$M,$E48,InTB!$C:$C,BS!O$1)+SUMIFS(InTB!$K:$K,InTB!$N:$N,$C48,InTB!$C:$C,BS!O$1)+SUMIFS(InTB!$K:$K,InTB!$N:$N,$B48,InTB!$C:$C,BS!O$1) -> 0 | P48: =IF(P$1=0,0,ROUND($T48*P$108,2))+SUMIFS(InTB!$K:$K,InTB!$M:$M,$E48,InTB!$C:$C,BS!P$1)+SUMIFS(InTB!$K:$K,InTB!$N:$N,$C48,InTB!$C:$C,BS!P$1)+SUMIFS(InTB!$K:$K,InTB!$N:$N,$B48,InTB!$C:$C,BS!P$1) -> 0 | Q48: =IF(Q$1=0,0,ROUND($T48*Q$108,2))+SUMIFS(InTB!$K:$K,InTB!$M:$M,$E48,InTB!$C:$C,BS!Q$1)+SUMIFS(InTB!$K:$K,InTB!$N:$N,$C48,InTB!$C:$C,BS!Q$1)+SUMIFS(InTB!$K:$K,InTB!$N:$N,$B48,InTB!$C:$C,BS!Q$1) -> 0 | R48: =IF(R$1=0,0,ROUND($T48*R$108,2))+SUMIFS(InTB!$K:$K,InTB!$M:$M,$E48,InTB!$C:$C,BS!R$1)+SUMIFS(InTB!$K:$K,InTB!$N:$N,$C48,InTB!$C:$C,BS!R$1)+SUMIFS(InTB!$K:$K,InTB!$N:$N,$B48,InTB!$C:$C,BS!R$1) -> 0 | S48: =IF(S$1=0,0,ROUND($T48*S$108,2))+SUMIFS(InTB!$K:$K,InTB!$M:$M,$E48,InTB!$C:$C,BS!S$1)+SUMIFS(InTB!$K:$K,InTB!$N:$N,$C48,InTB!$C:$C,BS!S$1)+SUMIFS(InTB!$K:$K,InTB!$N:$N,$B48,InTB!$C:$C,BS!S$1) -> 0 | T48: =SUMIF(InTBBase!$M:$M,$E48,InTBBase!$K:$K)+SUMIF(InTBBase!$N:$N,$C48,InTBBase!$K:$K)+SUMIF(InTBBase!$N:$N,$B48,InTBBase!$K:$K) -> 0 | U48: 0
C49: BIURGL_O-OPT | D49: OPT2 | E49: BIAUOF | F49: =OFFSET( Label!$E$1,MATCH(BS!D49, Label!$E:$E,0)-1, Main!$G$14+1) -> Unrealised Gains/(Loss) on Foreign Options | I49: =SUMIF(InTB!$M:$M,$E49,InTB!$K:$K)+SUMIF(InTB!$N:$N,$C49,InTB!$K:$K)+SUMIF(InTB!$N:$N,$B49,InTB!$K:$K) -> 0 | J49: =IF(J$1=0,0,ROUND($T49*J$108,2))+SUMIFS(InTB!$K:$K,InTB!$M:$M,$E49,InTB!$C:$C,BS!J$1)+SUMIFS(InTB!$K:$K,InTB!$N:$N,$C49,InTB!$C:$C,BS!J$1)+SUMIFS(InTB!$K:$K,InTB!$N:$N,$B49,InTB!$C:$C,BS!J$1) -> 0 | K49: =IF(K$1=0,0,ROUND($T49*K$108,2))+SUMIFS(InTB!$K:$K,InTB!$M:$M,$E49,InTB!$C:$C,BS!K$1)+SUMIFS(InTB!$K:$K,InTB!$N:$N,$C49,InTB!$C:$C,BS!K$1)+SUMIFS(InTB!$K:$K,InTB!$N:$N,$B49,InTB!$C:$C,BS!K$1) -> 0 | L49: =IF(L$1=0,0,ROUND($T49*L$108,2))+SUMIFS(InTB!$K:$K,InTB!$M:$M,$E49,InTB!$C:$C,BS!L$1)+SUMIFS(InTB!$K:$K,InTB!$N:$N,$C49,InTB!$C:$C,BS!L$1)+SUMIFS(InTB!$K:$K,InTB!$N:$N,$B49,InTB!$C:$C,BS!L$1) -> 0 | M49: =IF(M$1=0,0,ROUND($T49*M$108,2))+SUMIFS(InTB!$K:$K,InTB!$M:$M,$E49,InTB!$C:$C,BS!M$1)+SUMIFS(InTB!$K:$K,InTB!$N:$N,$C49,InTB!$C:$C,BS!M$1)+SUMIFS(InTB!$K:$K,InTB!$N:$N,$B49,InTB!$C:$C,BS!M$1) -> 0 | N49: =IF(N$1=0,0,ROUND($T49*N$108,2))+SUMIFS(InTB!$K:$K,InTB!$M:$M,$E49,InTB!$C:$C,BS!N$1)+SUMIFS(InTB!$K:$K,InTB!$N:$N,$C49,InTB!$C:$C,BS!N$1)+SUMIFS(InTB!$K:$K,InTB!$N:$N,$B49,InTB!$C:$C,BS!N$1) -> 0 | O49: =IF(O$1=0,0,ROUND($T49*O$108,2))+SUMIFS(InTB!$K:$K,InTB!$M:$M,$E49,InTB!$C:$C,BS!O$1)+SUMIFS(InTB!$K:$K,InTB!$N:$N,$C49,InTB!$C:$C,BS!O$1)+SUMIFS(InTB!$K:$K,InTB!$N:$N,$B49,InTB!$C:$C,BS!O$1) -> 0 | P49: =IF(P$1=0,0,ROUND($T49*P$108,2))+SUMIFS(InTB!$K:$K,InTB!$M:$M,$E49,InTB!$C:$C,BS!P$1)+SUMIFS(InTB!$K:$K,InTB!$N:$N,$C49,InTB!$C:$C,BS!P$1)+SUMIFS(InTB!$K:$K,InTB!$N:$N,$B49,InTB!$C:$C,BS!P$1) -> 0 | Q49: =IF(Q$1=0,0,ROUND($T49*Q$108,2))+SUMIFS(InTB!$K:$K,InTB!$M:$M,$E49,InTB!$C:$C,BS!Q$1)+SUMIFS(InTB!$K:$K,InTB!$N:$N,$C49,InTB!$C:$C,BS!Q$1)+SUMIFS(InTB!$K:$K,InTB!$N:$N,$B49,InTB!$C:$C,BS!Q$1) -> 0 | R49: =IF(R$1=0,0,ROUND($T49*R$108,2))+SUMIFS(InTB!$K:$K,InTB!$M:$M,$E49,InTB!$C:$C,BS!R$1)+SUMIFS(InTB!$K:$K,InTB!$N:$N,$C49,InTB!$C:$C,BS!R$1)+SUMIFS(InTB!$K:$K,InTB!$N:$N,$B49,InTB!$C:$C,BS!R$1) -> 0 | S49: =IF(S$1=0,0,ROUND($T49*S$108,2))+SUMIFS(InTB!$K:$K,InTB!$M:$M,$E49,InTB!$C:$C,BS!S$1)+SUMIFS(InTB!$K:$K,InTB!$N:$N,$C49,InTB!$C:$C,BS!S$1)+SUMIFS(InTB!$K:$K,InTB!$N:$N,$B49,InTB!$C:$C,BS!S$1) -> 0 | T49: =SUMIF(InTBBase!$M:$M,$E49,InTBBase!$K:$K)+SUMIF(InTBBase!$N:$N,$C49,InTBBase!$K:$K)+SUMIF(InTBBase!$N:$N,$B49,InTBBase!$K:$K) -> 0 | U49: 0
C50: BIURFX_O-OPT | D50: OPT3 | E50: BIAFFO | F50: =OFFSET( Label!$E$1,MATCH(BS!D50, Label!$E:$E,0)-1, Main!$G$14+1) -> Unrealised FOREX Gains/(Loss) on Foreign Options | I50: =SUMIF(InTB!$M:$M,$E50,InTB!$K:$K)+SUMIF(InTB!$N:$N,$C50,InTB!$K:$K)+SUMIF(InTB!$N:$N,$B50,InTB!$K:$K) -> 0 | J50: =IF(J$1=0,0,ROUND($T50*J$108,2))+SUMIFS(InTB!$K:$K,InTB!$M:$M,$E50,InTB!$C:$C,BS!J$1)+SUMIFS(InTB!$K:$K,InTB!$N:$N,$C50,InTB!$C:$C,BS!J$1)+SUMIFS(InTB!$K:$K,InTB!$N:$N,$B50,InTB!$C:$C,BS!J$1) -> 0 | K50: =IF(K$1=0,0,ROUND($T50*K$108,2))+SUMIFS(InTB!$K:$K,InTB!$M:$M,$E50,InTB!$C:$C,BS!K$1)+SUMIFS(InTB!$K:$K,InTB!$N:$N,$C50,InTB!$C:$C,BS!K$1)+SUMIFS(InTB!$K:$K,InTB!$N:$N,$B50,InTB!$C:$C,BS!K$1) -> 0 | L50: =IF(L$1=0,0,ROUND($T50*L$108,2))+SUMIFS(InTB!$K:$K,InTB!$M:$M,$E50,InTB!$C:$C,BS!L$1)+SUMIFS(InTB!$K:$K,InTB!$N:$N,$C50,InTB!$C:$C,BS!L$1)+SUMIFS(InTB!$K:$K,InTB!$N:$N,$B50,InTB!$C:$C,BS!L$1) -> 0 | M50: =IF(M$1=0,0,ROUND($T50*M$108,2))+SUMIFS(InTB!$K:$K,InTB!$M:$M,$E50,InTB!$C:$C,BS!M$1)+SUMIFS(InTB!$K:$K,InTB!$N:$N,$C50,InTB!$C:$C,BS!M$1)+SUMIFS(InTB!$K:$K,InTB!$N:$N,$B50,InTB!$C:$C,BS!M$1) -> 0 | N50: =IF(N$1=0,0,ROUND($T50*N$108,2))+SUMIFS(InTB!$K:$K,InTB!$M:$M,$E50,InTB!$C:$C,BS!N$1)+SUMIFS(InTB!$K:$K,InTB!$N:$N,$C50,InTB!$C:$C,BS!N$1)+SUMIFS(InTB!$K:$K,InTB!$N:$N,$B50,InTB!$C:$C,BS!N$1) -> 0 | O50: =IF(O$1=0,0,ROUND($T50*O$108,2))+SUMIFS(InTB!$K:$K,InTB!$M:$M,$E50,InTB!$C:$C,BS!O$1)+SUMIFS(InTB!$K:$K,InTB!$N:$N,$C50,InTB!$C:$C,BS!O$1)+SUMIFS(InTB!$K:$K,InTB!$N:$N,$B50,InTB!$C:$C,BS!O$1) -> 0 | P50: =IF(P$1=0,0,ROUND($T50*P$108,2))+SUMIFS(InTB!$K:$K,InTB!$M:$M,$E50,InTB!$C:$C,BS!P$1)+SUMIFS(InTB!$K:$K,InTB!$N:$N,$C50,InTB!$C:$C,BS!P$1)+SUMIFS(InTB!$K:$K,InTB!$N:$N,$B50,InTB!$C:$C,BS!P$1) -> 0 | Q50: =IF(Q$1=0,0,ROUND($T50*Q$108,2))+SUMIFS(InTB!$K:$K,InTB!$M:$M,$E50,InTB!$C:$C,BS!Q$1)+SUMIFS(InTB!$K:$K,InTB!$N:$N,$C50,InTB!$C:$C,BS!Q$1)+SUMIFS(InTB!$K:$K,InTB!$N:$N,$B50,InTB!$C:$C,BS!Q$1) -> 0 | R50: =IF(R$1=0,0,ROUND($T50*R$108,2))+SUMIFS(InTB!$K:$K,InTB!$M:$M,$E50,InTB!$C:$C,BS!R$1)+SUMIFS(InTB!$K:$K,InTB!$N:$N,$C50,InTB!$C:$C,BS!R$1)+SUMIFS(InTB!$K:$K,InTB!$N:$N,$B50,InTB!$C:$C,BS!R$1) -> 0 | S50: =IF(S$1=0,0,ROUND($T50*S$108,2))+SUMIFS(InTB!$K:$K,InTB!$M:$M,$E50,InTB!$C:$C,BS!S$1)+SUMIFS(InTB!$K:$K,InTB!$N:$N,$C50,InTB!$C:$C,BS!S$1)+SUMIFS(InTB!$K:$K,InTB!$N:$N,$B50,InTB!$C:$C,BS!S$1) -> 0 | T50: =SUMIF(InTBBase!$M:$M,$E50,InTBBase!$K:$K)+SUMIF(InTBBase!$N:$N,$C50,InTBBase!$K:$K)+SUMIF(InTBBase!$N:$N,$B50,InTBBase!$K:$K) -> 0 | U50: 0
C51: BICOST_FWD | D51: OPT4 | E51: BIACFC | F51: =UPPER(OFFSET( Label!$E$1,MATCH(BS!D51, Label!$E:$E,0)-1, Main!$G$14+1)) -> FORWARD CONTRACT | I51: =SUMIF(InTB!$M:$M,$E51,InTB!$K:$K)+SUMIF(InTB!$N:$N,$C51,InTB!$K:$K)+SUMIF(InTB!$N:$N,$B51,InTB!$K:$K) -> 0 | J51: =IF(J$1=0,0,ROUND($T51*J$108,2))+SUMIFS(InTB!$K:$K,InTB!$M:$M,$E51,InTB!$C:$C,BS!J$1)+SUMIFS(InTB!$K:$K,InTB!$N:$N,$C51,InTB!$C:$C,BS!J$1)+SUMIFS(InTB!$K:$K,InTB!$N:$N,$B51,InTB!$C:$C,BS!J$1) -> 0 | K51: =IF(K$1=0,0,ROUND($T51*K$108,2))+SUMIFS(InTB!$K:$K,InTB!$M:$M,$E51,InTB!$C:$C,BS!K$1)+SUMIFS(InTB!$K:$K,InTB!$N:$N,$C51,InTB!$C:$C,BS!K$1)+SUMIFS(InTB!$K:$K,InTB!$N:$N,$B51,InTB!$C:$C,BS!K$1) -> 0 | L51: =IF(L$1=0,0,ROUND($T51*L$108,2))+SUMIFS(InTB!$K:$K,InTB!$M:$M,$E51,InTB!$C:$C,BS!L$1)+SUMIFS(InTB!$K:$K,InTB!$N:$N,$C51,InTB!$C:$C,BS!L$1)+SUMIFS(InTB!$K:$K,InTB!$N:$N,$B51,InTB!$C:$C,BS!L$1) -> 0 | M51: =IF(M$1=0,0,ROUND($T51*M$108,2))+SUMIFS(InTB!$K:$K,InTB!$M:$M,$E51,InTB!$C:$C,BS!M$1)+SUMIFS(InTB!$K:$K,InTB!$N:$N,$C51,InTB!$C:$C,BS!M$1)+SUMIFS(InTB!$K:$K,InTB!$N:$N,$B51,InTB!$C:$C,BS!M$1) -> 0 | N51: =IF(N$1=0,0,ROUND($T51*N$108,2))+SUMIFS(InTB!$K:$K,InTB!$M:$M,$E51,InTB!$C:$C,BS!N$1)+SUMIFS(InTB!$K:$K,InTB!$N:$N,$C51,InTB!$C:$C,BS!N$1)+SUMIFS(InTB!$K:$K,InTB!$N:$N,$B51,InTB!$C:$C,BS!N$1) -> 0 | O51: =IF(O$1=0,0,ROUND($T51*O$108,2))+SUMIFS(InTB!$K:$K,InTB!$M:$M,$E51,InTB!$C:$C,BS!O$1)+SUMIFS(InTB!$K:$K,InTB!$N:$N,$C51,InTB!$C:$C,BS!O$1)+SUMIFS(InTB!$K:$K,InTB!$N:$N,$B51,InTB!$C:$C,BS!O$1) -> 0 | P51: =IF(P$1=0,0,ROUND($T51*P$108,2))+SUMIFS(InTB!$K:$K,InTB!$M:$M,$E51,InTB!$C:$C,BS!P$1)+SUMIFS(InTB!$K:$K,InTB!$N:$N,$C51,InTB!$C:$C,BS!P$1)+SUMIFS(InTB!$K:$K,InTB!$N:$N,$B51,InTB!$C:$C,BS!P$1) -> 0 | Q51: =IF(Q$1=0,0,ROUND($T51*Q$108,2))+SUMIFS(InTB!$K:$K,InTB!$M:$M,$E51,InTB!$C:$C,BS!Q$1)+SUMIFS(InTB!$K:$K,InTB!$N:$N,$C51,InTB!$C:$C,BS!Q$1)+SUMIFS(InTB!$K:$K,InTB!$N:$N,$B51,InTB!$C:$C,BS!Q$1) -> 0 | R51: =IF(R$1=0,0,ROUND($T51*R$108,2))+SUMIFS(InTB!$K:$K,InTB!$M:$M,$E51,InTB!$C:$C,BS!R$1)+SUMIFS(InTB!$K:$K,InTB!$N:$N,$C51,InTB!$C:$C,BS!R$1)+SUMIFS(InTB!$K:$K,InTB!$N:$N,$B51,InTB!$C:$C,BS!R$1) -> 0 | S51: =IF(S$1=0,0,ROUND($T51*S$108,2))+SUMIFS(InTB!$K:$K,InTB!$M:$M,$E51,InTB!$C:$C,BS!S$1)+SUMIFS(InTB!$K:$K,InTB!$N:$N,$C51,InTB!$C:$C,BS!S$1)+SUMIFS(InTB!$K:$K,InTB!$N:$N,$B51,InTB!$C:$C,BS!S$1) -> 0 | T51: =SUMIF(InTBBase!$M:$M,$E51,InTBBase!$K:$K)+SUMIF(InTBBase!$N:$N,$C51,InTBBase!$K:$K)+SUMIF(InTBBase!$N:$N,$B51,InTBBase!$K:$K) -> 0 | U51: 0
B52: BIURFX_FWD | C52: BIURGL_FWD | D52: OPT5 | E52: BIAFFC | F52: =OFFSET( Label!$E$1,MATCH(BS!D52, Label!$E:$E,0)-1, Main!$G$14+1) -> Unrealised FOREX Gains/(Loss) on Forward Contract | I52: =SUMIF(InTB!$M:$M,$E52,InTB!$K:$K)+SUMIF(InTB!$N:$N,$C52,InTB!$K:$K)+SUMIF(InTB!$N:$N,$B52,InTB!$K:$K) -> 0 | J52: =IF(J$1=0,0,ROUND($T52*J$108,2))+SUMIFS(InTB!$K:$K,InTB!$M:$M,$E52,InTB!$C:$C,BS!J$1)+SUMIFS(InTB!$K:$K,InTB!$N:$N,$C52,InTB!$C:$C,BS!J$1)+SUMIFS(InTB!$K:$K,InTB!$N:$N,$B52,InTB!$C:$C,BS!J$1) -> 0 | K52: =IF(K$1=0,0,ROUND($T52*K$108,2))+SUMIFS(InTB!$K:$K,InTB!$M:$M,$E52,InTB!$C:$C,BS!K$1)+SUMIFS(InTB!$K:$K,InTB!$N:$N,$C52,InTB!$C:$C,BS!K$1)+SUMIFS(InTB!$K:$K,InTB!$N:$N,$B52,InTB!$C:$C,BS!K$1) -> 0 | L52: =IF(L$1=0,0,ROUND($T52*L$108,2))+SUMIFS(InTB!$K:$K,InTB!$M:$M,$E52,InTB!$C:$C,BS!L$1)+SUMIFS(InTB!$K:$K,InTB!$N:$N,$C52,InTB!$C:$C,BS!L$1)+SUMIFS(InTB!$K:$K,InTB!$N:$N,$B52,InTB!$C:$C,BS!L$1) -> 0 | M52: =IF(M$1=0,0,ROUND($T52*M$108,2))+SUMIFS(InTB!$K:$K,InTB!$M:$M,$E52,InTB!$C:$C,BS!M$1)+SUMIFS(InTB!$K:$K,InTB!$N:$N,$C52,InTB!$C:$C,BS!M$1)+SUMIFS(InTB!$K:$K,InTB!$N:$N,$B52,InTB!$C:$C,BS!M$1) -> 0 | N52: =IF(N$1=0,0,ROUND($T52*N$108,2))+SUMIFS(InTB!$K:$K,InTB!$M:$M,$E52,InTB!$C:$C,BS!N$1)+SUMIFS(InTB!$K:$K,InTB!$N:$N,$C52,InTB!$C:$C,BS!N$1)+SUMIFS(InTB!$K:$K,InTB!$N:$N,$B52,InTB!$C:$C,BS!N$1) -> 0 | O52: =IF(O$1=0,0,ROUND($T52*O$108,2))+SUMIFS(InTB!$K:$K,InTB!$M:$M,$E52,InTB!$C:$C,BS!O$1)+SUMIFS(InTB!$K:$K,InTB!$N:$N,$C52,InTB!$C:$C,BS!O$1)+SUMIFS(InTB!$K:$K,InTB!$N:$N,$B52,InTB!$C:$C,BS!O$1) -> 0 | P52: =IF(P$1=0,0,ROUND($T52*P$108,2))+SUMIFS(InTB!$K:$K,InTB!$M:$M,$E52,InTB!$C:$C,BS!P$1)+SUMIFS(InTB!$K:$K,InTB!$N:$N,$C52,InTB!$C:$C,BS!P$1)+SUMIFS(InTB!$K:$K,InTB!$N:$N,$B52,InTB!$C:$C,BS!P$1) -> 0 | Q52: =IF(Q$1=0,0,ROUND($T52*Q$108,2))+SUMIFS(InTB!$K:$K,InTB!$M:$M,$E52,InTB!$C:$C,BS!Q$1)+SUMIFS(InTB!$K:$K,InTB!$N:$N,$C52,InTB!$C:$C,BS!Q$1)+SUMIFS(InTB!$K:$K,InTB!$N:$N,$B52,InTB!$C:$C,BS!Q$1) -> 0 | R52: =IF(R$1=0,0,ROUND($T52*R$108,2))+SUMIFS(InTB!$K:$K,InTB!$M:$M,$E52,InTB!$C:$C,BS!R$1)+SUMIFS(InTB!$K:$K,InTB!$N:$N,$C52,InTB!$C:$C,BS!R$1)+SUMIFS(InTB!$K:$K,InTB!$N:$N,$B52,InTB!$C:$C,BS!R$1) -> 0 | S52: =IF(S$1=0,0,ROUND($T52*S$108,2))+SUMIFS(InTB!$K:$K,InTB!$M:$M,$E52,InTB!$C:$C,BS!S$1)+SUMIFS(InTB!$K:$K,InTB!$N:$N,$C52,InTB!$C:$C,BS!S$1)+SUMIFS(InTB!$K:$K,InTB!$N:$N,$B52,InTB!$C:$C,BS!S$1) -> 0 | T52: =SUMIF(InTBBase!$M:$M,$E52,InTBBase!$K:$K)+SUMIF(InTBBase!$N:$N,$C52,InTBBase!$K:$K)+SUMIF(InTBBase!$N:$N,$B52,InTBBase!$K:$K) -> 0 | U52: 0
U53: 0
D54: CSHINV | E54: BIACDP | F54: =OFFSET( Label!$E$1,MATCH(BS!D54, Label!$E:$E,0)-1, Main!$G$14+1) -> DEPOSITS AND PLACEMENTS WITH FINANCIAL INSTITUTIONS | I54: =I55+I56 -> 0 | J54: =SUM(J55:J56) -> 0 | K54: =SUM(K55:K56) -> 0 | L54: 0 | M54: 0 | N54: 0 | O54: 0 | P54: 0 | Q54: 0 | R54: 0 | S54: 0 | T54: =T55+T56 -> 0 | U54: 0
C55: BICOST_*MM | E55: BIACDP | F55: =F54 -> DEPOSITS AND PLACEMENTS WITH FINANCIAL INSTITUTIONS | I55: =SUMIF(InTB!$M:$M,$E55,InTB!$K:$K)+SUMIF(InTB!$N:$N,$C55,InTB!$K:$K)+SUMIF(InTB!$N:$N,$B55,InTB!$K:$K) -> 0 | J55: =IF(J$1=0,0,ROUND($T55*J$108,2))+SUMIFS(InTB!$K:$K,InTB!$M:$M,$E55,InTB!$C:$C,BS!J$1)+SUMIFS(InTB!$K:$K,InTB!$N:$N,$C55,InTB!$C:$C,BS!J$1)+SUMIFS(InTB!$K:$K,InTB!$N:$N,$B55,InTB!$C:$C,BS!J$1) -> 0 | K55: =IF(K$1=0,0,ROUND($T55*K$108,2))+SUMIFS(InTB!$K:$K,InTB!$M:$M,$E55,InTB!$C:$C,BS!K$1)+SUMIFS(InTB!$K:$K,InTB!$N:$N,$C55,InTB!$C:$C,BS!K$1)+SUMIFS(InTB!$K:$K,InTB!$N:$N,$B55,InTB!$C:$C,BS!K$1) -> 0 | L55: =IF(L$1=0,0,ROUND($T55*L$108,2))+SUMIFS(InTB!$K:$K,InTB!$M:$M,$E55,InTB!$C:$C,BS!L$1)+SUMIFS(InTB!$K:$K,InTB!$N:$N,$C55,InTB!$C:$C,BS!L$1)+SUMIFS(InTB!$K:$K,InTB!$N:$N,$B55,InTB!$C:$C,BS!L$1) -> 0 | M55: =IF(M$1=0,0,ROUND($T55*M$108,2))+SUMIFS(InTB!$K:$K,InTB!$M:$M,$E55,InTB!$C:$C,BS!M$1)+SUMIFS(InTB!$K:$K,InTB!$N:$N,$C55,InTB!$C:$C,BS!M$1)+SUMIFS(InTB!$K:$K,InTB!$N:$N,$B55,InTB!$C:$C,BS!M$1) -> 0 | N55: =IF(N$1=0,0,ROUND($T55*N$108,2))+SUMIFS(InTB!$K:$K,InTB!$M:$M,$E55,InTB!$C:$C,BS!N$1)+SUMIFS(InTB!$K:$K,InTB!$N:$N,$C55,InTB!$C:$C,BS!N$1)+SUMIFS(InTB!$K:$K,InTB!$N:$N,$B55,InTB!$C:$C,BS!N$1) -> 0 | O55: =IF(O$1=0,0,ROUND($T55*O$108,2))+SUMIFS(InTB!$K:$K,InTB!$M:$M,$E55,InTB!$C:$C,BS!O$1)+SUMIFS(InTB!$K:$K,InTB!$N:$N,$C55,InTB!$C:$C,BS!O$1)+SUMIFS(InTB!$K:$K,InTB!$N:$N,$B55,InTB!$C:$C,BS!O$1) -> 0 | P55: =IF(P$1=0,0,ROUND($T55*P$108,2))+SUMIFS(InTB!$K:$K,InTB!$M:$M,$E55,InTB!$C:$C,BS!P$1)+SUMIFS(InTB!$K:$K,InTB!$N:$N,$C55,InTB!$C:$C,BS!P$1)+SUMIFS(InTB!$K:$K,InTB!$N:$N,$B55,InTB!$C:$C,BS!P$1) -> 0 | Q55: =IF(Q$1=0,0,ROUND($T55*Q$108,2))+SUMIFS(InTB!$K:$K,InTB!$M:$M,$E55,InTB!$C:$C,BS!Q$1)+SUMIFS(InTB!$K:$K,InTB!$N:$N,$C55,InTB!$C:$C,BS!Q$1)+SUMIFS(InTB!$K:$K,InTB!$N:$N,$B55,InTB!$C:$C,BS!Q$1) -> 0 | R55: =IF(R$1=0,0,ROUND($T55*R$108,2))+SUMIFS(InTB!$K:$K,InTB!$M:$M,$E55,InTB!$C:$C,BS!R$1)+SUMIFS(InTB!$K:$K,InTB!$N:$N,$C55,InTB!$C:$C,BS!R$1)+SUMIFS(InTB!$K:$K,InTB!$N:$N,$B55,InTB!$C:$C,BS!R$1) -> 0 | S55: =IF(S$1=0,0,ROUND($T55*S$108,2))+SUMIFS(InTB!$K:$K,InTB!$M:$M,$E55,InTB!$C:$C,BS!S$1)+SUMIFS(InTB!$K:$K,InTB!$N:$N,$C55,InTB!$C:$C,BS!S$1)+SUMIFS(InTB!$K:$K,InTB!$N:$N,$B55,InTB!$C:$C,BS!S$1) -> 0 | T55: =SUMIF(InTBBase!$M:$M,$E55,InTBBase!$K:$K)+SUMIF(InTBBase!$N:$N,$C55,InTBBase!$K:$K)+SUMIF(InTBBase!$N:$N,$B55,InTBBase!$K:$K) -> 0 | U55: 0
C56: BIURFX_*MM | E56: BIACDF | F56: Unrealised FOREX Gains/(Loss) on Foreign Placement | I56: =SUMIF(InTB!$M:$M,$E56,InTB!$K:$K)+SUMIF(InTB!$N:$N,$C56,InTB!$K:$K)+SUMIF(InTB!$N:$N,$B56,InTB!$K:$K) -> 0 | J56: =IF(J$1=0,0,ROUND($T56*J$108,2))+SUMIFS(InTB!$K:$K,InTB!$M:$M,$E56,InTB!$C:$C,BS!J$1)+SUMIFS(InTB!$K:$K,InTB!$N:$N,$C56,InTB!$C:$C,BS!J$1)+SUMIFS(InTB!$K:$K,InTB!$N:$N,$B56,InTB!$C:$C,BS!J$1) -> 0 | K56: =IF(K$1=0,0,ROUND($T56*K$108,2))+SUMIFS(InTB!$K:$K,InTB!$M:$M,$E56,InTB!$C:$C,BS!K$1)+SUMIFS(InTB!$K:$K,InTB!$N:$N,$C56,InTB!$C:$C,BS!K$1)+SUMIFS(InTB!$K:$K,InTB!$N:$N,$B56,InTB!$C:$C,BS!K$1) -> 0 | L56: =IF(L$1=0,0,ROUND($T56*L$108,2))+SUMIFS(InTB!$K:$K,InTB!$M:$M,$E56,InTB!$C:$C,BS!L$1)+SUMIFS(InTB!$K:$K,InTB!$N:$N,$C56,InTB!$C:$C,BS!L$1)+SUMIFS(InTB!$K:$K,InTB!$N:$N,$B56,InTB!$C:$C,BS!L$1) -> 0 | M56: =IF(M$1=0,0,ROUND($T56*M$108,2))+SUMIFS(InTB!$K:$K,InTB!$M:$M,$E56,InTB!$C:$C,BS!M$1)+SUMIFS(InTB!$K:$K,InTB!$N:$N,$C56,InTB!$C:$C,BS!M$1)+SUMIFS(InTB!$K:$K,InTB!$N:$N,$B56,InTB!$C:$C,BS!M$1) -> 0 | N56: =IF(N$1=0,0,ROUND($T56*N$108,2))+SUMIFS(InTB!$K:$K,InTB!$M:$M,$E56,InTB!$C:$C,BS!N$1)+SUMIFS(InTB!$K:$K,InTB!$N:$N,$C56,InTB!$C:$C,BS!N$1)+SUMIFS(InTB!$K:$K,InTB!$N:$N,$B56,InTB!$C:$C,BS!N$1) -> 0 | O56: =IF(O$1=0,0,ROUND($T56*O$108,2))+SUMIFS(InTB!$K:$K,InTB!$M:$M,$E56,InTB!$C:$C,BS!O$1)+SUMIFS(InTB!$K:$K,InTB!$N:$N,$C56,InTB!$C:$C,BS!O$1)+SUMIFS(InTB!$K:$K,InTB!$N:$N,$B56,InTB!$C:$C,BS!O$1) -> 0 | P56: =IF(P$1=0,0,ROUND($T56*P$108,2))+SUMIFS(InTB!$K:$K,InTB!$M:$M,$E56,InTB!$C:$C,BS!P$1)+SUMIFS(InTB!$K:$K,InTB!$N:$N,$C56,InTB!$C:$C,BS!P$1)+SUMIFS(InTB!$K:$K,InTB!$N:$N,$B56,InTB!$C:$C,BS!P$1) -> 0 | Q56: =IF(Q$1=0,0,ROUND($T56*Q$108,2))+SUMIFS(InTB!$K:$K,InTB!$M:$M,$E56,InTB!$C:$C,BS!Q$1)+SUMIFS(InTB!$K:$K,InTB!$N:$N,$C56,InTB!$C:$C,BS!Q$1)+SUMIFS(InTB!$K:$K,InTB!$N:$N,$B56,InTB!$C:$C,BS!Q$1) -> 0 | R56: =IF(R$1=0,0,ROUND($T56*R$108,2))+SUMIFS(InTB!$K:$K,InTB!$M:$M,$E56,InTB!$C:$C,BS!R$1)+SUMIFS(InTB!$K:$K,InTB!$N:$N,$C56,InTB!$C:$C,BS!R$1)+SUMIFS(InTB!$K:$K,InTB!$N:$N,$B56,InTB!$C:$C,BS!R$1) -> 0 | S56: =IF(S$1=0,0,ROUND($T56*S$108,2))+SUMIFS(InTB!$K:$K,InTB!$M:$M,$E56,InTB!$C:$C,BS!S$1)+SUMIFS(InTB!$K:$K,InTB!$N:$N,$C56,InTB!$C:$C,BS!S$1)+SUMIFS(InTB!$K:$K,InTB!$N:$N,$B56,InTB!$C:$C,BS!S$1) -> 0 | T56: =SUMIF(InTBBase!$M:$M,$E56,InTBBase!$K:$K)+SUMIF(InTBBase!$N:$N,$C56,InTBBase!$K:$K)+SUMIF(InTBBase!$N:$N,$B56,InTBBase!$K:$K) -> 0 | U56: 0
D57: TOTALINV | F57: =OFFSET( Label!$E$1,MATCH(BS!D57, Label!$E:$E,0)-1, Main!$G$14+1) -> TOTAL INVESTMENT | I57: =I29+SUM(I32:I38)+I40+I47+I54 -> 1319966.14 | J57: =J29+SUM(J32:J38)+J40+J47+J54 -> 0 | K57: =K29+SUM(K32:K38)+K40+K47+K54 -> 0 | L57: =L29+SUM(L32:L38)+L40+L47+L54 -> 0 | M57: 0 | N57: 0 | O57: =O29+SUM(O32:O38)+O40+O47+O54 -> 0 | P57: 0 | Q57: 0 | R57: =R29+SUM(R32:R38)+R40+R47+R54 -> 1319966.14 | S57: 0 | T57: =T29+SUM(T32:T38)+T40+T47+T54 -> 1319966.14 | U57: 0
U58: 0
D59: OTHASSET | F59: =OFFSET( Label!$E$1,MATCH(BS!D59, Label!$E:$E,0)-1, Main!$G$14+1) -> OTHER ASSETS | U59: 0
D60: AMTFMGR | E60: BOAMNG | F60: =OFFSET( Label!$E$1,MATCH(BS!D60, Label!$E:$E,0)-1, Main!$G$14+1) -> AMOUNT DUE/ (TO) FROM THE MANAGER (NET CREATION / (CANCELLATION)) | I60: =SUMIF(InTB!$M:$M,$E60,InTB!$K:$K) -> 0 | J60: =IF(J$1=0,0,ROUND($T60*J$108,2))+SUMIFS(InTB!$K:$K,InTB!$M:$M,$E60,InTB!$C:$C,BS!J$1) -> 0 | K60: =IF(K$1=0,0,ROUND($T60*K$108,2))+SUMIFS(InTB!$K:$K,InTB!$M:$M,$E60,InTB!$C:$C,BS!K$1) -> 0 | L60: =IF(L$1=0,0,ROUND($T60*L$108,2))+SUMIFS(InTB!$K:$K,InTB!$M:$M,$E60,InTB!$C:$C,BS!L$1) -> 0 | M60: =IF(M$1=0,0,ROUND($T60*M$108,2))+SUMIFS(InTB!$K:$K,InTB!$M:$M,$E60,InTB!$C:$C,BS!M$1) -> 0 | N60: =IF(N$1=0,0,ROUND($T60*N$108,2))+SUMIFS(InTB!$K:$K,InTB!$M:$M,$E60,InTB!$C:$C,BS!N$1) -> 0 | O60: =IF(O$1=0,0,ROUND($T60*O$108,2))+SUMIFS(InTB!$K:$K,InTB!$M:$M,$E60,InTB!$C:$C,BS!O$1) -> 0 | P60: =IF(P$1=0,0,ROUND($T60*P$108,2))+SUMIFS(InTB!$K:$K,InTB!$M:$M,$E60,InTB!$C:$C,BS!P$1) -> 0 | Q60: =IF(Q$1=0,0,ROUND($T60*Q$108,2))+SUMIFS(InTB!$K:$K,InTB!$M:$M,$E60,InTB!$C:$C,BS!Q$1) -> 0 | R60: =IF(R$1=0,0,ROUND($T60*R$108,2))+SUMIFS(InTB!$K:$K,InTB!$M:$M,$E60,InTB!$C:$C,BS!R$1) -> 0 | S60: =IF(S$1=0,0,ROUND($T60*S$108,2))+SUMIFS(InTB!$K:$K,InTB!$M:$M,$E60,InTB!$C:$C,BS!S$1) -> 0 | T60: =SUMIF(InTBBase!$M:$M,$E60,InTBBase!$K:$K) -> 0 | U60: 0
D61: AMTFBRK | F61: =OFFSET( Label!$E$1,MATCH(BS!D61, Label!$E:$E,0)-1, Main!$G$14+1) -> AMOUNT DUE FROM STOCKBROKERS | I61: =SUM(I62:I64) -> 0 | J61: =SUM(J62:J64) -> 0 | K61: 0 | L61: 0 | M61: 0 | N61: 0 | O61: =SUM(O62:O64) -> 0 | P61: 0 | Q61: 0 | R61: =SUM(R62:R64) -> 0 | S61: 0 | T61: 0 | U61: 0
C62: BOAINV* | D62: AMTFBRK1 | E62: BOABRL | F62: =OFFSET( Label!$E$1,MATCH(BS!D62, Label!$E:$E,0)-1, Main!$G$14+1) -> Broker - Local | I62: =SUMIF(InTB!$M:$M,$E62,InTB!$K:$K)+SUMIF(InTB!$N:$N,$C62,InTB!$K:$K)+SUMIF(InTB!$N:$N,$B62,InTB!$K:$K)-I63 -> 0 | J62: =IF(J$1=0,0,ROUND($T62*J$108,2))+SUMIFS(InTB!$K:$K,InTB!$M:$M,$E62,InTB!$C:$C,BS!J$1)+SUMIFS(InTB!$K:$K,InTB!$N:$N,$C62,InTB!$C:$C,BS!J$1)+SUMIFS(InTB!$K:$K,InTB!$N:$N,$B62,InTB!$C:$C,BS!J$1) -> 0 | K62: =IF(K$1=0,0,ROUND($T62*K$108,2))+SUMIFS(InTB!$K:$K,InTB!$M:$M,$E62,InTB!$C:$C,BS!K$1)+SUMIFS(InTB!$K:$K,InTB!$N:$N,$C62,InTB!$C:$C,BS!K$1)+SUMIFS(InTB!$K:$K,InTB!$N:$N,$B62,InTB!$C:$C,BS!K$1) -> 0 | L62: =IF(L$1=0,0,ROUND($T62*L$108,2))+SUMIFS(InTB!$K:$K,InTB!$M:$M,$E62,InTB!$C:$C,BS!L$1)+SUMIFS(InTB!$K:$K,InTB!$N:$N,$C62,InTB!$C:$C,BS!L$1)+SUMIFS(InTB!$K:$K,InTB!$N:$N,$B62,InTB!$C:$C,BS!L$1) -> 0 | M62: =IF(M$1=0,0,ROUND($T62*M$108,2))+SUMIFS(InTB!$K:$K,InTB!$M:$M,$E62,InTB!$C:$C,BS!M$1)+SUMIFS(InTB!$K:$K,InTB!$N:$N,$C62,InTB!$C:$C,BS!M$1)+SUMIFS(InTB!$K:$K,InTB!$N:$N,$B62,InTB!$C:$C,BS!M$1) -> 0 | N62: =IF(N$1=0,0,ROUND($T62*N$108,2))+SUMIFS(InTB!$K:$K,InTB!$M:$M,$E62,InTB!$C:$C,BS!N$1)+SUMIFS(InTB!$K:$K,InTB!$N:$N,$C62,InTB!$C:$C,BS!N$1)+SUMIFS(InTB!$K:$K,InTB!$N:$N,$B62,InTB!$C:$C,BS!N$1) -> 0 | O62: =IF(O$1=0,0,ROUND($T62*O$108,2))+SUMIFS(InTB!$K:$K,InTB!$M:$M,$E62,InTB!$C:$C,BS!O$1)+SUMIFS(InTB!$K:$K,InTB!$N:$N,$C62,InTB!$C:$C,BS!O$1)+SUMIFS(InTB!$K:$K,InTB!$N:$N,$B62,InTB!$C:$C,BS!O$1) -> 0 | P62: =IF(P$1=0,0,ROUND($T62*P$108,2))+SUMIFS(InTB!$K:$K,InTB!$M:$M,$E62,InTB!$C:$C,BS!P$1)+SUMIFS(InTB!$K:$K,InTB!$N:$N,$C62,InTB!$C:$C,BS!P$1)+SUMIFS(InTB!$K:$K,InTB!$N:$N,$B62,InTB!$C:$C,BS!P$1) -> 0 | Q62: =IF(Q$1=0,0,ROUND($T62*Q$108,2))+SUMIFS(InTB!$K:$K,InTB!$M:$M,$E62,InTB!$C:$C,BS!Q$1)+SUMIFS(InTB!$K:$K,InTB!$N:$N,$C62,InTB!$C:$C,BS!Q$1)+SUMIFS(InTB!$K:$K,InTB!$N:$N,$B62,InTB!$C:$C,BS!Q$1) -> 0 | R62: =IF(R$1=0,0,ROUND($T62*R$108,2))+SUMIFS(InTB!$K:$K,InTB!$M:$M,$E62,InTB!$C:$C,BS!R$1)+SUMIFS(InTB!$K:$K,InTB!$N:$N,$C62,InTB!$C:$C,BS!R$1)+SUMIFS(InTB!$K:$K,InTB!$N:$N,$B62,InTB!$C:$C,BS!R$1) -> 0 | S62: =IF(S$1=0,0,ROUND($T62*S$108,2))+SUMIFS(InTB!$K:$K,InTB!$M:$M,$E62,InTB!$C:$C,BS!S$1)+SUMIFS(InTB!$K:$K,InTB!$N:$N,$C62,InTB!$C:$C,BS!S$1)+SUMIFS(InTB!$K:$K,InTB!$N:$N,$B62,InTB!$C:$C,BS!S$1) -> 0 | T62: =SUMIF(InTBBase!$M:$M,$E62,InTBBase!$K:$K)+SUMIF(InTBBase!$N:$N,$C62,InTBBase!$K:$K)+SUMIF(InTBBase!$N:$N,$B62,InTBBase!$K:$K)-T63 -> 0 | U62: 0
C63: BOAINV_O-* | D63: AMTFBRK2 | E63: BOABRF | F63: =OFFSET( Label!$E$1,MATCH(BS!D63, Label!$E:$E,0)-1, Main!$G$14+1) -> Broker - Foreign | I63: =SUMIF(InTB!$M:$M,$E63,InTB!$K:$K)+SUMIF(InTB!$N:$N,$C63,InTB!$K:$K)+SUMIF(InTB!$N:$N,$B63,InTB!$K:$K) -> 0 | J63: =IF(J$1=0,0,ROUND($T63*J$108,2))+SUMIFS(InTB!$K:$K,InTB!$M:$M,$E63,InTB!$C:$C,BS!J$1)+SUMIFS(InTB!$K:$K,InTB!$N:$N,$C63,InTB!$C:$C,BS!J$1)+SUMIFS(InTB!$K:$K,InTB!$N:$N,$B63,InTB!$C:$C,BS!J$1) -> 0 | K63: =IF(K$1=0,0,ROUND($T63*K$108,2))+SUMIFS(InTB!$K:$K,InTB!$M:$M,$E63,InTB!$C:$C,BS!K$1)+SUMIFS(InTB!$K:$K,InTB!$N:$N,$C63,InTB!$C:$C,BS!K$1)+SUMIFS(InTB!$K:$K,InTB!$N:$N,$B63,InTB!$C:$C,BS!K$1) -> 0 | L63: =IF(L$1=0,0,ROUND($T63*L$108,2))+SUMIFS(InTB!$K:$K,InTB!$M:$M,$E63,InTB!$C:$C,BS!L$1)+SUMIFS(InTB!$K:$K,InTB!$N:$N,$C63,InTB!$C:$C,BS!L$1)+SUMIFS(InTB!$K:$K,InTB!$N:$N,$B63,InTB!$C:$C,BS!L$1) -> 0 | M63: =IF(M$1=0,0,ROUND($T63*M$108,2))+SUMIFS(InTB!$K:$K,InTB!$M:$M,$E63,InTB!$C:$C,BS!M$1)+SUMIFS(InTB!$K:$K,InTB!$N:$N,$C63,InTB!$C:$C,BS!M$1)+SUMIFS(InTB!$K:$K,InTB!$N:$N,$B63,InTB!$C:$C,BS!M$1) -> 0 | N63: =IF(N$1=0,0,ROUND($T63*N$108,2))+SUMIFS(InTB!$K:$K,InTB!$M:$M,$E63,InTB!$C:$C,BS!N$1)+SUMIFS(InTB!$K:$K,InTB!$N:$N,$C63,InTB!$C:$C,BS!N$1)+SUMIFS(InTB!$K:$K,InTB!$N:$N,$B63,InTB!$C:$C,BS!N$1) -> 0 | O63: =IF(O$1=0,0,ROUND($T63*O$108,2))+SUMIFS(InTB!$K:$K,InTB!$M:$M,$E63,InTB!$C:$C,BS!O$1)+SUMIFS(InTB!$K:$K,InTB!$N:$N,$C63,InTB!$C:$C,BS!O$1)+SUMIFS(InTB!$K:$K,InTB!$N:$N,$B63,InTB!$C:$C,BS!O$1) -> 0 | P63: =IF(P$1=0,0,ROUND($T63*P$108,2))+SUMIFS(InTB!$K:$K,InTB!$M:$M,$E63,InTB!$C:$C,BS!P$1)+SUMIFS(InTB!$K:$K,InTB!$N:$N,$C63,InTB!$C:$C,BS!P$1)+SUMIFS(InTB!$K:$K,InTB!$N:$N,$B63,InTB!$C:$C,BS!P$1) -> 0 | Q63: =IF(Q$1=0,0,ROUND($T63*Q$108,2))+SUMIFS(InTB!$K:$K,InTB!$M:$M,$E63,InTB!$C:$C,BS!Q$1)+SUMIFS(InTB!$K:$K,InTB!$N:$N,$C63,InTB!$C:$C,BS!Q$1)+SUMIFS(InTB!$K:$K,InTB!$N:$N,$B63,InTB!$C:$C,BS!Q$1) -> 0 | R63: =IF(R$1=0,0,ROUND($T63*R$108,2))+SUMIFS(InTB!$K:$K,InTB!$M:$M,$E63,InTB!$C:$C,BS!R$1)+SUMIFS(InTB!$K:$K,InTB!$N:$N,$C63,InTB!$C:$C,BS!R$1)+SUMIFS(InTB!$K:$K,InTB!$N:$N,$B63,InTB!$C:$C,BS!R$1) -> 0 | S63: =IF(S$1=0,0,ROUND($T63*S$108,2))+SUMIFS(InTB!$K:$K,InTB!$M:$M,$E63,InTB!$C:$C,BS!S$1)+SUMIFS(InTB!$K:$K,InTB!$N:$N,$C63,InTB!$C:$C,BS!S$1)+SUMIFS(InTB!$K:$K,InTB!$N:$N,$B63,InTB!$C:$C,BS!S$1) -> 0 | T63: =SUMIF(InTBBase!$M:$M,$E63,InTBBase!$K:$K)+SUMIF(InTBBase!$N:$N,$C63,InTBBase!$K:$K)+SUMIF(InTBBase!$N:$N,$B63,InTBBase!$K:$K) -> 0 | U63: 0
D64: AMTFBRK3 | E64: BOABRX | F64: =OFFSET( Label!$E$1,MATCH(BS!D64, Label!$E:$E,0)-1, Main!$G$14+1) -> Foreign Broker - Unrealised FOREX Gains/(Loss) | I64: =SUMIF(InTB!$M:$M,$E64,InTB!$K:$K)+SUMIF(InTB!$N:$N,$C64,InTB!$K:$K)+SUMIF(InTB!$N:$N,$B64,InTB!$K:$K) -> 0 | J64: =IF(J$1=0,0,ROUND($T64*J$108,2))+SUMIFS(InTB!$K:$K,InTB!$M:$M,$E64,InTB!$C:$C,BS!J$1)+SUMIFS(InTB!$K:$K,InTB!$N:$N,$C64,InTB!$C:$C,BS!J$1)+SUMIFS(InTB!$K:$K,InTB!$N:$N,$B64,InTB!$C:$C,BS!J$1) -> 0 | K64: =IF(K$1=0,0,ROUND($T64*K$108,2))+SUMIFS(InTB!$K:$K,InTB!$M:$M,$E64,InTB!$C:$C,BS!K$1)+SUMIFS(InTB!$K:$K,InTB!$N:$N,$C64,InTB!$C:$C,BS!K$1)+SUMIFS(InTB!$K:$K,InTB!$N:$N,$B64,InTB!$C:$C,BS!K$1) -> 0 | L64: =IF(L$1=0,0,ROUND($T64*L$108,2))+SUMIFS(InTB!$K:$K,InTB!$M:$M,$E64,InTB!$C:$C,BS!L$1)+SUMIFS(InTB!$K:$K,InTB!$N:$N,$C64,InTB!$C:$C,BS!L$1)+SUMIFS(InTB!$K:$K,InTB!$N:$N,$B64,InTB!$C:$C,BS!L$1) -> 0 | M64: =IF(M$1=0,0,ROUND($T64*M$108,2))+SUMIFS(InTB!$K:$K,InTB!$M:$M,$E64,InTB!$C:$C,BS!M$1)+SUMIFS(InTB!$K:$K,InTB!$N:$N,$C64,InTB!$C:$C,BS!M$1)+SUMIFS(InTB!$K:$K,InTB!$N:$N,$B64,InTB!$C:$C,BS!M$1) -> 0 | N64: =IF(N$1=0,0,ROUND($T64*N$108,2))+SUMIFS(InTB!$K:$K,InTB!$M:$M,$E64,InTB!$C:$C,BS!N$1)+SUMIFS(InTB!$K:$K,InTB!$N:$N,$C64,InTB!$C:$C,BS!N$1)+SUMIFS(InTB!$K:$K,InTB!$N:$N,$B64,InTB!$C:$C,BS!N$1) -> 0 | O64: =IF(O$1=0,0,ROUND($T64*O$108,2))+SUMIFS(InTB!$K:$K,InTB!$M:$M,$E64,InTB!$C:$C,BS!O$1)+SUMIFS(InTB!$K:$K,InTB!$N:$N,$C64,InTB!$C:$C,BS!O$1)+SUMIFS(InTB!$K:$K,InTB!$N:$N,$B64,InTB!$C:$C,BS!O$1) -> 0 | P64: =IF(P$1=0,0,ROUND($T64*P$108,2))+SUMIFS(InTB!$K:$K,InTB!$M:$M,$E64,InTB!$C:$C,BS!P$1)+SUMIFS(InTB!$K:$K,InTB!$N:$N,$C64,InTB!$C:$C,BS!P$1)+SUMIFS(InTB!$K:$K,InTB!$N:$N,$B64,InTB!$C:$C,BS!P$1) -> 0 | Q64: =IF(Q$1=0,0,ROUND($T64*Q$108,2))+SUMIFS(InTB!$K:$K,InTB!$M:$M,$E64,InTB!$C:$C,BS!Q$1)+SUMIFS(InTB!$K:$K,InTB!$N:$N,$C64,InTB!$C:$C,BS!Q$1)+SUMIFS(InTB!$K:$K,InTB!$N:$N,$B64,InTB!$C:$C,BS!Q$1) -> 0 | R64: =IF(R$1=0,0,ROUND($T64*R$108,2))+SUMIFS(InTB!$K:$K,InTB!$M:$M,$E64,InTB!$C:$C,BS!R$1)+SUMIFS(InTB!$K:$K,InTB!$N:$N,$C64,InTB!$C:$C,BS!R$1)+SUMIFS(InTB!$K:$K,InTB!$N:$N,$B64,InTB!$C:$C,BS!R$1) -> 0 | S64: =IF(S$1=0,0,ROUND($T64*S$108,2))+SUMIFS(InTB!$K:$K,InTB!$M:$M,$E64,InTB!$C:$C,BS!S$1)+SUMIFS(InTB!$K:$K,InTB!$N:$N,$C64,InTB!$C:$C,BS!S$1)+SUMIFS(InTB!$K:$K,InTB!$N:$N,$B64,InTB!$C:$C,BS!S$1) -> 0 | T64: =SUMIF(InTBBase!$M:$M,$E64,InTBBase!$K:$K)+SUMIF(InTBBase!$N:$N,$C64,InTBBase!$K:$K)+SUMIF(InTBBase!$N:$N,$B64,InTBBase!$K:$K) -> 0 | U64: 0
D65: AMTFOTH | E65: BOAOIV | F65: =OFFSET( Label!$E$1,MATCH(BS!D65, Label!$E:$E,0)-1, Main!$G$14+1) -> AMOUNT DUE FROM OTHER INVESTMENT | I65: =SUMIF(InTB!$M:$M,$E65,InTB!$K:$K) -> 0 | J65: =IF(J$1=0,0,ROUND($T65*J$108,2))+SUMIFS(InTB!$K:$K,InTB!$M:$M,$E65,InTB!$C:$C,BS!J$1) -> 0 | K65: =IF(K$1=0,0,ROUND($T65*K$108,2))+SUMIFS(InTB!$K:$K,InTB!$M:$M,$E65,InTB!$C:$C,BS!K$1) -> 0 | L65: =IF(L$1=0,0,ROUND($T65*L$108,2))+SUMIFS(InTB!$K:$K,InTB!$M:$M,$E65,InTB!$C:$C,BS!L$1) -> 0 | M65: =IF(M$1=0,0,ROUND($T65*M$108,2))+SUMIFS(InTB!$K:$K,InTB!$M:$M,$E65,InTB!$C:$C,BS!M$1) -> 0 | N65: =IF(N$1=0,0,ROUND($T65*N$108,2))+SUMIFS(InTB!$K:$K,InTB!$M:$M,$E65,InTB!$C:$C,BS!N$1) -> 0 | O65: =IF(O$1=0,0,ROUND($T65*O$108,2))+SUMIFS(InTB!$K:$K,InTB!$M:$M,$E65,InTB!$C:$C,BS!O$1) -> 0 | P65: =IF(P$1=0,0,ROUND($T65*P$108,2))+SUMIFS(InTB!$K:$K,InTB!$M:$M,$E65,InTB!$C:$C,BS!P$1) -> 0 | Q65: =IF(Q$1=0,0,ROUND($T65*Q$108,2))+SUMIFS(InTB!$K:$K,InTB!$M:$M,$E65,InTB!$C:$C,BS!Q$1) -> 0 | R65: =IF(R$1=0,0,ROUND($T65*R$108,2))+SUMIFS(InTB!$K:$K,InTB!$M:$M,$E65,InTB!$C:$C,BS!R$1) -> 0 | S65: =IF(S$1=0,0,ROUND($T65*S$108,2))+SUMIFS(InTB!$K:$K,InTB!$M:$M,$E65,InTB!$C:$C,BS!S$1) -> 0 | T65: =SUMIF(InTBBase!$M:$M,$E65,InTBBase!$K:$K) -> 0 | U65: 0
D66: REBATE | E66: BOARBT | F66: =OFFSET( Label!$E$1,MATCH(BS!D66, Label!$E:$E,0)-1, Main!$G$14+1) -> REBATES RECEIVABLE | I66: =SUMIF(InTB!$M:$M,$E66,InTB!$K:$K) -> 0 | J66: =IF(J$1=0,0,ROUND($T66*J$108,2))+SUMIFS(InTB!$K:$K,InTB!$M:$M,$E66,InTB!$C:$C,BS!J$1) -> 0 | K66: =IF(K$1=0,0,ROUND($T66*K$108,2))+SUMIFS(InTB!$K:$K,InTB!$M:$M,$E66,InTB!$C:$C,BS!K$1) -> 0 | L66: =IF(L$1=0,0,ROUND($T66*L$108,2))+SUMIFS(InTB!$K:$K,InTB!$M:$M,$E66,InTB!$C:$C,BS!L$1) -> 0 | M66: =IF(M$1=0,0,ROUND($T66*M$108,2))+SUMIFS(InTB!$K:$K,InTB!$M:$M,$E66,InTB!$C:$C,BS!M$1) -> 0 | N66: =IF(N$1=0,0,ROUND($T66*N$108,2))+SUMIFS(InTB!$K:$K,InTB!$M:$M,$E66,InTB!$C:$C,BS!N$1) -> 0 | O66: =IF(O$1=0,0,ROUND($T66*O$108,2))+SUMIFS(InTB!$K:$K,InTB!$M:$M,$E66,InTB!$C:$C,BS!O$1) -> 0 | P66: =IF(P$1=0,0,ROUND($T66*P$108,2))+SUMIFS(InTB!$K:$K,InTB!$M:$M,$E66,InTB!$C:$C,BS!P$1) -> 0 | Q66: =IF(Q$1=0,0,ROUND($T66*Q$108,2))+SUMIFS(InTB!$K:$K,InTB!$M:$M,$E66,InTB!$C:$C,BS!Q$1) -> 0 | R66: =IF(R$1=0,0,ROUND($T66*R$108,2))+SUMIFS(InTB!$K:$K,InTB!$M:$M,$E66,InTB!$C:$C,BS!R$1) -> 0 | S66: =IF(S$1=0,0,ROUND($T66*S$108,2))+SUMIFS(InTB!$K:$K,InTB!$M:$M,$E66,InTB!$C:$C,BS!S$1) -> 0 | T66: =SUMIF(InTBBase!$M:$M,$E66,InTBBase!$K:$K) -> 0 | U66: 0
C67: BIACIN_*MM | D67: INTRECCSH | E67: BOAIND | F67: =OFFSET( Label!$E$1,MATCH(BS!D67, Label!$E:$E,0)-1, Main!$G$14+1) -> INTEREST RECEIVABLE ON DEPOSITS AND PLACEMENTS | I67: =SUMIF(InTB!$M:$M,$E67,InTB!$K:$K)+SUMIF(InTB!$N:$N,$C67,InTB!$K:$K)+SUMIF(InTB!$N:$N,$B67,InTB!$K:$K) -> 0 | J67: =IF(J$1=0,0,ROUND($T67*J$108,2))+SUMIFS(InTB!$K:$K,InTB!$M:$M,$E67,InTB!$C:$C,BS!J$1)+SUMIFS(InTB!$K:$K,InTB!$N:$N,$C67,InTB!$C:$C,BS!J$1)+SUMIFS(InTB!$K:$K,InTB!$N:$N,$B67,InTB!$C:$C,BS!J$1) -> 0 | K67: =IF(K$1=0,0,ROUND($T67*K$108,2))+SUMIFS(InTB!$K:$K,InTB!$M:$M,$E67,InTB!$C:$C,BS!K$1)+SUMIFS(InTB!$K:$K,InTB!$N:$N,$C67,InTB!$C:$C,BS!K$1)+SUMIFS(InTB!$K:$K,InTB!$N:$N,$B67,InTB!$C:$C,BS!K$1) -> 0 | L67: =IF(L$1=0,0,ROUND($T67*L$108,2))+SUMIFS(InTB!$K:$K,InTB!$M:$M,$E67,InTB!$C:$C,BS!L$1)+SUMIFS(InTB!$K:$K,InTB!$N:$N,$C67,InTB!$C:$C,BS!L$1)+SUMIFS(InTB!$K:$K,InTB!$N:$N,$B67,InTB!$C:$C,BS!L$1) -> 0 | M67: =IF(M$1=0,0,ROUND($T67*M$108,2))+SUMIFS(InTB!$K:$K,InTB!$M:$M,$E67,InTB!$C:$C,BS!M$1)+SUMIFS(InTB!$K:$K,InTB!$N:$N,$C67,InTB!$C:$C,BS!M$1)+SUMIFS(InTB!$K:$K,InTB!$N:$N,$B67,InTB!$C:$C,BS!M$1) -> 0 | N67: =IF(N$1=0,0,ROUND($T67*N$108,2))+SUMIFS(InTB!$K:$K,InTB!$M:$M,$E67,InTB!$C:$C,BS!N$1)+SUMIFS(InTB!$K:$K,InTB!$N:$N,$C67,InTB!$C:$C,BS!N$1)+SUMIFS(InTB!$K:$K,InTB!$N:$N,$B67,InTB!$C:$C,BS!N$1) -> 0 | O67: =IF(O$1=0,0,ROUND($T67*O$108,2))+SUMIFS(InTB!$K:$K,InTB!$M:$M,$E67,InTB!$C:$C,BS!O$1)+SUMIFS(InTB!$K:$K,InTB!$N:$N,$C67,InTB!$C:$C,BS!O$1)+SUMIFS(InTB!$K:$K,InTB!$N:$N,$B67,InTB!$C:$C,BS!O$1) -> 0 | P67: =IF(P$1=0,0,ROUND($T67*P$108,2))+SUMIFS(InTB!$K:$K,InTB!$M:$M,$E67,InTB!$C:$C,BS!P$1)+SUMIFS(InTB!$K:$K,InTB!$N:$N,$C67,InTB!$C:$C,BS!P$1)+SUMIFS(InTB!$K:$K,InTB!$N:$N,$B67,InTB!$C:$C,BS!P$1) -> 0 | Q67: =IF(Q$1=0,0,ROUND($T67*Q$108,2))+SUMIFS(InTB!$K:$K,InTB!$M:$M,$E67,InTB!$C:$C,BS!Q$1)+SUMIFS(InTB!$K:$K,InTB!$N:$N,$C67,InTB!$C:$C,BS!Q$1)+SUMIFS(InTB!$K:$K,InTB!$N:$N,$B67,InTB!$C:$C,BS!Q$1) -> 0 | R67: =IF(R$1=0,0,ROUND($T67*R$108,2))+SUMIFS(InTB!$K:$K,InTB!$M:$M,$E67,InTB!$C:$C,BS!R$1)+SUMIFS(InTB!$K:$K,InTB!$N:$N,$C67,InTB!$C:$C,BS!R$1)+SUMIFS(InTB!$K:$K,InTB!$N:$N,$B67,InTB!$C:$C,BS!R$1) -> 0 | S67: =IF(S$1=0,0,ROUND($T67*S$108,2))+SUMIFS(InTB!$K:$K,InTB!$M:$M,$E67,InTB!$C:$C,BS!S$1)+SUMIFS(InTB!$K:$K,InTB!$N:$N,$C67,InTB!$C:$C,BS!S$1)+SUMIFS(InTB!$K:$K,InTB!$N:$N,$B67,InTB!$C:$C,BS!S$1) -> 0 | T67: =SUMIF(InTBBase!$M:$M,$E67,InTBBase!$K:$K)+SUMIF(InTBBase!$N:$N,$C67,InTBBase!$K:$K)+SUMIF(InTBBase!$N:$N,$B67,InTBBase!$K:$K) -> 0 | U67: 0
C68: BIACIN_*BND | D68: INTRECBND | E68: BOAINF | F68: =OFFSET( Label!$E$1,MATCH(BS!D68, Label!$E:$E,0)-1, Main!$G$14+1) -> INTEREST RECEIVABLE ON UNQUOTED FIXED INCOME SECURITIES | I68: =SUMIF(InTB!$M:$M,$E68,InTB!$K:$K)+SUMIF(InTB!$N:$N,$C68,InTB!$K:$K)+SUMIF(InTB!$N:$N,$B68,InTB!$K:$K) -> 0 | J68: =IF(J$1=0,0,ROUND($T68*J$108,2))+SUMIFS(InTB!$K:$K,InTB!$M:$M,$E68,InTB!$C:$C,BS!J$1)+SUMIFS(InTB!$K:$K,InTB!$N:$N,$C68,InTB!$C:$C,BS!J$1)+SUMIFS(InTB!$K:$K,InTB!$N:$N,$B68,InTB!$C:$C,BS!J$1) -> 0 | K68: =IF(K$1=0,0,ROUND($T68*K$108,2))+SUMIFS(InTB!$K:$K,InTB!$M:$M,$E68,InTB!$C:$C,BS!K$1)+SUMIFS(InTB!$K:$K,InTB!$N:$N,$C68,InTB!$C:$C,BS!K$1)+SUMIFS(InTB!$K:$K,InTB!$N:$N,$B68,InTB!$C:$C,BS!K$1) -> 0 | L68: =IF(L$1=0,0,ROUND($T68*L$108,2))+SUMIFS(InTB!$K:$K,InTB!$M:$M,$E68,InTB!$C:$C,BS!L$1)+SUMIFS(InTB!$K:$K,InTB!$N:$N,$C68,InTB!$C:$C,BS!L$1)+SUMIFS(InTB!$K:$K,InTB!$N:$N,$B68,InTB!$C:$C,BS!L$1) -> 0 | M68: =IF(M$1=0,0,ROUND($T68*M$108,2))+SUMIFS(InTB!$K:$K,InTB!$M:$M,$E68,InTB!$C:$C,BS!M$1)+SUMIFS(InTB!$K:$K,InTB!$N:$N,$C68,InTB!$C:$C,BS!M$1)+SUMIFS(InTB!$K:$K,InTB!$N:$N,$B68,InTB!$C:$C,BS!M$1) -> 0 | N68: =IF(N$1=0,0,ROUND($T68*N$108,2))+SUMIFS(InTB!$K:$K,InTB!$M:$M,$E68,InTB!$C:$C,BS!N$1)+SUMIFS(InTB!$K:$K,InTB!$N:$N,$C68,InTB!$C:$C,BS!N$1)+SUMIFS(InTB!$K:$K,InTB!$N:$N,$B68,InTB!$C:$C,BS!N$1) -> 0 | O68: =IF(O$1=0,0,ROUND($T68*O$108,2))+SUMIFS(InTB!$K:$K,InTB!$M:$M,$E68,InTB!$C:$C,BS!O$1)+SUMIFS(InTB!$K:$K,InTB!$N:$N,$C68,InTB!$C:$C,BS!O$1)+SUMIFS(InTB!$K:$K,InTB!$N:$N,$B68,InTB!$C:$C,BS!O$1) -> 0 | P68: =IF(P$1=0,0,ROUND($T68*P$108,2))+SUMIFS(InTB!$K:$K,InTB!$M:$M,$E68,InTB!$C:$C,BS!P$1)+SUMIFS(InTB!$K:$K,InTB!$N:$N,$C68,InTB!$C:$C,BS!P$1)+SUMIFS(InTB!$K:$K,InTB!$N:$N,$B68,InTB!$C:$C,BS!P$1) -> 0 | Q68: =IF(Q$1=0,0,ROUND($T68*Q$108,2))+SUMIFS(InTB!$K:$K,InTB!$M:$M,$E68,InTB!$C:$C,BS!Q$1)+SUMIFS(InTB!$K:$K,InTB!$N:$N,$C68,InTB!$C:$C,BS!Q$1)+SUMIFS(InTB!$K:$K,InTB!$N:$N,$B68,InTB!$C:$C,BS!Q$1) -> 0 | R68: =IF(R$1=0,0,ROUND($T68*R$108,2))+SUMIFS(InTB!$K:$K,InTB!$M:$M,$E68,InTB!$C:$C,BS!R$1)+SUMIFS(InTB!$K:$K,InTB!$N:$N,$C68,InTB!$C:$C,BS!R$1)+SUMIFS(InTB!$K:$K,InTB!$N:$N,$B68,InTB!$C:$C,BS!R$1) -> 0 | S68: =IF(S$1=0,0,ROUND($T68*S$108,2))+SUMIFS(InTB!$K:$K,InTB!$M:$M,$E68,InTB!$C:$C,BS!S$1)+SUMIFS(InTB!$K:$K,InTB!$N:$N,$C68,InTB!$C:$C,BS!S$1)+SUMIFS(InTB!$K:$K,InTB!$N:$N,$B68,InTB!$C:$C,BS!S$1) -> 0 | T68: =SUMIF(InTBBase!$M:$M,$E68,InTBBase!$K:$K)+SUMIF(InTBBase!$N:$N,$C68,InTBBase!$K:$K)+SUMIF(InTBBase!$N:$N,$B68,InTBBase!$K:$K) -> 0 | U68: 0
D69: DIVREC | F69: =OFFSET( Label!$E$1,MATCH(BS!D69, Label!$E:$E,0)-1, Main!$G$14+1) -> DIVIDEND RECEIVABLE | I69: =SUM(I70:I72) -> 650.4069385 | J69: 0 | K69: 0 | L69: 0 | M69: 0 | N69: 0 | O69: =SUM(O70:O72) -> 0 | P69: 0 | Q69: 0 | R69: =SUM(R70:R72) -> 650.41 | S69: 0 | T69: =SUM(T70:T72) -> 650.4069385 | U69: 0
C70: BOADVL* | D70: DIVREC1 | F70: =OFFSET( Label!$E$1,MATCH(BS!D70, Label!$E:$E,0)-1, Main!$G$14+1) -> Dividend receivable - Local | I70: =SUMIF(InTB!$M:$M,$E70,InTB!$K:$K)+SUMIF(InTB!$N:$N,$C70,InTB!$K:$K)+SUMIF(InTB!$N:$N,$B70,InTB!$K:$K)-I71 -> 0 | J70: =IF(J$1=0,0,ROUND($T70*J$108,2))+SUMIFS(InTB!$K:$K,InTB!$M:$M,$E70,InTB!$C:$C,BS!J$1)+SUMIFS(InTB!$K:$K,InTB!$N:$N,$C70,InTB!$C:$C,BS!J$1)+SUMIFS(InTB!$K:$K,InTB!$N:$N,$B70,InTB!$C:$C,BS!J$1)-(+SUMIFS(InTB!$K:$K,InTB!$M:$M,$E71,InTB!$C:$C,BS!J$1)+SUMIFS(InTB!$K:$K,InTB!$N:$N,$C71,InTB!$C:$C,BS!J$1)+SUMIFS(InTB!$K:$K,InTB!$N:$N,$B71,InTB!$C:$C,BS!J$1)) -> 0 | K70: =IF(K$1=0,0,ROUND($T70*K$108,2))+SUMIFS(InTB!$K:$K,InTB!$M:$M,$E70,InTB!$C:$C,BS!K$1)+SUMIFS(InTB!$K:$K,InTB!$N:$N,$C70,InTB!$C:$C,BS!K$1)+SUMIFS(InTB!$K:$K,InTB!$N:$N,$B70,InTB!$C:$C,BS!K$1)-(+SUMIFS(InTB!$K:$K,InTB!$M:$M,$E71,InTB!$C:$C,BS!K$1)+SUMIFS(InTB!$K:$K,InTB!$N:$N,$C71,InTB!$C:$C,BS!K$1)+SUMIFS(InTB!$K:$K,InTB!$N:$N,$B71,InTB!$C:$C,BS!K$1)) -> 0 | L70: =IF(L$1=0,0,ROUND($T70*L$108,2))+SUMIFS(InTB!$K:$K,InTB!$M:$M,$E70,InTB!$C:$C,BS!L$1)+SUMIFS(InTB!$K:$K,InTB!$N:$N,$C70,InTB!$C:$C,BS!L$1)+SUMIFS(InTB!$K:$K,InTB!$N:$N,$B70,InTB!$C:$C,BS!L$1)-(+SUMIFS(InTB!$K:$K,InTB!$M:$M,$E71,InTB!$C:$C,BS!L$1)+SUMIFS(InTB!$K:$K,InTB!$N:$N,$C71,InTB!$C:$C,BS!L$1)+SUMIFS(InTB!$K:$K,InTB!$N:$N,$B71,InTB!$C:$C,BS!L$1)) -> 0 | M70: =IF(M$1=0,0,ROUND($T70*M$108,2))+SUMIFS(InTB!$K:$K,InTB!$M:$M,$E70,InTB!$C:$C,BS!M$1)+SUMIFS(InTB!$K:$K,InTB!$N:$N,$C70,InTB!$C:$C,BS!M$1)+SUMIFS(InTB!$K:$K,InTB!$N:$N,$B70,InTB!$C:$C,BS!M$1)-(+SUMIFS(InTB!$K:$K,InTB!$M:$M,$E71,InTB!$C:$C,BS!M$1)+SUMIFS(InTB!$K:$K,InTB!$N:$N,$C71,InTB!$C:$C,BS!M$1)+SUMIFS(InTB!$K:$K,InTB!$N:$N,$B71,InTB!$C:$C,BS!M$1)) -> 0 | N70: =IF(N$1=0,0,ROUND($T70*N$108,2))+SUMIFS(InTB!$K:$K,InTB!$M:$M,$E70,InTB!$C:$C,BS!N$1)+SUMIFS(InTB!$K:$K,InTB!$N:$N,$C70,InTB!$C:$C,BS!N$1)+SUMIFS(InTB!$K:$K,InTB!$N:$N,$B70,InTB!$C:$C,BS!N$1)-(+SUMIFS(InTB!$K:$K,InTB!$M:$M,$E71,InTB!$C:$C,BS!N$1)+SUMIFS(InTB!$K:$K,InTB!$N:$N,$C71,InTB!$C:$C,BS!N$1)+SUMIFS(InTB!$K:$K,InTB!$N:$N,$B71,InTB!$C:$C,BS!N$1)) -> 0 | O70: =IF(O$1=0,0,ROUND($T70*O$108,2))+SUMIFS(InTB!$K:$K,InTB!$M:$M,$E70,InTB!$C:$C,BS!O$1)+SUMIFS(InTB!$K:$K,InTB!$N:$N,$C70,InTB!$C:$C,BS!O$1)+SUMIFS(InTB!$K:$K,InTB!$N:$N,$B70,InTB!$C:$C,BS!O$1)-(+SUMIFS(InTB!$K:$K,InTB!$M:$M,$E71,InTB!$C:$C,BS!O$1)+SUMIFS(InTB!$K:$K,InTB!$N:$N,$C71,InTB!$C:$C,BS!O$1)+SUMIFS(InTB!$K:$K,InTB!$N:$N,$B71,InTB!$C:$C,BS!O$1)) -> 0 | P70: =IF(P$1=0,0,ROUND($T70*P$108,2))+SUMIFS(InTB!$K:$K,InTB!$M:$M,$E70,InTB!$C:$C,BS!P$1)+SUMIFS(InTB!$K:$K,InTB!$N:$N,$C70,InTB!$C:$C,BS!P$1)+SUMIFS(InTB!$K:$K,InTB!$N:$N,$B70,InTB!$C:$C,BS!P$1)-(+SUMIFS(InTB!$K:$K,InTB!$M:$M,$E71,InTB!$C:$C,BS!P$1)+SUMIFS(InTB!$K:$K,InTB!$N:$N,$C71,InTB!$C:$C,BS!P$1)+SUMIFS(InTB!$K:$K,InTB!$N:$N,$B71,InTB!$C:$C,BS!P$1)) -> 0 | Q70: =IF(Q$1=0,0,ROUND($T70*Q$108,2))+SUMIFS(InTB!$K:$K,InTB!$M:$M,$E70,InTB!$C:$C,BS!Q$1)+SUMIFS(InTB!$K:$K,InTB!$N:$N,$C70,InTB!$C:$C,BS!Q$1)+SUMIFS(InTB!$K:$K,InTB!$N:$N,$B70,InTB!$C:$C,BS!Q$1)-(+SUMIFS(InTB!$K:$K,InTB!$M:$M,$E71,InTB!$C:$C,BS!Q$1)+SUMIFS(InTB!$K:$K,InTB!$N:$N,$C71,InTB!$C:$C,BS!Q$1)+SUMIFS(InTB!$K:$K,InTB!$N:$N,$B71,InTB!$C:$C,BS!Q$1)) -> 0 | R70: =IF(R$1=0,0,ROUND($T70*R$108,2))+SUMIFS(InTB!$K:$K,InTB!$M:$M,$E70,InTB!$C:$C,BS!R$1)+SUMIFS(InTB!$K:$K,InTB!$N:$N,$C70,InTB!$C:$C,BS!R$1)+SUMIFS(InTB!$K:$K,InTB!$N:$N,$B70,InTB!$C:$C,BS!R$1)-(+SUMIFS(InTB!$K:$K,InTB!$M:$M,$E71,InTB!$C:$C,BS!R$1)+SUMIFS(InTB!$K:$K,InTB!$N:$N,$C71,InTB!$C:$C,BS!R$1)+SUMIFS(InTB!$K:$K,InTB!$N:$N,$B71,InTB!$C:$C,BS!R$1)) -> 0 | S70: =IF(S$1=0,0,ROUND($T70*S$108,2))+SUMIFS(InTB!$K:$K,InTB!$M:$M,$E70,InTB!$C:$C,BS!S$1)+SUMIFS(InTB!$K:$K,InTB!$N:$N,$C70,InTB!$C:$C,BS!S$1)+SUMIFS(InTB!$K:$K,InTB!$N:$N,$B70,InTB!$C:$C,BS!S$1)-(+SUMIFS(InTB!$K:$K,InTB!$M:$M,$E71,InTB!$C:$C,BS!S$1)+SUMIFS(InTB!$K:$K,InTB!$N:$N,$C71,InTB!$C:$C,BS!S$1)+SUMIFS(InTB!$K:$K,InTB!$N:$N,$B71,InTB!$C:$C,BS!S$1)) -> 0 | T70: =SUMIF(InTBBase!$M:$M,$E70,InTBBase!$K:$K)+SUMIF(InTBBase!$N:$N,$C70,InTBBase!$K:$K)+SUMIF(InTBBase!$N:$N,$B70,InTBBase!$K:$K)-T71 -> 0 | U70: 0
C71: BOADVL_O-* | D71: DIVREC2 | E71: BOADVF | F71: =OFFSET( Label!$E$1,MATCH(BS!D71, Label!$E:$E,0)-1, Main!$G$14+1) -> Dividend receivable - Foreign | I71: =SUMIF(InTB!$M:$M,$E71,InTB!$K:$K)+SUMIF(InTB!$N:$N,$C71,InTB!$K:$K)+SUMIF(InTB!$N:$N,$B71,InTB!$K:$K) -> 650.4069385 | J71: =IF(J$1=0,0,ROUND($T71*J$108,2))+SUMIFS(InTB!$K:$K,InTB!$M:$M,$E71,InTB!$C:$C,BS!J$1)+SUMIFS(InTB!$K:$K,InTB!$N:$N,$C71,InTB!$C:$C,BS!J$1)+SUMIFS(InTB!$K:$K,InTB!$N:$N,$B71,InTB!$C:$C,BS!J$1) -> 0 | K71: =IF(K$1=0,0,ROUND($T71*K$108,2))+SUMIFS(InTB!$K:$K,InTB!$M:$M,$E71,InTB!$C:$C,BS!K$1)+SUMIFS(InTB!$K:$K,InTB!$N:$N,$C71,InTB!$C:$C,BS!K$1)+SUMIFS(InTB!$K:$K,InTB!$N:$N,$B71,InTB!$C:$C,BS!K$1) -> 0 | L71: =IF(L$1=0,0,ROUND($T71*L$108,2))+SUMIFS(InTB!$K:$K,InTB!$M:$M,$E71,InTB!$C:$C,BS!L$1)+SUMIFS(InTB!$K:$K,InTB!$N:$N,$C71,InTB!$C:$C,BS!L$1)+SUMIFS(InTB!$K:$K,InTB!$N:$N,$B71,InTB!$C:$C,BS!L$1) -> 0 | M71: =IF(M$1=0,0,ROUND($T71*M$108,2))+SUMIFS(InTB!$K:$K,InTB!$M:$M,$E71,InTB!$C:$C,BS!M$1)+SUMIFS(InTB!$K:$K,InTB!$N:$N,$C71,InTB!$C:$C,BS!M$1)+SUMIFS(InTB!$K:$K,InTB!$N:$N,$B71,InTB!$C:$C,BS!M$1) -> 0 | N71: =IF(N$1=0,0,ROUND($T71*N$108,2))+SUMIFS(InTB!$K:$K,InTB!$M:$M,$E71,InTB!$C:$C,BS!N$1)+SUMIFS(InTB!$K:$K,InTB!$N:$N,$C71,InTB!$C:$C,BS!N$1)+SUMIFS(InTB!$K:$K,InTB!$N:$N,$B71,InTB!$C:$C,BS!N$1) -> 0 | O71: =IF(O$1=0,0,ROUND($T71*O$108,2))+SUMIFS(InTB!$K:$K,InTB!$M:$M,$E71,InTB!$C:$C,BS!O$1)+SUMIFS(InTB!$K:$K,InTB!$N:$N,$C71,InTB!$C:$C,BS!O$1)+SUMIFS(InTB!$K:$K,InTB!$N:$N,$B71,InTB!$C:$C,BS!O$1) -> 0 | P71: =IF(P$1=0,0,ROUND($T71*P$108,2))+SUMIFS(InTB!$K:$K,InTB!$M:$M,$E71,InTB!$C:$C,BS!P$1)+SUMIFS(InTB!$K:$K,InTB!$N:$N,$C71,InTB!$C:$C,BS!P$1)+SUMIFS(InTB!$K:$K,InTB!$N:$N,$B71,InTB!$C:$C,BS!P$1) -> 0 | Q71: =IF(Q$1=0,0,ROUND($T71*Q$108,2))+SUMIFS(InTB!$K:$K,InTB!$M:$M,$E71,InTB!$C:$C,BS!Q$1)+SUMIFS(InTB!$K:$K,InTB!$N:$N,$C71,InTB!$C:$C,BS!Q$1)+SUMIFS(InTB!$K:$K,InTB!$N:$N,$B71,InTB!$C:$C,BS!Q$1) -> 0 | R71: =IF(R$1=0,0,ROUND($T71*R$108,2))+SUMIFS(InTB!$K:$K,InTB!$M:$M,$E71,InTB!$C:$C,BS!R$1)+SUMIFS(InTB!$K:$K,InTB!$N:$N,$C71,InTB!$C:$C,BS!R$1)+SUMIFS(InTB!$K:$K,InTB!$N:$N,$B71,InTB!$C:$C,BS!R$1) -> 650.41 | S71: =IF(S$1=0,0,ROUND($T71*S$108,2))+SUMIFS(InTB!$K:$K,InTB!$M:$M,$E71,InTB!$C:$C,BS!S$1)+SUMIFS(InTB!$K:$K,InTB!$N:$N,$C71,InTB!$C:$C,BS!S$1)+SUMIFS(InTB!$K:$K,InTB!$N:$N,$B71,InTB!$C:$C,BS!S$1) -> 0 | T71: =SUMIF(InTBBase!$M:$M,$E71,InTBBase!$K:$K)+SUMIF(InTBBase!$N:$N,$C71,InTBBase!$K:$K)+SUMIF(InTBBase!$N:$N,$B71,InTBBase!$K:$K) -> 650.4069385 | U71: 0
D72: DIVREC3 | E72: BOADVX | F72: =OFFSET( Label!$E$1,MATCH(BS!D72, Label!$E:$E,0)-1, Main!$G$14+1) -> Foreign Dividend - Unrealised FOREX Gains/(Loss) | I72: =SUMIF(InTB!$M:$M,$E72,InTB!$K:$K)+SUMIF(InTB!$N:$N,$C72,InTB!$K:$K)+SUMIF(InTB!$N:$N,$B72,InTB!$K:$K) -> 0 | J72: =IF(J$1=0,0,ROUND($T72*J$108,2))+SUMIFS(InTB!$K:$K,InTB!$M:$M,$E72,InTB!$C:$C,BS!J$1)+SUMIFS(InTB!$K:$K,InTB!$N:$N,$C72,InTB!$C:$C,BS!J$1)+SUMIFS(InTB!$K:$K,InTB!$N:$N,$B72,InTB!$C:$C,BS!J$1) -> 0 | K72: =IF(K$1=0,0,ROUND($T72*K$108,2))+SUMIFS(InTB!$K:$K,InTB!$M:$M,$E72,InTB!$C:$C,BS!K$1)+SUMIFS(InTB!$K:$K,InTB!$N:$N,$C72,InTB!$C:$C,BS!K$1)+SUMIFS(InTB!$K:$K,InTB!$N:$N,$B72,InTB!$C:$C,BS!K$1) -> 0 | L72: =IF(L$1=0,0,ROUND($T72*L$108,2))+SUMIFS(InTB!$K:$K,InTB!$M:$M,$E72,InTB!$C:$C,BS!L$1)+SUMIFS(InTB!$K:$K,InTB!$N:$N,$C72,InTB!$C:$C,BS!L$1)+SUMIFS(InTB!$K:$K,InTB!$N:$N,$B72,InTB!$C:$C,BS!L$1) -> 0 | M72: =IF(M$1=0,0,ROUND($T72*M$108,2))+SUMIFS(InTB!$K:$K,InTB!$M:$M,$E72,InTB!$C:$C,BS!M$1)+SUMIFS(InTB!$K:$K,InTB!$N:$N,$C72,InTB!$C:$C,BS!M$1)+SUMIFS(InTB!$K:$K,InTB!$N:$N,$B72,InTB!$C:$C,BS!M$1) -> 0 | N72: =IF(N$1=0,0,ROUND($T72*N$108,2))+SUMIFS(InTB!$K:$K,InTB!$M:$M,$E72,InTB!$C:$C,BS!N$1)+SUMIFS(InTB!$K:$K,InTB!$N:$N,$C72,InTB!$C:$C,BS!N$1)+SUMIFS(InTB!$K:$K,InTB!$N:$N,$B72,InTB!$C:$C,BS!N$1) -> 0 | O72: =IF(O$1=0,0,ROUND($T72*O$108,2))+SUMIFS(InTB!$K:$K,InTB!$M:$M,$E72,InTB!$C:$C,BS!O$1)+SUMIFS(InTB!$K:$K,InTB!$N:$N,$C72,InTB!$C:$C,BS!O$1)+SUMIFS(InTB!$K:$K,InTB!$N:$N,$B72,InTB!$C:$C,BS!O$1) -> 0 | P72: =IF(P$1=0,0,ROUND($T72*P$108,2))+SUMIFS(InTB!$K:$K,InTB!$M:$M,$E72,InTB!$C:$C,BS!P$1)+SUMIFS(InTB!$K:$K,InTB!$N:$N,$C72,InTB!$C:$C,BS!P$1)+SUMIFS(InTB!$K:$K,InTB!$N:$N,$B72,InTB!$C:$C,BS!P$1) -> 0 | Q72: =IF(Q$1=0,0,ROUND($T72*Q$108,2))+SUMIFS(InTB!$K:$K,InTB!$M:$M,$E72,InTB!$C:$C,BS!Q$1)+SUMIFS(InTB!$K:$K,InTB!$N:$N,$C72,InTB!$C:$C,BS!Q$1)+SUMIFS(InTB!$K:$K,InTB!$N:$N,$B72,InTB!$C:$C,BS!Q$1) -> 0 | R72: =IF(R$1=0,0,ROUND($T72*R$108,2))+SUMIFS(InTB!$K:$K,InTB!$M:$M,$E72,InTB!$C:$C,BS!R$1)+SUMIFS(InTB!$K:$K,InTB!$N:$N,$C72,InTB!$C:$C,BS!R$1)+SUMIFS(InTB!$K:$K,InTB!$N:$N,$B72,InTB!$C:$C,BS!R$1) -> 0 | S72: =IF(S$1=0,0,ROUND($T72*S$108,2))+SUMIFS(InTB!$K:$K,InTB!$M:$M,$E72,InTB!$C:$C,BS!S$1)+SUMIFS(InTB!$K:$K,InTB!$N:$N,$C72,InTB!$C:$C,BS!S$1)+SUMIFS(InTB!$K:$K,InTB!$N:$N,$B72,InTB!$C:$C,BS!S$1) -> 0 | T72: =SUMIF(InTBBase!$M:$M,$E72,InTBBase!$K:$K)+SUMIF(InTBBase!$N:$N,$C72,InTBBase!$K:$K)+SUMIF(InTBBase!$N:$N,$B72,InTBBase!$K:$K) -> 0 | U72: 0
D73: TAXREC | E73: BOATRL | F73: =OFFSET( Label!$E$1,MATCH(BS!D73, Label!$E:$E,0)-1, Main!$G$14+1) -> TAX RECOVERABLE | I73: =SUMIF(InTB!$M:$M,$E73,InTB!$K:$K) -> 0 | J73: =IF(J$1=0,0,ROUND($T73*J$108,2))+SUMIFS(InTB!$K:$K,InTB!$M:$M,$E73,InTB!$C:$C,BS!J$1) -> 0 | K73: =IF(K$1=0,0,ROUND($T73*K$108,2))+SUMIFS(InTB!$K:$K,InTB!$M:$M,$E73,InTB!$C:$C,BS!K$1) -> 0 | L73: =IF(L$1=0,0,ROUND($T73*L$108,2))+SUMIFS(InTB!$K:$K,InTB!$M:$M,$E73,InTB!$C:$C,BS!L$1) -> 0 | M73: =IF(M$1=0,0,ROUND($T73*M$108,2))+SUMIFS(InTB!$K:$K,InTB!$M:$M,$E73,InTB!$C:$C,BS!M$1) -> 0 | N73: =IF(N$1=0,0,ROUND($T73*N$108,2))+SUMIFS(InTB!$K:$K,InTB!$M:$M,$E73,InTB!$C:$C,BS!N$1) -> 0 | O73: =IF(O$1=0,0,ROUND($T73*O$108,2))+SUMIFS(InTB!$K:$K,InTB!$M:$M,$E73,InTB!$C:$C,BS!O$1) -> 0 | P73: =IF(P$1=0,0,ROUND($T73*P$108,2))+SUMIFS(InTB!$K:$K,InTB!$M:$M,$E73,InTB!$C:$C,BS!P$1) -> 0 | Q73: =IF(Q$1=0,0,ROUND($T73*Q$108,2))+SUMIFS(InTB!$K:$K,InTB!$M:$M,$E73,InTB!$C:$C,BS!Q$1) -> 0 | R73: =IF(R$1=0,0,ROUND($T73*R$108,2))+SUMIFS(InTB!$K:$K,InTB!$M:$M,$E73,InTB!$C:$C,BS!R$1) -> 0 | S73: =IF(S$1=0,0,ROUND($T73*S$108,2))+SUMIFS(InTB!$K:$K,InTB!$M:$M,$E73,InTB!$C:$C,BS!S$1) -> 0 | T73: =SUMIF(InTBBase!$M:$M,$E73,InTBBase!$K:$K) -> 0 | U73: 0
D74: SUNDEB | E74: BOASUN | F74: =OFFSET( Label!$E$1,MATCH(BS!D74, Label!$E:$E,0)-1, Main!$G$14+1) -> SUNDRY DEBTOR | I74: =SUMIF(InTB!$M:$M,$E74,InTB!$K:$K) -> 0 | J74: =IF(J$1=0,0,ROUND($T74*J$108,2))+SUMIFS(InTB!$K:$K,InTB!$M:$M,$E74,InTB!$C:$C,BS!J$1) -> 0 | K74: =IF(K$1=0,0,ROUND($T74*K$108,2))+SUMIFS(InTB!$K:$K,InTB!$M:$M,$E74,InTB!$C:$C,BS!K$1) -> 0 | L74: =IF(L$1=0,0,ROUND($T74*L$108,2))+SUMIFS(InTB!$K:$K,InTB!$M:$M,$E74,InTB!$C:$C,BS!L$1) -> 0 | M74: =IF(M$1=0,0,ROUND($T74*M$108,2))+SUMIFS(InTB!$K:$K,InTB!$M:$M,$E74,InTB!$C:$C,BS!M$1) -> 0 | N74: =IF(N$1=0,0,ROUND($T74*N$108,2))+SUMIFS(InTB!$K:$K,InTB!$M:$M,$E74,InTB!$C:$C,BS!N$1) -> 0 | O74: =IF(O$1=0,0,ROUND($T74*O$108,2))+SUMIFS(InTB!$K:$K,InTB!$M:$M,$E74,InTB!$C:$C,BS!O$1) -> 0 | P74: =IF(P$1=0,0,ROUND($T74*P$108,2))+SUMIFS(InTB!$K:$K,InTB!$M:$M,$E74,InTB!$C:$C,BS!P$1) -> 0 | Q74: =IF(Q$1=0,0,ROUND($T74*Q$108,2))+SUMIFS(InTB!$K:$K,InTB!$M:$M,$E74,InTB!$C:$C,BS!Q$1) -> 0 | R74: =IF(R$1=0,0,ROUND($T74*R$108,2))+SUMIFS(InTB!$K:$K,InTB!$M:$M,$E74,InTB!$C:$C,BS!R$1) -> 0 | S74: =IF(S$1=0,0,ROUND($T74*S$108,2))+SUMIFS(InTB!$K:$K,InTB!$M:$M,$E74,InTB!$C:$C,BS!S$1) -> 0 | T74: =SUMIF(InTBBase!$M:$M,$E74,InTBBase!$K:$K) -> 0 | U74: 0
D75: BANK | F75: =OFFSET( Label!$E$1,MATCH(BS!D75, Label!$E:$E,0)-1, Main!$G$14+1) -> BANK BALANCES WITH FINANCIAL INSTITUTIONS | I75: =I76+I77 -> 163842.9216 | J75: =J76+J77 -> 0 | K75: =K76+K77 -> 0 | L75: 0 | M75: 0 | N75: 0 | O75: =O76+O77 -> 0 | P75: 0 | Q75: 0 | R75: =R76+R77 -> 163842.92 | S75: 0 | T75: =T76+T77 -> 163842.9216 | U75: 0
D76: BANK1 | E76: BOABNK | F76: =OFFSET( Label!$E$1,MATCH(BS!D76, Label!$E:$E,0)-1, Main!$G$14+1) -> Bank Balances in Cost | I76: =SUMIF(InTB!$M:$M,$E76,InTB!$K:$K) -> 163842.9216 | J76: =IF(J$1=0,0,ROUND($T76*J$108,2))+SUMIFS(InTB!$K:$K,InTB!$M:$M,$E76,InTB!$C:$C,BS!J$1) -> 0 | K76: =IF(K$1=0,0,ROUND($T76*K$108,2))+SUMIFS(InTB!$K:$K,InTB!$M:$M,$E76,InTB!$C:$C,BS!K$1) -> 0 | L76: =IF(L$1=0,0,ROUND($T76*L$108,2))+SUMIFS(InTB!$K:$K,InTB!$M:$M,$E76,InTB!$C:$C,BS!L$1) -> 0 | M76: =IF(M$1=0,0,ROUND($T76*M$108,2))+SUMIFS(InTB!$K:$K,InTB!$M:$M,$E76,InTB!$C:$C,BS!M$1) -> 0 | N76: =IF(N$1=0,0,ROUND($T76*N$108,2))+SUMIFS(InTB!$K:$K,InTB!$M:$M,$E76,InTB!$C:$C,BS!N$1) -> 0 | O76: =IF(O$1=0,0,ROUND($T76*O$108,2))+SUMIFS(InTB!$K:$K,InTB!$M:$M,$E76,InTB!$C:$C,BS!O$1) -> 0 | P76: =IF(P$1=0,0,ROUND($T76*P$108,2))+SUMIFS(InTB!$K:$K,InTB!$M:$M,$E76,InTB!$C:$C,BS!P$1) -> 0 | Q76: =IF(Q$1=0,0,ROUND($T76*Q$108,2))+SUMIFS(InTB!$K:$K,InTB!$M:$M,$E76,InTB!$C:$C,BS!Q$1) -> 0 | R76: =IF(R$1=0,0,ROUND($T76*R$108,2))+SUMIFS(InTB!$K:$K,InTB!$M:$M,$E76,InTB!$C:$C,BS!R$1) -> 163842.92 | S76: =IF(S$1=0,0,ROUND($T76*S$108,2))+SUMIFS(InTB!$K:$K,InTB!$M:$M,$E76,InTB!$C:$C,BS!S$1) -> 0 | T76: =SUMIF(InTB!$M:$M,$E76,InTB!$K:$K) -> 163842.9216 | U76: 0
D77: BANK2 | E77: BOABKX | F77: =OFFSET( Label!$E$1,MATCH(BS!D77, Label!$E:$E,0)-1, Main!$G$14+1) -> Foreign Bank Balances - Unrealised FOREX Gains/(Loss) | I77: =SUMIF(InTB!$M:$M,$E77,InTB!$K:$K) -> 0 | J77: =IF(J$1=0,0,ROUND($T77*J$108,2))+SUMIFS(InTB!$K:$K,InTB!$M:$M,$E77,InTB!$C:$C,BS!J$1) -> 0 | K77: =IF(K$1=0,0,ROUND($T77*K$108,2))+SUMIFS(InTB!$K:$K,InTB!$M:$M,$E77,InTB!$C:$C,BS!K$1) -> 0 | L77: =IF(L$1=0,0,ROUND($T77*L$108,2))+SUMIFS(InTB!$K:$K,InTB!$M:$M,$E77,InTB!$C:$C,BS!L$1) -> 0 | M77: =IF(M$1=0,0,ROUND($T77*M$108,2))+SUMIFS(InTB!$K:$K,InTB!$M:$M,$E77,InTB!$C:$C,BS!M$1) -> 0 | N77: =IF(N$1=0,0,ROUND($T77*N$108,2))+SUMIFS(InTB!$K:$K,InTB!$M:$M,$E77,InTB!$C:$C,BS!N$1) -> 0 | O77: =IF(O$1=0,0,ROUND($T77*O$108,2))+SUMIFS(InTB!$K:$K,InTB!$M:$M,$E77,InTB!$C:$C,BS!O$1) -> 0 | P77: =IF(P$1=0,0,ROUND($T77*P$108,2))+SUMIFS(InTB!$K:$K,InTB!$M:$M,$E77,InTB!$C:$C,BS!P$1) -> 0 | Q77: =IF(Q$1=0,0,ROUND($T77*Q$108,2))+SUMIFS(InTB!$K:$K,InTB!$M:$M,$E77,InTB!$C:$C,BS!Q$1) -> 0 | R77: =IF(R$1=0,0,ROUND($T77*R$108,2))+SUMIFS(InTB!$K:$K,InTB!$M:$M,$E77,InTB!$C:$C,BS!R$1) -> 0 | S77: =IF(S$1=0,0,ROUND($T77*S$108,2))+SUMIFS(InTB!$K:$K,InTB!$M:$M,$E77,InTB!$C:$C,BS!S$1) -> 0 | T77: =SUMIF(InTB!$M:$M,$E77,InTB!$K:$K) -> 0 | U77: 0
F78: Total Other Assets | I78: =I60+I61+SUM(I65:I69)+I73+I75+I74 -> 164493.3285 | J78: =J60+J61+SUM(J65:J69)+J73+J75+J74 -> 0 | K78: =K60+K61+SUM(K65:K69)+K73+K75+K74 -> 0 | L78: =L60+L61+SUM(L65:L69)+L73+L75+L74 -> 0 | M78: 0 | N78: 0 | O78: =O60+O61+SUM(O65:O69)+O73+O75+O74 -> 0 | P78: 0 | Q78: 0 | R78: =R60+R61+SUM(R65:R69)+R73+R75+R74 -> 164493.33 | S78: 0 | T78: =T60+T61+SUM(T65:T69)+T73+T75+T74 -> 164493.3285 | U78: 0
U79: 0
D80: TOTASSET | F80: =OFFSET( Label!$E$1,MATCH(BS!D80, Label!$E:$E,0)-1, Main!$G$14+1) -> TOTAL ASSETS | I80: =I57+I78 -> 1484459.469 | J80: =J57+J78 -> 0 | K80: =K57+K78 -> 0 | L80: =L57+L78 -> 0 | M80: 0 | N80: 0 | O80: =O57+O78 -> 0 | P80: 0 | Q80: 0 | R80: =R57+R78 -> 1484459.47 | S80: 0 | T80: =T57+T78 -> 1484459.469 | U80: 0
U81: =ROUND(I81-SUM(J81:S81),1) -> 0
D82: LIABILITY | F82: =OFFSET( Label!$E$1,MATCH(BS!D82, Label!$E:$E,0)-1, Main!$G$14+1) -> LIABILITIES | U82: 0
U83: 0
D84: AMTTMGR | E84: BLMNG* | F84: =OFFSET( Label!$E$1,MATCH(BS!D84, Label!$E:$E,0)-1, Main!$G$14+1) -> AMOUNT DUE TO THE MANAGER (MANAGEMENT FEE & EXPENSES) | I84: =-SUMIF(InTB!$M:$M,$E84,InTB!$K:$K) -> 1197.71 | J84: =IF(J$1=0,0,ROUND($T84*J$108,2))-SUMIFS(InTB!$K:$K,InTB!$M:$M,$E84,InTB!$C:$C,BS!J$1) -> 0 | K84: =IF(K$1=0,0,ROUND($T84*K$108,2))-SUMIFS(InTB!$K:$K,InTB!$M:$M,$E84,InTB!$C:$C,BS!K$1) -> 0 | L84: =IF(L$1=0,0,ROUND($T84*L$108,2))-SUMIFS(InTB!$K:$K,InTB!$M:$M,$E84,InTB!$C:$C,BS!L$1) -> 0 | M84: =IF(M$1=0,0,ROUND($T84*M$108,2))-SUMIFS(InTB!$K:$K,InTB!$M:$M,$E84,InTB!$C:$C,BS!M$1) -> 0 | N84: =IF(N$1=0,0,ROUND($T84*N$108,2))-SUMIFS(InTB!$K:$K,InTB!$M:$M,$E84,InTB!$C:$C,BS!N$1) -> 0 | O84: =IF(O$1=0,0,ROUND($T84*O$108,2))-SUMIFS(InTB!$K:$K,InTB!$M:$M,$E84,InTB!$C:$C,BS!O$1) -> 0 | P84: =IF(P$1=0,0,ROUND($T84*P$108,2))-SUMIFS(InTB!$K:$K,InTB!$M:$M,$E84,InTB!$C:$C,BS!P$1) -> 0 | Q84: =IF(Q$1=0,0,ROUND($T84*Q$108,2))-SUMIFS(InTB!$K:$K,InTB!$M:$M,$E84,InTB!$C:$C,BS!Q$1) -> 0 | R84: =IF(R$1=0,0,ROUND($T84*R$108,2))-SUMIFS(InTB!$K:$K,InTB!$M:$M,$E84,InTB!$C:$C,BS!R$1) -> 1197.71 | S84: =IF(S$1=0,0,ROUND($T84*S$108,2))-SUMIFS(InTB!$K:$K,InTB!$M:$M,$E84,InTB!$C:$C,BS!S$1) -> 0 | T84: =-SUMIF(InTBBase!$M:$M,$E84,InTBBase!$K:$K) -> 1197.71 | U84: 0
D85: AMTTTRT | E85: BLTRUS | F85: =OFFSET( Label!$E$1,MATCH(BS!D85, Label!$E:$E,0)-1, Main!$G$14+1) -> AMOUNT DUE TO THE TRUSTEE | I85: =-SUMIF(InTB!$M:$M,$E85,InTB!$K:$K) -> 361.96 | J85: =IF(J$1=0,0,ROUND($T85*J$108,2))-SUMIFS(InTB!$K:$K,InTB!$M:$M,$E85,InTB!$C:$C,BS!J$1) -> 0 | K85: =IF(K$1=0,0,ROUND($T85*K$108,2))-SUMIFS(InTB!$K:$K,InTB!$M:$M,$E85,InTB!$C:$C,BS!K$1) -> 0 | L85: =IF(L$1=0,0,ROUND($T85*L$108,2))-SUMIFS(InTB!$K:$K,InTB!$M:$M,$E85,InTB!$C:$C,BS!L$1) -> 0 | M85: =IF(M$1=0,0,ROUND($T85*M$108,2))-SUMIFS(InTB!$K:$K,InTB!$M:$M,$E85,InTB!$C:$C,BS!M$1) -> 0 | N85: =IF(N$1=0,0,ROUND($T85*N$108,2))-SUMIFS(InTB!$K:$K,InTB!$M:$M,$E85,InTB!$C:$C,BS!N$1) -> 0 | O85: =IF(O$1=0,0,ROUND($T85*O$108,2))-SUMIFS(InTB!$K:$K,InTB!$M:$M,$E85,InTB!$C:$C,BS!O$1) -> 0 | P85: =IF(P$1=0,0,ROUND($T85*P$108,2))-SUMIFS(InTB!$K:$K,InTB!$M:$M,$E85,InTB!$C:$C,BS!P$1) -> 0 | Q85: =IF(Q$1=0,0,ROUND($T85*Q$108,2))-SUMIFS(InTB!$K:$K,InTB!$M:$M,$E85,InTB!$C:$C,BS!Q$1) -> 0 | R85: =IF(R$1=0,0,ROUND($T85*R$108,2))-SUMIFS(InTB!$K:$K,InTB!$M:$M,$E85,InTB!$C:$C,BS!R$1) -> 361.96 | S85: =IF(S$1=0,0,ROUND($T85*S$108,2))-SUMIFS(InTB!$K:$K,InTB!$M:$M,$E85,InTB!$C:$C,BS!S$1) -> 0 | T85: =-SUMIF(InTBBase!$M:$M,$E85,InTBBase!$K:$K) -> 361.96 | U85: 0
D86: AMTTBRK | F86: =OFFSET( Label!$E$1,MATCH(BS!D86, Label!$E:$E,0)-1, Main!$G$14+1) -> AMOUNT DUE TO STOCKBROKERS | I86: =I87+I88+I89 -> 0 | J86: 0 | K86: 0 | L86: 0 | M86: 0 | N86: 0 | O86: =O87+O88+O89 -> 0 | P86: 0 | Q86: 0 | R86: =R87+R88+R89 -> 0 | S86: 0 | T86: 0 | U86: 0
C87: BLAINV* | D87: AMTTBRK1 | E87: BLBRLO | F87: =OFFSET( Label!$E$1,MATCH(BS!D87, Label!$E:$E,0)-1, Main!$G$14+1) -> Broker - Local | I87: =-(SUMIF(InTB!$M:$M,$E87,InTB!$K:$K)+SUMIF(InTB!$N:$N,$C87,InTB!$K:$K)+SUMIF(InTB!$N:$N,$B87,InTB!$K:$K)-I88) -> 0 | J87: =IF(J$1=0,0,ROUND($T87*J$108,2))-(SUMIFS(InTB!$K:$K,InTB!$M:$M,$E87,InTB!$C:$C,BS!J$1)+SUMIFS(InTB!$K:$K,InTB!$N:$N,$C87,InTB!$C:$C,BS!J$1)+SUMIFS(InTB!$K:$K,InTB!$N:$N,$B87,InTB!$C:$C,BS!J$1)-J88) -> 0 | K87: =IF(K$1=0,0,ROUND($T87*K$108,2))-(SUMIFS(InTB!$K:$K,InTB!$M:$M,$E87,InTB!$C:$C,BS!K$1)+SUMIFS(InTB!$K:$K,InTB!$N:$N,$C87,InTB!$C:$C,BS!K$1)+SUMIFS(InTB!$K:$K,InTB!$N:$N,$B87,InTB!$C:$C,BS!K$1)-K88) -> 0 | L87: =IF(L$1=0,0,ROUND($T87*L$108,2))-(SUMIFS(InTB!$K:$K,InTB!$M:$M,$E87,InTB!$C:$C,BS!L$1)+SUMIFS(InTB!$K:$K,InTB!$N:$N,$C87,InTB!$C:$C,BS!L$1)+SUMIFS(InTB!$K:$K,InTB!$N:$N,$B87,InTB!$C:$C,BS!L$1)-L88) -> 0 | M87: =IF(M$1=0,0,ROUND($T87*M$108,2))-(SUMIFS(InTB!$K:$K,InTB!$M:$M,$E87,InTB!$C:$C,BS!M$1)+SUMIFS(InTB!$K:$K,InTB!$N:$N,$C87,InTB!$C:$C,BS!M$1)+SUMIFS(InTB!$K:$K,InTB!$N:$N,$B87,InTB!$C:$C,BS!M$1)-M88) -> 0 | N87: =IF(N$1=0,0,ROUND($T87*N$108,2))-(SUMIFS(InTB!$K:$K,InTB!$M:$M,$E87,InTB!$C:$C,BS!N$1)+SUMIFS(InTB!$K:$K,InTB!$N:$N,$C87,InTB!$C:$C,BS!N$1)+SUMIFS(InTB!$K:$K,InTB!$N:$N,$B87,InTB!$C:$C,BS!N$1)-N88) -> 0 | O87: =IF(O$1=0,0,ROUND($T87*O$108,2))-(SUMIFS(InTB!$K:$K,InTB!$M:$M,$E87,InTB!$C:$C,BS!O$1)+SUMIFS(InTB!$K:$K,InTB!$N:$N,$C87,InTB!$C:$C,BS!O$1)+SUMIFS(InTB!$K:$K,InTB!$N:$N,$B87,InTB!$C:$C,BS!O$1)-O88) -> 0 | P87: =IF(P$1=0,0,ROUND($T87*P$108,2))-(SUMIFS(InTB!$K:$K,InTB!$M:$M,$E87,InTB!$C:$C,BS!P$1)+SUMIFS(InTB!$K:$K,InTB!$N:$N,$C87,InTB!$C:$C,BS!P$1)+SUMIFS(InTB!$K:$K,InTB!$N:$N,$B87,InTB!$C:$C,BS!P$1)-P88) -> 0 | Q87: =IF(Q$1=0,0,ROUND($T87*Q$108,2))-(SUMIFS(InTB!$K:$K,InTB!$M:$M,$E87,InTB!$C:$C,BS!Q$1)+SUMIFS(InTB!$K:$K,InTB!$N:$N,$C87,InTB!$C:$C,BS!Q$1)+SUMIFS(InTB!$K:$K,InTB!$N:$N,$B87,InTB!$C:$C,BS!Q$1)-Q88) -> 0 | R87: =IF(R$1=0,0,ROUND($T87*R$108,2))-(SUMIFS(InTB!$K:$K,InTB!$M:$M,$E87,InTB!$C:$C,BS!R$1)+SUMIFS(InTB!$K:$K,InTB!$N:$N,$C87,InTB!$C:$C,BS!R$1)+SUMIFS(InTB!$K:$K,InTB!$N:$N,$B87,InTB!$C:$C,BS!R$1)-R88) -> 0 | S87: =IF(S$1=0,0,ROUND($T87*S$108,2))-(SUMIFS(InTB!$K:$K,InTB!$M:$M,$E87,InTB!$C:$C,BS!S$1)+SUMIFS(InTB!$K:$K,InTB!$N:$N,$C87,InTB!$C:$C,BS!S$1)+SUMIFS(InTB!$K:$K,InTB!$N:$N,$B87,InTB!$C:$C,BS!S$1)-S88) -> 0 | T87: =-(SUMIF(InTBBase!$M:$M,$E87,InTBBase!$K:$K)+SUMIF(InTBBase!$N:$N,$C87,InTBBase!$K:$K)+SUMIF(InTBBase!$N:$N,$B87,InTBBase!$K:$K)-T88) -> 0 | U87: 0
C88: BLAINV_O-* | D88: AMTTBRK2 | E88: BLBRFO | F88: =OFFSET( Label!$E$1,MATCH(BS!D88, Label!$E:$E,0)-1, Main!$G$14+1) -> Broker - Foreign | I88: =-(SUMIF(InTB!$M:$M,$E88,InTB!$K:$K)+SUMIF(InTB!$N:$N,$C88,InTB!$K:$K)+SUMIF(InTB!$N:$N,$B88,InTB!$K:$K)) -> 0 | J88: =IF(J$1=0,0,ROUND($T88*J$108,2))-(SUMIFS(InTB!$K:$K,InTB!$M:$M,$E88,InTB!$C:$C,BS!J$1)+SUMIFS(InTB!$K:$K,InTB!$N:$N,$C88,InTB!$C:$C,BS!J$1)+SUMIFS(InTB!$K:$K,InTB!$N:$N,$B88,InTB!$C:$C,BS!J$1)) -> 0 | K88: =IF(K$1=0,0,ROUND($T88*K$108,2))-(SUMIFS(InTB!$K:$K,InTB!$M:$M,$E88,InTB!$C:$C,BS!K$1)+SUMIFS(InTB!$K:$K,InTB!$N:$N,$C88,InTB!$C:$C,BS!K$1)+SUMIFS(InTB!$K:$K,InTB!$N:$N,$B88,InTB!$C:$C,BS!K$1)) -> 0 | L88: =IF(L$1=0,0,ROUND($T88*L$108,2))-(SUMIFS(InTB!$K:$K,InTB!$M:$M,$E88,InTB!$C:$C,BS!L$1)+SUMIFS(InTB!$K:$K,InTB!$N:$N,$C88,InTB!$C:$C,BS!L$1)+SUMIFS(InTB!$K:$K,InTB!$N:$N,$B88,InTB!$C:$C,BS!L$1)) -> 0 | M88: =IF(M$1=0,0,ROUND($T88*M$108,2))-(SUMIFS(InTB!$K:$K,InTB!$M:$M,$E88,InTB!$C:$C,BS!M$1)+SUMIFS(InTB!$K:$K,InTB!$N:$N,$C88,InTB!$C:$C,BS!M$1)+SUMIFS(InTB!$K:$K,InTB!$N:$N,$B88,InTB!$C:$C,BS!M$1)) -> 0 | N88: =IF(N$1=0,0,ROUND($T88*N$108,2))-(SUMIFS(InTB!$K:$K,InTB!$M:$M,$E88,InTB!$C:$C,BS!N$1)+SUMIFS(InTB!$K:$K,InTB!$N:$N,$C88,InTB!$C:$C,BS!N$1)+SUMIFS(InTB!$K:$K,InTB!$N:$N,$B88,InTB!$C:$C,BS!N$1)) -> 0 | O88: =IF(O$1=0,0,ROUND($T88*O$108,2))-(SUMIFS(InTB!$K:$K,InTB!$M:$M,$E88,InTB!$C:$C,BS!O$1)+SUMIFS(InTB!$K:$K,InTB!$N:$N,$C88,InTB!$C:$C,BS!O$1)+SUMIFS(InTB!$K:$K,InTB!$N:$N,$B88,InTB!$C:$C,BS!O$1)) -> 0 | P88: =IF(P$1=0,0,ROUND($T88*P$108,2))-(SUMIFS(InTB!$K:$K,InTB!$M:$M,$E88,InTB!$C:$C,BS!P$1)+SUMIFS(InTB!$K:$K,InTB!$N:$N,$C88,InTB!$C:$C,BS!P$1)+SUMIFS(InTB!$K:$K,InTB!$N:$N,$B88,InTB!$C:$C,BS!P$1)) -> 0 | Q88: =IF(Q$1=0,0,ROUND($T88*Q$108,2))-(SUMIFS(InTB!$K:$K,InTB!$M:$M,$E88,InTB!$C:$C,BS!Q$1)+SUMIFS(InTB!$K:$K,InTB!$N:$N,$C88,InTB!$C:$C,BS!Q$1)+SUMIFS(InTB!$K:$K,InTB!$N:$N,$B88,InTB!$C:$C,BS!Q$1)) -> 0 | R88: =IF(R$1=0,0,ROUND($T88*R$108,2))-(SUMIFS(InTB!$K:$K,InTB!$M:$M,$E88,InTB!$C:$C,BS!R$1)+SUMIFS(InTB!$K:$K,InTB!$N:$N,$C88,InTB!$C:$C,BS!R$1)+SUMIFS(InTB!$K:$K,InTB!$N:$N,$B88,InTB!$C:$C,BS!R$1)) -> 0 | S88: =IF(S$1=0,0,ROUND($T88*S$108,2))-(SUMIFS(InTB!$K:$K,InTB!$M:$M,$E88,InTB!$C:$C,BS!S$1)+SUMIFS(InTB!$K:$K,InTB!$N:$N,$C88,InTB!$C:$C,BS!S$1)+SUMIFS(InTB!$K:$K,InTB!$N:$N,$B88,InTB!$C:$C,BS!S$1)) -> 0 | T88: =-(SUMIF(InTBBase!$M:$M,$E88,InTBBase!$K:$K)+SUMIF(InTBBase!$N:$N,$C88,InTBBase!$K:$K)+SUMIF(InTBBase!$N:$N,$B88,InTBBase!$K:$K)) -> 0 | U88: 0
D89: AMTTBRK3 | E89: BLBRFX | F89: =OFFSET( Label!$E$1,MATCH(BS!D89, Label!$E:$E,0)-1, Main!$G$14+1) -> Foreign Broker - Unrealised FOREX Gains/(Loss) | I89: =-(SUMIF(InTB!$M:$M,$E89,InTB!$K:$K)+SUMIF(InTB!$N:$N,$C89,InTB!$K:$K)+SUMIF(InTB!$N:$N,$B89,InTB!$K:$K)) -> 0 | J89: =IF(J$1=0,0,ROUND($T89*J$108,2))-(SUMIFS(InTB!$K:$K,InTB!$M:$M,$E89,InTB!$C:$C,BS!J$1)+SUMIFS(InTB!$K:$K,InTB!$N:$N,$C89,InTB!$C:$C,BS!J$1)+SUMIFS(InTB!$K:$K,InTB!$N:$N,$B89,InTB!$C:$C,BS!J$1)) -> 0 | K89: =IF(K$1=0,0,ROUND($T89*K$108,2))-(SUMIFS(InTB!$K:$K,InTB!$M:$M,$E89,InTB!$C:$C,BS!K$1)+SUMIFS(InTB!$K:$K,InTB!$N:$N,$C89,InTB!$C:$C,BS!K$1)+SUMIFS(InTB!$K:$K,InTB!$N:$N,$B89,InTB!$C:$C,BS!K$1)) -> 0 | L89: =IF(L$1=0,0,ROUND($T89*L$108,2))-(SUMIFS(InTB!$K:$K,InTB!$M:$M,$E89,InTB!$C:$C,BS!L$1)+SUMIFS(InTB!$K:$K,InTB!$N:$N,$C89,InTB!$C:$C,BS!L$1)+SUMIFS(InTB!$K:$K,InTB!$N:$N,$B89,InTB!$C:$C,BS!L$1)) -> 0 | M89: =IF(M$1=0,0,ROUND($T89*M$108,2))-(SUMIFS(InTB!$K:$K,InTB!$M:$M,$E89,InTB!$C:$C,BS!M$1)+SUMIFS(InTB!$K:$K,InTB!$N:$N,$C89,InTB!$C:$C,BS!M$1)+SUMIFS(InTB!$K:$K,InTB!$N:$N,$B89,InTB!$C:$C,BS!M$1)) -> 0 | N89: =IF(N$1=0,0,ROUND($T89*N$108,2))-(SUMIFS(InTB!$K:$K,InTB!$M:$M,$E89,InTB!$C:$C,BS!N$1)+SUMIFS(InTB!$K:$K,InTB!$N:$N,$C89,InTB!$C:$C,BS!N$1)+SUMIFS(InTB!$K:$K,InTB!$N:$N,$B89,InTB!$C:$C,BS!N$1)) -> 0 | O89: =IF(O$1=0,0,ROUND($T89*O$108,2))-(SUMIFS(InTB!$K:$K,InTB!$M:$M,$E89,InTB!$C:$C,BS!O$1)+SUMIFS(InTB!$K:$K,InTB!$N:$N,$C89,InTB!$C:$C,BS!O$1)+SUMIFS(InTB!$K:$K,InTB!$N:$N,$B89,InTB!$C:$C,BS!O$1)) -> 0 | P89: =IF(P$1=0,0,ROUND($T89*P$108,2))-(SUMIFS(InTB!$K:$K,InTB!$M:$M,$E89,InTB!$C:$C,BS!P$1)+SUMIFS(InTB!$K:$K,InTB!$N:$N,$C89,InTB!$C:$C,BS!P$1)+SUMIFS(InTB!$K:$K,InTB!$N:$N,$B89,InTB!$C:$C,BS!P$1)) -> 0 | Q89: =IF(Q$1=0,0,ROUND($T89*Q$108,2))-(SUMIFS(InTB!$K:$K,InTB!$M:$M,$E89,InTB!$C:$C,BS!Q$1)+SUMIFS(InTB!$K:$K,InTB!$N:$N,$C89,InTB!$C:$C,BS!Q$1)+SUMIFS(InTB!$K:$K,InTB!$N:$N,$B89,InTB!$C:$C,BS!Q$1)) -> 0 | R89: =IF(R$1=0,0,ROUND($T89*R$108,2))-(SUMIFS(InTB!$K:$K,InTB!$M:$M,$E89,InTB!$C:$C,BS!R$1)+SUMIFS(InTB!$K:$K,InTB!$N:$N,$C89,InTB!$C:$C,BS!R$1)+SUMIFS(InTB!$K:$K,InTB!$N:$N,$B89,InTB!$C:$C,BS!R$1)) -> 0 | S89: =IF(S$1=0,0,ROUND($T89*S$108,2))-(SUMIFS(InTB!$K:$K,InTB!$M:$M,$E89,InTB!$C:$C,BS!S$1)+SUMIFS(InTB!$K:$K,InTB!$N:$N,$C89,InTB!$C:$C,BS!S$1)+SUMIFS(InTB!$K:$K,InTB!$N:$N,$B89,InTB!$C:$C,BS!S$1)) -> 0 | T89: =-(SUMIF(InTBBase!$M:$M,$E89,InTBBase!$K:$K)+SUMIF(InTBBase!$N:$N,$C89,InTBBase!$K:$K)+SUMIF(InTBBase!$N:$N,$B89,InTBBase!$K:$K)) -> 0 | U89: 0
D90: AMTTOTHINV | E90: BLAOIV | F90: =OFFSET( Label!$E$1,MATCH(BS!D90, Label!$E:$E,0)-1, Main!$G$14+1) -> AMOUNT DUE TO OTHER INVESTMNET | I90: =-SUMIF(InTB!$M:$M,$E90,InTB!$K:$K) -> 0 | J90: =IF(J$1=0,0,ROUND($T90*J$108,2))+SUMIFS(InTB!$K:$K,InTB!$M:$M,$E90,InTB!$C:$C,BS!J$1) -> 0 | K90: =IF(K$1=0,0,ROUND($T90*K$108,2))+SUMIFS(InTB!$K:$K,InTB!$M:$M,$E90,InTB!$C:$C,BS!K$1) -> 0 | L90: =IF(L$1=0,0,ROUND($T90*L$108,2))+SUMIFS(InTB!$K:$K,InTB!$M:$M,$E90,InTB!$C:$C,BS!L$1) -> 0 | M90: =IF(M$1=0,0,ROUND($T90*M$108,2))+SUMIFS(InTB!$K:$K,InTB!$M:$M,$E90,InTB!$C:$C,BS!M$1) -> 0 | N90: =IF(N$1=0,0,ROUND($T90*N$108,2))+SUMIFS(InTB!$K:$K,InTB!$M:$M,$E90,InTB!$C:$C,BS!N$1) -> 0 | O90: =IF(O$1=0,0,ROUND($T90*O$108,2))+SUMIFS(InTB!$K:$K,InTB!$M:$M,$E90,InTB!$C:$C,BS!O$1) -> 0 | P90: =IF(P$1=0,0,ROUND($T90*P$108,2))+SUMIFS(InTB!$K:$K,InTB!$M:$M,$E90,InTB!$C:$C,BS!P$1) -> 0 | Q90: =IF(Q$1=0,0,ROUND($T90*Q$108,2))+SUMIFS(InTB!$K:$K,InTB!$M:$M,$E90,InTB!$C:$C,BS!Q$1) -> 0 | R90: =IF(R$1=0,0,ROUND($T90*R$108,2))+SUMIFS(InTB!$K:$K,InTB!$M:$M,$E90,InTB!$C:$C,BS!R$1) -> 0 | S90: =IF(S$1=0,0,ROUND($T90*S$108,2))+SUMIFS(InTB!$K:$K,InTB!$M:$M,$E90,InTB!$C:$C,BS!S$1) -> 0 | T90: =-SUMIF(InTBBase!$M:$M,$E90,InTBBase!$K:$K) -> 0 | U90: 0
D91: TAXP | E91: BLTAXP | F91: =OFFSET( Label!$E$1,MATCH(BS!D91, Label!$E:$E,0)-1, Main!$G$14+1) -> TAX PAYABLE | I91: =-SUMIF(InTB!$M:$M,$E91,InTB!$K:$K) -> 0 | J91: =IF(J$1=0,0,ROUND($T91*J$108,2))+SUMIFS(InTB!$K:$K,InTB!$M:$M,$E91,InTB!$C:$C,BS!J$1) -> 0 | K91: =IF(K$1=0,0,ROUND($T91*K$108,2))+SUMIFS(InTB!$K:$K,InTB!$M:$M,$E91,InTB!$C:$C,BS!K$1) -> 0 | L91: =IF(L$1=0,0,ROUND($T91*L$108,2))+SUMIFS(InTB!$K:$K,InTB!$M:$M,$E91,InTB!$C:$C,BS!L$1) -> 0 | M91: =IF(M$1=0,0,ROUND($T91*M$108,2))+SUMIFS(InTB!$K:$K,InTB!$M:$M,$E91,InTB!$C:$C,BS!M$1) -> 0 | N91: =IF(N$1=0,0,ROUND($T91*N$108,2))+SUMIFS(InTB!$K:$K,InTB!$M:$M,$E91,InTB!$C:$C,BS!N$1) -> 0 | O91: =IF(O$1=0,0,ROUND($T91*O$108,2))+SUMIFS(InTB!$K:$K,InTB!$M:$M,$E91,InTB!$C:$C,BS!O$1) -> 0 | P91: =IF(P$1=0,0,ROUND($T91*P$108,2))+SUMIFS(InTB!$K:$K,InTB!$M:$M,$E91,InTB!$C:$C,BS!P$1) -> 0 | Q91: =IF(Q$1=0,0,ROUND($T91*Q$108,2))+SUMIFS(InTB!$K:$K,InTB!$M:$M,$E91,InTB!$C:$C,BS!Q$1) -> 0 | R91: =IF(R$1=0,0,ROUND($T91*R$108,2))+SUMIFS(InTB!$K:$K,InTB!$M:$M,$E91,InTB!$C:$C,BS!R$1) -> 0 | S91: =IF(S$1=0,0,ROUND($T91*S$108,2))+SUMIFS(InTB!$K:$K,InTB!$M:$M,$E91,InTB!$C:$C,BS!S$1) -> 0 | T91: =-SUMIF(InTBBase!$M:$M,$E91,InTBBase!$K:$K) -> 0 | U91: 0
D92: TAXFP | E92: BLTXFP | F92: =OFFSET( Label!$E$1,MATCH(BS!D92, Label!$E:$E,0)-1, Main!$G$14+1) -> TAX FEE PAYABLE | I92: =-SUMIF(InTB!$M:$M,$E92,InTB!$K:$K) -> 1856.65 | J92: =IF(J$1=0,0,ROUND($T92*J$108,2))-SUMIFS(InTB!$K:$K,InTB!$M:$M,$E92,InTB!$C:$C,BS!J$1) -> 0 | K92: =IF(K$1=0,0,ROUND($T92*K$108,2))-SUMIFS(InTB!$K:$K,InTB!$M:$M,$E92,InTB!$C:$C,BS!K$1) -> 0 | L92: =IF(L$1=0,0,ROUND($T92*L$108,2))-SUMIFS(InTB!$K:$K,InTB!$M:$M,$E92,InTB!$C:$C,BS!L$1) -> 0 | M92: =IF(M$1=0,0,ROUND($T92*M$108,2))-SUMIFS(InTB!$K:$K,InTB!$M:$M,$E92,InTB!$C:$C,BS!M$1) -> 0 | N92: =IF(N$1=0,0,ROUND($T92*N$108,2))-SUMIFS(InTB!$K:$K,InTB!$M:$M,$E92,InTB!$C:$C,BS!N$1) -> 0 | O92: =IF(O$1=0,0,ROUND($T92*O$108,2))-SUMIFS(InTB!$K:$K,InTB!$M:$M,$E92,InTB!$C:$C,BS!O$1) -> 0 | P92: =IF(P$1=0,0,ROUND($T92*P$108,2))-SUMIFS(InTB!$K:$K,InTB!$M:$M,$E92,InTB!$C:$C,BS!P$1) -> 0 | Q92: =IF(Q$1=0,0,ROUND($T92*Q$108,2))-SUMIFS(InTB!$K:$K,InTB!$M:$M,$E92,InTB!$C:$C,BS!Q$1) -> 0 | R92: =IF(R$1=0,0,ROUND($T92*R$108,2))-SUMIFS(InTB!$K:$K,InTB!$M:$M,$E92,InTB!$C:$C,BS!R$1) -> 1856.65 | S92: =IF(S$1=0,0,ROUND($T92*S$108,2))-SUMIFS(InTB!$K:$K,InTB!$M:$M,$E92,InTB!$C:$C,BS!S$1) -> 0 | T92: =-SUMIF(InTBBase!$M:$M,$E92,InTBBase!$K:$K) -> 1856.65 | U92: 0
D93: DIVP | E93: BLDIVP | F93: =OFFSET( Label!$E$1,MATCH(BS!D93, Label!$E:$E,0)-1, Main!$G$14+1) -> DIVIDEND PAYABLE | I93: =-SUMIF(InTB!$M:$M,$E93,InTB!$K:$K) -> 0 | J93: =IF(J$1=0,0,ROUND($T93*J$108,2))-SUMIFS(InTB!$K:$K,InTB!$M:$M,$E93,InTB!$C:$C,BS!J$1) -> 0 | K93: =IF(K$1=0,0,ROUND($T93*K$108,2))-SUMIFS(InTB!$K:$K,InTB!$M:$M,$E93,InTB!$C:$C,BS!K$1) -> 0 | L93: =IF(L$1=0,0,ROUND($T93*L$108,2))-SUMIFS(InTB!$K:$K,InTB!$M:$M,$E93,InTB!$C:$C,BS!L$1) -> 0 | M93: =IF(M$1=0,0,ROUND($T93*M$108,2))-SUMIFS(InTB!$K:$K,InTB!$M:$M,$E93,InTB!$C:$C,BS!M$1) -> 0 | N93: =IF(N$1=0,0,ROUND($T93*N$108,2))-SUMIFS(InTB!$K:$K,InTB!$M:$M,$E93,InTB!$C:$C,BS!N$1) -> 0 | O93: =IF(O$1=0,0,ROUND($T93*O$108,2))-SUMIFS(InTB!$K:$K,InTB!$M:$M,$E93,InTB!$C:$C,BS!O$1) -> 0 | P93: =IF(P$1=0,0,ROUND($T93*P$108,2))-SUMIFS(InTB!$K:$K,InTB!$M:$M,$E93,InTB!$C:$C,BS!P$1) -> 0 | Q93: =IF(Q$1=0,0,ROUND($T93*Q$108,2))-SUMIFS(InTB!$K:$K,InTB!$M:$M,$E93,InTB!$C:$C,BS!Q$1) -> 0 | R93: =IF(R$1=0,0,ROUND($T93*R$108,2))-SUMIFS(InTB!$K:$K,InTB!$M:$M,$E93,InTB!$C:$C,BS!R$1) -> 0 | S93: =IF(S$1=0,0,ROUND($T93*S$108,2))-SUMIFS(InTB!$K:$K,InTB!$M:$M,$E93,InTB!$C:$C,BS!S$1) -> 0 | T93: =-SUMIF(InTBBase!$M:$M,$E93,InTBBase!$K:$K) -> 0 | U93: 0
D94: PROVAUDIT | E94: BLAUDP | F94: =OFFSET( Label!$E$1,MATCH(BS!D94, Label!$E:$E,0)-1, Main!$G$14+1) -> PROVISION FOR AUDIT FEE | I94: =-SUMIF(InTB!$M:$M,$E94,InTB!$K:$K) -> 5082 | J94: =IF(J$1=0,0,ROUND($T94*J$108,2))-SUMIFS(InTB!$K:$K,InTB!$M:$M,$E94,InTB!$C:$C,BS!J$1) -> 0 | K94: =IF(K$1=0,0,ROUND($T94*K$108,2))-SUMIFS(InTB!$K:$K,InTB!$M:$M,$E94,InTB!$C:$C,BS!K$1) -> 0 | L94: =IF(L$1=0,0,ROUND($T94*L$108,2))-SUMIFS(InTB!$K:$K,InTB!$M:$M,$E94,InTB!$C:$C,BS!L$1) -> 0 | M94: =IF(M$1=0,0,ROUND($T94*M$108,2))-SUMIFS(InTB!$K:$K,InTB!$M:$M,$E94,InTB!$C:$C,BS!M$1) -> 0 | N94: =IF(N$1=0,0,ROUND($T94*N$108,2))-SUMIFS(InTB!$K:$K,InTB!$M:$M,$E94,InTB!$C:$C,BS!N$1) -> 0 | O94: =IF(O$1=0,0,ROUND($T94*O$108,2))-SUMIFS(InTB!$K:$K,InTB!$M:$M,$E94,InTB!$C:$C,BS!O$1) -> 0 | P94: =IF(P$1=0,0,ROUND($T94*P$108,2))-SUMIFS(InTB!$K:$K,InTB!$M:$M,$E94,InTB!$C:$C,BS!P$1) -> 0 | Q94: =IF(Q$1=0,0,ROUND($T94*Q$108,2))-SUMIFS(InTB!$K:$K,InTB!$M:$M,$E94,InTB!$C:$C,BS!Q$1) -> 0 | R94: =IF(R$1=0,0,ROUND($T94*R$108,2))-SUMIFS(InTB!$K:$K,InTB!$M:$M,$E94,InTB!$C:$C,BS!R$1) -> 5082 | S94: =IF(S$1=0,0,ROUND($T94*S$108,2))-SUMIFS(InTB!$K:$K,InTB!$M:$M,$E94,InTB!$C:$C,BS!S$1) -> 0 | T94: =-SUMIF(InTBBase!$M:$M,$E94,InTBBase!$K:$K) -> 5082 | U94: 0
D95: AMT | E95: BLTRBK | F95: =OFFSET( Label!$E$1,MATCH(BS!D95, Label!$E:$E,0)-1, Main!$G$14+1) -> AMOUNT DUE TO TRUSTEE (INITIAL BANK AMOUNT) | I95: =-SUMIF(InTB!$M:$M,$E95,InTB!$K:$K) -> 0 | J95: =IF(J$1=0,0,ROUND($T95*J$108,2))-SUMIFS(InTB!$K:$K,InTB!$M:$M,$E95,InTB!$C:$C,BS!J$1) -> 0 | K95: =IF(K$1=0,0,ROUND($T95*K$108,2))-SUMIFS(InTB!$K:$K,InTB!$M:$M,$E95,InTB!$C:$C,BS!K$1) -> 0 | L95: =IF(L$1=0,0,ROUND($T95*L$108,2))-SUMIFS(InTB!$K:$K,InTB!$M:$M,$E95,InTB!$C:$C,BS!L$1) -> 0 | M95: =IF(M$1=0,0,ROUND($T95*M$108,2))-SUMIFS(InTB!$K:$K,InTB!$M:$M,$E95,InTB!$C:$C,BS!M$1) -> 0 | N95: =IF(N$1=0,0,ROUND($T95*N$108,2))-SUMIFS(InTB!$K:$K,InTB!$M:$M,$E95,InTB!$C:$C,BS!N$1) -> 0 | O95: =IF(O$1=0,0,ROUND($T95*O$108,2))-SUMIFS(InTB!$K:$K,InTB!$M:$M,$E95,InTB!$C:$C,BS!O$1) -> 0 | P95: =IF(P$1=0,0,ROUND($T95*P$108,2))-SUMIFS(InTB!$K:$K,InTB!$M:$M,$E95,InTB!$C:$C,BS!P$1) -> 0 | Q95: =IF(Q$1=0,0,ROUND($T95*Q$108,2))-SUMIFS(InTB!$K:$K,InTB!$M:$M,$E95,InTB!$C:$C,BS!Q$1) -> 0 | R95: =IF(R$1=0,0,ROUND($T95*R$108,2))-SUMIFS(InTB!$K:$K,InTB!$M:$M,$E95,InTB!$C:$C,BS!R$1) -> 0 | S95: =IF(S$1=0,0,ROUND($T95*S$108,2))-SUMIFS(InTB!$K:$K,InTB!$M:$M,$E95,InTB!$C:$C,BS!S$1) -> 0 | T95: =-SUMIF(InTBBase!$M:$M,$E95,InTBBase!$K:$K) -> 0 | U95: 0
D96: SUNACC | E96: BLSUNA | F96: =OFFSET( Label!$E$1,MATCH(BS!D96, Label!$E:$E,0)-1, Main!$G$14+1) -> SUNDRY ACCRUALS | I96: =-SUMIF(InTB!$M:$M,$E96,InTB!$K:$K) -> 2059.8 | J96: =IF(J$1=0,0,ROUND($T96*J$108,2))-SUMIFS(InTB!$K:$K,InTB!$M:$M,$E96,InTB!$C:$C,BS!J$1) -> 0 | K96: =IF(K$1=0,0,ROUND($T96*K$108,2))-SUMIFS(InTB!$K:$K,InTB!$M:$M,$E96,InTB!$C:$C,BS!K$1) -> 0 | L96: =IF(L$1=0,0,ROUND($T96*L$108,2))-SUMIFS(InTB!$K:$K,InTB!$M:$M,$E96,InTB!$C:$C,BS!L$1) -> 0 | M96: =IF(M$1=0,0,ROUND($T96*M$108,2))-SUMIFS(InTB!$K:$K,InTB!$M:$M,$E96,InTB!$C:$C,BS!M$1) -> 0 | N96: =IF(N$1=0,0,ROUND($T96*N$108,2))-SUMIFS(InTB!$K:$K,InTB!$M:$M,$E96,InTB!$C:$C,BS!N$1) -> 0 | O96: =IF(O$1=0,0,ROUND($T96*O$108,2))-SUMIFS(InTB!$K:$K,InTB!$M:$M,$E96,InTB!$C:$C,BS!O$1) -> 0 | P96: =IF(P$1=0,0,ROUND($T96*P$108,2))-SUMIFS(InTB!$K:$K,InTB!$M:$M,$E96,InTB!$C:$C,BS!P$1) -> 0 | Q96: =IF(Q$1=0,0,ROUND($T96*Q$108,2))-SUMIFS(InTB!$K:$K,InTB!$M:$M,$E96,InTB!$C:$C,BS!Q$1) -> 0 | R96: =IF(R$1=0,0,ROUND($T96*R$108,2))-SUMIFS(InTB!$K:$K,InTB!$M:$M,$E96,InTB!$C:$C,BS!R$1) -> 2059.8 | S96: =IF(S$1=0,0,ROUND($T96*S$108,2))-SUMIFS(InTB!$K:$K,InTB!$M:$M,$E96,InTB!$C:$C,BS!S$1) -> 0 | T96: =-SUMIF(InTBBase!$M:$M,$E96,InTBBase!$K:$K) -> 2059.8 | U96: 0
D97: CUSTFFTP | E97: BLCUST | F97: =OFFSET( Label!$E$1,MATCH(BS!D97, Label!$E:$E,0)-1, Main!$G$14+1) -> CUSTODIAN FEE PAYABLE (ANNUAL + PER FOREIGN TRANSACTION) | I97: =-SUMIF(InTB!$M:$M,$E97,InTB!$K:$K) -> 0 | J97: =IF(J$1=0,0,ROUND($T97*J$108,2))-SUMIFS(InTB!$K:$K,InTB!$M:$M,$E97,InTB!$C:$C,BS!J$1) -> 0 | K97: =IF(K$1=0,0,ROUND($T97*K$108,2))-SUMIFS(InTB!$K:$K,InTB!$M:$M,$E97,InTB!$C:$C,BS!K$1) -> 0 | L97: =IF(L$1=0,0,ROUND($T97*L$108,2))-SUMIFS(InTB!$K:$K,InTB!$M:$M,$E97,InTB!$C:$C,BS!L$1) -> 0 | M97: =IF(M$1=0,0,ROUND($T97*M$108,2))-SUMIFS(InTB!$K:$K,InTB!$M:$M,$E97,InTB!$C:$C,BS!M$1) -> 0 | N97: =IF(N$1=0,0,ROUND($T97*N$108,2))-SUMIFS(InTB!$K:$K,InTB!$M:$M,$E97,InTB!$C:$C,BS!N$1) -> 0 | O97: =IF(O$1=0,0,ROUND($T97*O$108,2))-SUMIFS(InTB!$K:$K,InTB!$M:$M,$E97,InTB!$C:$C,BS!O$1) -> 0 | P97: =IF(P$1=0,0,ROUND($T97*P$108,2))-SUMIFS(InTB!$K:$K,InTB!$M:$M,$E97,InTB!$C:$C,BS!P$1) -> 0 | Q97: =IF(Q$1=0,0,ROUND($T97*Q$108,2))-SUMIFS(InTB!$K:$K,InTB!$M:$M,$E97,InTB!$C:$C,BS!Q$1) -> 0 | R97: =IF(R$1=0,0,ROUND($T97*R$108,2))-SUMIFS(InTB!$K:$K,InTB!$M:$M,$E97,InTB!$C:$C,BS!R$1) -> 0 | S97: =IF(S$1=0,0,ROUND($T97*S$108,2))-SUMIFS(InTB!$K:$K,InTB!$M:$M,$E97,InTB!$C:$C,BS!S$1) -> 0 | T97: =-SUMIF(InTBBase!$M:$M,$E97,InTBBase!$K:$K) -> 0 | U97: 0
D98: FBRKFP | E98: BLFBRF | F98: =OFFSET( Label!$E$1,MATCH(BS!D98, Label!$E:$E,0)-1, Main!$G$14+1) -> FOREIGN BROKERAGE FEE PAYABLE | I98: =-SUMIF(InTB!$M:$M,$E98,InTB!$K:$K) -> 0 | J98: =IF(J$1=0,0,ROUND($T98*J$108,2))-SUMIFS(InTB!$K:$K,InTB!$M:$M,$E98,InTB!$C:$C,BS!J$1) -> 0 | K98: =IF(K$1=0,0,ROUND($T98*K$108,2))-SUMIFS(InTB!$K:$K,InTB!$M:$M,$E98,InTB!$C:$C,BS!K$1) -> 0 | L98: =IF(L$1=0,0,ROUND($T98*L$108,2))-SUMIFS(InTB!$K:$K,InTB!$M:$M,$E98,InTB!$C:$C,BS!L$1) -> 0 | M98: =IF(M$1=0,0,ROUND($T98*M$108,2))-SUMIFS(InTB!$K:$K,InTB!$M:$M,$E98,InTB!$C:$C,BS!M$1) -> 0 | N98: =IF(N$1=0,0,ROUND($T98*N$108,2))-SUMIFS(InTB!$K:$K,InTB!$M:$M,$E98,InTB!$C:$C,BS!N$1) -> 0 | O98: =IF(O$1=0,0,ROUND($T98*O$108,2))-SUMIFS(InTB!$K:$K,InTB!$M:$M,$E98,InTB!$C:$C,BS!O$1) -> 0 | P98: =IF(P$1=0,0,ROUND($T98*P$108,2))-SUMIFS(InTB!$K:$K,InTB!$M:$M,$E98,InTB!$C:$C,BS!P$1) -> 0 | Q98: =IF(Q$1=0,0,ROUND($T98*Q$108,2))-SUMIFS(InTB!$K:$K,InTB!$M:$M,$E98,InTB!$C:$C,BS!Q$1) -> 0 | R98: =IF(R$1=0,0,ROUND($T98*R$108,2))-SUMIFS(InTB!$K:$K,InTB!$M:$M,$E98,InTB!$C:$C,BS!R$1) -> 0 | S98: =IF(S$1=0,0,ROUND($T98*S$108,2))-SUMIFS(InTB!$K:$K,InTB!$M:$M,$E98,InTB!$C:$C,BS!S$1) -> 0 | T98: =-SUMIF(InTBBase!$M:$M,$E98,InTBBase!$K:$K) -> 0 | U98: 0
D99: TOTLEXNAV | F99: =OFFSET( Label!$E$1,MATCH(BS!D99, Label!$E:$E,0)-1, Main!$G$14+1) -> TOTAL LIABILITIES EXCLUDING NET ASSET VALUE ("NAV") ATTRIBUTABLE TO UNIT HOLDERS | I99: =I84+I85+I86+I90+I91+I92+I93+I94+I95+I96+I97+I98 -> 10558.12 | J99: 0 | K99: 0 | L99: 0 | M99: 0 | N99: 0 | O99: =O84+O85+O86+O90+O91+O92+O93+O94+O95+O96+O97+O98 -> 0 | P99: 0 | Q99: 0 | R99: =R84+R85+R86+R90+R91+R92+R93+R94+R95+R96+R97+R98 -> 10558.12 | S99: 0 | T99: 10558.12 | U99: 0
U100: 0
D101: NAVUNIT | F101: =OFFSET( Label!$E$1,MATCH(BS!D101, Label!$E:$E,0)-1, Main!$G$14+1) -> NAV ATTRIBUTABLE TO UNIT HOLDERS | I101: =I80-I99 -> 1473901.349 | J101: 0 | K101: =K80-K99 -> 0 | L101: 0 | M101: 0 | N101: 0 | O101: =O80-O99 -> 0 | P101: 0 | Q101: 0 | R101: =R80-R99 -> 1473901.35 | S101: 0 | T101: =T80-T99 -> 1473901.349 | U101: =ROUND(I101-SUM(J101:S101),1) -> 0
U102: 0
D103: TOTLINAV | F103: =OFFSET( Label!$E$1,MATCH(BS!D103, Label!$E:$E,0)-1, Main!$G$14+1) -> TOTAL LIABILITIES INCLUDING NAV | I103: =I99+I101 -> 1484459.469 | J103: =J99+J101 -> 0 | K103: 0 | L103: 0 | M103: 0 | N103: 0 | O103: =O99+O101 -> 0 | P103: 0 | Q103: 0 | R103: =R99+R101 -> 1484459.47 | S103: 0 | T103: =T99+T101 -> 1484459.469 | U103: 0
U104: 0
U105: 0
C106: TotalUnits | D106: UCIR | E106: UNITCU | F106: =OFFSET( Label!$E$1,MATCH(BS!D106, Label!$E:$E,0)-1, Main!$G$14+1) -> UNITS IN CIRCULATION | J106: =IF(OR(J$1=0,ISNA(VLOOKUP(J$1,InUP!$A:$AB,MATCH($C106,InUP!$2:$2,0),0))),0,VLOOKUP(J$1,InUP!$A:$AB,MATCH($C106,InUP!$2:$2,0),0)) -> 0 | K106: =IF(OR(K$1=0,ISNA(VLOOKUP(K$1,InUP!$A:$AB,MATCH($C106,InUP!$2:$2,0),0))),0,VLOOKUP(K$1,InUP!$A:$AB,MATCH($C106,InUP!$2:$2,0),0)) -> 0 | L106: =IF(OR(L$1=0,ISNA(VLOOKUP(L$1,InUP!$A:$AB,MATCH($C106,InUP!$2:$2,0),0))),0,VLOOKUP(L$1,InUP!$A:$AB,MATCH($C106,InUP!$2:$2,0),0)) -> 0 | M106: =IF(OR(M$1=0,ISNA(VLOOKUP(M$1,InUP!$A:$AB,MATCH($C106,InUP!$2:$2,0),0))),0,VLOOKUP(M$1,InUP!$A:$AB,MATCH($C106,InUP!$2:$2,0),0)) -> 0 | N106: =IF(OR(N$1=0,ISNA(VLOOKUP(N$1,InUP!$A:$AB,MATCH($C106,InUP!$2:$2,0),0))),0,VLOOKUP(N$1,InUP!$A:$AB,MATCH($C106,InUP!$2:$2,0),0)) -> 0 | O106: =IF(OR(O$1=0,ISNA(VLOOKUP(O$1,InUP!$A:$AB,MATCH($C106,InUP!$2:$2,0),0))),0,VLOOKUP(O$1,InUP!$A:$AB,MATCH($C106,InUP!$2:$2,0),0)) -> 0 | P106: =IF(OR(P$1=0,ISNA(VLOOKUP(P$1,InUP!$A:$AB,MATCH($C106,InUP!$2:$2,0),0))),0,VLOOKUP(P$1,InUP!$A:$AB,MATCH($C106,InUP!$2:$2,0),0)) -> 0 | Q106: =IF(OR(Q$1=0,ISNA(VLOOKUP(Q$1,InUP!$A:$AB,MATCH($C106,InUP!$2:$2,0),0))),0,VLOOKUP(Q$1,InUP!$A:$AB,MATCH($C106,InUP!$2:$2,0),0)) -> 0 | R106: =IF(OR(R$1=0,ISNA(VLOOKUP(R$1,InUP!$A:$AB,MATCH($C106,InUP!$2:$2,0),0))),0,VLOOKUP(R$1,InUP!$A:$AB,MATCH($C106,InUP!$2:$2,0),0)) -> 2746498.36 | S106: =IF(OR(S$1=0,ISNA(VLOOKUP(S$1,InUP!$A:$AB,MATCH($C106,InUP!$2:$2,0),0))),0,VLOOKUP(S$1,InUP!$A:$AB,MATCH($C106,InUP!$2:$2,0),0)) -> 0
C108: MCRCalcHAdj | D108: MCR | F108: =OFFSET( Label!$E$1,MATCH(BS!D108, Label!$E:$E,0)-1, Main!$G$14+1) -> Multi Class Ratio (MCR) % | J108: =IF(OR(J$1=0,ISNA(VLOOKUP(J$1,InUP!$A:$AB,MATCH($C108,InUP!$2:$2,0),0))),0,VLOOKUP(J$1,InUP!$A:$AB,MATCH($C108,InUP!$2:$2,0),0)) -> 0 | K108: =IF(OR(K$1=0,ISNA(VLOOKUP(K$1,InUP!$A:$AB,MATCH($C108,InUP!$2:$2,0),0))),0,VLOOKUP(K$1,InUP!$A:$AB,MATCH($C108,InUP!$2:$2,0),0)) -> 0 | L108: =IF(OR(L$1=0,ISNA(VLOOKUP(L$1,InUP!$A:$AB,MATCH($C108,InUP!$2:$2,0),0))),0,VLOOKUP(L$1,InUP!$A:$AB,MATCH($C108,InUP!$2:$2,0),0)) -> 0 | M108: =IF(OR(M$1=0,ISNA(VLOOKUP(M$1,InUP!$A:$AB,MATCH($C108,InUP!$2:$2,0),0))),0,VLOOKUP(M$1,InUP!$A:$AB,MATCH($C108,InUP!$2:$2,0),0)) -> 0 | N108: =IF(OR(N$1=0,ISNA(VLOOKUP(N$1,InUP!$A:$AB,MATCH($C108,InUP!$2:$2,0),0))),0,VLOOKUP(N$1,InUP!$A:$AB,MATCH($C108,InUP!$2:$2,0),0)) -> 0 | O108: =IF(OR(O$1=0,ISNA(VLOOKUP(O$1,InUP!$A:$AB,MATCH($C108,InUP!$2:$2,0),0))),0,VLOOKUP(O$1,InUP!$A:$AB,MATCH($C108,InUP!$2:$2,0),0)) -> 0 | P108: =IF(OR(P$1=0,ISNA(VLOOKUP(P$1,InUP!$A:$AB,MATCH($C108,InUP!$2:$2,0),0))),0,VLOOKUP(P$1,InUP!$A:$AB,MATCH($C108,InUP!$2:$2,0),0)) -> 0 | Q108: =IF(OR(Q$1=0,ISNA(VLOOKUP(Q$1,InUP!$A:$AB,MATCH($C108,InUP!$2:$2,0),0))),0,VLOOKUP(Q$1,InUP!$A:$AB,MATCH($C108,InUP!$2:$2,0),0)) -> 0 | R108: =IF(OR(R$1=0,ISNA(VLOOKUP(R$1,InUP!$A:$AB,MATCH($C108,InUP!$2:$2,0),0))),0,VLOOKUP(R$1,InUP!$A:$AB,MATCH($C108,InUP!$2:$2,0),0)) -> 1 | S108: =IF(OR(S$1=0,ISNA(VLOOKUP(S$1,InUP!$A:$AB,MATCH($C108,InUP!$2:$2,0),0))),0,VLOOKUP(S$1,InUP!$A:$AB,MATCH($C108,InUP!$2:$2,0),0)) -> 0
C109: MCRRpt | D109: MCR | F109: =OFFSET( Label!$E$1,MATCH(BS!D109, Label!$E:$E,0)-1, Main!$G$14+1) -> Multi Class Ratio (MCR) % | J109: =IF(OR(J$1=0,ISNA(VLOOKUP(J$1,InUP!$A:$AB,MATCH($C109,InUP!$2:$2,0),0))),0,VLOOKUP(J$1,InUP!$A:$AB,MATCH($C109,InUP!$2:$2,0),0)) -> 0 | K109: =IF(OR(K$1=0,ISNA(VLOOKUP(K$1,InUP!$A:$AB,MATCH($C109,InUP!$2:$2,0),0))),0,VLOOKUP(K$1,InUP!$A:$AB,MATCH($C109,InUP!$2:$2,0),0)) -> 0 | L109: =IF(OR(L$1=0,ISNA(VLOOKUP(L$1,InUP!$A:$AB,MATCH($C109,InUP!$2:$2,0),0))),0,VLOOKUP(L$1,InUP!$A:$AB,MATCH($C109,InUP!$2:$2,0),0)) -> 0 | M109: =IF(OR(M$1=0,ISNA(VLOOKUP(M$1,InUP!$A:$AB,MATCH($C109,InUP!$2:$2,0),0))),0,VLOOKUP(M$1,InUP!$A:$AB,MATCH($C109,InUP!$2:$2,0),0)) -> 0 | N109: =IF(OR(N$1=0,ISNA(VLOOKUP(N$1,InUP!$A:$AB,MATCH($C109,InUP!$2:$2,0),0))),0,VLOOKUP(N$1,InUP!$A:$AB,MATCH($C109,InUP!$2:$2,0),0)) -> 0 | O109: =IF(OR(O$1=0,ISNA(VLOOKUP(O$1,InUP!$A:$AB,MATCH($C109,InUP!$2:$2,0),0))),0,VLOOKUP(O$1,InUP!$A:$AB,MATCH($C109,InUP!$2:$2,0),0)) -> 0 | P109: =IF(OR(P$1=0,ISNA(VLOOKUP(P$1,InUP!$A:$AB,MATCH($C109,InUP!$2:$2,0),0))),0,VLOOKUP(P$1,InUP!$A:$AB,MATCH($C109,InUP!$2:$2,0),0)) -> 0 | Q109: =IF(OR(Q$1=0,ISNA(VLOOKUP(Q$1,InUP!$A:$AB,MATCH($C109,InUP!$2:$2,0),0))),0,VLOOKUP(Q$1,InUP!$A:$AB,MATCH($C109,InUP!$2:$2,0),0)) -> 0 | R109: =IF(OR(R$1=0,ISNA(VLOOKUP(R$1,InUP!$A:$AB,MATCH($C109,InUP!$2:$2,0),0))),0,VLOOKUP(R$1,InUP!$A:$AB,MATCH($C109,InUP!$2:$2,0),0)) -> 1 | S109: =IF(OR(S$1=0,ISNA(VLOOKUP(S$1,InUP!$A:$AB,MATCH($C109,InUP!$2:$2,0),0))),0,VLOOKUP(S$1,InUP!$A:$AB,MATCH($C109,InUP!$2:$2,0),0)) -> 0
C110: ExchgRate | D110: EXCHGRATE | F110: =OFFSET( Label!$E$1,MATCH(BS!D110, Label!$E:$E,0)-1, Main!$G$14+1) -> Exchange Rate | J110: =IF(OR(J$1=0,ISNA(VLOOKUP(J$1,InUP!$A:$AB,MATCH($C110,InUP!$2:$2,0),0))),0,VLOOKUP(J$1,InUP!$A:$AB,MATCH($C110,InUP!$2:$2,0),0)) -> 4.284 | K110: =IF(OR(K$1=0,ISNA(VLOOKUP(K$1,InUP!$A:$AB,MATCH($C110,InUP!$2:$2,0),0))),0,VLOOKUP(K$1,InUP!$A:$AB,MATCH($C110,InUP!$2:$2,0),0)) -> 1.397123574 | L110: =IF(OR(L$1=0,ISNA(VLOOKUP(L$1,InUP!$A:$AB,MATCH($C110,InUP!$2:$2,0),0))),0,VLOOKUP(L$1,InUP!$A:$AB,MATCH($C110,InUP!$2:$2,0),0)) -> 1 | M110: =IF(OR(M$1=0,ISNA(VLOOKUP(M$1,InUP!$A:$AB,MATCH($C110,InUP!$2:$2,0),0))),0,VLOOKUP(M$1,InUP!$A:$AB,MATCH($C110,InUP!$2:$2,0),0)) -> 4.284 | N110: =IF(OR(N$1=0,ISNA(VLOOKUP(N$1,InUP!$A:$AB,MATCH($C110,InUP!$2:$2,0),0))),0,VLOOKUP(N$1,InUP!$A:$AB,MATCH($C110,InUP!$2:$2,0),0)) -> 1.397123574 | O110: =IF(OR(O$1=0,ISNA(VLOOKUP(O$1,InUP!$A:$AB,MATCH($C110,InUP!$2:$2,0),0))),0,VLOOKUP(O$1,InUP!$A:$AB,MATCH($C110,InUP!$2:$2,0),0)) -> 1 | P110: =IF(OR(P$1=0,ISNA(VLOOKUP(P$1,InUP!$A:$AB,MATCH($C110,InUP!$2:$2,0),0))),0,VLOOKUP(P$1,InUP!$A:$AB,MATCH($C110,InUP!$2:$2,0),0)) -> 4.284 | Q110: =IF(OR(Q$1=0,ISNA(VLOOKUP(Q$1,InUP!$A:$AB,MATCH($C110,InUP!$2:$2,0),0))),0,VLOOKUP(Q$1,InUP!$A:$AB,MATCH($C110,InUP!$2:$2,0),0)) -> 1.397123574 | R110: =IF(OR(R$1=0,ISNA(VLOOKUP(R$1,InUP!$A:$AB,MATCH($C110,InUP!$2:$2,0),0))),0,VLOOKUP(R$1,InUP!$A:$AB,MATCH($C110,InUP!$2:$2,0),0)) -> 1 | S110: =IF(OR(S$1=0,ISNA(VLOOKUP(S$1,InUP!$A:$AB,MATCH($C110,InUP!$2:$2,0),0))),0,VLOOKUP(S$1,InUP!$A:$AB,MATCH($C110,InUP!$2:$2,0),0)) -> 0
D112: NAV | F112: =OFFSET( Label!$E$1,MATCH(BS!D112, Label!$E:$E,0)-1, Main!$G$14+1) -> Net Asset Value Per Unit in Fund Currency | J112: =IF(J106=0,0,J101/J106) -> 0 | K112: =IF(K106=0,0,K101/K106) -> 0 | L112: =IF(L106=0,0,L101/L106) -> 0 | M112: 0 | N112: 0 | O112: =IF(O106=0,0,O101/O106) -> 0 | P112: 0 | Q112: 0 | R112: =IF(R106=0,0,R101/R106) -> 0.5366474532 | S112: 0
D113: NAVCLASS | F113: =OFFSET( Label!$E$1,MATCH(BS!D113, Label!$E:$E,0)-1, Main!$G$14+1) -> Net Asset Value Per Unit in Class Currency | J113: =J112*J110 -> 0 | K113: 0 | L113: 0 | M113: 0 | N113: 0 | O113: 0 | P113: 0 | Q113: 0 | R113: 0.5366474532 | S113: 0
D115: NOTE: | F115: =OFFSET( Label!$E$1,MATCH(BS!D115, Label!$E:$E,0)-1, Main!$G$14+1) -> NOTE:
D116: NAVAT | F116: =OFFSET( Label!$E$1,MATCH(BS!D116, Label!$E:$E,0)-1, Main!$G$14+1) -> NAV ATTRIBUTABLE TO UNIT HOLDERS
D117: CAP | E117: BCUCAP | F117: =OFFSET( Label!$E$1,MATCH(BS!D117, Label!$E:$E,0)-1, Main!$G$14+1) -> UNITHOLDERS' CAPITAL | I117: =-SUMIF(InTB!$M:$M,$E117,InTB!$K:$K) -> 1479238.15 | J117: =IF(J$1=0,0,ROUND($T117*J$108,2))-SUMIFS(InTB!$K:$K,InTB!$M:$M,$E117,InTB!$C:$C,BS!J$1) -> 0 | K117: =IF(K$1=0,0,ROUND($T117*K$108,2))-SUMIFS(InTB!$K:$K,InTB!$M:$M,$E117,InTB!$C:$C,BS!K$1) -> 0 | L117: =IF(L$1=0,0,ROUND($T117*L$108,2))-SUMIFS(InTB!$K:$K,InTB!$M:$M,$E117,InTB!$C:$C,BS!L$1) -> 0 | M117: =IF(M$1=0,0,ROUND($T117*M$108,2))-SUMIFS(InTB!$K:$K,InTB!$M:$M,$E117,InTB!$C:$C,BS!M$1) -> 0 | N117: =IF(N$1=0,0,ROUND($T117*N$108,2))-SUMIFS(InTB!$K:$K,InTB!$M:$M,$E117,InTB!$C:$C,BS!N$1) -> 0 | O117: =IF(O$1=0,0,ROUND($T117*O$108,2))-SUMIFS(InTB!$K:$K,InTB!$M:$M,$E117,InTB!$C:$C,BS!O$1) -> 0 | P117: =IF(P$1=0,0,ROUND($T117*P$108,2))-SUMIFS(InTB!$K:$K,InTB!$M:$M,$E117,InTB!$C:$C,BS!P$1) -> 0 | Q117: =IF(Q$1=0,0,ROUND($T117*Q$108,2))-SUMIFS(InTB!$K:$K,InTB!$M:$M,$E117,InTB!$C:$C,BS!Q$1) -> 0 | R117: =IF(R$1=0,0,ROUND($T117*R$108,2))-SUMIFS(InTB!$K:$K,InTB!$M:$M,$E117,InTB!$C:$C,BS!R$1) -> 1479238.15 | S117: =IF(S$1=0,0,ROUND($T117*S$108,2))-SUMIFS(InTB!$K:$K,InTB!$M:$M,$E117,InTB!$C:$C,BS!S$1) -> 0 | T117: =-SUMIF(InTBBase!$M:$M,$E117,InTBBase!$K:$K) -> 1479238.15 | U117: =ROUND(I117-SUM(J117:S117),1) -> 0
C118: =-SUMIFS(InTB!$K:$K,InTB!$M:$M,"BSURPF") -> 106693.36 | D118: URR | E118: PUGINV | F118: =OFFSET( Label!$E$1,MATCH(BS!D118, Label!$E:$E,0)-1, Main!$G$14+1) -> UNREALISED RESERVES/ (DEFICIT) ON INVESTMENTS | I118: =-SUMIF(InTB!$M:$M,$E118,InTB!$K:$K)+$C118+PL!I$97 -> 80334.60851 | J118: =IF(J$1=0,0,ROUND($T118*J$108,2))-SUMIFS(InTB!$K:$K,InTB!$M:$M,$E118,InTB!$C:$C,BS!J$1)-SUMIFS(InTB!$K:$K,InTB!$M:$M,"BSURPF",InTB!$C:$C,J$1) -> 0 | K118: =IF(K$1=0,0,ROUND($T118*K$108,2))-SUMIFS(InTB!$K:$K,InTB!$M:$M,$E118,InTB!$C:$C,BS!K$1)-SUMIFS(InTB!$K:$K,InTB!$M:$M,"BSURPF",InTB!$C:$C,K$1) -> 0 | L118: =IF(L$1=0,0,ROUND($T118*L$108,2))-SUMIFS(InTB!$K:$K,InTB!$M:$M,$E118,InTB!$C:$C,BS!L$1)-SUMIFS(InTB!$K:$K,InTB!$M:$M,"BSURPF",InTB!$C:$C,L$1) -> 0 | M118: =IF(M$1=0,0,ROUND($T118*M$108,2))-SUMIFS(InTB!$K:$K,InTB!$M:$M,$E118,InTB!$C:$C,BS!M$1)-SUMIFS(InTB!$K:$K,InTB!$M:$M,"BSURPF",InTB!$C:$C,M$1) -> 0 | N118: =IF(N$1=0,0,ROUND($T118*N$108,2))-SUMIFS(InTB!$K:$K,InTB!$M:$M,$E118,InTB!$C:$C,BS!N$1)-SUMIFS(InTB!$K:$K,InTB!$M:$M,"BSURPF",InTB!$C:$C,N$1) -> 0 | O118: =IF(O$1=0,0,ROUND($T118*O$108,2))-SUMIFS(InTB!$K:$K,InTB!$M:$M,$E118,InTB!$C:$C,BS!O$1)-SUMIFS(InTB!$K:$K,InTB!$M:$M,"BSURPF",InTB!$C:$C,O$1) -> 0 | P118: =IF(P$1=0,0,ROUND($T118*P$108,2))-SUMIFS(InTB!$K:$K,InTB!$M:$M,$E118,InTB!$C:$C,BS!P$1)-SUMIFS(InTB!$K:$K,InTB!$M:$M,"BSURPF",InTB!$C:$C,P$1) -> 0 | Q118: =IF(Q$1=0,0,ROUND($T118*Q$108,2))-SUMIFS(InTB!$K:$K,InTB!$M:$M,$E118,InTB!$C:$C,BS!Q$1)-SUMIFS(InTB!$K:$K,InTB!$M:$M,"BSURPF",InTB!$C:$C,Q$1) -> 0 | R118: =IF(R$1=0,0,ROUND($T118*R$108,2))-SUMIFS(InTB!$K:$K,InTB!$M:$M,$E118,InTB!$C:$C,BS!R$1)-SUMIFS(InTB!$K:$K,InTB!$M:$M,"BSURPF",InTB!$C:$C,R$1) -> 80334.61 | S118: =IF(S$1=0,0,ROUND($T118*S$108,2))-SUMIFS(InTB!$K:$K,InTB!$M:$M,$E118,InTB!$C:$C,BS!S$1)-SUMIFS(InTB!$K:$K,InTB!$M:$M,"BSURPF",InTB!$C:$C,S$1) -> 0 | T118: =-SUMIF(InTBBase!$M:$M,$E118,InTBBase!$K:$K)-SUMIFS(InTBBase!$K:$K,InTBBase!$M:$M,"BSURPF")+PL!$T$97 -> 80334.60851 | U118: 0
D119: RETAIN | E119: BSRRPF | F119: =OFFSET( Label!$E$1,MATCH(BS!D119, Label!$E:$E,0)-1, Main!$G$14+1) -> RETAIN EARNINGS | I119: =-SUMIF(InTB!$M:$M,$E119,InTB!$K:$K) -> -61449.01 | J119: =IF(J$1=0,0,ROUND($T119*J$108,2))-SUMIFS(InTB!$K:$K,InTB!$M:$M,$E119,InTB!$C:$C,BS!J$1) -> 0 | K119: =IF(K$1=0,0,ROUND($T119*K$108,2))-SUMIFS(InTB!$K:$K,InTB!$M:$M,$E119,InTB!$C:$C,BS!K$1) -> 0 | L119: =IF(L$1=0,0,ROUND($T119*L$108,2))-SUMIFS(InTB!$K:$K,InTB!$M:$M,$E119,InTB!$C:$C,BS!L$1) -> 0 | M119: =IF(M$1=0,0,ROUND($T119*M$108,2))-SUMIFS(InTB!$K:$K,InTB!$M:$M,$E119,InTB!$C:$C,BS!M$1) -> 0 | N119: =IF(N$1=0,0,ROUND($T119*N$108,2))-SUMIFS(InTB!$K:$K,InTB!$M:$M,$E119,InTB!$C:$C,BS!N$1) -> 0 | O119: =IF(O$1=0,0,ROUND($T119*O$108,2))-SUMIFS(InTB!$K:$K,InTB!$M:$M,$E119,InTB!$C:$C,BS!O$1) -> 0 | P119: =IF(P$1=0,0,ROUND($T119*P$108,2))-SUMIFS(InTB!$K:$K,InTB!$M:$M,$E119,InTB!$C:$C,BS!P$1) -> 0 | Q119: =IF(Q$1=0,0,ROUND($T119*Q$108,2))-SUMIFS(InTB!$K:$K,InTB!$M:$M,$E119,InTB!$C:$C,BS!Q$1) -> 0 | R119: =IF(R$1=0,0,ROUND($T119*R$108,2))-SUMIFS(InTB!$K:$K,InTB!$M:$M,$E119,InTB!$C:$C,BS!R$1) -> -61449.01 | S119: =IF(S$1=0,0,ROUND($T119*S$108,2))-SUMIFS(InTB!$K:$K,InTB!$M:$M,$E119,InTB!$C:$C,BS!S$1) -> 0 | T119: =-SUMIF(InTBBase!$M:$M,$E119,InTBBase!$K:$K) -> -61449.01 | U119: 0
E120: BSPYDE | F120: Previous Year Distribution Equalisation | I120: =-SUMIF(InTB!$M:$M,$E120,InTB!$K:$K) -> 0 | J120: =IF(J$1=0,0,ROUND($T120*J$108,2))-SUMIFS(InTB!$K:$K,InTB!$M:$M,$E120,InTB!$C:$C,BS!J$1) -> 0 | K120: =IF(K$1=0,0,ROUND($T120*K$108,2))-SUMIFS(InTB!$K:$K,InTB!$M:$M,$E120,InTB!$C:$C,BS!K$1) -> 0 | L120: =IF(L$1=0,0,ROUND($T120*L$108,2))-SUMIFS(InTB!$K:$K,InTB!$M:$M,$E120,InTB!$C:$C,BS!L$1) -> 0 | M120: =IF(M$1=0,0,ROUND($T120*M$108,2))-SUMIFS(InTB!$K:$K,InTB!$M:$M,$E120,InTB!$C:$C,BS!M$1) -> 0 | N120: =IF(N$1=0,0,ROUND($T120*N$108,2))-SUMIFS(InTB!$K:$K,InTB!$M:$M,$E120,InTB!$C:$C,BS!N$1) -> 0 | O120: =IF(O$1=0,0,ROUND($T120*O$108,2))-SUMIFS(InTB!$K:$K,InTB!$M:$M,$E120,InTB!$C:$C,BS!O$1) -> 0 | P120: =IF(P$1=0,0,ROUND($T120*P$108,2))-SUMIFS(InTB!$K:$K,InTB!$M:$M,$E120,InTB!$C:$C,BS!P$1) -> 0 | Q120: =IF(Q$1=0,0,ROUND($T120*Q$108,2))-SUMIFS(InTB!$K:$K,InTB!$M:$M,$E120,InTB!$C:$C,BS!Q$1) -> 0 | R120: =IF(R$1=0,0,ROUND($T120*R$108,2))-SUMIFS(InTB!$K:$K,InTB!$M:$M,$E120,InTB!$C:$C,BS!R$1) -> 0 | S120: =IF(S$1=0,0,ROUND($T120*S$108,2))-SUMIFS(InTB!$K:$K,InTB!$M:$M,$E120,InTB!$C:$C,BS!S$1) -> 0 | T120: =-SUMIF(InTBBase!$M:$M,$E120,InTBBase!$K:$K) -> 0 | U120: 0
D121: PROFIT | F121: =OFFSET( Label!$E$1,MATCH(BS!D121, Label!$E:$E,0)-1, Main!$G$14+1) -> CURRENT YEAR PROFIT / (LOSS) | I121: =PL!I$87+PL!I$90+PL!I$91 -> -24222.4 | J121: =PL!J$87+PL!J$90+PL!J$91 -> 0 | K121: =PL!K$87+PL!K$90+PL!K$91 -> 0 | L121: =PL!L$87+PL!L$90+PL!L$91 -> 0 | M121: =PL!M$87+PL!M$90+PL!M$91 -> 0 | N121: =PL!N$87+PL!N$90+PL!N$91 -> 0 | O121: =PL!O$87+PL!O$90+PL!O$91 -> 0 | P121: =PL!P$87+PL!P$90+PL!P$91 -> 0 | Q121: =PL!Q$87+PL!Q$90+PL!Q$91 -> 0 | R121: =PL!R$87+PL!R$90+PL!R$91 -> -24222.4 | S121: =PL!S$87+PL!S$90+PL!S$91 -> 0 | T121: =PL!$I$87+PL!$I$90+PL!$I$91 -> -24222.4 | U121: 0
I122: =SUM(I117:I121) -> 1473901.349 | J122: =SUM(J117:J121) -> 0 | K122: =SUM(K117:K121) -> 0 | L122: =SUM(L117:L121) -> 0 | M122: 0 | N122: 0 | O122: =SUM(O117:O121) -> 0 | P122: 0 | Q122: 0 | R122: =SUM(R117:R121) -> 1473901.35 | S122: 0 | T122: =SUM(T117:T121) -> 1473901.349 | U122: 0

Sheet PL
I1: GD1 | J1: =Class1 -> FFSAF-A-MYR | K1: =Class2 -> FFSAF-A-SGD | L1: =Class3 -> FFSAF-A-USD | M1: =Class4 -> FFSAF-B-MYR | N1: =Class5 -> FFSAF-B-SGD | O1: =Class6 -> FFSAF-B-USD | P1: =Class7 -> FFSAF-C-MYR | Q1: =Class8 -> FFSAF-C-SGD | R1: =Class9 -> FFSAF-C-USD | S1: =Class10 -> 0
J2: =BS!J108 -> 0 | K2: =BS!K108 -> 0 | L2: =BS!L108 -> 0 | M2: =BS!M108 -> 0 | N2: =BS!N108 -> 0 | O2: =BS!O108 -> 0 | P2: =BS!P108 -> 0 | Q2: =BS!Q108 -> 0 | R2: =BS!R108 -> 1 | S2: =BS!S108 -> 0
C4: Balance Check | D4: =I83-I98 -> 0
F5: =CompanyName -> FORTRESS CAPITAL ASSET MANAGEMENT (M) SDN BHD
F6: =Main!$G$12 -> Fortress Focus Select Asia Fund
F7: Income Statement
F8: ="For The Financial Period Ended " & TEXT(Main!$G$17,"dd mmmm yyyy") -> For The Financial Period Ended 30 June 2020
I10: =ValueDate -> 2020-06-30 | J10: 2020-06-30 | K10: 2020-06-30 | L10: 2020-06-30 | M10: 2020-06-30 | N10: 2020-06-30 | O10: 2020-06-30 | P10: 2020-06-30 | Q10: 2020-06-30 | R10: 2020-06-30 | S10: 2020-06-30 | T10: 2020-06-30
I11: Year To Date | J11: Year To Date | K11: Year To Date | L11: Year To Date | M11: Year To Date | N11: Year To Date | O11: Year To Date | P11: Year To Date | Q11: Year To Date | R11: Year To Date | S11: Year To Date | T11: Year To Date
J12: =BS!J11 -> Class MYR | K12: =BS!K11 -> Class SGD | L12: =BS!L11 -> Class USD | M12: =BS!M11 -> Class MYR | N12: =BS!N11 -> Class SGD | O12: =BS!O11 -> Class USD | P12: =BS!P11 -> Class MYR | Q12: =BS!Q11 -> Class SGD | R12: =BS!R11 -> Class USD | S12: =BS!S11 -> Class
I13: =FundCurrency -> USD | J13: =BS!J12 -> USD | K13: =BS!K12 -> USD | L13: =BS!L12 -> USD | M13: =BS!M12 -> USD | N13: =BS!N12 -> USD | O13: =BS!O12 -> USD | P13: =BS!P12 -> USD | Q13: =BS!Q12 -> USD | R13: =BS!R12 -> USD | S13: =BS!S12 -> USD | T13: =FundCurrency -> USD
D14: INVINC | F14: =OFFSET(Label!$A$1,MATCH(D14,Label!$A$1:$A$65537,0)-1,Main!$G$14+1) -> INCOME
D15: INTINCOME | F15: =OFFSET(Label!$A$1,MATCH(D15,Label!$A$1:$A$65537,0)-1,Main!$G$14+1) -> INTEREST INCOME | I15: =SUM(I16:I19) -> 19.86 | J15: 0 | K15: 0 | L15: 0 | M15: 0 | N15: 0 | O15: =SUM(O16:O19) -> 0 | P15: 0 | Q15: 0 | R15: =SUM(R16:R19) -> 19.86 | S15: =SUM(S16:S19) -> 0 | T15: 19.86 | V15: =ROUND(I15-SUM(J15:S15),1) -> 0
C16: PRINCO_MM | D16: INTINCOME1 | E16: PRINMM | F16: =OFFSET(Label!$A$1,MATCH(D16,Label!$A$1:$A$65537,0)-1,Main!$G$14+1) -> INTEREST INCOME - MONEY MARKET PLACEMENT | I16: =-SUMIF(InTB!$M:$M,$E16,InTB!$K:$K)-SUMIF(InTB!$N:$N,$C16,InTB!$K:$K)-SUMIF(InTB!$N:$N,$B16,InTB!$K:$K) -> 0 | J16: =ROUND($T16*J$2,2)-SUMIFS(InTB!$K:$K,InTB!$M:$M,$E16,InTB!$C:$C,J$1)-SUMIFS(InTB!$K:$K,InTB!$N:$N,$C16,InTB!$C:$C,J$1)-SUMIFS(InTB!$K:$K,InTB!$N:$N,$B16,InTB!$C:$C,J$1) -> 0 | K16: =ROUND($T16*K$2,2)-SUMIFS(InTB!$K:$K,InTB!$M:$M,$E16,InTB!$C:$C,K$1)-SUMIFS(InTB!$K:$K,InTB!$N:$N,$C16,InTB!$C:$C,K$1)-SUMIFS(InTB!$K:$K,InTB!$N:$N,$B16,InTB!$C:$C,K$1) -> 0 | L16: =ROUND($T16*L$2,2)-SUMIFS(InTB!$K:$K,InTB!$M:$M,$E16,InTB!$C:$C,L$1)-SUMIFS(InTB!$K:$K,InTB!$N:$N,$C16,InTB!$C:$C,L$1)-SUMIFS(InTB!$K:$K,InTB!$N:$N,$B16,InTB!$C:$C,L$1) -> 0 | M16: =ROUND($T16*M$2,2)-SUMIFS(InTB!$K:$K,InTB!$M:$M,$E16,InTB!$C:$C,M$1)-SUMIFS(InTB!$K:$K,InTB!$N:$N,$C16,InTB!$C:$C,M$1)-SUMIFS(InTB!$K:$K,InTB!$N:$N,$B16,InTB!$C:$C,M$1) -> 0 | N16: =ROUND($T16*N$2,2)-SUMIFS(InTB!$K:$K,InTB!$M:$M,$E16,InTB!$C:$C,N$1)-SUMIFS(InTB!$K:$K,InTB!$N:$N,$C16,InTB!$C:$C,N$1)-SUMIFS(InTB!$K:$K,InTB!$N:$N,$B16,InTB!$C:$C,N$1) -> 0 | O16: =ROUND($T16*O$2,2)-SUMIFS(InTB!$K:$K,InTB!$M:$M,$E16,InTB!$C:$C,O$1)-SUMIFS(InTB!$K:$K,InTB!$N:$N,$C16,InTB!$C:$C,O$1)-SUMIFS(InTB!$K:$K,InTB!$N:$N,$B16,InTB!$C:$C,O$1) -> 0 | P16: =ROUND($T16*P$2,2)-SUMIFS(InTB!$K:$K,InTB!$M:$M,$E16,InTB!$C:$C,P$1)-SUMIFS(InTB!$K:$K,InTB!$N:$N,$C16,InTB!$C:$C,P$1)-SUMIFS(InTB!$K:$K,InTB!$N:$N,$B16,InTB!$C:$C,P$1) -> 0 | Q16: =ROUND($T16*Q$2,2)-SUMIFS(InTB!$K:$K,InTB!$M:$M,$E16,InTB!$C:$C,Q$1)-SUMIFS(InTB!$K:$K,InTB!$N:$N,$C16,InTB!$C:$C,Q$1)-SUMIFS(InTB!$K:$K,InTB!$N:$N,$B16,InTB!$C:$C,Q$1) -> 0 | R16: =ROUND($T16*R$2,2)-SUMIFS(InTB!$K:$K,InTB!$M:$M,$E16,InTB!$C:$C,R$1)-SUMIFS(InTB!$K:$K,InTB!$N:$N,$C16,InTB!$C:$C,R$1)-SUMIFS(InTB!$K:$K,InTB!$N:$N,$B16,InTB!$C:$C,R$1) -> 0 | S16: =ROUND($T16*S$2,2)-SUMIFS(InTB!$K:$K,InTB!$M:$M,$E16,InTB!$C:$C,S$1)-SUMIFS(InTB!$K:$K,InTB!$N:$N,$C16,InTB!$C:$C,S$1)-SUMIFS(InTB!$K:$K,InTB!$N:$N,$B16,InTB!$C:$C,S$1) -> 0 | T16: =-SUMIF(InTBBase!$M:$M,$E16,InTBBase!$K:$K)-SUMIF(InTBBase!$N:$N,$C16,InTBBase!$K:$K)-SUMIF(InTBBase!$N:$N,$B16,InTBBase!$K:$K) -> 0 | V16: =ROUND(I16-SUM(J16:S16),1) -> 0
B17: PRINCO_O-BND | C17: PRINCO_BND | D17: INTINCOME2 | E17: PRINCB | F17: =OFFSET(Label!$A$1,MATCH(D17,Label!$A$1:$A$65537,0)-1,Main!$G$14+1) -> Interest Income - Commercial Bond | I17: =-SUMIF(InTB!$M:$M,$E17,InTB!$K:$K)-SUMIF(InTB!$N:$N,$C17,InTB!$K:$K)-SUMIF(InTB!$N:$N,$B17,InTB!$K:$K) -> 0 | J17: =ROUND($T17*J$2,2)-SUMIFS(InTB!$K:$K,InTB!$M:$M,$E17,InTB!$C:$C,J$1)-SUMIFS(InTB!$K:$K,InTB!$N:$N,$C17,InTB!$C:$C,J$1)-SUMIFS(InTB!$K:$K,InTB!$N:$N,$B17,InTB!$C:$C,J$1) -> 0 | K17: =ROUND($T17*K$2,2)-SUMIFS(InTB!$K:$K,InTB!$M:$M,$E17,InTB!$C:$C,K$1)-SUMIFS(InTB!$K:$K,InTB!$N:$N,$C17,InTB!$C:$C,K$1)-SUMIFS(InTB!$K:$K,InTB!$N:$N,$B17,InTB!$C:$C,K$1) -> 0 | L17: =ROUND($T17*L$2,2)-SUMIFS(InTB!$K:$K,InTB!$M:$M,$E17,InTB!$C:$C,L$1)-SUMIFS(InTB!$K:$K,InTB!$N:$N,$C17,InTB!$C:$C,L$1)-SUMIFS(InTB!$K:$K,InTB!$N:$N,$B17,InTB!$C:$C,L$1) -> 0 | M17: =ROUND($T17*M$2,2)-SUMIFS(InTB!$K:$K,InTB!$M:$M,$E17,InTB!$C:$C,M$1)-SUMIFS(InTB!$K:$K,InTB!$N:$N,$C17,InTB!$C:$C,M$1)-SUMIFS(InTB!$K:$K,InTB!$N:$N,$B17,InTB!$C:$C,M$1) -> 0 | N17: =ROUND($T17*N$2,2)-SUMIFS(InTB!$K:$K,InTB!$M:$M,$E17,InTB!$C:$C,N$1)-SUMIFS(InTB!$K:$K,InTB!$N:$N,$C17,InTB!$C:$C,N$1)-SUMIFS(InTB!$K:$K,InTB!$N:$N,$B17,InTB!$C:$C,N$1) -> 0 | O17: =ROUND($T17*O$2,2)-SUMIFS(InTB!$K:$K,InTB!$M:$M,$E17,InTB!$C:$C,O$1)-SUMIFS(InTB!$K:$K,InTB!$N:$N,$C17,InTB!$C:$C,O$1)-SUMIFS(InTB!$K:$K,InTB!$N:$N,$B17,InTB!$C:$C,O$1) -> 0 | P17: =ROUND($T17*P$2,2)-SUMIFS(InTB!$K:$K,InTB!$M:$M,$E17,InTB!$C:$C,P$1)-SUMIFS(InTB!$K:$K,InTB!$N:$N,$C17,InTB!$C:$C,P$1)-SUMIFS(InTB!$K:$K,InTB!$N:$N,$B17,InTB!$C:$C,P$1) -> 0 | Q17: =ROUND($T17*Q$2,2)-SUMIFS(InTB!$K:$K,InTB!$M:$M,$E17,InTB!$C:$C,Q$1)-SUMIFS(InTB!$K:$K,InTB!$N:$N,$C17,InTB!$C:$C,Q$1)-SUMIFS(InTB!$K:$K,InTB!$N:$N,$B17,InTB!$C:$C,Q$1) -> 0 | R17: =ROUND($T17*R$2,2)-SUMIFS(InTB!$K:$K,InTB!$M:$M,$E17,InTB!$C:$C,R$1)-SUMIFS(InTB!$K:$K,InTB!$N:$N,$C17,InTB!$C:$C,R$1)-SUMIFS(InTB!$K:$K,InTB!$N:$N,$B17,InTB!$C:$C,R$1) -> 0 | S17: =ROUND($T17*S$2,2)-SUMIFS(InTB!$K:$K,InTB!$M:$M,$E17,InTB!$C:$C,S$1)-SUMIFS(InTB!$K:$K,InTB!$N:$N,$C17,InTB!$C:$C,S$1)-SUMIFS(InTB!$K:$K,InTB!$N:$N,$B17,InTB!$C:$C,S$1) -> 0 | T17: =-SUMIF(InTBBase!$M:$M,$E17,InTBBase!$K:$K)-SUMIF(InTBBase!$N:$N,$C17,InTBBase!$K:$K)-SUMIF(InTBBase!$N:$N,$B17,InTBBase!$K:$K) -> 0 | V17: 0
D18: INTINCOME3 | E18: PRINBK | F18: =OFFSET(Label!$A$1,MATCH(D18,Label!$A$1:$A$65537,0)-1,Main!$G$14+1) -> Interest Income - Bank | I18: =-SUMIF(InTB!$M:$M,$E18,InTB!$K:$K)-SUMIF(InTB!$N:$N,$C18,InTB!$K:$K)-SUMIF(InTB!$N:$N,$B18,InTB!$K:$K) -> 19.86 | J18: =ROUND($T18*J$2,2)-SUMIFS(InTB!$K:$K,InTB!$M:$M,$E18,InTB!$C:$C,J$1)-SUMIFS(InTB!$K:$K,InTB!$N:$N,$C18,InTB!$C:$C,J$1)-SUMIFS(InTB!$K:$K,InTB!$N:$N,$B18,InTB!$C:$C,J$1) -> 0 | K18: =ROUND($T18*K$2,2)-SUMIFS(InTB!$K:$K,InTB!$M:$M,$E18,InTB!$C:$C,K$1)-SUMIFS(InTB!$K:$K,InTB!$N:$N,$C18,InTB!$C:$C,K$1)-SUMIFS(InTB!$K:$K,InTB!$N:$N,$B18,InTB!$C:$C,K$1) -> 0 | L18: =ROUND($T18*L$2,2)-SUMIFS(InTB!$K:$K,InTB!$M:$M,$E18,InTB!$C:$C,L$1)-SUMIFS(InTB!$K:$K,InTB!$N:$N,$C18,InTB!$C:$C,L$1)-SUMIFS(InTB!$K:$K,InTB!$N:$N,$B18,InTB!$C:$C,L$1) -> 0 | M18: =ROUND($T18*M$2,2)-SUMIFS(InTB!$K:$K,InTB!$M:$M,$E18,InTB!$C:$C,M$1)-SUMIFS(InTB!$K:$K,InTB!$N:$N,$C18,InTB!$C:$C,M$1)-SUMIFS(InTB!$K:$K,InTB!$N:$N,$B18,InTB!$C:$C,M$1) -> 0 | N18: =ROUND($T18*N$2,2)-SUMIFS(InTB!$K:$K,InTB!$M:$M,$E18,InTB!$C:$C,N$1)-SUMIFS(InTB!$K:$K,InTB!$N:$N,$C18,InTB!$C:$C,N$1)-SUMIFS(InTB!$K:$K,InTB!$N:$N,$B18,InTB!$C:$C,N$1) -> 0 | O18: =ROUND($T18*O$2,2)-SUMIFS(InTB!$K:$K,InTB!$M:$M,$E18,InTB!$C:$C,O$1)-SUMIFS(InTB!$K:$K,InTB!$N:$N,$C18,InTB!$C:$C,O$1)-SUMIFS(InTB!$K:$K,InTB!$N:$N,$B18,InTB!$C:$C,O$1) -> 0 | P18: =ROUND($T18*P$2,2)-SUMIFS(InTB!$K:$K,InTB!$M:$M,$E18,InTB!$C:$C,P$1)-SUMIFS(InTB!$K:$K,InTB!$N:$N,$C18,InTB!$C:$C,P$1)-SUMIFS(InTB!$K:$K,InTB!$N:$N,$B18,InTB!$C:$C,P$1) -> 0 | Q18: =ROUND($T18*Q$2,2)-SUMIFS(InTB!$K:$K,InTB!$M:$M,$E18,InTB!$C:$C,Q$1)-SUMIFS(InTB!$K:$K,InTB!$N:$N,$C18,InTB!$C:$C,Q$1)-SUMIFS(InTB!$K:$K,InTB!$N:$N,$B18,InTB!$C:$C,Q$1) -> 0 | R18: =ROUND($T18*R$2,2)-SUMIFS(InTB!$K:$K,InTB!$M:$M,$E18,InTB!$C:$C,R$1)-SUMIFS(InTB!$K:$K,InTB!$N:$N,$C18,InTB!$C:$C,R$1)-SUMIFS(InTB!$K:$K,InTB!$N:$N,$B18,InTB!$C:$C,R$1) -> 19.86 | S18: =ROUND($T18*S$2,2)-SUMIFS(InTB!$K:$K,InTB!$M:$M,$E18,InTB!$C:$C,S$1)-SUMIFS(InTB!$K:$K,InTB!$N:$N,$C18,InTB!$C:$C,S$1)-SUMIFS(InTB!$K:$K,InTB!$N:$N,$B18,InTB!$C:$C,S$1) -> 0 | T18: =-SUMIF(InTBBase!$M:$M,$E18,InTBBase!$K:$K)-SUMIF(InTBBase!$N:$N,$C18,InTBBase!$K:$K)-SUMIF(InTBBase!$N:$N,$B18,InTBBase!$K:$K) -> 19.86 | V18: 0
C19: PRINCO_LNS | D19: INTINCOME4 | E19: PRINLS | F19: =OFFSET(Label!$A$1,MATCH(D19,Label!$A$1:$A$65537,0)-1,Main!$G$14+1) -> Interest Income - loan stock | I19: =-SUMIF(InTB!$M:$M,$E19,InTB!$K:$K)-SUMIF(InTB!$N:$N,$C19,InTB!$K:$K)-SUMIF(InTB!$N:$N,$B19,InTB!$K:$K) -> 0 | J19: =ROUND($T19*J$2,2)-SUMIFS(InTB!$K:$K,InTB!$M:$M,$E19,InTB!$C:$C,J$1)-SUMIFS(InTB!$K:$K,InTB!$N:$N,$C19,InTB!$C:$C,J$1)-SUMIFS(InTB!$K:$K,InTB!$N:$N,$B19,InTB!$C:$C,J$1) -> 0 | K19: =ROUND($T19*K$2,2)-SUMIFS(InTB!$K:$K,InTB!$M:$M,$E19,InTB!$C:$C,K$1)-SUMIFS(InTB!$K:$K,InTB!$N:$N,$C19,InTB!$C:$C,K$1)-SUMIFS(InTB!$K:$K,InTB!$N:$N,$B19,InTB!$C:$C,K$1) -> 0 | L19: =ROUND($T19*L$2,2)-SUMIFS(InTB!$K:$K,InTB!$M:$M,$E19,InTB!$C:$C,L$1)-SUMIFS(InTB!$K:$K,InTB!$N:$N,$C19,InTB!$C:$C,L$1)-SUMIFS(InTB!$K:$K,InTB!$N:$N,$B19,InTB!$C:$C,L$1) -> 0 | M19: =ROUND($T19*M$2,2)-SUMIFS(InTB!$K:$K,InTB!$M:$M,$E19,InTB!$C:$C,M$1)-SUMIFS(InTB!$K:$K,InTB!$N:$N,$C19,InTB!$C:$C,M$1)-SUMIFS(InTB!$K:$K,InTB!$N:$N,$B19,InTB!$C:$C,M$1) -> 0 | N19: =ROUND($T19*N$2,2)-SUMIFS(InTB!$K:$K,InTB!$M:$M,$E19,InTB!$C:$C,N$1)-SUMIFS(InTB!$K:$K,InTB!$N:$N,$C19,InTB!$C:$C,N$1)-SUMIFS(InTB!$K:$K,InTB!$N:$N,$B19,InTB!$C:$C,N$1) -> 0 | O19: =ROUND($T19*O$2,2)-SUMIFS(InTB!$K:$K,InTB!$M:$M,$E19,InTB!$C:$C,O$1)-SUMIFS(InTB!$K:$K,InTB!$N:$N,$C19,InTB!$C:$C,O$1)-SUMIFS(InTB!$K:$K,InTB!$N:$N,$B19,InTB!$C:$C,O$1) -> 0 | P19: =ROUND($T19*P$2,2)-SUMIFS(InTB!$K:$K,InTB!$M:$M,$E19,InTB!$C:$C,P$1)-SUMIFS(InTB!$K:$K,InTB!$N:$N,$C19,InTB!$C:$C,P$1)-SUMIFS(InTB!$K:$K,InTB!$N:$N,$B19,InTB!$C:$C,P$1) -> 0 | Q19: =ROUND($T19*Q$2,2)-SUMIFS(InTB!$K:$K,InTB!$M:$M,$E19,InTB!$C:$C,Q$1)-SUMIFS(InTB!$K:$K,InTB!$N:$N,$C19,InTB!$C:$C,Q$1)-SUMIFS(InTB!$K:$K,InTB!$N:$N,$B19,InTB!$C:$C,Q$1) -> 0 | R19: =ROUND($T19*R$2,2)-SUMIFS(InTB!$K:$K,InTB!$M:$M,$E19,InTB!$C:$C,R$1)-SUMIFS(InTB!$K:$K,InTB!$N:$N,$C19,InTB!$C:$C,R$1)-SUMIFS(InTB!$K:$K,InTB!$N:$N,$B19,InTB!$C:$C,R$1) -> 0 | S19: =ROUND($T19*S$2,2)-SUMIFS(InTB!$K:$K,InTB!$M:$M,$E19,InTB!$C:$C,S$1)-SUMIFS(InTB!$K:$K,InTB!$N:$N,$C19,InTB!$C:$C,S$1)-SUMIFS(InTB!$K:$K,InTB!$N:$N,$B19,InTB!$C:$C,S$1) -> 0 | T19: =-SUMIF(InTBBase!$M:$M,$E19,InTBBase!$K:$K)-SUMIF(InTBBase!$N:$N,$C19,InTBBase!$K:$K)-SUMIF(InTBBase!$N:$N,$B19,InTBBase!$K:$K) -> 0 | V19: 0
D20: AMORT | F20: =OFFSET(Label!$A$1,MATCH(D20,Label!$A$1:$A$65537,0)-1,Main!$G$14+1) -> (AMORTISATION OF PREMIUM, NET ACCREATION OF DISCOUNT)/ | V20: 0
D21: ACCRE | F21: =OFFSET(Label!$A$1,MATCH(D21,Label!$A$1:$A$65537,0)-1,Main!$G$14+1) -> ACCREATION OF DISCOUNT, NET AMORTISATION OF PREMIUM | I21: =SUM(I22:I24) -> 0 | J21: 0 | K21: =SUM(K22:K24) -> 0 | L21: 0 | M21: 0 | N21: 0 | O21: =SUM(O22:O24) -> 0 | P21: 0 | Q21: 0 | R21: =SUM(R22:R24) -> 0 | S21: 0 | T21: =SUM(T22:T24) -> 0 | V21: 0
C22: PRACCE_CP | D22: ACCRE1 | E22: PRDSCP | F22: =OFFSET(Label!$A$1,MATCH(D22,Label!$A$1:$A$65537,0)-1,Main!$G$14+1) -> Discount - Commercial Paper | I22: =-SUMIF(InTB!$M:$M,$E22,InTB!$K:$K)-SUMIF(InTB!$N:$N,$C22,InTB!$K:$K)-SUMIF(InTB!$N:$N,$B22,InTB!$K:$K) -> 0 | J22: =ROUND($T22*J$2,2)-SUMIFS(InTB!$K:$K,InTB!$M:$M,$E22,InTB!$C:$C,J$1)-SUMIFS(InTB!$K:$K,InTB!$N:$N,$C22,InTB!$C:$C,J$1)-SUMIFS(InTB!$K:$K,InTB!$N:$N,$B22,InTB!$C:$C,J$1) -> 0 | K22: =ROUND($T22*K$2,2)-SUMIFS(InTB!$K:$K,InTB!$M:$M,$E22,InTB!$C:$C,K$1)-SUMIFS(InTB!$K:$K,InTB!$N:$N,$C22,InTB!$C:$C,K$1)-SUMIFS(InTB!$K:$K,InTB!$N:$N,$B22,InTB!$C:$C,K$1) -> 0 | L22: =ROUND($T22*L$2,2)-SUMIFS(InTB!$K:$K,InTB!$M:$M,$E22,InTB!$C:$C,L$1)-SUMIFS(InTB!$K:$K,InTB!$N:$N,$C22,InTB!$C:$C,L$1)-SUMIFS(InTB!$K:$K,InTB!$N:$N,$B22,InTB!$C:$C,L$1) -> 0 | M22: =ROUND($T22*M$2,2)-SUMIFS(InTB!$K:$K,InTB!$M:$M,$E22,InTB!$C:$C,M$1)-SUMIFS(InTB!$K:$K,InTB!$N:$N,$C22,InTB!$C:$C,M$1)-SUMIFS(InTB!$K:$K,InTB!$N:$N,$B22,InTB!$C:$C,M$1) -> 0 | N22: =ROUND($T22*N$2,2)-SUMIFS(InTB!$K:$K,InTB!$M:$M,$E22,InTB!$C:$C,N$1)-SUMIFS(InTB!$K:$K,InTB!$N:$N,$C22,InTB!$C:$C,N$1)-SUMIFS(InTB!$K:$K,InTB!$N:$N,$B22,InTB!$C:$C,N$1) -> 0 | O22: =ROUND($T22*O$2,2)-SUMIFS(InTB!$K:$K,InTB!$M:$M,$E22,InTB!$C:$C,O$1)-SUMIFS(InTB!$K:$K,InTB!$N:$N,$C22,InTB!$C:$C,O$1)-SUMIFS(InTB!$K:$K,InTB!$N:$N,$B22,InTB!$C:$C,O$1) -> 0 | P22: =ROUND($T22*P$2,2)-SUMIFS(InTB!$K:$K,InTB!$M:$M,$E22,InTB!$C:$C,P$1)-SUMIFS(InTB!$K:$K,InTB!$N:$N,$C22,InTB!$C:$C,P$1)-SUMIFS(InTB!$K:$K,InTB!$N:$N,$B22,InTB!$C:$C,P$1) -> 0 | Q22: =ROUND($T22*Q$2,2)-SUMIFS(InTB!$K:$K,InTB!$M:$M,$E22,InTB!$C:$C,Q$1)-SUMIFS(InTB!$K:$K,InTB!$N:$N,$C22,InTB!$C:$C,Q$1)-SUMIFS(InTB!$K:$K,InTB!$N:$N,$B22,InTB!$C:$C,Q$1) -> 0 | R22: =ROUND($T22*R$2,2)-SUMIFS(InTB!$K:$K,InTB!$M:$M,$E22,InTB!$C:$C,R$1)-SUMIFS(InTB!$K:$K,InTB!$N:$N,$C22,InTB!$C:$C,R$1)-SUMIFS(InTB!$K:$K,InTB!$N:$N,$B22,InTB!$C:$C,R$1) -> 0 | S22: =ROUND($T22*S$2,2)-SUMIFS(InTB!$K:$K,InTB!$M:$M,$E22,InTB!$C:$C,S$1)-SUMIFS(InTB!$K:$K,InTB!$N:$N,$C22,InTB!$C:$C,S$1)-SUMIFS(InTB!$K:$K,InTB!$N:$N,$B22,InTB!$C:$C,S$1) -> 0 | T22: =-SUMIF(InTBBase!$M:$M,$E22,InTBBase!$K:$K)-SUMIF(InTBBase!$N:$N,$C22,InTBBase!$K:$K)-SUMIF(InTBBase!$N:$N,$B22,InTBBase!$K:$K) -> 0 | V22: 0
B23: PRACCE_O-BND | C23: PRACCE_BND | D23: ACCRE2 | E23: PRDSCB | F23: =OFFSET(Label!$A$1,MATCH(D23,Label!$A$1:$A$65537,0)-1,Main!$G$14+1) -> Discount - Commercial Bond | I23: =-SUMIF(InTB!$M:$M,$E23,InTB!$K:$K)-SUMIF(InTB!$N:$N,$C23,InTB!$K:$K)-SUMIF(InTB!$N:$N,$B23,InTB!$K:$K) -> 0 | J23: =ROUND($T23*J$2,2)-SUMIFS(InTB!$K:$K,InTB!$M:$M,$E23,InTB!$C:$C,J$1)-SUMIFS(InTB!$K:$K,InTB!$N:$N,$C23,InTB!$C:$C,J$1)-SUMIFS(InTB!$K:$K,InTB!$N:$N,$B23,InTB!$C:$C,J$1) -> 0 | K23: =ROUND($T23*K$2,2)-SUMIFS(InTB!$K:$K,InTB!$M:$M,$E23,InTB!$C:$C,K$1)-SUMIFS(InTB!$K:$K,InTB!$N:$N,$C23,InTB!$C:$C,K$1)-SUMIFS(InTB!$K:$K,InTB!$N:$N,$B23,InTB!$C:$C,K$1) -> 0 | L23: =ROUND($T23*L$2,2)-SUMIFS(InTB!$K:$K,InTB!$M:$M,$E23,InTB!$C:$C,L$1)-SUMIFS(InTB!$K:$K,InTB!$N:$N,$C23,InTB!$C:$C,L$1)-SUMIFS(InTB!$K:$K,InTB!$N:$N,$B23,InTB!$C:$C,L$1) -> 0 | M23: =ROUND($T23*M$2,2)-SUMIFS(InTB!$K:$K,InTB!$M:$M,$E23,InTB!$C:$C,M$1)-SUMIFS(InTB!$K:$K,InTB!$N:$N,$C23,InTB!$C:$C,M$1)-SUMIFS(InTB!$K:$K,InTB!$N:$N,$B23,InTB!$C:$C,M$1) -> 0 | N23: =ROUND($T23*N$2,2)-SUMIFS(InTB!$K:$K,InTB!$M:$M,$E23,InTB!$C:$C,N$1)-SUMIFS(InTB!$K:$K,InTB!$N:$N,$C23,InTB!$C:$C,N$1)-SUMIFS(InTB!$K:$K,InTB!$N:$N,$B23,InTB!$C:$C,N$1) -> 0 | O23: =ROUND($T23*O$2,2)-SUMIFS(InTB!$K:$K,InTB!$M:$M,$E23,InTB!$C:$C,O$1)-SUMIFS(InTB!$K:$K,InTB!$N:$N,$C23,InTB!$C:$C,O$1)-SUMIFS(InTB!$K:$K,InTB!$N:$N,$B23,InTB!$C:$C,O$1) -> 0 | P23: =ROUND($T23*P$2,2)-SUMIFS(InTB!$K:$K,InTB!$M:$M,$E23,InTB!$C:$C,P$1)-SUMIFS(InTB!$K:$K,InTB!$N:$N,$C23,InTB!$C:$C,P$1)-SUMIFS(InTB!$K:$K,InTB!$N:$N,$B23,InTB!$C:$C,P$1) -> 0 | Q23: =ROUND($T23*Q$2,2)-SUMIFS(InTB!$K:$K,InTB!$M:$M,$E23,InTB!$C:$C,Q$1)-SUMIFS(InTB!$K:$K,InTB!$N:$N,$C23,InTB!$C:$C,Q$1)-SUMIFS(InTB!$K:$K,InTB!$N:$N,$B23,InTB!$C:$C,Q$1) -> 0 | R23: =ROUND($T23*R$2,2)-SUMIFS(InTB!$K:$K,InTB!$M:$M,$E23,InTB!$C:$C,R$1)-SUMIFS(InTB!$K:$K,InTB!$N:$N,$C23,InTB!$C:$C,R$1)-SUMIFS(InTB!$K:$K,InTB!$N:$N,$B23,InTB!$C:$C,R$1) -> 0 | S23: =ROUND($T23*S$2,2)-SUMIFS(InTB!$K:$K,InTB!$M:$M,$E23,InTB!$C:$C,S$1)-SUMIFS(InTB!$K:$K,InTB!$N:$N,$C23,InTB!$C:$C,S$1)-SUMIFS(InTB!$K:$K,InTB!$N:$N,$B23,InTB!$C:$C,S$1) -> 0 | T23: =-SUMIF(InTBBase!$M:$M,$E23,InTBBase!$K:$K)-SUMIF(InTBBase!$N:$N,$C23,InTBBase!$K:$K)-SUMIF(InTBBase!$N:$N,$B23,InTBBase!$K:$K) -> 0 | V23: 0
B24: PRAMRT_O-BND | C24: PRAMRT_BND | D24: ACCRE3 | E24: PRAMCB | F24: =OFFSET(Label!$A$1,MATCH(D24,Label!$A$1:$A$65537,0)-1,Main!$G$14+1) -> Amortisation of Premium-Commercial Bond | I24: =-SUMIF(InTB!$M:$M,$E24,InTB!$K:$K)-SUMIF(InTB!$N:$N,$C24,InTB!$K:$K)-SUMIF(InTB!$N:$N,$B24,InTB!$K:$K) -> 0 | J24: =ROUND($T24*J$2,2)-SUMIFS(InTB!$K:$K,InTB!$M:$M,$E24,InTB!$C:$C,J$1)-SUMIFS(InTB!$K:$K,InTB!$N:$N,$C24,InTB!$C:$C,J$1)-SUMIFS(InTB!$K:$K,InTB!$N:$N,$B24,InTB!$C:$C,J$1) -> 0 | K24: =ROUND($T24*K$2,2)-SUMIFS(InTB!$K:$K,InTB!$M:$M,$E24,InTB!$C:$C,K$1)-SUMIFS(InTB!$K:$K,InTB!$N:$N,$C24,InTB!$C:$C,K$1)-SUMIFS(InTB!$K:$K,InTB!$N:$N,$B24,InTB!$C:$C,K$1) -> 0 | L24: =ROUND($T24*L$2,2)-SUMIFS(InTB!$K:$K,InTB!$M:$M,$E24,InTB!$C:$C,L$1)-SUMIFS(InTB!$K:$K,InTB!$N:$N,$C24,InTB!$C:$C,L$1)-SUMIFS(InTB!$K:$K,InTB!$N:$N,$B24,InTB!$C:$C,L$1) -> 0 | M24: =ROUND($T24*M$2,2)-SUMIFS(InTB!$K:$K,InTB!$M:$M,$E24,InTB!$C:$C,M$1)-SUMIFS(InTB!$K:$K,InTB!$N:$N,$C24,InTB!$C:$C,M$1)-SUMIFS(InTB!$K:$K,InTB!$N:$N,$B24,InTB!$C:$C,M$1) -> 0 | N24: =ROUND($T24*N$2,2)-SUMIFS(InTB!$K:$K,InTB!$M:$M,$E24,InTB!$C:$C,N$1)-SUMIFS(InTB!$K:$K,InTB!$N:$N,$C24,InTB!$C:$C,N$1)-SUMIFS(InTB!$K:$K,InTB!$N:$N,$B24,InTB!$C:$C,N$1) -> 0 | O24: =ROUND($T24*O$2,2)-SUMIFS(InTB!$K:$K,InTB!$M:$M,$E24,InTB!$C:$C,O$1)-SUMIFS(InTB!$K:$K,InTB!$N:$N,$C24,InTB!$C:$C,O$1)-SUMIFS(InTB!$K:$K,InTB!$N:$N,$B24,InTB!$C:$C,O$1) -> 0 | P24: =ROUND($T24*P$2,2)-SUMIFS(InTB!$K:$K,InTB!$M:$M,$E24,InTB!$C:$C,P$1)-SUMIFS(InTB!$K:$K,InTB!$N:$N,$C24,InTB!$C:$C,P$1)-SUMIFS(InTB!$K:$K,InTB!$N:$N,$B24,InTB!$C:$C,P$1) -> 0 | Q24: =ROUND($T24*Q$2,2)-SUMIFS(InTB!$K:$K,InTB!$M:$M,$E24,InTB!$C:$C,Q$1)-SUMIFS(InTB!$K:$K,InTB!$N:$N,$C24,InTB!$C:$C,Q$1)-SUMIFS(InTB!$K:$K,InTB!$N:$N,$B24,InTB!$C:$C,Q$1) -> 0 | R24: =ROUND($T24*R$2,2)-SUMIFS(InTB!$K:$K,InTB!$M:$M,$E24,InTB!$C:$C,R$1)-SUMIFS(InTB!$K:$K,InTB!$N:$N,$C24,InTB!$C:$C,R$1)-SUMIFS(InTB!$K:$K,InTB!$N:$N,$B24,InTB!$C:$C,R$1) -> 0 | S24: =ROUND($T24*S$2,2)-SUMIFS(InTB!$K:$K,InTB!$M:$M,$E24,InTB!$C:$C,S$1)-SUMIFS(InTB!$K:$K,InTB!$N:$N,$C24,InTB!$C:$C,S$1)-SUMIFS(InTB!$K:$K,InTB!$N:$N,$B24,InTB!$C:$C,S$1) -> 0 | T24: =-SUMIF(InTBBase!$M:$M,$E24,InTBBase!$K:$K)-SUMIF(InTBBase!$N:$N,$C24,InTBBase!$K:$K)-SUMIF(InTBBase!$N:$N,$B24,InTBBase!$K:$K) -> 0 | V24: 0
D25: GDIV | F25: =OFFSET(Label!$A$1,MATCH(D25,Label!$A$1:$A$65537,0)-1,Main!$G$14+1) -> GROSS DIVIDEND | I25: =SUM(I26:I29) -> 40809.08 | J25: =SUM(J26:J29) -> 0 | K25: =SUM(K26:K29) -> 0 | L25: 0 | M25: 0 | N25: 0 | O25: =SUM(O26:O29) -> 0 | P25: 0 | Q25: 0 | R25: =SUM(R26:R29) -> 40809.08 | S25: 0 | T25: =SUM(T26:T29) -> 40809.08 | V25: 0
C26: PRDVTA* | D26: GDIV1 | F26: =OFFSET(Label!$A$1,MATCH(D26,Label!$A$1:$A$65537,0)-1,Main!$G$14+1) -> Dividend Income - Local (TA) | I26: =-SUMIF(InTB!$N:$N,$C26,InTB!$K:$K)-SUMIF(InTB!$N:$N,$B26,InTB!$K:$K)-I28 -> 0 | J26: =ROUND($T26*J$2,2)-SUMIFS(InTB!$K:$K,InTB!$N:$N,$C26,InTB!$C:$C,J$1)-SUMIFS(InTB!$K:$K,InTB!$N:$N,$B26,InTB!$C:$C,J$1)-SUMIFS(InTB!$K:$K,InTB!$N:$N,$C28,InTB!$C:$C,J$1)-SUMIFS(InTB!$K:$K,InTB!$N:$N,$B28,InTB!$C:$C,J$1) -> 0 | K26: =ROUND($T26*K$2,2)-SUMIFS(InTB!$K:$K,InTB!$N:$N,$C26,InTB!$C:$C,K$1)-SUMIFS(InTB!$K:$K,InTB!$N:$N,$B26,InTB!$C:$C,K$1)-SUMIFS(InTB!$K:$K,InTB!$N:$N,$C28,InTB!$C:$C,K$1)-SUMIFS(InTB!$K:$K,InTB!$N:$N,$B28,InTB!$C:$C,K$1) -> 0 | L26: =ROUND($T26*L$2,2)-SUMIFS(InTB!$K:$K,InTB!$N:$N,$C26,InTB!$C:$C,L$1)-SUMIFS(InTB!$K:$K,InTB!$N:$N,$B26,InTB!$C:$C,L$1)-SUMIFS(InTB!$K:$K,InTB!$N:$N,$C28,InTB!$C:$C,L$1)-SUMIFS(InTB!$K:$K,InTB!$N:$N,$B28,InTB!$C:$C,L$1) -> 0 | M26: =ROUND($T26*M$2,2)-SUMIFS(InTB!$K:$K,InTB!$N:$N,$C26,InTB!$C:$C,M$1)-SUMIFS(InTB!$K:$K,InTB!$N:$N,$B26,InTB!$C:$C,M$1)-SUMIFS(InTB!$K:$K,InTB!$N:$N,$C28,InTB!$C:$C,M$1)-SUMIFS(InTB!$K:$K,InTB!$N:$N,$B28,InTB!$C:$C,M$1) -> 0 | N26: =ROUND($T26*N$2,2)-SUMIFS(InTB!$K:$K,InTB!$N:$N,$C26,InTB!$C:$C,N$1)-SUMIFS(InTB!$K:$K,InTB!$N:$N,$B26,InTB!$C:$C,N$1)-SUMIFS(InTB!$K:$K,InTB!$N:$N,$C28,InTB!$C:$C,N$1)-SUMIFS(InTB!$K:$K,InTB!$N:$N,$B28,InTB!$C:$C,N$1) -> 0 | O26: =ROUND($T26*O$2,2)-SUMIFS(InTB!$K:$K,InTB!$N:$N,$C26,InTB!$C:$C,O$1)-SUMIFS(InTB!$K:$K,InTB!$N:$N,$B26,InTB!$C:$C,O$1)-SUMIFS(InTB!$K:$K,InTB!$N:$N,$C28,InTB!$C:$C,O$1)-SUMIFS(InTB!$K:$K,InTB!$N:$N,$B28,InTB!$C:$C,O$1) -> 0 | P26: =ROUND($T26*P$2,2)-SUMIFS(InTB!$K:$K,InTB!$N:$N,$C26,InTB!$C:$C,P$1)-SUMIFS(InTB!$K:$K,InTB!$N:$N,$B26,InTB!$C:$C,P$1)-SUMIFS(InTB!$K:$K,InTB!$N:$N,$C28,InTB!$C:$C,P$1)-SUMIFS(InTB!$K:$K,InTB!$N:$N,$B28,InTB!$C:$C,P$1) -> 0 | Q26: =ROUND($T26*Q$2,2)-SUMIFS(InTB!$K:$K,InTB!$N:$N,$C26,InTB!$C:$C,Q$1)-SUMIFS(InTB!$K:$K,InTB!$N:$N,$B26,InTB!$C:$C,Q$1)-SUMIFS(InTB!$K:$K,InTB!$N:$N,$C28,InTB!$C:$C,Q$1)-SUMIFS(InTB!$K:$K,InTB!$N:$N,$B28,InTB!$C:$C,Q$1) -> 0 | R26: =ROUND($T26*R$2,2)-SUMIFS(InTB!$K:$K,InTB!$N:$N,$C26,InTB!$C:$C,R$1)-SUMIFS(InTB!$K:$K,InTB!$N:$N,$B26,InTB!$C:$C,R$1)-SUMIFS(InTB!$K:$K,InTB!$N:$N,$C28,InTB!$C:$C,R$1)-SUMIFS(InTB!$K:$K,InTB!$N:$N,$B28,InTB!$C:$C,R$1) -> 0 | S26: =ROUND($T26*S$2,2)-SUMIFS(InTB!$K:$K,InTB!$N:$N,$C26,InTB!$C:$C,S$1)-SUMIFS(InTB!$K:$K,InTB!$N:$N,$B26,InTB!$C:$C,S$1)-SUMIFS(InTB!$K:$K,InTB!$N:$N,$C28,InTB!$C:$C,S$1)-SUMIFS(InTB!$K:$K,InTB!$N:$N,$B28,InTB!$C:$C,S$1) -> 0 | T26: =-SUMIF(InTBBase!$N:$N,$C26,InTBBase!$K:$K)-SUMIF(InTBBase!$N:$N,$B26,InTBBase!$K:$K)-T28 -> 0 | V26: 0
C27: PRDVTE* | D27: GDIV2 | F27: =OFFSET(Label!$A$1,MATCH(D27,Label!$A$1:$A$65537,0)-1,Main!$G$14+1) -> Dividend Income - Local (TE) | I27: =-SUMIF(InTB!$N:$N,$C27,InTB!$K:$K)-SUMIF(InTB!$N:$N,$B27,InTB!$K:$K)-I29 -> 3662.87 | J27: =ROUND($T27*J$2,2)-SUMIFS(InTB!$K:$K,InTB!$N:$N,$C27,InTB!$C:$C,J$1)-SUMIFS(InTB!$K:$K,InTB!$N:$N,$B27,InTB!$C:$C,J$1)-SUMIFS(InTB!$K:$K,InTB!$N:$N,$C29,InTB!$C:$C,J$1)-SUMIFS(InTB!$K:$K,InTB!$N:$N,$B29,InTB!$C:$C,J$1) -> 0 | K27: =ROUND($T27*K$2,2)-SUMIFS(InTB!$K:$K,InTB!$N:$N,$C27,InTB!$C:$C,K$1)-SUMIFS(InTB!$K:$K,InTB!$N:$N,$B27,InTB!$C:$C,K$1)-SUMIFS(InTB!$K:$K,InTB!$N:$N,$C29,InTB!$C:$C,K$1)-SUMIFS(InTB!$K:$K,InTB!$N:$N,$B29,InTB!$C:$C,K$1) -> 0 | L27: =ROUND($T27*L$2,2)-SUMIFS(InTB!$K:$K,InTB!$N:$N,$C27,InTB!$C:$C,L$1)-SUMIFS(InTB!$K:$K,InTB!$N:$N,$B27,InTB!$C:$C,L$1)-SUMIFS(InTB!$K:$K,InTB!$N:$N,$C29,InTB!$C:$C,L$1)-SUMIFS(InTB!$K:$K,InTB!$N:$N,$B29,InTB!$C:$C,L$1) -> 0 | M27: =ROUND($T27*M$2,2)-SUMIFS(InTB!$K:$K,InTB!$N:$N,$C27,InTB!$C:$C,M$1)-SUMIFS(InTB!$K:$K,InTB!$N:$N,$B27,InTB!$C:$C,M$1)-SUMIFS(InTB!$K:$K,InTB!$N:$N,$C29,InTB!$C:$C,M$1)-SUMIFS(InTB!$K:$K,InTB!$N:$N,$B29,InTB!$C:$C,M$1) -> 0 | N27: =ROUND($T27*N$2,2)-SUMIFS(InTB!$K:$K,InTB!$N:$N,$C27,InTB!$C:$C,N$1)-SUMIFS(InTB!$K:$K,InTB!$N:$N,$B27,InTB!$C:$C,N$1)-SUMIFS(InTB!$K:$K,InTB!$N:$N,$C29,InTB!$C:$C,N$1)-SUMIFS(InTB!$K:$K,InTB!$N:$N,$B29,InTB!$C:$C,N$1) -> 0 | O27: =ROUND($T27*O$2,2)-SUMIFS(InTB!$K:$K,InTB!$N:$N,$C27,InTB!$C:$C,O$1)-SUMIFS(InTB!$K:$K,InTB!$N:$N,$B27,InTB!$C:$C,O$1)-SUMIFS(InTB!$K:$K,InTB!$N:$N,$C29,InTB!$C:$C,O$1)-SUMIFS(InTB!$K:$K,InTB!$N:$N,$B29,InTB!$C:$C,O$1) -> 0 | P27: =ROUND($T27*P$2,2)-SUMIFS(InTB!$K:$K,InTB!$N:$N,$C27,InTB!$C:$C,P$1)-SUMIFS(InTB!$K:$K,InTB!$N:$N,$B27,InTB!$C:$C,P$1)-SUMIFS(InTB!$K:$K,InTB!$N:$N,$C29,InTB!$C:$C,P$1)-SUMIFS(InTB!$K:$K,InTB!$N:$N,$B29,InTB!$C:$C,P$1) -> 0 | Q27: =ROUND($T27*Q$2,2)-SUMIFS(InTB!$K:$K,InTB!$N:$N,$C27,InTB!$C:$C,Q$1)-SUMIFS(InTB!$K:$K,InTB!$N:$N,$B27,InTB!$C:$C,Q$1)-SUMIFS(InTB!$K:$K,InTB!$N:$N,$C29,InTB!$C:$C,Q$1)-SUMIFS(InTB!$K:$K,InTB!$N:$N,$B29,InTB!$C:$C,Q$1) -> 0 | R27: =ROUND($T27*R$2,2)-SUMIFS(InTB!$K:$K,InTB!$N:$N,$C27,InTB!$C:$C,R$1)-SUMIFS(InTB!$K:$K,InTB!$N:$N,$B27,InTB!$C:$C,R$1)-SUMIFS(InTB!$K:$K,InTB!$N:$N,$C29,InTB!$C:$C,R$1)-SUMIFS(InTB!$K:$K,InTB!$N:$N,$B29,InTB!$C:$C,R$1) -> 3662.87 | S27: =ROUND($T27*S$2,2)-SUMIFS(InTB!$K:$K,InTB!$N:$N,$C27,InTB!$C:$C,S$1)-SUMIFS(InTB!$K:$K,InTB!$N:$N,$B27,InTB!$C:$C,S$1)-SUMIFS(InTB!$K:$K,InTB!$N:$N,$C29,InTB!$C:$C,S$1)-SUMIFS(InTB!$K:$K,InTB!$N:$N,$B29,InTB!$C:$C,S$1) -> 0 | T27: =-SUMIF(InTBBase!$N:$N,$C27,InTBBase!$K:$K)-SUMIF(InTBBase!$N:$N,$B27,InTBBase!$K:$K)-T29 -> 3662.87 | V27: 0
C28: PRDVTA_O-* | D28: GDIV3 | F28: =OFFSET(Label!$A$1,MATCH(D28,Label!$A$1:$A$65537,0)-1,Main!$G$14+1) -> Dividend Income - Foreign (TA) | I28: =-SUMIF(InTB!$N:$N,$C28,InTB!$K:$K)-SUMIF(InTB!$N:$N,$B28,InTB!$K:$K) -> 28278.27 | J28: =ROUND($T28*J$2,2)-SUMIFS(InTB!$K:$K,InTB!$N:$N,$C28,InTB!$C:$C,J$1)-SUMIFS(InTB!$K:$K,InTB!$N:$N,$B28,InTB!$C:$C,J$1) -> 0 | K28: =ROUND($T28*K$2,2)-SUMIFS(InTB!$K:$K,InTB!$N:$N,$C28,InTB!$C:$C,K$1)-SUMIFS(InTB!$K:$K,InTB!$N:$N,$B28,InTB!$C:$C,K$1) -> 0 | L28: =ROUND($T28*L$2,2)-SUMIFS(InTB!$K:$K,InTB!$N:$N,$C28,InTB!$C:$C,L$1)-SUMIFS(InTB!$K:$K,InTB!$N:$N,$B28,InTB!$C:$C,L$1) -> 0 | M28: =ROUND($T28*M$2,2)-SUMIFS(InTB!$K:$K,InTB!$N:$N,$C28,InTB!$C:$C,M$1)-SUMIFS(InTB!$K:$K,InTB!$N:$N,$B28,InTB!$C:$C,M$1) -> 0 | N28: =ROUND($T28*N$2,2)-SUMIFS(InTB!$K:$K,InTB!$N:$N,$C28,InTB!$C:$C,N$1)-SUMIFS(InTB!$K:$K,InTB!$N:$N,$B28,InTB!$C:$C,N$1) -> 0 | O28: =ROUND($T28*O$2,2)-SUMIFS(InTB!$K:$K,InTB!$N:$N,$C28,InTB!$C:$C,O$1)-SUMIFS(InTB!$K:$K,InTB!$N:$N,$B28,InTB!$C:$C,O$1) -> 0 | P28: =ROUND($T28*P$2,2)-SUMIFS(InTB!$K:$K,InTB!$N:$N,$C28,InTB!$C:$C,P$1)-SUMIFS(InTB!$K:$K,InTB!$N:$N,$B28,InTB!$C:$C,P$1) -> 0 | Q28: =ROUND($T28*Q$2,2)-SUMIFS(InTB!$K:$K,InTB!$N:$N,$C28,InTB!$C:$C,Q$1)-SUMIFS(InTB!$K:$K,InTB!$N:$N,$B28,InTB!$C:$C,Q$1) -> 0 | R28: =ROUND($T28*R$2,2)-SUMIFS(InTB!$K:$K,InTB!$N:$N,$C28,InTB!$C:$C,R$1)-SUMIFS(InTB!$K:$K,InTB!$N:$N,$B28,InTB!$C:$C,R$1) -> 28278.27 | S28: =ROUND($T28*S$2,2)-SUMIFS(InTB!$K:$K,InTB!$N:$N,$C28,InTB!$C:$C,S$1)-SUMIFS(InTB!$K:$K,InTB!$N:$N,$B28,InTB!$C:$C,S$1) -> 0 | T28: =-SUMIF(InTBBase!$N:$N,$C28,InTBBase!$K:$K)-SUMIF(InTBBase!$N:$N,$B28,InTBBase!$K:$K) -> 28278.27 | V28: 0
C29: PRDVTE_O-* | D29: GDIV4 | F29: =OFFSET(Label!$A$1,MATCH(D29,Label!$A$1:$A$65537,0)-1,Main!$G$14+1) -> Dividend Income - Foreign (TE) | I29: =-SUMIF(InTB!$N:$N,$C29,InTB!$K:$K)-SUMIF(InTB!$N:$N,$B29,InTB!$K:$K) -> 8867.94 | J29: =ROUND($T29*J$2,2)-SUMIFS(InTB!$K:$K,InTB!$N:$N,$C29,InTB!$C:$C,J$1)-SUMIFS(InTB!$K:$K,InTB!$N:$N,$B29,InTB!$C:$C,J$1) -> 0 | K29: =ROUND($T29*K$2,2)-SUMIFS(InTB!$K:$K,InTB!$N:$N,$C29,InTB!$C:$C,K$1)-SUMIFS(InTB!$K:$K,InTB!$N:$N,$B29,InTB!$C:$C,K$1) -> 0 | L29: =ROUND($T29*L$2,2)-SUMIFS(InTB!$K:$K,InTB!$N:$N,$C29,InTB!$C:$C,L$1)-SUMIFS(InTB!$K:$K,InTB!$N:$N,$B29,InTB!$C:$C,L$1) -> 0 | M29: =ROUND($T29*M$2,2)-SUMIFS(InTB!$K:$K,InTB!$N:$N,$C29,InTB!$C:$C,M$1)-SUMIFS(InTB!$K:$K,InTB!$N:$N,$B29,InTB!$C:$C,M$1) -> 0 | N29: =ROUND($T29*N$2,2)-SUMIFS(InTB!$K:$K,InTB!$N:$N,$C29,InTB!$C:$C,N$1)-SUMIFS(InTB!$K:$K,InTB!$N:$N,$B29,InTB!$C:$C,N$1) -> 0 | O29: =ROUND($T29*O$2,2)-SUMIFS(InTB!$K:$K,InTB!$N:$N,$C29,InTB!$C:$C,O$1)-SUMIFS(InTB!$K:$K,InTB!$N:$N,$B29,InTB!$C:$C,O$1) -> 0 | P29: =ROUND($T29*P$2,2)-SUMIFS(InTB!$K:$K,InTB!$N:$N,$C29,InTB!$C:$C,P$1)-SUMIFS(InTB!$K:$K,InTB!$N:$N,$B29,InTB!$C:$C,P$1) -> 0 | Q29: =ROUND($T29*Q$2,2)-SUMIFS(InTB!$K:$K,InTB!$N:$N,$C29,InTB!$C:$C,Q$1)-SUMIFS(InTB!$K:$K,InTB!$N:$N,$B29,InTB!$C:$C,Q$1) -> 0 | R29: =ROUND($T29*R$2,2)-SUMIFS(InTB!$K:$K,InTB!$N:$N,$C29,InTB!$C:$C,R$1)-SUMIFS(InTB!$K:$K,InTB!$N:$N,$B29,InTB!$C:$C,R$1) -> 8867.94 | S29: =ROUND($T29*S$2,2)-SUMIFS(InTB!$K:$K,InTB!$N:$N,$C29,InTB!$C:$C,S$1)-SUMIFS(InTB!$K:$K,InTB!$N:$N,$B29,InTB!$C:$C,S$1) -> 0 | T29: =-SUMIF(InTBBase!$N:$N,$C29,InTBBase!$K:$K)-SUMIF(InTBBase!$N:$N,$B29,InTBBase!$K:$K) -> 8867.94 | V29: 0
F30: NET REALISED GAIN/(LOSS) ON SALE OF INVESTMENTS | I30: =I31+I32 -> -57306.35 | J30: =J31+J32 -> 0 | K30: =K31+K32 -> 0 | L30: 0 | M30: 0 | N30: 0 | O30: =O31+O32 -> 0 | P30: 0 | Q30: 0 | R30: =R31+R32 -> -57306.35 | S30: =S31+S32 -> 0 | T30: -57306.35 | V30: 0
C31: PRRGNL* | E31: PRGNLO | F31: Local | I31: =-SUMIF(InTB!$N:$N,$C31,InTB!$K:$K)-SUMIF(InTB!$N:$N,$B31,InTB!$K:$K)-I32 -> 74681.75 | J31: =ROUND($T31*J$2,2)-SUMIFS(InTB!$K:$K,InTB!$N:$N,$C31,InTB!$C:$C,J$1)-SUMIFS(InTB!$K:$K,InTB!$N:$N,$B31,InTB!$C:$C,J$1)-SUMIFS(InTB!$K:$K,InTB!$N:$N,$C32,InTB!$C:$C,J$1)-SUMIFS(InTB!$K:$K,InTB!$N:$N,$B32,InTB!$C:$C,J$1) -> 0 | K31: =ROUND($T31*K$2,2)-SUMIFS(InTB!$K:$K,InTB!$N:$N,$C31,InTB!$C:$C,K$1)-SUMIFS(InTB!$K:$K,InTB!$N:$N,$B31,InTB!$C:$C,K$1)-SUMIFS(InTB!$K:$K,InTB!$N:$N,$C32,InTB!$C:$C,K$1)-SUMIFS(InTB!$K:$K,InTB!$N:$N,$B32,InTB!$C:$C,K$1) -> 0 | L31: =ROUND($T31*L$2,2)-SUMIFS(InTB!$K:$K,InTB!$N:$N,$C31,InTB!$C:$C,L$1)-SUMIFS(InTB!$K:$K,InTB!$N:$N,$B31,InTB!$C:$C,L$1)-SUMIFS(InTB!$K:$K,InTB!$N:$N,$C32,InTB!$C:$C,L$1)-SUMIFS(InTB!$K:$K,InTB!$N:$N,$B32,InTB!$C:$C,L$1) -> 0 | M31: =ROUND($T31*M$2,2)-SUMIFS(InTB!$K:$K,InTB!$N:$N,$C31,InTB!$C:$C,M$1)-SUMIFS(InTB!$K:$K,InTB!$N:$N,$B31,InTB!$C:$C,M$1)-SUMIFS(InTB!$K:$K,InTB!$N:$N,$C32,InTB!$C:$C,M$1)-SUMIFS(InTB!$K:$K,InTB!$N:$N,$B32,InTB!$C:$C,M$1) -> 0 | N31: =ROUND($T31*N$2,2)-SUMIFS(InTB!$K:$K,InTB!$N:$N,$C31,InTB!$C:$C,N$1)-SUMIFS(InTB!$K:$K,InTB!$N:$N,$B31,InTB!$C:$C,N$1)-SUMIFS(InTB!$K:$K,InTB!$N:$N,$C32,InTB!$C:$C,N$1)-SUMIFS(InTB!$K:$K,InTB!$N:$N,$B32,InTB!$C:$C,N$1) -> 0 | O31: =ROUND($T31*O$2,2)-SUMIFS(InTB!$K:$K,InTB!$N:$N,$C31,InTB!$C:$C,O$1)-SUMIFS(InTB!$K:$K,InTB!$N:$N,$B31,InTB!$C:$C,O$1)-SUMIFS(InTB!$K:$K,InTB!$N:$N,$C32,InTB!$C:$C,O$1)-SUMIFS(InTB!$K:$K,InTB!$N:$N,$B32,InTB!$C:$C,O$1) -> 0 | P31: =ROUND($T31*P$2,2)-SUMIFS(InTB!$K:$K,InTB!$N:$N,$C31,InTB!$C:$C,P$1)-SUMIFS(InTB!$K:$K,InTB!$N:$N,$B31,InTB!$C:$C,P$1)-SUMIFS(InTB!$K:$K,InTB!$N:$N,$C32,InTB!$C:$C,P$1)-SUMIFS(InTB!$K:$K,InTB!$N:$N,$B32,InTB!$C:$C,P$1) -> 0 | Q31: =ROUND($T31*Q$2,2)-SUMIFS(InTB!$K:$K,InTB!$N:$N,$C31,InTB!$C:$C,Q$1)-SUMIFS(InTB!$K:$K,InTB!$N:$N,$B31,InTB!$C:$C,Q$1)-SUMIFS(InTB!$K:$K,InTB!$N:$N,$C32,InTB!$C:$C,Q$1)-SUMIFS(InTB!$K:$K,InTB!$N:$N,$B32,InTB!$C:$C,Q$1) -> 0 | R31: =ROUND($T31*R$2,2)-SUMIFS(InTB!$K:$K,InTB!$N:$N,$C31,InTB!$C:$C,R$1)-SUMIFS(InTB!$K:$K,InTB!$N:$N,$B31,InTB!$C:$C,R$1)-SUMIFS(InTB!$K:$K,InTB!$N:$N,$C32,InTB!$C:$C,R$1)-SUMIFS(InTB!$K:$K,InTB!$N:$N,$B32,InTB!$C:$C,R$1) -> 74681.75 | S31: =ROUND($T31*S$2,2)-SUMIFS(InTB!$K:$K,InTB!$N:$N,$C31,InTB!$C:$C,S$1)-SUMIFS(InTB!$K:$K,InTB!$N:$N,$B31,InTB!$C:$C,S$1)-SUMIFS(InTB!$K:$K,InTB!$N:$N,$C32,InTB!$C:$C,S$1)-SUMIFS(InTB!$K:$K,InTB!$N:$N,$B32,InTB!$C:$C,S$1) -> 0 | T31: =-SUMIF(InTBBase!$N:$N,$C31,InTBBase!$K:$K)-SUMIF(InTBBase!$N:$N,$B31,InTBBase!$K:$K)-T32 -> 74681.75 | V31: 0
C32: PRRGNL_O-* | E32: PRGNFO | F32: Foreign | I32: =-SUMIF(InTB!$N:$N,$C32,InTB!$K:$K)-SUMIF(InTB!$N:$N,$B32,InTB!$K:$K) -> -131988.1 | J32: =ROUND($T32*J$2,2)-SUMIFS(InTB!$K:$K,InTB!$N:$N,$C32,InTB!$C:$C,J$1)-SUMIFS(InTB!$K:$K,InTB!$N:$N,$B32,InTB!$C:$C,J$1) -> 0 | K32: =ROUND($T32*K$2,2)-SUMIFS(InTB!$K:$K,InTB!$N:$N,$C32,InTB!$C:$C,K$1)-SUMIFS(InTB!$K:$K,InTB!$N:$N,$B32,InTB!$C:$C,K$1) -> 0 | L32: =ROUND($T32*L$2,2)-SUMIFS(InTB!$K:$K,InTB!$N:$N,$C32,InTB!$C:$C,L$1)-SUMIFS(InTB!$K:$K,InTB!$N:$N,$B32,InTB!$C:$C,L$1) -> 0 | M32: =ROUND($T32*M$2,2)-SUMIFS(InTB!$K:$K,InTB!$N:$N,$C32,InTB!$C:$C,M$1)-SUMIFS(InTB!$K:$K,InTB!$N:$N,$B32,InTB!$C:$C,M$1) -> 0 | N32: =ROUND($T32*N$2,2)-SUMIFS(InTB!$K:$K,InTB!$N:$N,$C32,InTB!$C:$C,N$1)-SUMIFS(InTB!$K:$K,InTB!$N:$N,$B32,InTB!$C:$C,N$1) -> 0 | O32: =ROUND($T32*O$2,2)-SUMIFS(InTB!$K:$K,InTB!$N:$N,$C32,InTB!$C:$C,O$1)-SUMIFS(InTB!$K:$K,InTB!$N:$N,$B32,InTB!$C:$C,O$1) -> 0 | P32: =ROUND($T32*P$2,2)-SUMIFS(InTB!$K:$K,InTB!$N:$N,$C32,InTB!$C:$C,P$1)-SUMIFS(InTB!$K:$K,InTB!$N:$N,$B32,InTB!$C:$C,P$1) -> 0 | Q32: =ROUND($T32*Q$2,2)-SUMIFS(InTB!$K:$K,InTB!$N:$N,$C32,InTB!$C:$C,Q$1)-SUMIFS(InTB!$K:$K,InTB!$N:$N,$B32,InTB!$C:$C,Q$1) -> 0 | R32: =ROUND($T32*R$2,2)-SUMIFS(InTB!$K:$K,InTB!$N:$N,$C32,InTB!$C:$C,R$1)-SUMIFS(InTB!$K:$K,InTB!$N:$N,$B32,InTB!$C:$C,R$1) -> -131988.1 | S32: =ROUND($T32*S$2,2)-SUMIFS(InTB!$K:$K,InTB!$N:$N,$C32,InTB!$C:$C,S$1)-SUMIFS(InTB!$K:$K,InTB!$N:$N,$B32,InTB!$C:$C,S$1) -> 0 | T32: =-SUMIF(InTBBase!$N:$N,$C32,InTBBase!$K:$K)-SUMIF(InTBBase!$N:$N,$B32,InTBBase!$K:$K) -> -131988.1 | V32: 0
E33: PRGNFC | F33: NET GAIN/ (LOSS) ON FORWARD CONTRACT | I33: =-SUMIF(InTB!$M:$M,$E33,InTB!$K:$K) -> 0 | J33: =ROUND($T33*J$2,2)-SUMIFS(InTB!$K:$K,InTB!$M:$M,$E33,InTB!$C:$C,J$1) -> 0 | K33: =ROUND($T33*K$2,2)-SUMIFS(InTB!$K:$K,InTB!$M:$M,$E33,InTB!$C:$C,K$1) -> 0 | L33: =ROUND($T33*L$2,2)-SUMIFS(InTB!$K:$K,InTB!$M:$M,$E33,InTB!$C:$C,L$1) -> 0 | M33: =ROUND($T33*M$2,2)-SUMIFS(InTB!$K:$K,InTB!$M:$M,$E33,InTB!$C:$C,M$1) -> 0 | N33: =ROUND($T33*N$2,2)-SUMIFS(InTB!$K:$K,InTB!$M:$M,$E33,InTB!$C:$C,N$1) -> 0 | O33: =ROUND($T33*O$2,2)-SUMIFS(InTB!$K:$K,InTB!$M:$M,$E33,InTB!$C:$C,O$1) -> 0 | P33: =ROUND($T33*P$2,2)-SUMIFS(InTB!$K:$K,InTB!$M:$M,$E33,InTB!$C:$C,P$1) -> 0 | Q33: =ROUND($T33*Q$2,2)-SUMIFS(InTB!$K:$K,InTB!$M:$M,$E33,InTB!$C:$C,Q$1) -> 0 | R33: =ROUND($T33*R$2,2)-SUMIFS(InTB!$K:$K,InTB!$M:$M,$E33,InTB!$C:$C,R$1) -> 0 | S33: =ROUND($T33*S$2,2)-SUMIFS(InTB!$K:$K,InTB!$M:$M,$E33,InTB!$C:$C,S$1) -> 0 | T33: =-SUMIF(InTBBase!$M:$M,$E33,InTBBase!$K:$K) -> 0 | V33: 0
E34: PRGNFX | F34: NET GAIN/ (LOSS) ON FOREIGN EXCHANGE - REALISED | I34: =-SUMIF(InTB!$M:$M,$E34,InTB!$K:$K) -> 30741.69 | J34: =ROUND($T34*J$2,2)-SUMIFS(InTB!$K:$K,InTB!$M:$M,$E34,InTB!$C:$C,J$1)+(ROUND(J$2*$T$37,2)-J$37)+(ROUND(J2*$T$41,2)-J$41)+(ROUND(J$2*$T$42,2)-J$42)+(ROUND(J$2*$T$73,2)-J$73) -> 0 | K34: =ROUND($T34*K$2,2)-SUMIFS(InTB!$K:$K,InTB!$M:$M,$E34,InTB!$C:$C,K$1)+(ROUND(K$2*$T$37,2)-K$37)+(ROUND(K2*$T$41,2)-K$41)+(ROUND(K$2*$T$42,2)-K$42)+(ROUND(K$2*$T$73,2)-K$73) -> 0 | L34: =ROUND($T34*L$2,2)-SUMIFS(InTB!$K:$K,InTB!$M:$M,$E34,InTB!$C:$C,L$1)+(ROUND(L$2*$T$37,2)-L$37)+(ROUND(L2*$T$41,2)-L$41)+(ROUND(L$2*$T$42,2)-L$42)+(ROUND(L$2*$T$73,2)-L$73) -> 0 | M34: =ROUND($T34*M$2,2)-SUMIFS(InTB!$K:$K,InTB!$M:$M,$E34,InTB!$C:$C,M$1)+(ROUND(M$2*$T$37,2)-M$37)+(ROUND(M2*$T$41,2)-M$41)+(ROUND(M$2*$T$42,2)-M$42)+(ROUND(M$2*$T$73,2)-M$73) -> 0 | N34: =ROUND($T34*N$2,2)-SUMIFS(InTB!$K:$K,InTB!$M:$M,$E34,InTB!$C:$C,N$1)+(ROUND(N$2*$T$37,2)-N$37)+(ROUND(N2*$T$41,2)-N$41)+(ROUND(N$2*$T$42,2)-N$42)+(ROUND(N$2*$T$73,2)-N$73) -> 0 | O34: =ROUND($T34*O$2,2)-SUMIFS(InTB!$K:$K,InTB!$M:$M,$E34,InTB!$C:$C,O$1)+(ROUND(O$2*$T$37,2)-O$37)+(ROUND(O2*$T$41,2)-O$41)+(ROUND(O$2*$T$42,2)-O$42)+(ROUND(O$2*$T$73,2)-O$73) -> 0 | P34: =ROUND($T34*P$2,2)-SUMIFS(InTB!$K:$K,InTB!$M:$M,$E34,InTB!$C:$C,P$1)+(ROUND(P$2*$T$37,2)-P$37)+(ROUND(P2*$T$41,2)-P$41)+(ROUND(P$2*$T$42,2)-P$42)+(ROUND(P$2*$T$73,2)-P$73) -> 0 | Q34: =ROUND($T34*Q$2,2)-SUMIFS(InTB!$K:$K,InTB!$M:$M,$E34,InTB!$C:$C,Q$1)+(ROUND(Q$2*$T$37,2)-Q$37)+(ROUND(Q2*$T$41,2)-Q$41)+(ROUND(Q$2*$T$42,2)-Q$42)+(ROUND(Q$2*$T$73,2)-Q$73) -> 0 | R34: =ROUND($T34*R$2,2)-SUMIFS(InTB!$K:$K,InTB!$M:$M,$E34,InTB!$C:$C,R$1)+(ROUND(R$2*$T$37,2)-R$37)+(ROUND(R2*$T$41,2)-R$41)+(ROUND(R$2*$T$42,2)-R$42)+(ROUND(R$2*$T$73,2)-R$73) -> 30741.69 | S34: =ROUND($T34*S$2,2)-SUMIFS(InTB!$K:$K,InTB!$M:$M,$E34,InTB!$C:$C,S$1)+(ROUND(S$2*$T$37,2)-S$37)+(ROUND(S2*$T$41,2)-S$41)+(ROUND(S$2*$T$42,2)-S$42)+(ROUND(S$2*$T$73,2)-S$73) -> 0 | T34: =-SUMIF(InTBBase!$M:$M,$E34,InTBBase!$K:$K) -> 30741.69 | V34: =ROUND(I34-SUM(J34:S34),1) -> 0
E35: PUGNFX | F35: NET GAIN/ (LOSS) ON FOREIGN EXCHANGE - UNREALISED | I35: =-SUMIF(InTB!$M:$M,$E35,InTB!$K:$K) -> -46890.71149 | J35: =ROUND($T35*J$2,2)-SUMIFS(InTB!$K:$K,InTB!$M:$M,$E35,InTB!$C:$C,J$1) -> 0 | K35: =ROUND($T35*K$2,2)-SUMIFS(InTB!$K:$K,InTB!$M:$M,$E35,InTB!$C:$C,K$1) -> 0 | L35: =ROUND($T35*L$2,2)-SUMIFS(InTB!$K:$K,InTB!$M:$M,$E35,InTB!$C:$C,L$1) -> 0 | M35: =ROUND($T35*M$2,2)-SUMIFS(InTB!$K:$K,InTB!$M:$M,$E35,InTB!$C:$C,M$1) -> 0 | N35: =ROUND($T35*N$2,2)-SUMIFS(InTB!$K:$K,InTB!$M:$M,$E35,InTB!$C:$C,N$1) -> 0 | O35: =ROUND($T35*O$2,2)-SUMIFS(InTB!$K:$K,InTB!$M:$M,$E35,InTB!$C:$C,O$1) -> 0 | P35: =ROUND($T35*P$2,2)-SUMIFS(InTB!$K:$K,InTB!$M:$M,$E35,InTB!$C:$C,P$1) -> 0 | Q35: =ROUND($T35*Q$2,2)-SUMIFS(InTB!$K:$K,InTB!$M:$M,$E35,InTB!$C:$C,Q$1) -> 0 | R35: =ROUND($T35*R$2,2)-SUMIFS(InTB!$K:$K,InTB!$M:$M,$E35,InTB!$C:$C,R$1) -> -46890.71 | S35: =ROUND($T35*S$2,2)-SUMIFS(InTB!$K:$K,InTB!$M:$M,$E35,InTB!$C:$C,S$1) -> 0 | T35: =-SUMIF(InTBBase!$M:$M,$E35,InTBBase!$K:$K) -> -46890.71149 | V35: 0
C36: N/A | D36: OTHINC | E36: PRINOT | F36: =OFFSET(Label!$A$1,MATCH(D36,Label!$A$1:$A$65537,0)-1,Main!$G$14+1) -> OTHER INCOME | I36: =-SUMIF(InTB!$M:$M,$E36,InTB!$K:$K)-SUMIF(InTB!$M:$M,$C36,InTB!$K:$K) -> 5.11 | J36: =ROUND($T36*J$2,2)-SUMIFS(InTB!$K:$K,InTB!$M:$M,$E36,InTB!$C:$C,J$1)-SUMIFS(InTB!$K:$K,InTB!$M:$M,$C36,InTB!$C:$C,J$1) -> 0 | K36: =ROUND($T36*K$2,2)-SUMIFS(InTB!$K:$K,InTB!$M:$M,$E36,InTB!$C:$C,K$1)-SUMIFS(InTB!$K:$K,InTB!$M:$M,$C36,InTB!$C:$C,K$1) -> 0 | L36: =ROUND($T36*L$2,2)-SUMIFS(InTB!$K:$K,InTB!$M:$M,$E36,InTB!$C:$C,L$1)-SUMIFS(InTB!$K:$K,InTB!$M:$M,$C36,InTB!$C:$C,L$1) -> 0 | M36: =ROUND($T36*M$2,2)-SUMIFS(InTB!$K:$K,InTB!$M:$M,$E36,InTB!$C:$C,M$1)-SUMIFS(InTB!$K:$K,InTB!$M:$M,$C36,InTB!$C:$C,M$1) -> 0 | N36: =ROUND($T36*N$2,2)-SUMIFS(InTB!$K:$K,InTB!$M:$M,$E36,InTB!$C:$C,N$1)-SUMIFS(InTB!$K:$K,InTB!$M:$M,$C36,InTB!$C:$C,N$1) -> 0 | O36: =ROUND($T36*O$2,2)-SUMIFS(InTB!$K:$K,InTB!$M:$M,$E36,InTB!$C:$C,O$1)-SUMIFS(InTB!$K:$K,InTB!$M:$M,$C36,InTB!$C:$C,O$1) -> 0 | P36: =ROUND($T36*P$2,2)-SUMIFS(InTB!$K:$K,InTB!$M:$M,$E36,InTB!$C:$C,P$1)-SUMIFS(InTB!$K:$K,InTB!$M:$M,$C36,InTB!$C:$C,P$1) -> 0 | Q36: =ROUND($T36*Q$2,2)-SUMIFS(InTB!$K:$K,InTB!$M:$M,$E36,InTB!$C:$C,Q$1)-SUMIFS(InTB!$K:$K,InTB!$M:$M,$C36,InTB!$C:$C,Q$1) -> 0 | R36: =ROUND($T36*R$2,2)-SUMIFS(InTB!$K:$K,InTB!$M:$M,$E36,InTB!$C:$C,R$1)-SUMIFS(InTB!$K:$K,InTB!$M:$M,$C36,InTB!$C:$C,R$1) -> 5.11 | S36: =ROUND($T36*S$2,2)-SUMIFS(InTB!$K:$K,InTB!$M:$M,$E36,InTB!$C:$C,S$1)-SUMIFS(InTB!$K:$K,InTB!$M:$M,$C36,InTB!$C:$C,S$1) -> 0 | T36: =-SUMIF(InTBBase!$M:$M,$E36,InTBBase!$K:$K)-SUMIF(InTBBase!$M:$M,$C36,InTBBase!$K:$K) -> 5.11 | V36: =ROUND(I36-SUM(J36:S36),1) -> 0
C37: MngRebateBC | D37: REBATE | E37: PRINRB | F37: =OFFSET(Label!$A$1,MATCH(D37,Label!$A$1:$A$65537,0)-1,Main!$G$14+1) -> REBATES FROM MANAGEMENT FEE | I37: =-SUMIF(InTB!$M:$M,$E37,InTB!$K:$K) -> 0 | J37: =ROUND(($T37-$U37)*J$2,2)-SUMIFS(InTB!$K:$K,InTB!$M:$M,$E37,InTB!$C:$C,J$1)+ROUND(SUMIFS(INDIRECT(ADDRESS(3,MATCH($C37,InUPFee!$2:$2,0),,,"InUPFee") & ":" & ADDRESS(30000,MATCH($C37,InUPFee!$2:$2,0)),TRUE),InUPFee!$A$3:$A$30000,J$1),2) -> 0 | K37: =ROUND(($T37-$U37)*K$2,2)-SUMIFS(InTB!$K:$K,InTB!$M:$M,$E37,InTB!$C:$C,K$1)+ROUND(SUMIFS(INDIRECT(ADDRESS(3,MATCH($C37,InUPFee!$2:$2,0),,,"InUPFee") & ":" & ADDRESS(30000,MATCH($C37,InUPFee!$2:$2,0)),TRUE),InUPFee!$A$3:$A$30000,K$1),2) -> 0 | L37: =ROUND(($T37-$U37)*L$2,2)-SUMIFS(InTB!$K:$K,InTB!$M:$M,$E37,InTB!$C:$C,L$1)+ROUND(SUMIFS(INDIRECT(ADDRESS(3,MATCH($C37,InUPFee!$2:$2,0),,,"InUPFee") & ":" & ADDRESS(30000,MATCH($C37,InUPFee!$2:$2,0)),TRUE),InUPFee!$A$3:$A$30000,L$1),2) -> 0 | M37: =ROUND(($T37-$U37)*M$2,2)-SUMIFS(InTB!$K:$K,InTB!$M:$M,$E37,InTB!$C:$C,M$1)+ROUND(SUMIFS(INDIRECT(ADDRESS(3,MATCH($C37,InUPFee!$2:$2,0),,,"InUPFee") & ":" & ADDRESS(30000,MATCH($C37,InUPFee!$2:$2,0)),TRUE),InUPFee!$A$3:$A$30000,M$1),2) -> 0 | N37: =ROUND(($T37-$U37)*N$2,2)-SUMIFS(InTB!$K:$K,InTB!$M:$M,$E37,InTB!$C:$C,N$1)+ROUND(SUMIFS(INDIRECT(ADDRESS(3,MATCH($C37,InUPFee!$2:$2,0),,,"InUPFee") & ":" & ADDRESS(30000,MATCH($C37,InUPFee!$2:$2,0)),TRUE),InUPFee!$A$3:$A$30000,N$1),2) -> 0 | O37: =ROUND(($T37-$U37)*O$2,2)-SUMIFS(InTB!$K:$K,InTB!$M:$M,$E37,InTB!$C:$C,O$1)+ROUND(SUMIFS(INDIRECT(ADDRESS(3,MATCH($C37,InUPFee!$2:$2,0),,,"InUPFee") & ":" & ADDRESS(30000,MATCH($C37,InUPFee!$2:$2,0)),TRUE),InUPFee!$A$3:$A$30000,O$1),2) -> 0 | P37: =ROUND(($T37-$U37)*P$2,2)-SUMIFS(InTB!$K:$K,InTB!$M:$M,$E37,InTB!$C:$C,P$1)+ROUND(SUMIFS(INDIRECT(ADDRESS(3,MATCH($C37,InUPFee!$2:$2,0),,,"InUPFee") & ":" & ADDRESS(30000,MATCH($C37,InUPFee!$2:$2,0)),TRUE),InUPFee!$A$3:$A$30000,P$1),2) -> 0 | Q37: =ROUND(($T37-$U37)*Q$2,2)-SUMIFS(InTB!$K:$K,InTB!$M:$M,$E37,InTB!$C:$C,Q$1)+ROUND(SUMIFS(INDIRECT(ADDRESS(3,MATCH($C37,InUPFee!$2:$2,0),,,"InUPFee") & ":" & ADDRESS(30000,MATCH($C37,InUPFee!$2:$2,0)),TRUE),InUPFee!$A$3:$A$30000,Q$1),2) -> 0 | R37: =ROUND(($T37-$U37)*R$2,2)-SUMIFS(InTB!$K:$K,InTB!$M:$M,$E37,InTB!$C:$C,R$1)+ROUND(SUMIFS(INDIRECT(ADDRESS(3,MATCH($C37,InUPFee!$2:$2,0),,,"InUPFee") & ":" & ADDRESS(30000,MATCH($C37,InUPFee!$2:$2,0)),TRUE),InUPFee!$A$3:$A$30000,R$1),2) -> 0 | S37: =ROUND(($T37-$U37)*S$2,2)-SUMIFS(InTB!$K:$K,InTB!$M:$M,$E37,InTB!$C:$C,S$1)+ROUND(SUMIFS(INDIRECT(ADDRESS(3,MATCH($C37,InUPFee!$2:$2,0),,,"InUPFee") & ":" & ADDRESS(30000,MATCH($C37,InUPFee!$2:$2,0)),TRUE),InUPFee!$A$3:$A$30000,S$1),2) -> 0 | T37: =-SUMIF(InTBBase!$M:$M,$E37,InTBBase!$K:$K) -> 0 | U37: =SUMIFS(INDIRECT(ADDRESS(3,MATCH($C37,InUPFee!$2:$2,0),,,"InUPFee") & ":" & ADDRESS(30000,MATCH($C37,InUPFee!$2:$2,0)),TRUE),InUPFee!$A$3:$A$30000,FundCode) -> 0 | V37: =ROUND(I37-SUM(J37:S37),1) -> 0
F38: TOTAL INCOME | I38: =I15+I21+I25+I30+SUM(I33:I37) -> -32621.32149 | J38: 0 | K38: =K15+K21+K25+K30+SUM(K33:K37) -> 0 | L38: =L15+L21+L25+L30+SUM(L33:L37) -> 0 | M38: 0 | N38: 0 | O38: =O15+O21+O25+O30+SUM(O33:O37) -> 0 | P38: 0 | Q38: 0 | R38: =R15+R21+R25+R30+SUM(R33:R37) -> -32621.32 | S38: 0 | T38: =T15+T21+T25+T30+SUM(T33:T37) -> -32621.32149 | V38: 0
V39: 0
D40: EXP | F40: =OFFSET(Label!$A$1,MATCH(D40,Label!$A$1:$A$65537,0)-1,Main!$G$14+1) -> EXPENDITURE | V40: 0
C41: MngFeeBC | D41: MGTFEE | E41: PREMNG | F41: =OFFSET(Label!$A$1,MATCH(D41,Label!$A$1:$A$65537,0)-1,Main!$G$14+1) -> MANAGEMENT FEE | I41: =-SUMIF(InTB!$M:$M,$E41,InTB!$K:$K) -> -14140.4 | J41: =ROUND(($T41-$U41)*J$2,2)-SUMIFS(InTB!$K:$K,InTB!$M:$M,$E41,InTB!$C:$C,J$1)+ROUND(SUMIFS(INDIRECT(ADDRESS(3,MATCH($C41,InUPFee!$2:$2,0),,,"InUPFee") & ":" & ADDRESS(30000,MATCH($C41,InUPFee!$2:$2,0)),TRUE),InUPFee!$A$3:$A$30000,J$1),2) -> 0 | K41: =ROUND(($T41-$U41)*K$2,2)-SUMIFS(InTB!$K:$K,InTB!$M:$M,$E41,InTB!$C:$C,K$1)+ROUND(SUMIFS(INDIRECT(ADDRESS(3,MATCH($C41,InUPFee!$2:$2,0),,,"InUPFee") & ":" & ADDRESS(30000,MATCH($C41,InUPFee!$2:$2,0)),TRUE),InUPFee!$A$3:$A$30000,K$1),2) -> 0 | L41: =ROUND(($T41-$U41)*L$2,2)-SUMIFS(InTB!$K:$K,InTB!$M:$M,$E41,InTB!$C:$C,L$1)+ROUND(SUMIFS(INDIRECT(ADDRESS(3,MATCH($C41,InUPFee!$2:$2,0),,,"InUPFee") & ":" & ADDRESS(30000,MATCH($C41,InUPFee!$2:$2,0)),TRUE),InUPFee!$A$3:$A$30000,L$1),2) -> 0 | M41: =ROUND(($T41-$U41)*M$2,2)-SUMIFS(InTB!$K:$K,InTB!$M:$M,$E41,InTB!$C:$C,M$1)+ROUND(SUMIFS(INDIRECT(ADDRESS(3,MATCH($C41,InUPFee!$2:$2,0),,,"InUPFee") & ":" & ADDRESS(30000,MATCH($C41,InUPFee!$2:$2,0)),TRUE),InUPFee!$A$3:$A$30000,M$1),2) -> 0 | N41: =ROUND(($T41-$U41)*N$2,2)-SUMIFS(InTB!$K:$K,InTB!$M:$M,$E41,InTB!$C:$C,N$1)+ROUND(SUMIFS(INDIRECT(ADDRESS(3,MATCH($C41,InUPFee!$2:$2,0),,,"InUPFee") & ":" & ADDRESS(30000,MATCH($C41,InUPFee!$2:$2,0)),TRUE),InUPFee!$A$3:$A$30000,N$1),2) -> 0 | O41: =ROUND(($T41-$U41)*O$2,2)-SUMIFS(InTB!$K:$K,InTB!$M:$M,$E41,InTB!$C:$C,O$1)+ROUND(SUMIFS(INDIRECT(ADDRESS(3,MATCH($C41,InUPFee!$2:$2,0),,,"InUPFee") & ":" & ADDRESS(30000,MATCH($C41,InUPFee!$2:$2,0)),TRUE),InUPFee!$A$3:$A$30000,O$1),2) -> 0 | P41: =ROUND(($T41-$U41)*P$2,2)-SUMIFS(InTB!$K:$K,InTB!$M:$M,$E41,InTB!$C:$C,P$1)+ROUND(SUMIFS(INDIRECT(ADDRESS(3,MATCH($C41,InUPFee!$2:$2,0),,,"InUPFee") & ":" & ADDRESS(30000,MATCH($C41,InUPFee!$2:$2,0)),TRUE),InUPFee!$A$3:$A$30000,P$1),2) -> 0 | Q41: =ROUND(($T41-$U41)*Q$2,2)-SUMIFS(InTB!$K:$K,InTB!$M:$M,$E41,InTB!$C:$C,Q$1)+ROUND(SUMIFS(INDIRECT(ADDRESS(3,MATCH($C41,InUPFee!$2:$2,0),,,"InUPFee") & ":" & ADDRESS(30000,MATCH($C41,InUPFee!$2:$2,0)),TRUE),InUPFee!$A$3:$A$30000,Q$1),2) -> 0 | R41: =ROUND(($T41-$U41)*R$2,2)-SUMIFS(InTB!$K:$K,InTB!$M:$M,$E41,InTB!$C:$C,R$1)+ROUND(SUMIFS(INDIRECT(ADDRESS(3,MATCH($C41,InUPFee!$2:$2,0),,,"InUPFee") & ":" & ADDRESS(30000,MATCH($C41,InUPFee!$2:$2,0)),TRUE),InUPFee!$A$3:$A$30000,R$1),2) -> -14140.4 | S41: =ROUND(($T41-$U41)*S$2,2)-SUMIFS(InTB!$K:$K,InTB!$M:$M,$E41,InTB!$C:$C,S$1)+ROUND(SUMIFS(INDIRECT(ADDRESS(3,MATCH($C41,InUPFee!$2:$2,0),,,"InUPFee") & ":" & ADDRESS(30000,MATCH($C41,InUPFee!$2:$2,0)),TRUE),InUPFee!$A$3:$A$30000,S$1),2) -> 0 | T41: =-SUMIF(InTBBase!$M:$M,$E41,InTBBase!$K:$K) -> -14140.4 | U41: =SUMIFS(INDIRECT(ADDRESS(3,MATCH($C41,InUPFee!$2:$2,0),,,"InUPFee") & ":" & ADDRESS(30000,MATCH($C41,InUPFee!$2:$2,0)),TRUE),InUPFee!$A$3:$A$30000,FundCode) -> -14140.82 | V41: 0
C42: TrusteeFeeBC | D42: TRTFEE | E42: PRETRS | F42: =OFFSET(Label!$A$1,MATCH(D42,Label!$A$1:$A$65537,0)-1,Main!$G$14+1) -> TRUSTEE'S FEE | I42: =-SUMIF(InTB!$M:$M,$E42,InTB!$K:$K) -> -4500 | J42: =ROUND(($T42-$U42)*J$2,2)-SUMIFS(InTB!$K:$K,InTB!$M:$M,$E42,InTB!$C:$C,J$1)+ROUND(SUMIFS(INDIRECT(ADDRESS(3,MATCH($C42,InUPFee!$2:$2,0),,,"InUPFee") & ":" & ADDRESS(30000,MATCH($C42,InUPFee!$2:$2,0)),TRUE),InUPFee!$A$3:$A$30000,J$1),2) -> 0 | K42: =ROUND(($T42-$U42)*K$2,2)-SUMIFS(InTB!$K:$K,InTB!$M:$M,$E42,InTB!$C:$C,K$1)+ROUND(SUMIFS(INDIRECT(ADDRESS(3,MATCH($C42,InUPFee!$2:$2,0),,,"InUPFee") & ":" & ADDRESS(30000,MATCH($C42,InUPFee!$2:$2,0)),TRUE),InUPFee!$A$3:$A$30000,K$1),2) -> 0 | L42: =ROUND(($T42-$U42)*L$2,2)-SUMIFS(InTB!$K:$K,InTB!$M:$M,$E42,InTB!$C:$C,L$1)+ROUND(SUMIFS(INDIRECT(ADDRESS(3,MATCH($C42,InUPFee!$2:$2,0),,,"InUPFee") & ":" & ADDRESS(30000,MATCH($C42,InUPFee!$2:$2,0)),TRUE),InUPFee!$A$3:$A$30000,L$1),2) -> 0 | M42: =ROUND(($T42-$U42)*M$2,2)-SUMIFS(InTB!$K:$K,InTB!$M:$M,$E42,InTB!$C:$C,M$1)+ROUND(SUMIFS(INDIRECT(ADDRESS(3,MATCH($C42,InUPFee!$2:$2,0),,,"InUPFee") & ":" & ADDRESS(30000,MATCH($C42,InUPFee!$2:$2,0)),TRUE),InUPFee!$A$3:$A$30000,M$1),2) -> 0 | N42: =ROUND(($T42-$U42)*N$2,2)-SUMIFS(InTB!$K:$K,InTB!$M:$M,$E42,InTB!$C:$C,N$1)+ROUND(SUMIFS(INDIRECT(ADDRESS(3,MATCH($C42,InUPFee!$2:$2,0),,,"InUPFee") & ":" & ADDRESS(30000,MATCH($C42,InUPFee!$2:$2,0)),TRUE),InUPFee!$A$3:$A$30000,N$1),2) -> 0 | O42: =ROUND(($T42-$U42)*O$2,2)-SUMIFS(InTB!$K:$K,InTB!$M:$M,$E42,InTB!$C:$C,O$1)+ROUND(SUMIFS(INDIRECT(ADDRESS(3,MATCH($C42,InUPFee!$2:$2,0),,,"InUPFee") & ":" & ADDRESS(30000,MATCH($C42,InUPFee!$2:$2,0)),TRUE),InUPFee!$A$3:$A$30000,O$1),2) -> 0 | P42: =ROUND(($T42-$U42)*P$2,2)-SUMIFS(InTB!$K:$K,InTB!$M:$M,$E42,InTB!$C:$C,P$1)+ROUND(SUMIFS(INDIRECT(ADDRESS(3,MATCH($C42,InUPFee!$2:$2,0),,,"InUPFee") & ":" & ADDRESS(30000,MATCH($C42,InUPFee!$2:$2,0)),TRUE),InUPFee!$A$3:$A$30000,P$1),2) -> 0 | Q42: =ROUND(($T42-$U42)*Q$2,2)-SUMIFS(InTB!$K:$K,InTB!$M:$M,$E42,InTB!$C:$C,Q$1)+ROUND(SUMIFS(INDIRECT(ADDRESS(3,MATCH($C42,InUPFee!$2:$2,0),,,"InUPFee") & ":" & ADDRESS(30000,MATCH($C42,InUPFee!$2:$2,0)),TRUE),InUPFee!$A$3:$A$30000,Q$1),2) -> 0 | R42: =ROUND(($T42-$U42)*R$2,2)-SUMIFS(InTB!$K:$K,InTB!$M:$M,$E42,InTB!$C:$C,R$1)+ROUND(SUMIFS(INDIRECT(ADDRESS(3,MATCH($C42,InUPFee!$2:$2,0),,,"InUPFee") & ":" & ADDRESS(30000,MATCH($C42,InUPFee!$2:$2,0)),TRUE),InUPFee!$A$3:$A$30000,R$1),2) -> -4500 | S42: =ROUND(($T42-$U42)*S$2,2)-SUMIFS(InTB!$K:$K,InTB!$M:$M,$E42,InTB!$C:$C,S$1)+ROUND(SUMIFS(INDIRECT(ADDRESS(3,MATCH($C42,InUPFee!$2:$2,0),,,"InUPFee") & ":" & ADDRESS(30000,MATCH($C42,InUPFee!$2:$2,0)),TRUE),InUPFee!$A$3:$A$30000,S$1),2) -> 0 | T42: =-SUMIF(InTBBase!$M:$M,$E42,InTBBase!$K:$K) -> -4500 | U42: =SUMIFS(INDIRECT(ADDRESS(3,MATCH($C42,InUPFee!$2:$2,0),,,"InUPFee") & ":" & ADDRESS(30000,MATCH($C42,InUPFee!$2:$2,0)),TRUE),InUPFee!$A$3:$A$30000,FundCode) -> -4500 | V42: 0
D43: AUDITOR | E43: PREAUD | F43: =OFFSET(Label!$A$1,MATCH(D43,Label!$A$1:$A$65537,0)-1,Main!$G$14+1) -> AUDITOR'S REMUNERATION | I43: =-SUMIF(InTB!$M:$M,$E43,InTB!$K:$K) -> -5506 | J43: =ROUND($T43*J$2,2)-SUMIFS(InTB!$K:$K,InTB!$M:$M,$E43,InTB!$C:$C,J$1) -> 0 | K43: =ROUND($T43*K$2,2)-SUMIFS(InTB!$K:$K,InTB!$M:$M,$E43,InTB!$C:$C,K$1) -> 0 | L43: =ROUND($T43*L$2,2)-SUMIFS(InTB!$K:$K,InTB!$M:$M,$E43,InTB!$C:$C,L$1) -> 0 | M43: =ROUND($T43*M$2,2)-SUMIFS(InTB!$K:$K,InTB!$M:$M,$E43,InTB!$C:$C,M$1) -> 0 | N43: =ROUND($T43*N$2,2)-SUMIFS(InTB!$K:$K,InTB!$M:$M,$E43,InTB!$C:$C,N$1) -> 0 | O43: =ROUND($T43*O$2,2)-SUMIFS(InTB!$K:$K,InTB!$M:$M,$E43,InTB!$C:$C,O$1) -> 0 | P43: =ROUND($T43*P$2,2)-SUMIFS(InTB!$K:$K,InTB!$M:$M,$E43,InTB!$C:$C,P$1) -> 0 | Q43: =ROUND($T43*Q$2,2)-SUMIFS(InTB!$K:$K,InTB!$M:$M,$E43,InTB!$C:$C,Q$1) -> 0 | R43: =ROUND($T43*R$2,2)-SUMIFS(InTB!$K:$K,InTB!$M:$M,$E43,InTB!$C:$C,R$1) -> -5506 | S43: =ROUND($T43*S$2,2)-SUMIFS(InTB!$K:$K,InTB!$M:$M,$E43,InTB!$C:$C,S$1) -> 0 | T43: =-SUMIF(InTBBase!$M:$M,$E43,InTBBase!$K:$K) -> -5506 | V43: 0
D44: TAXAF | E44: PRETXA | F44: =OFFSET(Label!$A$1,MATCH(D44,Label!$A$1:$A$65537,0)-1,Main!$G$14+1) -> TAX AGENT'S FEE | I44: =-SUMIF(InTB!$M:$M,$E44,InTB!$K:$K) -> -2932.79 | J44: =ROUND($T44*J$2,2)-SUMIFS(InTB!$K:$K,InTB!$M:$M,$E44,InTB!$C:$C,J$1) -> 0 | K44: =ROUND($T44*K$2,2)-SUMIFS(InTB!$K:$K,InTB!$M:$M,$E44,InTB!$C:$C,K$1) -> 0 | L44: =ROUND($T44*L$2,2)-SUMIFS(InTB!$K:$K,InTB!$M:$M,$E44,InTB!$C:$C,L$1) -> 0 | M44: =ROUND($T44*M$2,2)-SUMIFS(InTB!$K:$K,InTB!$M:$M,$E44,InTB!$C:$C,M$1) -> 0 | N44: =ROUND($T44*N$2,2)-SUMIFS(InTB!$K:$K,InTB!$M:$M,$E44,InTB!$C:$C,N$1) -> 0 | O44: =ROUND($T44*O$2,2)-SUMIFS(InTB!$K:$K,InTB!$M:$M,$E44,InTB!$C:$C,O$1) -> 0 | P44: =ROUND($T44*P$2,2)-SUMIFS(InTB!$K:$K,InTB!$M:$M,$E44,InTB!$C:$C,P$1) -> 0 | Q44: =ROUND($T44*Q$2,2)-SUMIFS(InTB!$K:$K,InTB!$M:$M,$E44,InTB!$C:$C,Q$1) -> 0 | R44: =ROUND($T44*R$2,2)-SUMIFS(InTB!$K:$K,InTB!$M:$M,$E44,InTB!$C:$C,R$1) -> -2932.79 | S44: =ROUND($T44*S$2,2)-SUMIFS(InTB!$K:$K,InTB!$M:$M,$E44,InTB!$C:$C,S$1) -> 0 | T44: =-SUMIF(InTBBase!$M:$M,$E44,InTBBase!$K:$K) -> -2932.79 | V44: 0
D45: ADEXP | F45: =OFFSET(Label!$A$1,MATCH(D45,Label!$A$1:$A$65537,0)-1,Main!$G$14+1) -> ADMINISTRATION EXPENSES | I45: =SUM(I46:I67) -> -948.98 | J45: 0 | K45: =SUM(K46:K67) -> 0 | L45: 0 | M45: 0 | N45: 0 | O45: =SUM(O46:O67) -> 0 | P45: 0 | Q45: 0 | R45: =SUM(R46:R67) -> -948.98 | S45: =SUM(S46:S67) -> 0 | T45: -948.98 | V45: 0
D46: ADEXP1 | E46: PREPRT | F46: =OFFSET(Label!$A$1,MATCH(D46,Label!$A$1:$A$65537,0)-1,Main!$G$14+1) -> Printing | I46: =-SUMIF(InTB!$M:$M,$E46,InTB!$K:$K) -> 0 | J46: =ROUND($T46*J$2,2)-SUMIFS(InTB!$K:$K,InTB!$M:$M,$E46,InTB!$C:$C,J$1) -> 0 | K46: =ROUND($T46*K$2,2)-SUMIFS(InTB!$K:$K,InTB!$M:$M,$E46,InTB!$C:$C,K$1) -> 0 | L46: =ROUND($T46*L$2,2)-SUMIFS(InTB!$K:$K,InTB!$M:$M,$E46,InTB!$C:$C,L$1) -> 0 | M46: =ROUND($T46*M$2,2)-SUMIFS(InTB!$K:$K,InTB!$M:$M,$E46,InTB!$C:$C,M$1) -> 0 | N46: =ROUND($T46*N$2,2)-SUMIFS(InTB!$K:$K,InTB!$M:$M,$E46,InTB!$C:$C,N$1) -> 0 | O46: =ROUND($T46*O$2,2)-SUMIFS(InTB!$K:$K,InTB!$M:$M,$E46,InTB!$C:$C,O$1) -> 0 | P46: =ROUND($T46*P$2,2)-SUMIFS(InTB!$K:$K,InTB!$M:$M,$E46,InTB!$C:$C,P$1) -> 0 | Q46: =ROUND($T46*Q$2,2)-SUMIFS(InTB!$K:$K,InTB!$M:$M,$E46,InTB!$C:$C,Q$1) -> 0 | R46: =ROUND($T46*R$2,2)-SUMIFS(InTB!$K:$K,InTB!$M:$M,$E46,InTB!$C:$C,R$1) -> 0 | S46: =ROUND($T46*S$2,2)-SUMIFS(InTB!$K:$K,InTB!$M:$M,$E46,InTB!$C:$C,S$1) -> 0 | T46: =-SUMIF(InTBBase!$M:$M,$E46,InTBBase!$K:$K) -> 0 | V46: 0
D47: ADEXP2 | E47: PREPOS | F47: =OFFSET(Label!$A$1,MATCH(D47,Label!$A$1:$A$65537,0)-1,Main!$G$14+1) -> Postage | I47: =-SUMIF(InTB!$M:$M,$E47,InTB!$K:$K) -> 0 | J47: =ROUND($T47*J$2,2)-SUMIFS(InTB!$K:$K,InTB!$M:$M,$E47,InTB!$C:$C,J$1) -> 0 | K47: =ROUND($T47*K$2,2)-SUMIFS(InTB!$K:$K,InTB!$M:$M,$E47,InTB!$C:$C,K$1) -> 0 | L47: =ROUND($T47*L$2,2)-SUMIFS(InTB!$K:$K,InTB!$M:$M,$E47,InTB!$C:$C,L$1) -> 0 | M47: =ROUND($T47*M$2,2)-SUMIFS(InTB!$K:$K,InTB!$M:$M,$E47,InTB!$C:$C,M$1) -> 0 | N47: =ROUND($T47*N$2,2)-SUMIFS(InTB!$K:$K,InTB!$M:$M,$E47,InTB!$C:$C,N$1) -> 0 | O47: =ROUND($T47*O$2,2)-SUMIFS(InTB!$K:$K,InTB!$M:$M,$E47,InTB!$C:$C,O$1) -> 0 | P47: =ROUND($T47*P$2,2)-SUMIFS(InTB!$K:$K,InTB!$M:$M,$E47,InTB!$C:$C,P$1) -> 0 | Q47: =ROUND($T47*Q$2,2)-SUMIFS(InTB!$K:$K,InTB!$M:$M,$E47,InTB!$C:$C,Q$1) -> 0 | R47: =ROUND($T47*R$2,2)-SUMIFS(InTB!$K:$K,InTB!$M:$M,$E47,InTB!$C:$C,R$1) -> 0 | S47: =ROUND($T47*S$2,2)-SUMIFS(InTB!$K:$K,InTB!$M:$M,$E47,InTB!$C:$C,S$1) -> 0 | T47: =-SUMIF(InTBBase!$M:$M,$E47,InTBBase!$K:$K) -> 0 | V47: 0
D48: ADEXP3 | E48: PREBKC | F48: =OFFSET(Label!$A$1,MATCH(D48,Label!$A$1:$A$65537,0)-1,Main!$G$14+1) -> Bank charges | I48: =-SUMIF(InTB!$M:$M,$E48,InTB!$K:$K) -> -34.22 | J48: =ROUND($T48*J$2,2)-SUMIFS(InTB!$K:$K,InTB!$M:$M,$E48,InTB!$C:$C,J$1) -> 0 | K48: =ROUND($T48*K$2,2)-SUMIFS(InTB!$K:$K,InTB!$M:$M,$E48,InTB!$C:$C,K$1) -> 0 | L48: =ROUND($T48*L$2,2)-SUMIFS(InTB!$K:$K,InTB!$M:$M,$E48,InTB!$C:$C,L$1) -> 0 | M48: =ROUND($T48*M$2,2)-SUMIFS(InTB!$K:$K,InTB!$M:$M,$E48,InTB!$C:$C,M$1) -> 0 | N48: =ROUND($T48*N$2,2)-SUMIFS(InTB!$K:$K,InTB!$M:$M,$E48,InTB!$C:$C,N$1) -> 0 | O48: =ROUND($T48*O$2,2)-SUMIFS(InTB!$K:$K,InTB!$M:$M,$E48,InTB!$C:$C,O$1) -> 0 | P48: =ROUND($T48*P$2,2)-SUMIFS(InTB!$K:$K,InTB!$M:$M,$E48,InTB!$C:$C,P$1) -> 0 | Q48: =ROUND($T48*Q$2,2)-SUMIFS(InTB!$K:$K,InTB!$M:$M,$E48,InTB!$C:$C,Q$1) -> 0 | R48: =ROUND($T48*R$2,2)-SUMIFS(InTB!$K:$K,InTB!$M:$M,$E48,InTB!$C:$C,R$1) -> -34.22 | S48: =ROUND($T48*S$2,2)-SUMIFS(InTB!$K:$K,InTB!$M:$M,$E48,InTB!$C:$C,S$1) -> 0 | T48: =-SUMIF(InTBBase!$M:$M,$E48,InTBBase!$K:$K) -> -34.22 | V48: 0
D49: ADEXP4 | E49: PRECDF | F49: =OFFSET(Label!$A$1,MATCH(D49,Label!$A$1:$A$65537,0)-1,Main!$G$14+1) -> CDS deposit fee | I49: =-SUMIF(InTB!$M:$M,$E49,InTB!$K:$K) -> 0 | J49: =ROUND($T49*J$2,2)-SUMIFS(InTB!$K:$K,InTB!$M:$M,$E49,InTB!$C:$C,J$1) -> 0 | K49: =ROUND($T49*K$2,2)-SUMIFS(InTB!$K:$K,InTB!$M:$M,$E49,InTB!$C:$C,K$1) -> 0 | L49: =ROUND($T49*L$2,2)-SUMIFS(InTB!$K:$K,InTB!$M:$M,$E49,InTB!$C:$C,L$1) -> 0 | M49: =ROUND($T49*M$2,2)-SUMIFS(InTB!$K:$K,InTB!$M:$M,$E49,InTB!$C:$C,M$1) -> 0 | N49: =ROUND($T49*N$2,2)-SUMIFS(InTB!$K:$K,InTB!$M:$M,$E49,InTB!$C:$C,N$1) -> 0 | O49: =ROUND($T49*O$2,2)-SUMIFS(InTB!$K:$K,InTB!$M:$M,$E49,InTB!$C:$C,O$1) -> 0 | P49: =ROUND($T49*P$2,2)-SUMIFS(InTB!$K:$K,InTB!$M:$M,$E49,InTB!$C:$C,P$1) -> 0 | Q49: =ROUND($T49*Q$2,2)-SUMIFS(InTB!$K:$K,InTB!$M:$M,$E49,InTB!$C:$C,Q$1) -> 0 | R49: =ROUND($T49*R$2,2)-SUMIFS(InTB!$K:$K,InTB!$M:$M,$E49,InTB!$C:$C,R$1) -> 0 | S49: =ROUND($T49*S$2,2)-SUMIFS(InTB!$K:$K,InTB!$M:$M,$E49,InTB!$C:$C,S$1) -> 0 | T49: =-SUMIF(InTBBase!$M:$M,$E49,InTBBase!$K:$K) -> 0 | V49: 0
D50: ADEXP5 | E50: PREDIS | F50: =OFFSET(Label!$A$1,MATCH(D50,Label!$A$1:$A$65537,0)-1,Main!$G$14+1) -> Cash distribution expenses | I50: =-SUMIF(InTB!$M:$M,$E50,InTB!$K:$K) -> 0 | J50: =ROUND($T50*J$2,2)-SUMIFS(InTB!$K:$K,InTB!$M:$M,$E50,InTB!$C:$C,J$1) -> 0 | K50: =ROUND($T50*K$2,2)-SUMIFS(InTB!$K:$K,InTB!$M:$M,$E50,InTB!$C:$C,K$1) -> 0 | L50: =ROUND($T50*L$2,2)-SUMIFS(InTB!$K:$K,InTB!$M:$M,$E50,InTB!$C:$C,L$1) -> 0 | M50: =ROUND($T50*M$2,2)-SUMIFS(InTB!$K:$K,InTB!$M:$M,$E50,InTB!$C:$C,M$1) -> 0 | N50: =ROUND($T50*N$2,2)-SUMIFS(InTB!$K:$K,InTB!$M:$M,$E50,InTB!$C:$C,N$1) -> 0 | O50: =ROUND($T50*O$2,2)-SUMIFS(InTB!$K:$K,InTB!$M:$M,$E50,InTB!$C:$C,O$1) -> 0 | P50: =ROUND($T50*P$2,2)-SUMIFS(InTB!$K:$K,InTB!$M:$M,$E50,InTB!$C:$C,P$1) -> 0 | Q50: =ROUND($T50*Q$2,2)-SUMIFS(InTB!$K:$K,InTB!$M:$M,$E50,InTB!$C:$C,Q$1) -> 0 | R50: =ROUND($T50*R$2,2)-SUMIFS(InTB!$K:$K,InTB!$M:$M,$E50,InTB!$C:$C,R$1) -> 0 | S50: =ROUND($T50*S$2,2)-SUMIFS(InTB!$K:$K,InTB!$M:$M,$E50,InTB!$C:$C,S$1) -> 0 | T50: =-SUMIF(InTBBase!$M:$M,$E50,InTBBase!$K:$K) -> 0 | V50: 0
D51: ADEXP6 | E51: PRECTF | F51: =OFFSET(Label!$A$1,MATCH(D51,Label!$A$1:$A$65537,0)-1,Main!$G$14+1) -> CDS transfer fee | I51: =-SUMIF(InTB!$M:$M,$E51,InTB!$K:$K) -> 0 | J51: =ROUND($T51*J$2,2)-SUMIFS(InTB!$K:$K,InTB!$M:$M,$E51,InTB!$C:$C,J$1) -> 0 | K51: =ROUND($T51*K$2,2)-SUMIFS(InTB!$K:$K,InTB!$M:$M,$E51,InTB!$C:$C,K$1) -> 0 | L51: =ROUND($T51*L$2,2)-SUMIFS(InTB!$K:$K,InTB!$M:$M,$E51,InTB!$C:$C,L$1) -> 0 | M51: =ROUND($T51*M$2,2)-SUMIFS(InTB!$K:$K,InTB!$M:$M,$E51,InTB!$C:$C,M$1) -> 0 | N51: =ROUND($T51*N$2,2)-SUMIFS(InTB!$K:$K,InTB!$M:$M,$E51,InTB!$C:$C,N$1) -> 0 | O51: =ROUND($T51*O$2,2)-SUMIFS(InTB!$K:$K,InTB!$M:$M,$E51,InTB!$C:$C,O$1) -> 0 | P51: =ROUND($T51*P$2,2)-SUMIFS(InTB!$K:$K,InTB!$M:$M,$E51,InTB!$C:$C,P$1) -> 0 | Q51: =ROUND($T51*Q$2,2)-SUMIFS(InTB!$K:$K,InTB!$M:$M,$E51,InTB!$C:$C,Q$1) -> 0 | R51: =ROUND($T51*R$2,2)-SUMIFS(InTB!$K:$K,InTB!$M:$M,$E51,InTB!$C:$C,R$1) -> 0 | S51: =ROUND($T51*S$2,2)-SUMIFS(InTB!$K:$K,InTB!$M:$M,$E51,InTB!$C:$C,S$1) -> 0 | T51: =-SUMIF(InTBBase!$M:$M,$E51,InTBBase!$K:$K) -> 0 | V51: 0
D52: ADEXP7 | E52: PREOSC | F52: =OFFSET(Label!$A$1,MATCH(D52,Label!$A$1:$A$65537,0)-1,Main!$G$14+1) -> Online service charges | I52: =-SUMIF(InTB!$M:$M,$E52,InTB!$K:$K) -> 0 | J52: =ROUND($T52*J$2,2)-SUMIFS(InTB!$K:$K,InTB!$M:$M,$E52,InTB!$C:$C,J$1) -> 0 | K52: =ROUND($T52*K$2,2)-SUMIFS(InTB!$K:$K,InTB!$M:$M,$E52,InTB!$C:$C,K$1) -> 0 | L52: =ROUND($T52*L$2,2)-SUMIFS(InTB!$K:$K,InTB!$M:$M,$E52,InTB!$C:$C,L$1) -> 0 | M52: =ROUND($T52*M$2,2)-SUMIFS(InTB!$K:$K,InTB!$M:$M,$E52,InTB!$C:$C,M$1) -> 0 | N52: =ROUND($T52*N$2,2)-SUMIFS(InTB!$K:$K,InTB!$M:$M,$E52,InTB!$C:$C,N$1) -> 0 | O52: =ROUND($T52*O$2,2)-SUMIFS(InTB!$K:$K,InTB!$M:$M,$E52,InTB!$C:$C,O$1) -> 0 | P52: =ROUND($T52*P$2,2)-SUMIFS(InTB!$K:$K,InTB!$M:$M,$E52,InTB!$C:$C,P$1) -> 0 | Q52: =ROUND($T52*Q$2,2)-SUMIFS(InTB!$K:$K,InTB!$M:$M,$E52,InTB!$C:$C,Q$1) -> 0 | R52: =ROUND($T52*R$2,2)-SUMIFS(InTB!$K:$K,InTB!$M:$M,$E52,InTB!$C:$C,R$1) -> 0 | S52: =ROUND($T52*S$2,2)-SUMIFS(InTB!$K:$K,InTB!$M:$M,$E52,InTB!$C:$C,S$1) -> 0 | T52: =-SUMIF(InTBBase!$M:$M,$E52,InTBBase!$K:$K) -> 0 | V52: 0
D53: ADEXP8 | E53: PRESCC | F53: =OFFSET(Label!$A$1,MATCH(D53,Label!$A$1:$A$65537,0)-1,Main!$G$14+1) -> SSTS custodian charges | I53: =-SUMIF(InTB!$M:$M,$E53,InTB!$K:$K) -> 0 | J53: =ROUND($T53*J$2,2)-SUMIFS(InTB!$K:$K,InTB!$M:$M,$E53,InTB!$C:$C,J$1) -> 0 | K53: =ROUND($T53*K$2,2)-SUMIFS(InTB!$K:$K,InTB!$M:$M,$E53,InTB!$C:$C,K$1) -> 0 | L53: =ROUND($T53*L$2,2)-SUMIFS(InTB!$K:$K,InTB!$M:$M,$E53,InTB!$C:$C,L$1) -> 0 | M53: =ROUND($T53*M$2,2)-SUMIFS(InTB!$K:$K,InTB!$M:$M,$E53,InTB!$C:$C,M$1) -> 0 | N53: =ROUND($T53*N$2,2)-SUMIFS(InTB!$K:$K,InTB!$M:$M,$E53,InTB!$C:$C,N$1) -> 0 | O53: =ROUND($T53*O$2,2)-SUMIFS(InTB!$K:$K,InTB!$M:$M,$E53,InTB!$C:$C,O$1) -> 0 | P53: =ROUND($T53*P$2,2)-SUMIFS(InTB!$K:$K,InTB!$M:$M,$E53,InTB!$C:$C,P$1) -> 0 | Q53: =ROUND($T53*Q$2,2)-SUMIFS(InTB!$K:$K,InTB!$M:$M,$E53,InTB!$C:$C,Q$1) -> 0 | R53: =ROUND($T53*R$2,2)-SUMIFS(InTB!$K:$K,InTB!$M:$M,$E53,InTB!$C:$C,R$1) -> 0 | S53: =ROUND($T53*S$2,2)-SUMIFS(InTB!$K:$K,InTB!$M:$M,$E53,InTB!$C:$C,S$1) -> 0 | T53: =-SUMIF(InTBBase!$M:$M,$E53,InTBBase!$K:$K) -> 0 | V53: 0
D54: ADEXP9 | E54: PRETSR | F54: =OFFSET(Label!$A$1,MATCH(D54,Label!$A$1:$A$65537,0)-1,Main!$G$14+1) -> Trustee's fee (Registration Services) | I54: =-SUMIF(InTB!$M:$M,$E54,InTB!$K:$K) -> 0 | J54: =ROUND($T54*J$2,2)-SUMIFS(InTB!$K:$K,InTB!$M:$M,$E54,InTB!$C:$C,J$1) -> 0 | K54: =ROUND($T54*K$2,2)-SUMIFS(InTB!$K:$K,InTB!$M:$M,$E54,InTB!$C:$C,K$1) -> 0 | L54: =ROUND($T54*L$2,2)-SUMIFS(InTB!$K:$K,InTB!$M:$M,$E54,InTB!$C:$C,L$1) -> 0 | M54: =ROUND($T54*M$2,2)-SUMIFS(InTB!$K:$K,InTB!$M:$M,$E54,InTB!$C:$C,M$1) -> 0 | N54: =ROUND($T54*N$2,2)-SUMIFS(InTB!$K:$K,InTB!$M:$M,$E54,InTB!$C:$C,N$1) -> 0 | O54: =ROUND($T54*O$2,2)-SUMIFS(InTB!$K:$K,InTB!$M:$M,$E54,InTB!$C:$C,O$1) -> 0 | P54: =ROUND($T54*P$2,2)-SUMIFS(InTB!$K:$K,InTB!$M:$M,$E54,InTB!$C:$C,P$1) -> 0 | Q54: =ROUND($T54*Q$2,2)-SUMIFS(InTB!$K:$K,InTB!$M:$M,$E54,InTB!$C:$C,Q$1) -> 0 | R54: =ROUND($T54*R$2,2)-SUMIFS(InTB!$K:$K,InTB!$M:$M,$E54,InTB!$C:$C,R$1) -> 0 | S54: =ROUND($T54*S$2,2)-SUMIFS(InTB!$K:$K,InTB!$M:$M,$E54,InTB!$C:$C,S$1) -> 0 | T54: =-SUMIF(InTBBase!$M:$M,$E54,InTBBase!$K:$K) -> 0 | V54: 0
D55: ADEXP10 | E55: PRESVC | F55: =OFFSET(Label!$A$1,MATCH(D55,Label!$A$1:$A$65537,0)-1,Main!$G$14+1) -> Services charges | I55: =-SUMIF(InTB!$M:$M,$E55,InTB!$K:$K) -> 0 | J55: =ROUND($T55*J$2,2)-SUMIFS(InTB!$K:$K,InTB!$M:$M,$E55,InTB!$C:$C,J$1) -> 0 | K55: =ROUND($T55*K$2,2)-SUMIFS(InTB!$K:$K,InTB!$M:$M,$E55,InTB!$C:$C,K$1) -> 0 | L55: =ROUND($T55*L$2,2)-SUMIFS(InTB!$K:$K,InTB!$M:$M,$E55,InTB!$C:$C,L$1) -> 0 | M55: =ROUND($T55*M$2,2)-SUMIFS(InTB!$K:$K,InTB!$M:$M,$E55,InTB!$C:$C,M$1) -> 0 | N55: =ROUND($T55*N$2,2)-SUMIFS(InTB!$K:$K,InTB!$M:$M,$E55,InTB!$C:$C,N$1) -> 0 | O55: =ROUND($T55*O$2,2)-SUMIFS(InTB!$K:$K,InTB!$M:$M,$E55,InTB!$C:$C,O$1) -> 0 | P55: =ROUND($T55*P$2,2)-SUMIFS(InTB!$K:$K,InTB!$M:$M,$E55,InTB!$C:$C,P$1) -> 0 | Q55: =ROUND($T55*Q$2,2)-SUMIFS(InTB!$K:$K,InTB!$M:$M,$E55,InTB!$C:$C,Q$1) -> 0 | R55: =ROUND($T55*R$2,2)-SUMIFS(InTB!$K:$K,InTB!$M:$M,$E55,InTB!$C:$C,R$1) -> 0 | S55: =ROUND($T55*S$2,2)-SUMIFS(InTB!$K:$K,InTB!$M:$M,$E55,InTB!$C:$C,S$1) -> 0 | T55: =-SUMIF(InTBBase!$M:$M,$E55,InTBBase!$K:$K) -> 0 | V55: 0
D56: ADEXP11 | E56: PREPRO | F56: =OFFSET(Label!$A$1,MATCH(D56,Label!$A$1:$A$65537,0)-1,Main!$G$14+1) -> Professional fees | I56: =-SUMIF(InTB!$M:$M,$E56,InTB!$K:$K) -> 0 | J56: =ROUND($T56*J$2,2)-SUMIFS(InTB!$K:$K,InTB!$M:$M,$E56,InTB!$C:$C,J$1) -> 0 | K56: =ROUND($T56*K$2,2)-SUMIFS(InTB!$K:$K,InTB!$M:$M,$E56,InTB!$C:$C,K$1) -> 0 | L56: =ROUND($T56*L$2,2)-SUMIFS(InTB!$K:$K,InTB!$M:$M,$E56,InTB!$C:$C,L$1) -> 0 | M56: =ROUND($T56*M$2,2)-SUMIFS(InTB!$K:$K,InTB!$M:$M,$E56,InTB!$C:$C,M$1) -> 0 | N56: =ROUND($T56*N$2,2)-SUMIFS(InTB!$K:$K,InTB!$M:$M,$E56,InTB!$C:$C,N$1) -> 0 | O56: =ROUND($T56*O$2,2)-SUMIFS(InTB!$K:$K,InTB!$M:$M,$E56,InTB!$C:$C,O$1) -> 0 | P56: =ROUND($T56*P$2,2)-SUMIFS(InTB!$K:$K,InTB!$M:$M,$E56,InTB!$C:$C,P$1) -> 0 | Q56: =ROUND($T56*Q$2,2)-SUMIFS(InTB!$K:$K,InTB!$M:$M,$E56,InTB!$C:$C,Q$1) -> 0 | R56: =ROUND($T56*R$2,2)-SUMIFS(InTB!$K:$K,InTB!$M:$M,$E56,InTB!$C:$C,R$1) -> 0 | S56: =ROUND($T56*S$2,2)-SUMIFS(InTB!$K:$K,InTB!$M:$M,$E56,InTB!$C:$C,S$1) -> 0 | T56: =-SUMIF(InTBBase!$M:$M,$E56,InTBBase!$K:$K) -> 0 | V56: 0
D57: ADEXP12 | E57: PREGEN | F57: =OFFSET(Label!$A$1,MATCH(D57,Label!$A$1:$A$65537,0)-1,Main!$G$14+1) -> General Expenses | I57: =-SUMIF(InTB!$M:$M,$E57,InTB!$K:$K) -> -914.76 | J57: =ROUND($T57*J$2,2)-SUMIFS(InTB!$K:$K,InTB!$M:$M,$E57,InTB!$C:$C,J$1) -> 0 | K57: =ROUND($T57*K$2,2)-SUMIFS(InTB!$K:$K,InTB!$M:$M,$E57,InTB!$C:$C,K$1) -> 0 | L57: =ROUND($T57*L$2,2)-SUMIFS(InTB!$K:$K,InTB!$M:$M,$E57,InTB!$C:$C,L$1) -> 0 | M57: =ROUND($T57*M$2,2)-SUMIFS(InTB!$K:$K,InTB!$M:$M,$E57,InTB!$C:$C,M$1) -> 0 | N57: =ROUND($T57*N$2,2)-SUMIFS(InTB!$K:$K,InTB!$M:$M,$E57,InTB!$C:$C,N$1) -> 0 | O57: =ROUND($T57*O$2,2)-SUMIFS(InTB!$K:$K,InTB!$M:$M,$E57,InTB!$C:$C,O$1) -> 0 | P57: =ROUND($T57*P$2,2)-SUMIFS(InTB!$K:$K,InTB!$M:$M,$E57,InTB!$C:$C,P$1) -> 0 | Q57: =ROUND($T57*Q$2,2)-SUMIFS(InTB!$K:$K,InTB!$M:$M,$E57,InTB!$C:$C,Q$1) -> 0 | R57: =ROUND($T57*R$2,2)-SUMIFS(InTB!$K:$K,InTB!$M:$M,$E57,InTB!$C:$C,R$1) -> -914.76 | S57: =ROUND($T57*S$2,2)-SUMIFS(InTB!$K:$K,InTB!$M:$M,$E57,InTB!$C:$C,S$1) -> 0 | T57: =-SUMIF(InTBBase!$M:$M,$E57,InTBBase!$K:$K) -> -914.76 | V57: 0
D58: ADEXP13 | E58: PRETXD | F58: =OFFSET(Label!$A$1,MATCH(D58,Label!$A$1:$A$65537,0)-1,Main!$G$14+1) -> Tax Disbursement | I58: =-SUMIF(InTB!$M:$M,$E58,InTB!$K:$K) -> 0 | J58: =ROUND($T58*J$2,2)-SUMIFS(InTB!$K:$K,InTB!$M:$M,$E58,InTB!$C:$C,J$1) -> 0 | K58: =ROUND($T58*K$2,2)-SUMIFS(InTB!$K:$K,InTB!$M:$M,$E58,InTB!$C:$C,K$1) -> 0 | L58: =ROUND($T58*L$2,2)-SUMIFS(InTB!$K:$K,InTB!$M:$M,$E58,InTB!$C:$C,L$1) -> 0 | M58: =ROUND($T58*M$2,2)-SUMIFS(InTB!$K:$K,InTB!$M:$M,$E58,InTB!$C:$C,M$1) -> 0 | N58: =ROUND($T58*N$2,2)-SUMIFS(InTB!$K:$K,InTB!$M:$M,$E58,InTB!$C:$C,N$1) -> 0 | O58: =ROUND($T58*O$2,2)-SUMIFS(InTB!$K:$K,InTB!$M:$M,$E58,InTB!$C:$C,O$1) -> 0 | P58: =ROUND($T58*P$2,2)-SUMIFS(InTB!$K:$K,InTB!$M:$M,$E58,InTB!$C:$C,P$1) -> 0 | Q58: =ROUND($T58*Q$2,2)-SUMIFS(InTB!$K:$K,InTB!$M:$M,$E58,InTB!$C:$C,Q$1) -> 0 | R58: =ROUND($T58*R$2,2)-SUMIFS(InTB!$K:$K,InTB!$M:$M,$E58,InTB!$C:$C,R$1) -> 0 | S58: =ROUND($T58*S$2,2)-SUMIFS(InTB!$K:$K,InTB!$M:$M,$E58,InTB!$C:$C,S$1) -> 0 | T58: =-SUMIF(InTBBase!$M:$M,$E58,InTBBase!$K:$K) -> 0 | V58: 0
D59: ADEXP14 | E59: PRERST | F59: =OFFSET(Label!$A$1,MATCH(D59,Label!$A$1:$A$65537,0)-1,Main!$G$14+1) -> Registration, stamping and transfer fees | I59: =-SUMIF(InTB!$M:$M,$E59,InTB!$K:$K) -> 0 | J59: =ROUND($T59*J$2,2)-SUMIFS(InTB!$K:$K,InTB!$M:$M,$E59,InTB!$C:$C,J$1) -> 0 | K59: =ROUND($T59*K$2,2)-SUMIFS(InTB!$K:$K,InTB!$M:$M,$E59,InTB!$C:$C,K$1) -> 0 | L59: =ROUND($T59*L$2,2)-SUMIFS(InTB!$K:$K,InTB!$M:$M,$E59,InTB!$C:$C,L$1) -> 0 | M59: =ROUND($T59*M$2,2)-SUMIFS(InTB!$K:$K,InTB!$M:$M,$E59,InTB!$C:$C,M$1) -> 0 | N59: =ROUND($T59*N$2,2)-SUMIFS(InTB!$K:$K,InTB!$M:$M,$E59,InTB!$C:$C,N$1) -> 0 | O59: =ROUND($T59*O$2,2)-SUMIFS(InTB!$K:$K,InTB!$M:$M,$E59,InTB!$C:$C,O$1) -> 0 | P59: =ROUND($T59*P$2,2)-SUMIFS(InTB!$K:$K,InTB!$M:$M,$E59,InTB!$C:$C,P$1) -> 0 | Q59: =ROUND($T59*Q$2,2)-SUMIFS(InTB!$K:$K,InTB!$M:$M,$E59,InTB!$C:$C,Q$1) -> 0 | R59: =ROUND($T59*R$2,2)-SUMIFS(InTB!$K:$K,InTB!$M:$M,$E59,InTB!$C:$C,R$1) -> 0 | S59: =ROUND($T59*S$2,2)-SUMIFS(InTB!$K:$K,InTB!$M:$M,$E59,InTB!$C:$C,S$1) -> 0 | T59: =-SUMIF(InTBBase!$M:$M,$E59,InTBBase!$K:$K) -> 0 | V59: 0
D60: ADEXP15 | E60: PRENOM | F60: =OFFSET(Label!$A$1,MATCH(D60,Label!$A$1:$A$65537,0)-1,Main!$G$14+1) -> Nominee's charges | I60: =-SUMIF(InTB!$M:$M,$E60,InTB!$K:$K) -> 0 | J60: =ROUND($T60*J$2,2)-SUMIFS(InTB!$K:$K,InTB!$M:$M,$E60,InTB!$C:$C,J$1) -> 0 | K60: =ROUND($T60*K$2,2)-SUMIFS(InTB!$K:$K,InTB!$M:$M,$E60,InTB!$C:$C,K$1) -> 0 | L60: =ROUND($T60*L$2,2)-SUMIFS(InTB!$K:$K,InTB!$M:$M,$E60,InTB!$C:$C,L$1) -> 0 | M60: =ROUND($T60*M$2,2)-SUMIFS(InTB!$K:$K,InTB!$M:$M,$E60,InTB!$C:$C,M$1) -> 0 | N60: =ROUND($T60*N$2,2)-SUMIFS(InTB!$K:$K,InTB!$M:$M,$E60,InTB!$C:$C,N$1) -> 0 | O60: =ROUND($T60*O$2,2)-SUMIFS(InTB!$K:$K,InTB!$M:$M,$E60,InTB!$C:$C,O$1) -> 0 | P60: =ROUND($T60*P$2,2)-SUMIFS(InTB!$K:$K,InTB!$M:$M,$E60,InTB!$C:$C,P$1) -> 0 | Q60: =ROUND($T60*Q$2,2)-SUMIFS(InTB!$K:$K,InTB!$M:$M,$E60,InTB!$C:$C,Q$1) -> 0 | R60: =ROUND($T60*R$2,2)-SUMIFS(InTB!$K:$K,InTB!$M:$M,$E60,InTB!$C:$C,R$1) -> 0 | S60: =ROUND($T60*S$2,2)-SUMIFS(InTB!$K:$K,InTB!$M:$M,$E60,InTB!$C:$C,S$1) -> 0 | T60: =-SUMIF(InTBBase!$M:$M,$E60,InTBBase!$K:$K) -> 0 | V60: 0
D61: ADEXP16 | E61: PREDIV | F61: =OFFSET(Label!$A$1,MATCH(D61,Label!$A$1:$A$65537,0)-1,Main!$G$14+1) -> Dividend postage and handling fees | I61: =-SUMIF(InTB!$M:$M,$E61,InTB!$K:$K) -> 0 | J61: =ROUND($T61*J$2,2)-SUMIFS(InTB!$K:$K,InTB!$M:$M,$E61,InTB!$C:$C,J$1) -> 0 | K61: =ROUND($T61*K$2,2)-SUMIFS(InTB!$K:$K,InTB!$M:$M,$E61,InTB!$C:$C,K$1) -> 0 | L61: =ROUND($T61*L$2,2)-SUMIFS(InTB!$K:$K,InTB!$M:$M,$E61,InTB!$C:$C,L$1) -> 0 | M61: =ROUND($T61*M$2,2)-SUMIFS(InTB!$K:$K,InTB!$M:$M,$E61,InTB!$C:$C,M$1) -> 0 | N61: =ROUND($T61*N$2,2)-SUMIFS(InTB!$K:$K,InTB!$M:$M,$E61,InTB!$C:$C,N$1) -> 0 | O61: =ROUND($T61*O$2,2)-SUMIFS(InTB!$K:$K,InTB!$M:$M,$E61,InTB!$C:$C,O$1) -> 0 | P61: =ROUND($T61*P$2,2)-SUMIFS(InTB!$K:$K,InTB!$M:$M,$E61,InTB!$C:$C,P$1) -> 0 | Q61: =ROUND($T61*Q$2,2)-SUMIFS(InTB!$K:$K,InTB!$M:$M,$E61,InTB!$C:$C,Q$1) -> 0 | R61: =ROUND($T61*R$2,2)-SUMIFS(InTB!$K:$K,InTB!$M:$M,$E61,InTB!$C:$C,R$1) -> 0 | S61: =ROUND($T61*S$2,2)-SUMIFS(InTB!$K:$K,InTB!$M:$M,$E61,InTB!$C:$C,S$1) -> 0 | T61: =-SUMIF(InTBBase!$M:$M,$E61,InTBBase!$K:$K) -> 0 | V61: 0
D62: ADEXP17 | E62: PREATD | F62: =OFFSET(Label!$A$1,MATCH(D62,Label!$A$1:$A$65537,0)-1,Main!$G$14+1) -> Audit Disbursement | I62: =-SUMIF(InTB!$M:$M,$E62,InTB!$K:$K) -> 0 | J62: =ROUND($T62*J$2,2)-SUMIFS(InTB!$K:$K,InTB!$M:$M,$E62,InTB!$C:$C,J$1) -> 0 | K62: =ROUND($T62*K$2,2)-SUMIFS(InTB!$K:$K,InTB!$M:$M,$E62,InTB!$C:$C,K$1) -> 0 | L62: =ROUND($T62*L$2,2)-SUMIFS(InTB!$K:$K,InTB!$M:$M,$E62,InTB!$C:$C,L$1) -> 0 | M62: =ROUND($T62*M$2,2)-SUMIFS(InTB!$K:$K,InTB!$M:$M,$E62,InTB!$C:$C,M$1) -> 0 | N62: =ROUND($T62*N$2,2)-SUMIFS(InTB!$K:$K,InTB!$M:$M,$E62,InTB!$C:$C,N$1) -> 0 | O62: =ROUND($T62*O$2,2)-SUMIFS(InTB!$K:$K,InTB!$M:$M,$E62,InTB!$C:$C,O$1) -> 0 | P62: =ROUND($T62*P$2,2)-SUMIFS(InTB!$K:$K,InTB!$M:$M,$E62,InTB!$C:$C,P$1) -> 0 | Q62: =ROUND($T62*Q$2,2)-SUMIFS(InTB!$K:$K,InTB!$M:$M,$E62,InTB!$C:$C,Q$1) -> 0 | R62: =ROUND($T62*R$2,2)-SUMIFS(InTB!$K:$K,InTB!$M:$M,$E62,InTB!$C:$C,R$1) -> 0 | S62: =ROUND($T62*S$2,2)-SUMIFS(InTB!$K:$K,InTB!$M:$M,$E62,InTB!$C:$C,S$1) -> 0 | T62: =-SUMIF(InTBBase!$M:$M,$E62,InTBBase!$K:$K) -> 0 | V62: 0
D63: ADEXP18 | E63: PRECDS | F63: =OFFSET(Label!$A$1,MATCH(D63,Label!$A$1:$A$65537,0)-1,Main!$G$14+1) -> CDS Fees | I63: =-SUMIF(InTB!$M:$M,$E63,InTB!$K:$K) -> 0 | J63: =ROUND($T63*J$2,2)-SUMIFS(InTB!$K:$K,InTB!$M:$M,$E63,InTB!$C:$C,J$1) -> 0 | K63: =ROUND($T63*K$2,2)-SUMIFS(InTB!$K:$K,InTB!$M:$M,$E63,InTB!$C:$C,K$1) -> 0 | L63: =ROUND($T63*L$2,2)-SUMIFS(InTB!$K:$K,InTB!$M:$M,$E63,InTB!$C:$C,L$1) -> 0 | M63: =ROUND($T63*M$2,2)-SUMIFS(InTB!$K:$K,InTB!$M:$M,$E63,InTB!$C:$C,M$1) -> 0 | N63: =ROUND($T63*N$2,2)-SUMIFS(InTB!$K:$K,InTB!$M:$M,$E63,InTB!$C:$C,N$1) -> 0 | O63: =ROUND($T63*O$2,2)-SUMIFS(InTB!$K:$K,InTB!$M:$M,$E63,InTB!$C:$C,O$1) -> 0 | P63: =ROUND($T63*P$2,2)-SUMIFS(InTB!$K:$K,InTB!$M:$M,$E63,InTB!$C:$C,P$1) -> 0 | Q63: =ROUND($T63*Q$2,2)-SUMIFS(InTB!$K:$K,InTB!$M:$M,$E63,InTB!$C:$C,Q$1) -> 0 | R63: =ROUND($T63*R$2,2)-SUMIFS(InTB!$K:$K,InTB!$M:$M,$E63,InTB!$C:$C,R$1) -> 0 | S63: =ROUND($T63*S$2,2)-SUMIFS(InTB!$K:$K,InTB!$M:$M,$E63,InTB!$C:$C,S$1) -> 0 | T63: =-SUMIF(InTBBase!$M:$M,$E63,InTBBase!$K:$K) -> 0 | V63: 0
D64: ADEXP19 | E64: PRECUL | F64: =OFFSET(Label!$A$1,MATCH(D64,Label!$A$1:$A$65537,0)-1,Main!$G$14+1) -> Local custodian fees | I64: =-SUMIF(InTB!$M:$M,$E64,InTB!$K:$K) -> 0 | J64: =ROUND($T64*J$2,2)-SUMIFS(InTB!$K:$K,InTB!$M:$M,$E64,InTB!$C:$C,J$1) -> 0 | K64: =ROUND($T64*K$2,2)-SUMIFS(InTB!$K:$K,InTB!$M:$M,$E64,InTB!$C:$C,K$1) -> 0 | L64: =ROUND($T64*L$2,2)-SUMIFS(InTB!$K:$K,InTB!$M:$M,$E64,InTB!$C:$C,L$1) -> 0 | M64: =ROUND($T64*M$2,2)-SUMIFS(InTB!$K:$K,InTB!$M:$M,$E64,InTB!$C:$C,M$1) -> 0 | N64: =ROUND($T64*N$2,2)-SUMIFS(InTB!$K:$K,InTB!$M:$M,$E64,InTB!$C:$C,N$1) -> 0 | O64: =ROUND($T64*O$2,2)-SUMIFS(InTB!$K:$K,InTB!$M:$M,$E64,InTB!$C:$C,O$1) -> 0 | P64: =ROUND($T64*P$2,2)-SUMIFS(InTB!$K:$K,InTB!$M:$M,$E64,InTB!$C:$C,P$1) -> 0 | Q64: =ROUND($T64*Q$2,2)-SUMIFS(InTB!$K:$K,InTB!$M:$M,$E64,InTB!$C:$C,Q$1) -> 0 | R64: =ROUND($T64*R$2,2)-SUMIFS(InTB!$K:$K,InTB!$M:$M,$E64,InTB!$C:$C,R$1) -> 0 | S64: =ROUND($T64*S$2,2)-SUMIFS(InTB!$K:$K,InTB!$M:$M,$E64,InTB!$C:$C,S$1) -> 0 | T64: =-SUMIF(InTBBase!$M:$M,$E64,InTBBase!$K:$K) -> 0 | V64: 0
D65: ADEXP20 | E65: PREMNE | F65: =OFFSET(Label!$A$1,MATCH(D65,Label!$A$1:$A$65537,0)-1,Main!$G$14+1) -> Management Expenses | I65: =-SUMIF(InTB!$M:$M,$E65,InTB!$K:$K) -> 0 | J65: =ROUND($T65*J$2,2)-SUMIFS(InTB!$K:$K,InTB!$M:$M,$E65,InTB!$C:$C,J$1) -> 0 | K65: =ROUND($T65*K$2,2)-SUMIFS(InTB!$K:$K,InTB!$M:$M,$E65,InTB!$C:$C,K$1) -> 0 | L65: =ROUND($T65*L$2,2)-SUMIFS(InTB!$K:$K,InTB!$M:$M,$E65,InTB!$C:$C,L$1) -> 0 | M65: =ROUND($T65*M$2,2)-SUMIFS(InTB!$K:$K,InTB!$M:$M,$E65,InTB!$C:$C,M$1) -> 0 | N65: =ROUND($T65*N$2,2)-SUMIFS(InTB!$K:$K,InTB!$M:$M,$E65,InTB!$C:$C,N$1) -> 0 | O65: =ROUND($T65*O$2,2)-SUMIFS(InTB!$K:$K,InTB!$M:$M,$E65,InTB!$C:$C,O$1) -> 0 | P65: =ROUND($T65*P$2,2)-SUMIFS(InTB!$K:$K,InTB!$M:$M,$E65,InTB!$C:$C,P$1) -> 0 | Q65: =ROUND($T65*Q$2,2)-SUMIFS(InTB!$K:$K,InTB!$M:$M,$E65,InTB!$C:$C,Q$1) -> 0 | R65: =ROUND($T65*R$2,2)-SUMIFS(InTB!$K:$K,InTB!$M:$M,$E65,InTB!$C:$C,R$1) -> 0 | S65: =ROUND($T65*S$2,2)-SUMIFS(InTB!$K:$K,InTB!$M:$M,$E65,InTB!$C:$C,S$1) -> 0 | T65: =-SUMIF(InTBBase!$M:$M,$E65,InTBBase!$K:$K) -> 0 | V65: 0
D66: ADEXP21 | E66: PREIVT | F66: =OFFSET(Label!$A$1,MATCH(D66,Label!$A$1:$A$65537,0)-1,Main!$G$14+1) -> Listed Securities Investment Cost | I66: =-SUMIF(InTB!$M:$M,$E66,InTB!$K:$K) -> 0 | J66: =ROUND($T66*J$2,2)-SUMIFS(InTB!$K:$K,InTB!$M:$M,$E66,InTB!$C:$C,J$1) -> 0 | K66: =ROUND($T66*K$2,2)-SUMIFS(InTB!$K:$K,InTB!$M:$M,$E66,InTB!$C:$C,K$1) -> 0 | L66: =ROUND($T66*L$2,2)-SUMIFS(InTB!$K:$K,InTB!$M:$M,$E66,InTB!$C:$C,L$1) -> 0 | M66: =ROUND($T66*M$2,2)-SUMIFS(InTB!$K:$K,InTB!$M:$M,$E66,InTB!$C:$C,M$1) -> 0 | N66: =ROUND($T66*N$2,2)-SUMIFS(InTB!$K:$K,InTB!$M:$M,$E66,InTB!$C:$C,N$1) -> 0 | O66: =ROUND($T66*O$2,2)-SUMIFS(InTB!$K:$K,InTB!$M:$M,$E66,InTB!$C:$C,O$1) -> 0 | P66: =ROUND($T66*P$2,2)-SUMIFS(InTB!$K:$K,InTB!$M:$M,$E66,InTB!$C:$C,P$1) -> 0 | Q66: =ROUND($T66*Q$2,2)-SUMIFS(InTB!$K:$K,InTB!$M:$M,$E66,InTB!$C:$C,Q$1) -> 0 | R66: =ROUND($T66*R$2,2)-SUMIFS(InTB!$K:$K,InTB!$M:$M,$E66,InTB!$C:$C,R$1) -> 0 | S66: =ROUND($T66*S$2,2)-SUMIFS(InTB!$K:$K,InTB!$M:$M,$E66,InTB!$C:$C,S$1) -> 0 | T66: =-SUMIF(InTBBase!$M:$M,$E66,InTBBase!$K:$K) -> 0 | V66: 0
E67: 710660 | F67: GST Reverse Charge | I67: =-SUMIF(InTB!$M:$M,$E67,InTB!$K:$K) -> 0 | J67: =ROUND($T67*J$2,2)-SUMIFS(InTB!$K:$K,InTB!$M:$M,$E67,InTB!$C:$C,J$1) -> 0 | K67: =ROUND($T67*K$2,2)-SUMIFS(InTB!$K:$K,InTB!$M:$M,$E67,InTB!$C:$C,K$1) -> 0 | L67: =ROUND($T67*L$2,2)-SUMIFS(InTB!$K:$K,InTB!$M:$M,$E67,InTB!$C:$C,L$1) -> 0 | M67: =ROUND($T67*M$2,2)-SUMIFS(InTB!$K:$K,InTB!$M:$M,$E67,InTB!$C:$C,M$1) -> 0 | N67: =ROUND($T67*N$2,2)-SUMIFS(InTB!$K:$K,InTB!$M:$M,$E67,InTB!$C:$C,N$1) -> 0 | O67: =ROUND($T67*O$2,2)-SUMIFS(InTB!$K:$K,InTB!$M:$M,$E67,InTB!$C:$C,O$1) -> 0 | P67: =ROUND($T67*P$2,2)-SUMIFS(InTB!$K:$K,InTB!$M:$M,$E67,InTB!$C:$C,P$1) -> 0 | Q67: =ROUND($T67*Q$2,2)-SUMIFS(InTB!$K:$K,InTB!$M:$M,$E67,InTB!$C:$C,Q$1) -> 0 | R67: =ROUND($T67*R$2,2)-SUMIFS(InTB!$K:$K,InTB!$M:$M,$E67,InTB!$C:$C,R$1) -> 0 | S67: =ROUND($T67*S$2,2)-SUMIFS(InTB!$K:$K,InTB!$M:$M,$E67,InTB!$C:$C,S$1) -> 0 | T67: =-SUMIF(InTBBase!$M:$M,$E67,InTBBase!$K:$K) -> 0 | V67: 0
D68: TRNCOST | E68: PRETRN | F68: =OFFSET(Label!$A$1,MATCH(D68,Label!$A$1:$A$65537,0)-1,Main!$G$14+1) -> TRANSACTION COST | I68: =-SUMIF(InTB!$M:$M,$E68,InTB!$K:$K) -> 0 | J68: =ROUND($T68*J$2,2)-SUMIFS(InTB!$K:$K,InTB!$M:$M,$E68,InTB!$C:$C,J$1) -> 0 | K68: =ROUND($T68*K$2,2)-SUMIFS(InTB!$K:$K,InTB!$M:$M,$E68,InTB!$C:$C,K$1) -> 0 | L68: =ROUND($T68*L$2,2)-SUMIFS(InTB!$K:$K,InTB!$M:$M,$E68,InTB!$C:$C,L$1) -> 0 | M68: =ROUND($T68*M$2,2)-SUMIFS(InTB!$K:$K,InTB!$M:$M,$E68,InTB!$C:$C,M$1) -> 0 | N68: =ROUND($T68*N$2,2)-SUMIFS(InTB!$K:$K,InTB!$M:$M,$E68,InTB!$C:$C,N$1) -> 0 | O68: =ROUND($T68*O$2,2)-SUMIFS(InTB!$K:$K,InTB!$M:$M,$E68,InTB!$C:$C,O$1) -> 0 | P68: =ROUND($T68*P$2,2)-SUMIFS(InTB!$K:$K,InTB!$M:$M,$E68,InTB!$C:$C,P$1) -> 0 | Q68: =ROUND($T68*Q$2,2)-SUMIFS(InTB!$K:$K,InTB!$M:$M,$E68,InTB!$C:$C,Q$1) -> 0 | R68: =ROUND($T68*R$2,2)-SUMIFS(InTB!$K:$K,InTB!$M:$M,$E68,InTB!$C:$C,R$1) -> 0 | S68: =ROUND($T68*S$2,2)-SUMIFS(InTB!$K:$K,InTB!$M:$M,$E68,InTB!$C:$C,S$1) -> 0 | T68: =-SUMIF(InTBBase!$M:$M,$E68,InTBBase!$K:$K) -> 0 | V68: 0
D69: FCUST | F69: =OFFSET(Label!$A$1,MATCH(D69,Label!$A$1:$A$65537,0)-1,Main!$G$14+1) -> FOREIGN CUSTODIAN CHARGES | I69: =SUM(I70:I71) -> -2881.65 | J69: 0 | K69: =SUM(K70:K71) -> 0 | L69: 0 | M69: 0 | N69: 0 | O69: =SUM(O70:O71) -> 0 | P69: 0 | Q69: 0 | R69: =SUM(R70:R71) -> -2881.65 | S69: =SUM(S70:S71) -> 0 | T69: -2881.65 | V69: 0
D70: FCUST1 | E70: PREACF | F70: =OFFSET(Label!$A$1,MATCH(D70,Label!$A$1:$A$65537,0)-1,Main!$G$14+1) -> Annual custodian fees | I70: =-SUMIF(InTB!$M:$M,$E70,InTB!$K:$K) -> -2881.65 | J70: =ROUND($T70*J$2,2)-SUMIFS(InTB!$K:$K,InTB!$M:$M,$E70,InTB!$C:$C,J$1) -> 0 | K70: =ROUND($T70*K$2,2)-SUMIFS(InTB!$K:$K,InTB!$M:$M,$E70,InTB!$C:$C,K$1) -> 0 | L70: =ROUND($T70*L$2,2)-SUMIFS(InTB!$K:$K,InTB!$M:$M,$E70,InTB!$C:$C,L$1) -> 0 | M70: =ROUND($T70*M$2,2)-SUMIFS(InTB!$K:$K,InTB!$M:$M,$E70,InTB!$C:$C,M$1) -> 0 | N70: =ROUND($T70*N$2,2)-SUMIFS(InTB!$K:$K,InTB!$M:$M,$E70,InTB!$C:$C,N$1) -> 0 | O70: =ROUND($T70*O$2,2)-SUMIFS(InTB!$K:$K,InTB!$M:$M,$E70,InTB!$C:$C,O$1) -> 0 | P70: =ROUND($T70*P$2,2)-SUMIFS(InTB!$K:$K,InTB!$M:$M,$E70,InTB!$C:$C,P$1) -> 0 | Q70: =ROUND($T70*Q$2,2)-SUMIFS(InTB!$K:$K,InTB!$M:$M,$E70,InTB!$C:$C,Q$1) -> 0 | R70: =ROUND($T70*R$2,2)-SUMIFS(InTB!$K:$K,InTB!$M:$M,$E70,InTB!$C:$C,R$1) -> -2881.65 | S70: =ROUND($T70*S$2,2)-SUMIFS(InTB!$K:$K,InTB!$M:$M,$E70,InTB!$C:$C,S$1) -> 0 | T70: =-SUMIF(InTBBase!$M:$M,$E70,InTBBase!$K:$K) -> -2881.65 | V70: 0
D71: FCUST2 | E71: PRETCF | F71: =OFFSET(Label!$A$1,MATCH(D71,Label!$A$1:$A$65537,0)-1,Main!$G$14+1) -> Custodian fee per foreign transaction | I71: =-SUMIF(InTB!$M:$M,$E71,InTB!$K:$K) -> 0 | J71: =ROUND($T71*J$2,2)-SUMIFS(InTB!$K:$K,InTB!$M:$M,$E71,InTB!$C:$C,J$1) -> 0 | K71: =ROUND($T71*K$2,2)-SUMIFS(InTB!$K:$K,InTB!$M:$M,$E71,InTB!$C:$C,K$1) -> 0 | L71: =ROUND($T71*L$2,2)-SUMIFS(InTB!$K:$K,InTB!$M:$M,$E71,InTB!$C:$C,L$1) -> 0 | M71: =ROUND($T71*M$2,2)-SUMIFS(InTB!$K:$K,InTB!$M:$M,$E71,InTB!$C:$C,M$1) -> 0 | N71: =ROUND($T71*N$2,2)-SUMIFS(InTB!$K:$K,InTB!$M:$M,$E71,InTB!$C:$C,N$1) -> 0 | O71: =ROUND($T71*O$2,2)-SUMIFS(InTB!$K:$K,InTB!$M:$M,$E71,InTB!$C:$C,O$1) -> 0 | P71: =ROUND($T71*P$2,2)-SUMIFS(InTB!$K:$K,InTB!$M:$M,$E71,InTB!$C:$C,P$1) -> 0 | Q71: =ROUND($T71*Q$2,2)-SUMIFS(InTB!$K:$K,InTB!$M:$M,$E71,InTB!$C:$C,Q$1) -> 0 | R71: =ROUND($T71*R$2,2)-SUMIFS(InTB!$K:$K,InTB!$M:$M,$E71,InTB!$C:$C,R$1) -> 0 | S71: =ROUND($T71*S$2,2)-SUMIFS(InTB!$K:$K,InTB!$M:$M,$E71,InTB!$C:$C,S$1) -> 0 | T71: =-SUMIF(InTBBase!$M:$M,$E71,InTBBase!$K:$K) -> 0 | V71: 0
D72: FBKRF | E72: PREFBF | F72: =OFFSET(Label!$A$1,MATCH(D72,Label!$A$1:$A$65537,0)-1,Main!$G$14+1) -> FOREIGN BROKERAGE FEE | I72: =-SUMIF(InTB!$M:$M,$E72,InTB!$K:$K) -> 0 | J72: =ROUND($T72*J$2,2)-SUMIFS(InTB!$K:$K,InTB!$M:$M,$E72,InTB!$C:$C,J$1) -> 0 | K72: =ROUND($T72*K$2,2)-SUMIFS(InTB!$K:$K,InTB!$M:$M,$E72,InTB!$C:$C,K$1) -> 0 | L72: =ROUND($T72*L$2,2)-SUMIFS(InTB!$K:$K,InTB!$M:$M,$E72,InTB!$C:$C,L$1) -> 0 | M72: =ROUND($T72*M$2,2)-SUMIFS(InTB!$K:$K,InTB!$M:$M,$E72,InTB!$C:$C,M$1) -> 0 | N72: =ROUND($T72*N$2,2)-SUMIFS(InTB!$K:$K,InTB!$M:$M,$E72,InTB!$C:$C,N$1) -> 0 | O72: =ROUND($T72*O$2,2)-SUMIFS(InTB!$K:$K,InTB!$M:$M,$E72,InTB!$C:$C,O$1) -> 0 | P72: =ROUND($T72*P$2,2)-SUMIFS(InTB!$K:$K,InTB!$M:$M,$E72,InTB!$C:$C,P$1) -> 0 | Q72: =ROUND($T72*Q$2,2)-SUMIFS(InTB!$K:$K,InTB!$M:$M,$E72,InTB!$C:$C,Q$1) -> 0 | R72: =ROUND($T72*R$2,2)-SUMIFS(InTB!$K:$K,InTB!$M:$M,$E72,InTB!$C:$C,R$1) -> 0 | S72: =ROUND($T72*S$2,2)-SUMIFS(InTB!$K:$K,InTB!$M:$M,$E72,InTB!$C:$C,S$1) -> 0 | T72: =-SUMIF(InTBBase!$M:$M,$E72,InTBBase!$K:$K) -> 0 | V72: 0
C73: PerfFeeBC | D73: PERF | E73: PREPMF | F73: =OFFSET(Label!$A$1,MATCH(D73,Label!$A$1:$A$65537,0)-1,Main!$G$14+1) -> PERFORMANCE FEE | I73: =-SUMIF(InTB!$M:$M,$E73,InTB!$K:$K) -> 0 | J73: =ROUND(($T73-$U73)*J$2,2)-SUMIFS(InTB!$K:$K,InTB!$M:$M,$E73,InTB!$C:$C,J$1)+ROUND(SUMIFS(INDIRECT(ADDRESS(3,MATCH($C73,InUPFee!$2:$2,0),,,"InUPFee") & ":" & ADDRESS(30000,MATCH($C73,InUPFee!$2:$2,0)),TRUE),InUPFee!$A$3:$A$30000,J$1),2) -> 0 | K73: =ROUND(($T73-$U73)*K$2,2)-SUMIFS(InTB!$K:$K,InTB!$M:$M,$E73,InTB!$C:$C,K$1)+ROUND(SUMIFS(INDIRECT(ADDRESS(3,MATCH($C73,InUPFee!$2:$2,0),,,"InUPFee") & ":" & ADDRESS(30000,MATCH($C73,InUPFee!$2:$2,0)),TRUE),InUPFee!$A$3:$A$30000,K$1),2) -> 0 | L73: =ROUND(($T73-$U73)*L$2,2)-SUMIFS(InTB!$K:$K,InTB!$M:$M,$E73,InTB!$C:$C,L$1)+ROUND(SUMIFS(INDIRECT(ADDRESS(3,MATCH($C73,InUPFee!$2:$2,0),,,"InUPFee") & ":" & ADDRESS(30000,MATCH($C73,InUPFee!$2:$2,0)),TRUE),InUPFee!$A$3:$A$30000,L$1),2) -> 0 | M73: =ROUND(($T73-$U73)*M$2,2)-SUMIFS(InTB!$K:$K,InTB!$M:$M,$E73,InTB!$C:$C,M$1)+ROUND(SUMIFS(INDIRECT(ADDRESS(3,MATCH($C73,InUPFee!$2:$2,0),,,"InUPFee") & ":" & ADDRESS(30000,MATCH($C73,InUPFee!$2:$2,0)),TRUE),InUPFee!$A$3:$A$30000,M$1),2) -> 0 | N73: =ROUND(($T73-$U73)*N$2,2)-SUMIFS(InTB!$K:$K,InTB!$M:$M,$E73,InTB!$C:$C,N$1)+ROUND(SUMIFS(INDIRECT(ADDRESS(3,MATCH($C73,InUPFee!$2:$2,0),,,"InUPFee") & ":" & ADDRESS(30000,MATCH($C73,InUPFee!$2:$2,0)),TRUE),InUPFee!$A$3:$A$30000,N$1),2) -> 0 | O73: =ROUND(($T73-$U73)*O$2,2)-SUMIFS(InTB!$K:$K,InTB!$M:$M,$E73,InTB!$C:$C,O$1)+ROUND(SUMIFS(INDIRECT(ADDRESS(3,MATCH($C73,InUPFee!$2:$2,0),,,"InUPFee") & ":" & ADDRESS(30000,MATCH($C73,InUPFee!$2:$2,0)),TRUE),InUPFee!$A$3:$A$30000,O$1),2) -> 0 | P73: =ROUND(($T73-$U73)*P$2,2)-SUMIFS(InTB!$K:$K,InTB!$M:$M,$E73,InTB!$C:$C,P$1)+ROUND(SUMIFS(INDIRECT(ADDRESS(3,MATCH($C73,InUPFee!$2:$2,0),,,"InUPFee") & ":" & ADDRESS(30000,MATCH($C73,InUPFee!$2:$2,0)),TRUE),InUPFee!$A$3:$A$30000,P$1),2) -> 0 | Q73: =ROUND(($T73-$U73)*Q$2,2)-SUMIFS(InTB!$K:$K,InTB!$M:$M,$E73,InTB!$C:$C,Q$1)+ROUND(SUMIFS(INDIRECT(ADDRESS(3,MATCH($C73,InUPFee!$2:$2,0),,,"InUPFee") & ":" & ADDRESS(30000,MATCH($C73,InUPFee!$2:$2,0)),TRUE),InUPFee!$A$3:$A$30000,Q$1),2) -> 0 | R73: =ROUND(($T73-$U73)*R$2,2)-SUMIFS(InTB!$K:$K,InTB!$M:$M,$E73,InTB!$C:$C,R$1)+ROUND(SUMIFS(INDIRECT(ADDRESS(3,MATCH($C73,InUPFee!$2:$2,0),,,"InUPFee") & ":" & ADDRESS(30000,MATCH($C73,InUPFee!$2:$2,0)),TRUE),InUPFee!$A$3:$A$30000,R$1),2) -> 0 | S73: =ROUND(($T73-$U73)*S$2,2)-SUMIFS(InTB!$K:$K,InTB!$M:$M,$E73,InTB!$C:$C,S$1)+ROUND(SUMIFS(INDIRECT(ADDRESS(3,MATCH($C73,InUPFee!$2:$2,0),,,"InUPFee") & ":" & ADDRESS(30000,MATCH($C73,InUPFee!$2:$2,0)),TRUE),InUPFee!$A$3:$A$30000,S$1),2) -> 0 | T73: =-SUMIF(InTBBase!$M:$M,$E73,InTBBase!$K:$K) -> 0 | U73: =SUMIFS(INDIRECT(ADDRESS(3,MATCH($C73,InUPFee!$2:$2,0),,,"InUPFee") & ":" & ADDRESS(30000,MATCH($C73,InUPFee!$2:$2,0)),TRUE),InUPFee!$A$3:$A$30000,FundCode) -> -5.684341886e-14 | V73: 0
F74: TOTAL EXPENDITURE | I74: =I43+I44+I69+I72+I68+I41+I42+I45+I73 -> -30909.82 | J74: =J43+J44+J69+J72+J68+J41+J42+J45+J73 -> 0 | K74: 0 | L74: 0 | M74: 0 | N74: 0 | O74: 0 | P74: 0 | Q74: 0 | R74: -30909.82 | S74: =S43+S44+S69+S72+S68+S41+S42+S45+S73 -> 0 | T74: =T43+T44+T69+T72+T68+T41+T42+T45+T73 -> -30909.82 | V74: 0
V75: 0
D76: NICNBTAX | F76: =OFFSET(Label!$A$1,MATCH(D76,Label!$A$1:$A$65537,0)-1,Main!$G$14+1) -> NET INCOME/( LOSS) BEFORE TAXATION | I76: =I38+I74 -> -63531.14149 | J76: 0 | K76: 0 | L76: 0 | M76: 0 | N76: 0 | O76: 0 | P76: 0 | Q76: 0 | R76: -63531.14 | S76: =S38+S74 -> 0 | T76: =T38+T74 -> -63531.14149 | V76: 0
V77: 0
D78: TAX | E78: PRETAX | F78: =OFFSET(Label!$A$1,MATCH(D78,Label!$A$1:$A$65537,0)-1,Main!$G$14+1) -> Taxation | I78: =-SUMIF(InTB!$M:$M,$E78,InTB!$K:$K) -> 0 | J78: =ROUND($T78*J$2,2)-SUMIFS(InTB!$K:$K,InTB!$M:$M,$E78,InTB!$C:$C,J$1) -> 0 | K78: =ROUND($T78*K$2,2)-SUMIFS(InTB!$K:$K,InTB!$M:$M,$E78,InTB!$C:$C,K$1) -> 0 | L78: =ROUND($T78*L$2,2)-SUMIFS(InTB!$K:$K,InTB!$M:$M,$E78,InTB!$C:$C,L$1) -> 0 | M78: =ROUND($T78*M$2,2)-SUMIFS(InTB!$K:$K,InTB!$M:$M,$E78,InTB!$C:$C,M$1) -> 0 | N78: =ROUND($T78*N$2,2)-SUMIFS(InTB!$K:$K,InTB!$M:$M,$E78,InTB!$C:$C,N$1) -> 0 | O78: =ROUND($T78*O$2,2)-SUMIFS(InTB!$K:$K,InTB!$M:$M,$E78,InTB!$C:$C,O$1) -> 0 | P78: =ROUND($T78*P$2,2)-SUMIFS(InTB!$K:$K,InTB!$M:$M,$E78,InTB!$C:$C,P$1) -> 0 | Q78: =ROUND($T78*Q$2,2)-SUMIFS(InTB!$K:$K,InTB!$M:$M,$E78,InTB!$C:$C,Q$1) -> 0 | R78: =ROUND($T78*R$2,2)-SUMIFS(InTB!$K:$K,InTB!$M:$M,$E78,InTB!$C:$C,R$1) -> 0 | S78: =ROUND($T78*S$2,2)-SUMIFS(InTB!$K:$K,InTB!$M:$M,$E78,InTB!$C:$C,S$1) -> 0 | T78: =-SUMIF(InTBBase!$M:$M,$E78,InTBBase!$K:$K) -> 0 | V78: 0
D79: TAX1 | E79: PRELYX | F79: =OFFSET(Label!$A$1,MATCH(D79,Label!$A$1:$A$65537,0)-1,Main!$G$14+1) -> Local Prior Year under/(over) Provision of Tax | I79: =-SUMIF(InTB!$M:$M,$E79,InTB!$K:$K) -> 0 | J79: =ROUND($T79*J$2,2)-SUMIFS(InTB!$K:$K,InTB!$M:$M,$E79,InTB!$C:$C,J$1) -> 0 | K79: =ROUND($T79*K$2,2)-SUMIFS(InTB!$K:$K,InTB!$M:$M,$E79,InTB!$C:$C,K$1) -> 0 | L79: =ROUND($T79*L$2,2)-SUMIFS(InTB!$K:$K,InTB!$M:$M,$E79,InTB!$C:$C,L$1) -> 0 | M79: =ROUND($T79*M$2,2)-SUMIFS(InTB!$K:$K,InTB!$M:$M,$E79,InTB!$C:$C,M$1) -> 0 | N79: =ROUND($T79*N$2,2)-SUMIFS(InTB!$K:$K,InTB!$M:$M,$E79,InTB!$C:$C,N$1) -> 0 | O79: =ROUND($T79*O$2,2)-SUMIFS(InTB!$K:$K,InTB!$M:$M,$E79,InTB!$C:$C,O$1) -> 0 | P79: =ROUND($T79*P$2,2)-SUMIFS(InTB!$K:$K,InTB!$M:$M,$E79,InTB!$C:$C,P$1) -> 0 | Q79: =ROUND($T79*Q$2,2)-SUMIFS(InTB!$K:$K,InTB!$M:$M,$E79,InTB!$C:$C,Q$1) -> 0 | R79: =ROUND($T79*R$2,2)-SUMIFS(InTB!$K:$K,InTB!$M:$M,$E79,InTB!$C:$C,R$1) -> 0 | S79: =ROUND($T79*S$2,2)-SUMIFS(InTB!$K:$K,InTB!$M:$M,$E79,InTB!$C:$C,S$1) -> 0 | T79: =-SUMIF(InTBBase!$M:$M,$E79,InTBBase!$K:$K) -> 0 | V79: 0
D80: TAX2 | E80: PREWHT | F80: =OFFSET(Label!$A$1,MATCH(D80,Label!$A$1:$A$65537,0)-1,Main!$G$14+1) -> Local Witholding Tax | I80: =-SUMIF(InTB!$M:$M,$E80,InTB!$K:$K) -> -4765.74 | J80: =ROUND($T80*J$2,2)-SUMIFS(InTB!$K:$K,InTB!$M:$M,$E80,InTB!$C:$C,J$1) -> 0 | K80: =ROUND($T80*K$2,2)-SUMIFS(InTB!$K:$K,InTB!$M:$M,$E80,InTB!$C:$C,K$1) -> 0 | L80: =ROUND($T80*L$2,2)-SUMIFS(InTB!$K:$K,InTB!$M:$M,$E80,InTB!$C:$C,L$1) -> 0 | M80: =ROUND($T80*M$2,2)-SUMIFS(InTB!$K:$K,InTB!$M:$M,$E80,InTB!$C:$C,M$1) -> 0 | N80: =ROUND($T80*N$2,2)-SUMIFS(InTB!$K:$K,InTB!$M:$M,$E80,InTB!$C:$C,N$1) -> 0 | O80: =ROUND($T80*O$2,2)-SUMIFS(InTB!$K:$K,InTB!$M:$M,$E80,InTB!$C:$C,O$1) -> 0 | P80: =ROUND($T80*P$2,2)-SUMIFS(InTB!$K:$K,InTB!$M:$M,$E80,InTB!$C:$C,P$1) -> 0 | Q80: =ROUND($T80*Q$2,2)-SUMIFS(InTB!$K:$K,InTB!$M:$M,$E80,InTB!$C:$C,Q$1) -> 0 | R80: =ROUND($T80*R$2,2)-SUMIFS(InTB!$K:$K,InTB!$M:$M,$E80,InTB!$C:$C,R$1) -> -4765.74 | S80: =ROUND($T80*S$2,2)-SUMIFS(InTB!$K:$K,InTB!$M:$M,$E80,InTB!$C:$C,S$1) -> 0 | T80: =-SUMIF(InTBBase!$M:$M,$E80,InTBBase!$K:$K) -> -4765.74 | V80: =ROUND(I80-SUM(J80:S80),1) -> 0
D81: TAX3 | E81: PRETXF | F81: =OFFSET(Label!$A$1,MATCH(D81,Label!$A$1:$A$65537,0)-1,Main!$G$14+1) -> Foreign Taxation | I81: =-SUMIF(InTB!$M:$M,$E81,InTB!$K:$K) -> -2816.23 | J81: =ROUND($T81*J$2,2)-SUMIFS(InTB!$K:$K,InTB!$M:$M,$E81,InTB!$C:$C,J$1) -> 0 | K81: =ROUND($T81*K$2,2)-SUMIFS(InTB!$K:$K,InTB!$M:$M,$E81,InTB!$C:$C,K$1) -> 0 | L81: =ROUND($T81*L$2,2)-SUMIFS(InTB!$K:$K,InTB!$M:$M,$E81,InTB!$C:$C,L$1) -> 0 | M81: =ROUND($T81*M$2,2)-SUMIFS(InTB!$K:$K,InTB!$M:$M,$E81,InTB!$C:$C,M$1) -> 0 | N81: =ROUND($T81*N$2,2)-SUMIFS(InTB!$K:$K,InTB!$M:$M,$E81,InTB!$C:$C,N$1) -> 0 | O81: =ROUND($T81*O$2,2)-SUMIFS(InTB!$K:$K,InTB!$M:$M,$E81,InTB!$C:$C,O$1) -> 0 | P81: =ROUND($T81*P$2,2)-SUMIFS(InTB!$K:$K,InTB!$M:$M,$E81,InTB!$C:$C,P$1) -> 0 | Q81: =ROUND($T81*Q$2,2)-SUMIFS(InTB!$K:$K,InTB!$M:$M,$E81,InTB!$C:$C,Q$1) -> 0 | R81: =ROUND($T81*R$2,2)-SUMIFS(InTB!$K:$K,InTB!$M:$M,$E81,InTB!$C:$C,R$1) -> -2816.23 | S81: =ROUND($T81*S$2,2)-SUMIFS(InTB!$K:$K,InTB!$M:$M,$E81,InTB!$C:$C,S$1) -> 0 | T81: =-SUMIF(InTBBase!$M:$M,$E81,InTBBase!$K:$K) -> -2816.23 | V81: 0
V82: 0
D83: NETINCTAX | F83: =OFFSET(Label!$A$1,MATCH(D83,Label!$A$1:$A$65537,0)-1,Main!$G$14+1) -> NET INCOME/ (LOSS) AFTER TAXATION | I83: =SUM(I76:I82) -> -71113.11149 | J83: 0 | K83: =SUM(K76:K82) -> 0 | L83: 0 | M83: 0 | N83: 0 | O83: =SUM(O76:O82) -> 0 | P83: 0 | Q83: 0 | R83: =SUM(R76:R82) -> -71113.11 | S83: =SUM(S76:S82) -> 0 | T83: -71113.11149 | V83: 0
V84: 0
D85: NETGAINFEX | E85: PUGNFX | F85: Less: Net gain/ or loss on investment - unrealised reclassified | I85: =-SUMIF(InTB!$M:$M,$E85,InTB!$K:$K) -> -46890.71149 | J85: =ROUND($T85*J$2,2)-SUMIFS(InTB!$K:$K,InTB!$M:$M,$E85,InTB!$C:$C,J$1) -> 0 | K85: =ROUND($T85*K$2,2)-SUMIFS(InTB!$K:$K,InTB!$M:$M,$E85,InTB!$C:$C,K$1) -> 0 | L85: =ROUND($T85*L$2,2)-SUMIFS(InTB!$K:$K,InTB!$M:$M,$E85,InTB!$C:$C,L$1) -> 0 | M85: =ROUND($T85*M$2,2)-SUMIFS(InTB!$K:$K,InTB!$M:$M,$E85,InTB!$C:$C,M$1) -> 0 | N85: =ROUND($T85*N$2,2)-SUMIFS(InTB!$K:$K,InTB!$M:$M,$E85,InTB!$C:$C,N$1) -> 0 | O85: =ROUND($T85*O$2,2)-SUMIFS(InTB!$K:$K,InTB!$M:$M,$E85,InTB!$C:$C,O$1) -> 0 | P85: =ROUND($T85*P$2,2)-SUMIFS(InTB!$K:$K,InTB!$M:$M,$E85,InTB!$C:$C,P$1) -> 0 | Q85: =ROUND($T85*Q$2,2)-SUMIFS(InTB!$K:$K,InTB!$M:$M,$E85,InTB!$C:$C,Q$1) -> 0 | R85: =ROUND($T85*R$2,2)-SUMIFS(InTB!$K:$K,InTB!$M:$M,$E85,InTB!$C:$C,R$1) -> -46890.71 | S85: =ROUND($T85*S$2,2)-SUMIFS(InTB!$K:$K,InTB!$M:$M,$E85,InTB!$C:$C,S$1) -> 0 | T85: =-SUMIF(InTBBase!$M:$M,$E85,InTBBase!$K:$K) -> -46890.71149 | V85: 0
D86: NETGAINFVTPL | F86: to unrealised income on investment | V86: 0
I87: =I83-I85 -> -24222.4 | J87: 0 | K87: =K83-K85 -> 0 | L87: =L83-L85 -> 0 | M87: 0 | N87: 0 | O87: =O83-O85 -> 0 | P87: 0 | Q87: 0 | R87: =R83-R85 -> -24222.4 | S87: =S83-S85 -> 0 | T87: -24222.4 | V87: 0
V88: 0
D89: UNDINCBF | E89: BSRRPF | F89: =OFFSET(Label!$A$1,MATCH(D89,Label!$A$1:$A$65537,0)-1,Main!$G$14+1) -> UNDISTRIBUTED INCOME/ (LOSS) BROUGHT FORWARD | I89: =-SUMIF(InTB!$M:$M,$E89,InTB!$K:$K) -> -61449.01 | J89: =ROUND($T89*J$2,2)-SUMIFS(InTB!$K:$K,InTB!$M:$M,$E89,InTB!$C:$C,J$1) -> 0 | K89: =ROUND($T89*K$2,2)-SUMIFS(InTB!$K:$K,InTB!$M:$M,$E89,InTB!$C:$C,K$1) -> 0 | L89: =ROUND($T89*L$2,2)-SUMIFS(InTB!$K:$K,InTB!$M:$M,$E89,InTB!$C:$C,L$1) -> 0 | M89: =ROUND($T89*M$2,2)-SUMIFS(InTB!$K:$K,InTB!$M:$M,$E89,InTB!$C:$C,M$1) -> 0 | N89: =ROUND($T89*N$2,2)-SUMIFS(InTB!$K:$K,InTB!$M:$M,$E89,InTB!$C:$C,N$1) -> 0 | O89: =ROUND($T89*O$2,2)-SUMIFS(InTB!$K:$K,InTB!$M:$M,$E89,InTB!$C:$C,O$1) -> 0 | P89: =ROUND($T89*P$2,2)-SUMIFS(InTB!$K:$K,InTB!$M:$M,$E89,InTB!$C:$C,P$1) -> 0 | Q89: =ROUND($T89*Q$2,2)-SUMIFS(InTB!$K:$K,InTB!$M:$M,$E89,InTB!$C:$C,Q$1) -> 0 | R89: =ROUND($T89*R$2,2)-SUMIFS(InTB!$K:$K,InTB!$M:$M,$E89,InTB!$C:$C,R$1) -> -61449.01 | S89: =ROUND($T89*S$2,2)-SUMIFS(InTB!$K:$K,InTB!$M:$M,$E89,InTB!$C:$C,S$1) -> 0 | T89: =-SUMIF(InTBBase!$M:$M,$E89,InTBBase!$K:$K) -> -61449.01 | V89: 0
D90: DIS1 | E90: PRDSEQ | F90: =OFFSET(Label!$A$1,MATCH(D90,Label!$A$1:$A$65537,0)-1,Main!$G$14+1) -> Distribution equalisation | I90: =-SUMIF(InTB!$M:$M,$E90,InTB!$K:$K) -> 0 | J90: =ROUND($T90*J$2,2)-SUMIFS(InTB!$K:$K,InTB!$M:$M,$E90,InTB!$C:$C,J$1) -> 0 | K90: =ROUND($T90*K$2,2)-SUMIFS(InTB!$K:$K,InTB!$M:$M,$E90,InTB!$C:$C,K$1) -> 0 | L90: =ROUND($T90*L$2,2)-SUMIFS(InTB!$K:$K,InTB!$M:$M,$E90,InTB!$C:$C,L$1) -> 0 | M90: =ROUND($T90*M$2,2)-SUMIFS(InTB!$K:$K,InTB!$M:$M,$E90,InTB!$C:$C,M$1) -> 0 | N90: =ROUND($T90*N$2,2)-SUMIFS(InTB!$K:$K,InTB!$M:$M,$E90,InTB!$C:$C,N$1) -> 0 | O90: =ROUND($T90*O$2,2)-SUMIFS(InTB!$K:$K,InTB!$M:$M,$E90,InTB!$C:$C,O$1) -> 0 | P90: =ROUND($T90*P$2,2)-SUMIFS(InTB!$K:$K,InTB!$M:$M,$E90,InTB!$C:$C,P$1) -> 0 | Q90: =ROUND($T90*Q$2,2)-SUMIFS(InTB!$K:$K,InTB!$M:$M,$E90,InTB!$C:$C,Q$1) -> 0 | R90: =ROUND($T90*R$2,2)-SUMIFS(InTB!$K:$K,InTB!$M:$M,$E90,InTB!$C:$C,R$1) -> 0 | S90: =ROUND($T90*S$2,2)-SUMIFS(InTB!$K:$K,InTB!$M:$M,$E90,InTB!$C:$C,S$1) -> 0 | T90: =-SUMIF(InTBBase!$M:$M,$E90,InTBBase!$K:$K) -> 0 | V90: 0
D91: DIS2 | E91: PRDIST | F91: =OFFSET(Label!$A$1,MATCH(D91,Label!$A$1:$A$65537,0)-1,Main!$G$14+1) -> Distributions | I91: =-SUMIF(InTB!$M:$M,$E91,InTB!$K:$K) -> 0 | J91: =ROUND($T91*J$2,2)-SUMIFS(InTB!$K:$K,InTB!$M:$M,$E91,InTB!$C:$C,J$1) -> 0 | K91: =ROUND($T91*K$2,2)-SUMIFS(InTB!$K:$K,InTB!$M:$M,$E91,InTB!$C:$C,K$1) -> 0 | L91: =ROUND($T91*L$2,2)-SUMIFS(InTB!$K:$K,InTB!$M:$M,$E91,InTB!$C:$C,L$1) -> 0 | M91: =ROUND($T91*M$2,2)-SUMIFS(InTB!$K:$K,InTB!$M:$M,$E91,InTB!$C:$C,M$1) -> 0 | N91: =ROUND($T91*N$2,2)-SUMIFS(InTB!$K:$K,InTB!$M:$M,$E91,InTB!$C:$C,N$1) -> 0 | O91: =ROUND($T91*O$2,2)-SUMIFS(InTB!$K:$K,InTB!$M:$M,$E91,InTB!$C:$C,O$1) -> 0 | P91: =ROUND($T91*P$2,2)-SUMIFS(InTB!$K:$K,InTB!$M:$M,$E91,InTB!$C:$C,P$1) -> 0 | Q91: =ROUND($T91*Q$2,2)-SUMIFS(InTB!$K:$K,InTB!$M:$M,$E91,InTB!$C:$C,Q$1) -> 0 | R91: =ROUND($T91*R$2,2)-SUMIFS(InTB!$K:$K,InTB!$M:$M,$E91,InTB!$C:$C,R$1) -> 0 | S91: =ROUND($T91*S$2,2)-SUMIFS(InTB!$K:$K,InTB!$M:$M,$E91,InTB!$C:$C,S$1) -> 0 | T91: =-SUMIF(InTBBase!$M:$M,$E91,InTBBase!$K:$K) -> 0 | V91: 0
D92: UNDINCCF | F92: =OFFSET(Label!$A$1,MATCH(D92,Label!$A$1:$A$65537,0)-1,Main!$G$14+1) -> UNDISTRIBUTED INCOME/(LOSS) CARRIED FORWARD | I92: =SUM(I87:I91) -> -85671.41 | J92: 0 | K92: =SUM(K87:K91) -> 0 | L92: 0 | M92: 0 | N92: 0 | O92: =SUM(O87:O91) -> 0 | P92: 0 | Q92: 0 | R92: =SUM(R87:R91) -> -85671.41 | S92: =SUM(S87:S91) -> 0 | T92: -85671.41 | V92: 0
V93: 0
V94: 0
D95: NETAFTERTAX | F95: =OFFSET(Label!$A$1,MATCH(D95,Label!$A$1:$A$65537,0)-1,Main!$G$14+1) -> NET INCOME AFTER TAXATION IS MADE UP OF: | V95: 0
D96: RINC | F96: =OFFSET(Label!$A$1,MATCH(D96,Label!$A$1:$A$65537,0)-1,Main!$G$14+1) -> Realised income/ (loss) | I96: =I87 -> -24222.4 | J96: 0 | K96: =K87 -> 0 | L96: 0 | M96: 0 | N96: 0 | O96: =O87 -> 0 | P96: 0 | Q96: 0 | R96: =R87 -> -24222.4 | S96: =S87 -> 0 | T96: -24222.4 | V96: 0
D97: UINC2 | E97: PUGNFX | F97: =OFFSET(Label!$A$1,MATCH(D97,Label!$A$1:$A$65537,0)-1,Main!$G$14+1) -> Unrealised income/ (loss) On Foreign Exchange | I97: =-SUMIF(InTB!$M:$M,$E97,InTB!$K:$K) -> -46890.71149 | J97: =ROUND($T97*J$2,2)-SUMIFS(InTB!$K:$K,InTB!$M:$M,$E97,InTB!$C:$C,J$1) -> 0 | K97: =ROUND($T97*K$2,2)-SUMIFS(InTB!$K:$K,InTB!$M:$M,$E97,InTB!$C:$C,K$1) -> 0 | L97: =ROUND($T97*L$2,2)-SUMIFS(InTB!$K:$K,InTB!$M:$M,$E97,InTB!$C:$C,L$1) -> 0 | M97: =ROUND($T97*M$2,2)-SUMIFS(InTB!$K:$K,InTB!$M:$M,$E97,InTB!$C:$C,M$1) -> 0 | N97: =ROUND($T97*N$2,2)-SUMIFS(InTB!$K:$K,InTB!$M:$M,$E97,InTB!$C:$C,N$1) -> 0 | O97: =ROUND($T97*O$2,2)-SUMIFS(InTB!$K:$K,InTB!$M:$M,$E97,InTB!$C:$C,O$1) -> 0 | P97: =ROUND($T97*P$2,2)-SUMIFS(InTB!$K:$K,InTB!$M:$M,$E97,InTB!$C:$C,P$1) -> 0 | Q97: =ROUND($T97*Q$2,2)-SUMIFS(InTB!$K:$K,InTB!$M:$M,$E97,InTB!$C:$C,Q$1) -> 0 | R97: =ROUND($T97*R$2,2)-SUMIFS(InTB!$K:$K,InTB!$M:$M,$E97,InTB!$C:$C,R$1) -> -46890.71 | S97: =ROUND($T97*S$2,2)-SUMIFS(InTB!$K:$K,InTB!$M:$M,$E97,InTB!$C:$C,S$1) -> 0 | T97: =-SUMIF(InTBBase!$M:$M,$E97,InTBBase!$K:$K) -> -46890.71149 | V97: 0
I98: =SUM(I96:I97) -> -71113.11149 | J98: 0 | K98: =SUM(K96:K97) -> 0 | L98: 0 | M98: 0 | N98: 0 | O98: =SUM(O96:O97) -> 0 | P98: 0 | Q98: 0 | R98: =SUM(R96:R97) -> -71113.11 | S98: 0 | T98: =SUM(T96:T97) -> -71113.11149 | V98: 0

Sheet Label (hidden)
B9: Income Statement | F9: Balance Sheet
B10: Conventional Fund | C10: Islamic Fund | F10: Conventional Fund | G10: Islamic Fund
A11: INVINC | B11: INCOME | C11: INCOME | E11: ASSET | F11: ASSETS | G11: Assets
A12: INTINCOME | B12: INTEREST INCOME | C12: PROFIT SHARING | E12: INV | F12: INVESTMENTS | G12: Investments
A13: INTINCOME1 | B13: =UPPER("Interest Income - Money Market Placement") -> INTEREST INCOME - MONEY MARKET PLACEMENT | C13: Profit Sharing - Shariah-based deposits and placements | E13: UFISCP | F13: UNQUOTED FIXED INCOME SECURITIES -COMMERCIAL PAPER | G13: Unquoted Fixed Income Securities - Islamic Commercial Paper
A14: INTINCOME2 | B14: Interest Income - Commercial Bond | C14: Profit Sharing - Commercial Bond | E14: UFISCP1 | F14: Investment Cost -CP | G14: Investment Cost -CP
A15: INTINCOME3 | B15: Interest Income - Bank | C15: Profit Sharing - Bank | E15: UFISCP2 | F15: Accretion of Discount- CP | G15: Accreation of Discount- CP
A16: INTINCOME4 | B16: Interest Income - loan stock | C16: Profit Sharing - loan stock | E16: UFISCP3 | F16: Unrealised Reserves on Investment -CP | G16: Unrealised Reserves on Investment -CP
A17: AMORT | B17: (AMORTISATION OF PREMIUM, NET ACCREATION OF DISCOUNT)/ | C17: =B17 -> (AMORTISATION OF PREMIUM, NET ACCREATION OF DISCOUNT)/
A18: ACCRE | B18: ACCREATION OF DISCOUNT, NET AMORTISATION OF PREMIUM | C18: =B18 -> ACCREATION OF DISCOUNT, NET AMORTISATION OF PREMIUM | E18: UFISCB | F18: UNQUOTED FIXED INCOME SECURITIES -COMMERCIAL BOND | G18: Unquoted Fixed Income Securities -Commercial SUKUK
A19: ACCRE1 | B19: Discount - Commercial Paper | C19: Discount - Commercial Paper | E19: UFISCOST1 | F19: Investment Cost - CB | G19: Investment Cost - CB
A20: ACCRE2 | B20: Discount - Commercial Bond | C20: Discount - Commercial Bond | E20: UFISCOST2 | F20: Pre-Acq Interest - CB | G20: Pre-Acq Interest - CB
A21: ACCRE3 | B21: Amortisation of Premium-Commercial Bond | C21: Amortisation of premium-Commercial Bond | E21: UFISCOST3 | F21: Premium on Acquisition - CB | G21: Premium on Acquisition- CB
A22: GDIV | B22: GROSS DIVIDEND | C22: GROSS DIVIDEND | E22: UFISCOST4 | F22: Accreation of Discount - CB | G22: Accretion of Discount - CB
A23: GDIV1 | B23: Dividend Income - Local (TA) | C23: Dividend Income - Local (TA) | E23: UFISCOST5 | F23: Unrealised Reserves on Investment - CB | G23: Unrealised Reserves on Investment - CB
A24: GDIV2 | B24: Dividend Income - Local (TE) | C24: Dividend Income - Local (TE) | E24: UFISCOST6 | F24: UNREALISED FOREX GAINS/(LOSS) ON FOREIGN - CB | G24: Unrealised FOREX Gains/(Loss) on Foreign - CB
A25: GDIV3 | B25: Dividend Income - Foreign (TA) | C25: Dividend Income - Foreign (TA)
A26: GDIV4 | B26: Dividend Income - Foreign (TE) | C26: Dividend Income - Foreign (TE) | E26: FVUFIS | F26: FAIR VALUE FOR UNQUOTED FIXED INCOME SECURITIES | G26: Fair Value for Unquoted fixed income securities
A27: NRGNL | B27: NET REALISED GAIN/(LOSS) ON SALE OF INVESTMENTS | C27: =B27 -> NET REALISED GAIN/(LOSS) ON SALE OF INVESTMENTS
A28: NRGNL1 | B28: Local | C28: Local | E28: QS | F28: QUOTED SECURITIES | G28: Quoted Securities
A29: NRGNL2 | B29: Foreign | C29: Foreign | E29: QS1 | F29: Local Listed Securities | G29: Local Listed Securities
A30: NGNLFWD | B30: NET GAIN/(LOSS) ON FORWARD CONTRACT - REALISED | C30: =B30 -> NET GAIN/(LOSS) ON FORWARD CONTRACT - REALISED | E30: QS2 | F30: Unrealised Gains/(Loss) on Local Listed Securities | G30: Unrealised Gains/(Loss) on Local Listed Securities
A31: NGNLFXR | B31: NET GAIN/ (LOSS) ON FOREIGN EXCHANGE - REALISED | C31: =B31 -> NET GAIN/ (LOSS) ON FOREIGN EXCHANGE - REALISED | E31: QS3 | F31: FOREIGN LISTED SECURITIES | G31: Foreign Listed Securities
A32: NGNLFXU | B32: NET GAIN/ (LOSS) ON FOREIGN EXCHANGE - UNREALISED | C32: =B32 -> NET GAIN/ (LOSS) ON FOREIGN EXCHANGE - UNREALISED | E32: QS4 | F32: UNREALISED GAINS/(LOSS) ON FOREIGN LISTED SECURITIES | G32: Unrealised Gains/(Loss) on Foreign Listed Securities
A33: NGNLFVTPL | B33: NET GAIN/ (LOSS) ON FVTPL - UNREALISED | C33: NET GAIN/ (LOSS) ON FVTPL - UNREALISED | E33: QS5 | F33: UNREALISED FOREX GAINS/(LOSS) ON FOREIGN LISTED SECURITIES | G33: Unrealised FOREX Gains/(Loss) on Foreign Listed Securities
A34: OTHINC | B34: OTHER INCOME | C34: =B34 -> OTHER INCOME | E34: QS6 | F34: QUOTED DERIVATIVES | G34: Quoted Derivatives
A35: REBATE | B35: REBATES FROM MANAGEMENT FEE | C35: =B35 -> REBATES FROM MANAGEMENT FEE | E35: QS7 | F35: UNREALISED GAINS/(LOSS) ON QUOTED DERIVATIVES | G35: Unrealised Gains/(Loss) on Quoted Derivatives
E37: CIS | F37: COLLECTIVE INVESTMENT SCHEME | G37: Collective Investment Scheme
A38: EXP | B38: EXPENDITURE | C38: =B38 -> EXPENDITURE | E38: CIS1 | F38: LOCAL COLLECTIVE INVESTMENT SCHEME | G38: Local Collective Investment Scheme
A39: MGTFEE | B39: MANAGEMENT FEE | C39: MANAGEMENT FEE | E39: CIS2 | F39: Unrealised Gains/(Loss) on Local Collective Investment Scheme | G39: Unrealised Gains/(Loss) on Local Collective Investment Scheme
A40: TRTFEE | B40: TRUSTEE'S FEE | C40: TRUSTEE'S FEE | E40: CIS3 | F40: Foreign Collective Investment Scheme | G40: Foreign Collective Investment Scheme
A41: AUDITOR | B41: AUDITOR'S REMUNERATION | C41: AUDITOR'S REMUNERATION | E41: CIS4 | F41: Unrealised Gains/(Loss) on Foreign Collective Investment Scheme | G41: Unrealised Gains/(Loss) on Foreign Collective Investment Scheme
A42: TAXAF | B42: TAX AGENT'S FEE | C42: TAX AGENT'S FEE | E42: CIS5 | F42: Unrealised FOREX Gains/(Loss) on Foreign Collective Investment Scheme | G42: Unrealised FOREX Gains/(Loss) on Foreign Collective Investment Scheme
A43: ADEXP | B43: ADMINISTRATION EXPENSES | C43: ADMINISTRATION EXPENSES
A44: ADEXP1 | B44: Printing | C44: Printing | E44: OPT | F44: OPTIONS | G44: Options
A45: ADEXP2 | B45: Postage | C45: Postage | E45: OPT1 | F45: Foreign Options | G45: Foreign Options
A46: ADEXP3 | B46: Bank charges | C46: Bank charges | E46: OPT2 | F46: Unrealised Gains/(Loss) on Foreign Options | G46: Unrealised Gains/(Loss) on Foreign Options
A47: ADEXP4 | B47: CDS deposit fee | C47: CDS deposit fee | E47: OPT3 | F47: Unrealised FOREX Gains/(Loss) on Foreign Options | G47: Unrealised FOREX Gains/(Loss) on Foreign Options
A48: ADEXP5 | B48: Cash distribution expenses | C48: Cash distribution expenses | E48: OPT4 | F48: Forward Contract | G48: Forward Contract
A49: ADEXP6 | B49: CDS transfer fee | C49: CDS transfer fee | E49: OPT5 | F49: Unrealised FOREX Gains/(Loss) on Forward Contract | G49: Unrealised FOREX Gains/(Loss) on Forward Contract
A50: ADEXP7 | B50: Online service charges | C50: Online service charges
A51: ADEXP8 | B51: SSTS custodian charges | C51: SSTS cusoidian charges | E51: CSHINV | F51: DEPOSITS AND PLACEMENTS WITH FINANCIAL INSTITUTIONS | G51: Shariah-based Deposits and placements with financial institutions
A52: ADEXP9 | B52: Trustee's fee (Registration Services) | C52: Trustee's fee (Registration Services) | E52: TOTALINV | F52: TOTAL INVESTMENT | G52: Total Investment
A53: ADEXP10 | B53: Services charges | C53: Services charges
A54: ADEXP11 | B54: Professional fees | C54: Professional fees | E54: OTHASSET | F54: OTHER ASSETS | G54: Other assets
A55: ADEXP12 | B55: General Expenses | C55: General Expenses | E55: AMTFMGR | F55: AMOUNT DUE/ (TO) FROM THE MANAGER (NET CREATION / (CANCELLATION)) | G55: Amount due/ (to) from the Manager (net creation / (cancellation))
A56: ADEXP13 | B56: Tax Disbursement | C56: Tax Disbursement | E56: AMTFBRK | F56: AMOUNT DUE FROM STOCKBROKERS | G56: Amount due from stockbrokers
A57: ADEXP14 | B57: Registration, stamping and transfer fees | C57: Registration, stamping and transfer fees | E57: AMTFBRK1 | F57: Broker - Local | G57: Broker - Local
A58: ADEXP15 | B58: Nominee's charges | C58: Nominee's charges | E58: AMTFBRK2 | F58: Broker - Foreign | G58: Broker - Foreign
A59: ADEXP16 | B59: Dividend postage and handling fees | C59: Dividend postage and handling fees | E59: AMTFBRK3 | F59: Foreign Broker - Unrealised FOREX Gains/(Loss) | G59: Foreign Broker - Unrealised FOREX Gains/(Loss)
A60: ADEXP17 | B60: Audit Disbursement | C60: Audit Disbursement | E60: AMTFOTH | F60: AMOUNT DUE FROM OTHER INVESTMENT | G60: AMOUNT DUE FROM OTHER INVESTMENT
A61: ADEXP18 | B61: CDS Fees | C61: CDS Fees | E61: REBATE | F61: REBATES RECEIVABLE | G61: Rebates Receivable
A62: ADEXP19 | B62: Local custodian fees | C62: Local custodian fees | E62: INTRECCSH | F62: INTEREST RECEIVABLE ON DEPOSITS AND PLACEMENTS | G62: Profit Receivable on Deposits and Placements
A63: ADEXP20 | B63: Management Expenses | C63: Management Expenses | E63: INTRECBND | F63: INTEREST RECEIVABLE ON UNQUOTED FIXED INCOME SECURITIES | G63: Profit Receivable on Unquoted Fixed Income Securities
A64: ADEXP21 | B64: Listed Securities Investment Cost | C64: Listed Securities Investment Cost | E64: DIVREC | F64: DIVIDEND RECEIVABLE | G64: Dividend receivable
A65: TRNCOST | B65: TRANSACTION COST | C65: TRANSACTION COST | E65: DIVREC1 | F65: Dividend receivable - Local | G65: Dividend receivable - Local
A66: FCUST | B66: FOREIGN CUSTODIAN CHARGES | C66: =B66 -> FOREIGN CUSTODIAN CHARGES | E66: DIVREC2 | F66: Dividend receivable - Foreign | G66: Dividend receivable - Foreign
A67: FCUST1 | B67: Annual custodian fees | C67: Annual custodian fees | E67: DIVREC3 | F67: Foreign Dividend - Unrealised FOREX Gains/(Loss) | G67: Foreign Dividend - Unrealised FOREX Gains/(Loss)
A68: FCUST2 | B68: Custodian fee per foreign transaction | C68: Custodian fee per foreign transaction | E68: TAXREC | F68: TAX RECOVERABLE | G68: Tax recoverable
E69: SUNDEB | F69: SUNDRY DEBTOR | G69: Sundry Debtor
A70: FBKRF | B70: FOREIGN BROKERAGE FEE | C70: =B70 -> FOREIGN BROKERAGE FEE | E70: BANK | F70: BANK BALANCES WITH FINANCIAL INSTITUTIONS | G70: Shariah -based Bank balances with Financial Institutions
A71: PERF | B71: PERFORMANCE FEE | C71: PERFORMANCE FEE | E71: BANK1 | F71: Bank Balances in Cost | G71: Shariah -based Bank Balances in Cost
A72: NICNBTAX | B72: NET INCOME/( LOSS) BEFORE TAXATION | C72: NET INCOME/( LOSS) BEFORE FINANCE COST AND TAXATION | E72: BANK2 | F72: Foreign Bank Balances - Unrealised FOREX Gains/(Loss) | G72: Foreign Shariah -based Bank Balances - Unrealised FOREX Gains/(Loss)
A74: TAX | B74: Taxation | C74: Taxation | E74: TOTASSET | F74: TOTAL ASSETS | G74: Total Assets
A75: TAX1 | B75: Local Prior Year under/(over) Provision of Tax | C75: Local Prior Year under/(over) Provision of Tax
A76: TAX2 | B76: Local Witholding Tax | C76: Local Witholding Tax | E76: LIABILITY | F76: LIABILITIES | G76: Liabilities
A77: TAX3 | B77: Foreign Taxation | C77: Foreign Taxation
E78: AMTTMGR | F78: AMOUNT DUE TO THE MANAGER (MANAGEMENT FEE & EXPENSES) | G78: Amount due to the Manager (Management Fee & Expenses)
A79: NETINCTAX | B79: NET INCOME/ (LOSS) AFTER TAXATION | C79: NET INCOME/ (LOSS) AFTER TAXATION | E79: AMTTTRT | F79: AMOUNT DUE TO THE TRUSTEE | G79: Amount due to the Trustee
E80: AMTTBRK | F80: AMOUNT DUE TO STOCKBROKERS | G80: Amount due to Stockbrokers
A81: NETGAINFEX | B81: Less: Net gain on foreign exchange - unrealised reclassified to unrealised income on investment | C81: Less: Net gain on foreign exchange - unrealised reclassified to unrealised income on investment | E81: AMTTBRK1 | F81: Broker - Local | G81: Broker - Local
A82: NETGAINFVTPL | B82: Less: Net gain on FVTPL - unrealised reclassified to unrealised income on investment | C82: Less: Net gain on FVTPL - unrealised reclassified to unrealised income on investment | E82: AMTTBRK2 | F82: Broker - Foreign | G82: Broker - Foreign
E83: AMTTBRK3 | F83: Foreign Broker - Unrealised FOREX Gains/(Loss) | G83: Foreign Broker - Unrealised FOREX Gains/(Loss)
E84: AMTTOTHINV | F84: AMOUNT DUE TO OTHER INVESTMNET | G84: Amount due to Other Investmnet
E85: TAXP | F85: TAX PAYABLE | G85: Tax payable
A86: UNDINCBF | B86: UNDISTRIBUTED INCOME/ (LOSS) BROUGHT FORWARD | C86: CURRENT YEAR UNDISTRIBUTED INCOME/ (LOSS) B/F | E86: TAXFP | F86: TAX FEE PAYABLE | G86: Tax fee payable
A87: DIS1 | B87: Distribution equalisation | C87: Distribution equalisation | E87: DIVP | F87: DIVIDEND PAYABLE | G87: Dividend payable
A88: DIS2 | B88: Distributions | C88: Distributions | E88: PROVAUDIT | F88: PROVISION FOR AUDIT FEE | G88: Provision for audit fee
A89: UNDINCCF | B89: UNDISTRIBUTED INCOME/(LOSS) CARRIED FORWARD | C89: CURRENT YEAR UNDISTRIBUTED INCOME/(LOSS) C/F | E89: AMT | F89: AMOUNT DUE TO TRUSTEE (INITIAL BANK AMOUNT) | G89: Amount Due to Trustee (Initial Bank Amount)
E90: SUNACC | F90: SUNDRY ACCRUALS | G90: Sundry Accruals
E91: CUSTFFTP | F91: CUSTODIAN FEE PAYABLE (ANNUAL + PER FOREIGN TRANSACTION) | G91: Custodian Fees per Foreign Transaction Payable
A92: NETAFTERTAX | B92: NET INCOME AFTER TAXATION IS MADE UP OF: | C92: =B92 -> NET INCOME AFTER TAXATION IS MADE UP OF: | E92: FBRKFP | F92: FOREIGN BROKERAGE FEE PAYABLE | G92: Foreign Brokerage Fee Payable
A93: RINC | B93: Realised income/ (loss) | C93: Realised income/ (loss) | E93: TOTLEXNAV | F93: TOTAL LIABILITIES EXCLUDING NET ASSET VALUE ("NAV") ATTRIBUTABLE TO UNIT HOLDERS | G93: Total Liabilities Excluding Net Asset Value ("NAV") Attributable to Unit Holders
A94: UINC | B94: Unrealised income/ (loss) | C94: Unrealised income/ (loss)
A95: UINC1 | B95: Unrealised income/ (loss) | C95: Unrealised income/ (loss) | E95: NAVUNIT | F95: NAV ATTRIBUTABLE TO UNIT HOLDERS | G95: NAV Attributable to Unit Holders
A96: UINC2 | B96: Unrealised income/ (loss) On Foreign Exchange | C96: Unrealised income/ (loss) On Foreign Exchange
E97: TOTLINAV | F97: TOTAL LIABILITIES INCLUDING NAV | G97: Total Liabilities Including NAV
E100: UCIR | F100: UNITS IN CIRCULATION | G100: Units in Circulation
E101: MCR | F101: Multi Class Ratio (MCR) % | G101: Multi Class Ratio (MCR) %
E102: EXCHGRATE | F102: Exchange Rate | G102: Exchange Rate
E103: NAV | F103: Net Asset Value Per Unit in Fund Currency | G103: Net Asset Value Per Unit in Fund Currency
E104: NAVCLASS | F104: Net Asset Value Per Unit in Class Currency | G104: Net Asset Value Per Unit in Class Currency
E106: NOTE: | F106: NOTE: | G106: Note:
E107: NAVAT | F107: NAV ATTRIBUTABLE TO UNIT HOLDERS | G107: NAV Attributable to Unit Holders
E108: CAP | F108: UNITHOLDERS' CAPITAL | G108: Unitholders' capital
E109: URR | F109: UNREALISED RESERVES/ (DEFICIT) ON INVESTMENTS | G109: Unrealised Reserves/ (deficit) on Investments
E110: RETAIN | F110: RETAIN EARNINGS | G110: Retain Earnings
E111: PROFIT | F111: CURRENT YEAR PROFIT / (LOSS) | G111: Current Year Profit / (Loss)
F121: as per unit pricing | G121: as per unit pricing

Sheet InUP (hidden)
S1: =IF(Q1=4,IF(A1=L1,0,K1/O1/R1),IF(ROW()=MATCH(MAX($H:$H),$H:$H,0),1-SUMIF(A:A,"<>"&OFFSET($A$1,MATCH(MAX($H:$H),$H:$H,0)-1,0),P:P),P1)) -> 0 | T1: =IF(ROW()=MATCH(MAX($H:$H),$H:$H,0),1-SUMIF($A:$A,"<>"&OFFSET($A$1,MATCH(MAX($H:$H),$H:$H,0)-1,0),S:S),S1) -> 0 | U1: =R1-SUM(J:J)/2 -> 0 | V1: =IF(L1=A1,0,(K1/O1-J1)/U1) -> 0 | W1: =IF(ROW()=MATCH(MAX($H:$H),$H:$H,0),1-SUMIF($A:$A,"<>"&OFFSET($A$1,MATCH(MAX($H:$H),$H:$H,0)-1,0),V:V),V1) -> 0
A2: qFundCode | B2: qValDate | C2: LastValDate | D2: NAVBC | E2: BuyPrice | F2: SellPrice | G2: ValPrice | H2: TotalUnits | I2: TotalUnitsBF | J2: ClassNAVBC | K2: NAV | L2: RefFundCode | M2: qCurrencyCode | N2: UnitRatio | O2: ExchgRate | P2: MCR | Q2: UPMethod | R2: BaseNAV | S2: MCRCalc | T2: MCRRpt | U2: BaseNAVxClsNAV | V2: MCRCalcH | W2: MCRCalcHAdj
A3: FFSAF | B3: 2020-06-30 | C3: 2020-06-29 | D3: 1473901.35 | E3: 0 | F3: 0 | G3: 0 | H3: 0 | I3: 0 | J3: 0 | K3: 1473901.35 | L3: FFSAF | M3: USD | N3: 1 | O3: 1 | P3: 0 | Q3: 4 | R3: 1473901.35 | S3: 0 | T3: 0 | U3: 1473901.35 | V3: 0 | W3: 0
A4: FFSAF-A-MYR | B4: 2020-06-30 | C4: 2020-06-29 | D4: 0 | E4: 0.5 | F4: 0.5 | G4: 0.116713352 | H4: 0 | I4: 0 | J4: 0 | K4: 0 | L4: FFSAF | M4: MYR | N4: 0 | O4: 4.284 | P4: 0 | Q4: 4 | R4: 1473901.35 | S4: 0 | T4: 0 | U4: 1473901.35 | V4: 0 | W4: 0
A5: FFSAF-A-SGD | B5: 2020-06-30 | C5: 2020-06-29 | D5: 0 | E5: 0.5 | F5: 0.5 | G5: 0.35787815 | H5: 0 | I5: 0 | J5: 0 | K5: 0 | L5: FFSAF | M5: SGD | N5: 0 | O5: 1.397123574 | P5: 0 | Q5: 4 | R5: 1473901.35 | S5: 0 | T5: 0 | U5: 1473901.35 | V5: 0 | W5: 0
A6: FFSAF-A-USD | B6: 2020-06-30 | C6: 2020-06-29 | D6: 0 | E6: 0.5 | F6: 0.5 | G6: 0.5 | H6: 0 | I6: 0 | J6: 0 | K6: 0 | L6: FFSAF | M6: USD | N6: 0 | O6: 1 | P6: 0 | Q6: 4 | R6: 1473901.35 | S6: 0 | T6: 0 | U6: 1473901.35 | V6: 0 | W6: 0
A7: FFSAF-B-MYR | B7: 2020-06-30 | C7: 2020-06-29 | D7: 0 | E7: 0.5 | F7: 0.5 | G7: 0.116713352 | H7: 0 | I7: 0 | J7: 0 | K7: 0 | L7: FFSAF | M7: MYR | N7: 0 | O7: 4.284 | P7: 0 | Q7: 4 | R7: 1473901.35 | S7: 0 | T7: 0 | U7: 1473901.35 | V7: 0 | W7: 0
A8: FFSAF-B-SGD | B8: 2020-06-30 | C8: 2020-06-29 | D8: 0 | E8: 0.5 | F8: 0.5 | G8: 0.35787815 | H8: 0 | I8: 0 | J8: 0 | K8: 0 | L8: FFSAF | M8: SGD | N8: 0 | O8: 1.397123574 | P8: 0 | Q8: 4 | R8: 1473901.35 | S8: 0 | T8: 0 | U8: 1473901.35 | V8: 0 | W8: 0
A9: FFSAF-B-USD | B9: 2020-06-30 | C9: 2020-06-29 | D9: 0 | E9: 0.5 | F9: 0.5 | G9: 0.5 | H9: 0 | I9: 0 | J9: 0 | K9: 0 | L9: FFSAF | M9: USD | N9: 0 | O9: 1 | P9: 0 | Q9: 4 | R9: 1473901.35 | S9: 0 | T9: 0 | U9: 1473901.35 | V9: 0 | W9: 0
A10: FFSAF-C-MYR | B10: 2020-06-30 | C10: 2020-06-29 | D10: 0 | E10: 0.5 | F10: 0.5 | G10: 0.116713352 | H10: 0 | I10: 0 | J10: 0 | K10: 0 | L10: FFSAF | M10: MYR | N10: 0 | O10: 4.284 | P10: 0 | Q10: 4 | R10: 1473901.35 | S10: 0 | T10: 0 | U10: 1473901.35 | V10: 0 | W10: 0
A11: FFSAF-C-SGD | B11: 2020-06-30 | C11: 2020-06-29 | D11: 0 | E11: 0.5 | F11: 0.5 | G11: 0.35787815 | H11: 0 | I11: 0 | J11: 0 | K11: 0 | L11: FFSAF | M11: SGD | N11: 0 | O11: 1.397123574 | P11: 0 | Q11: 4 | R11: 1473901.35 | S11: 0 | T11: 0 | U11: 1473901.35 | V11: 0 | W11: 0
A12: FFSAF-C-USD | B12: 2020-06-30 | C12: 2020-06-29 | D12: 1473901.35 | E12: 0.5366 | F12: 0.5366 | G12: 0.5366474525 | H12: 2746498.36 | I12: 2746498.36 | J12: 0 | K12: 1473901.35 | L12: FFSAF | M12: USD | N12: 1 | O12: 1 | P12: 0 | Q12: 4 | R12: 1473901.35 | S12: 1 | T12: 1 | U12: 1473901.35 | V12: 1 | W12: 1

Sheet InUPFee (hidden)
A2: qFundCode | B2: qValDate | C2: MngFee | D2: MngRebate | E2: TrusteeFee | F2: LicensesFees | G2: PerfFee | H2: ExchgRate | I2: MngFeeBC | J2: MngRebateBC | K2: TrusteeFeeBC | L2: LicenseFeeBC | M2: PerfFeeBC
A3: FFSAF | B3: 2019-07-01 | C3: -41.5 | D3: 0 | E3: -12.33 | F3: 0 | G3: 0 | H3: 1 | I3: -41.5 | J3: 0 | K3: -12.33 | L3: 0 | M3: 0
A4: FFSAF-A-MYR | B4: 2019-07-01 | C4: 0 | D4: 0 | E4: 0 | F4: 0 | G4: 0 | H4: 4.1345 | I4: 0 | J4: 0 | K4: 0 | L4: 0 | M4: 0
A5: FFSAF-A-SGD | B5: 2019-07-01 | C5: 0 | D5: 0 | E5: 0 | F5: 0 | G5: 0 | H5: 1.35567 | I5: 0 | J5: 0 | K5: 0 | L5: 0 | M5: 0
A6: FFSAF-A-USD | B6: 2019-07-01 | C6: 0 | D6: 0 | E6: 0 | F6: 0 | G6: 0 | H6: 1 | I6: 0 | J6: 0 | K6: 0 | L6: 0 | M6: 0
A7: FFSAF-B-MYR | B7: 2019-07-01 | C7: 0 | D7: 0 | E7: 0 | F7: 0 | G7: 0 | H7: 4.1345 | I7: 0 | J7: 0 | K7: 0 | L7: 0 | M7: 0
A8: FFSAF-B-SGD | B8: 2019-07-01 | C8: 0 | D8: 0 | E8: 0 | F8: 0 | G8: 0 | H8: 1.35567 | I8: 0 | J8: 0 | K8: 0 | L8: 0 | M8: 0
A9: FFSAF-B-USD | B9: 2019-07-01 | C9: 0 | D9: 0 | E9: 0 | F9: 0 | G9: 0 | H9: 1 | I9: 0 | J9: 0 | K9: 0 | L9: 0 | M9: 0
A10: FFSAF-C-MYR | B10: 2019-07-01 | C10: 0 | D10: 0 | E10: 0 | F10: 0 | G10: 0 | H10: 4.1345 | I10: 0 | J10: 0 | K10: 0 | L10: 0 | M10: 0
A11: FFSAF-C-SGD | B11: 2019-07-01 | C11: 0 | D11: 0 | E11: 0 | F11: 0 | G11: 0 | H11: 1.35567 | I11: 0 | J11: 0 | K11: 0 | L11: 0 | M11: 0
A12: FFSAF-C-USD | B12: 2019-07-01 | C12: -41.5 | D12: 0 | E12: -12.33 | F12: 0 | G12: 0 | H12: 1 | I12: -41.5 | J12: 0 | K12: -12.33 | L12: 0 | M12: 0
A13: FFSAF | B13: 2019-07-02 | C13: -41.9 | D13: 0 | E13: -12.33 | F13: 0 | G13: -439.44 | H13: 1 | I13: -41.9 | J13: 0 | K13: -12.33 | L13: 0 | M13: -439.44
A14: FFSAF-A-MYR | B14: 2019-07-02 | C14: 0 | D14: 0 | E14: 0 | F14: 0 | G14: 0 | H14: 4.1435 | I14: 0 | J14: 0 | K14: 0 | L14: 0 | M14: 0
A15: FFSAF-A-SGD | B15: 2019-07-02 | C15: 0 | D15: 0 | E15: 0 | F15: 0 | G15: 0 | H15: 1.35607 | I15: 0 | J15: 0 | K15: 0 | L15: 0 | M15: 0
A16: FFSAF-A-USD | B16: 2019-07-02 | C16: 0 | D16: 0 | E16: 0 | F16: 0 | G16: 0 | H16: 1 | I16: 0 | J16: 0 | K16: 0 | L16: 0 | M16: 0
A17: FFSAF-B-MYR | B17: 2019-07-02 | C17: 0 | D17: 0 | E17: 0 | F17: 0 | G17: 0 | H17: 4.1435 | I17: 0 | J17: 0 | K17: 0 | L17: 0 | M17: 0
A18: FFSAF-B-SGD | B18: 2019-07-02 | C18: 0 | D18: 0 | E18: 0 | F18: 0 | G18: 0 | H18: 1.35607 | I18: 0 | J18: 0 | K18: 0 | L18: 0 | M18: 0
A19: FFSAF-B-USD | B19: 2019-07-02 | C19: 0 | D19: 0 | E19: 0 | F19: 0 | G19: 0 | H19: 1 | I19: 0 | J19: 0 | K19: 0 | L19: 0 | M19: 0
A20: FFSAF-C-MYR | B20: 2019-07-02 | C20: 0 | D20: 0 | E20: 0 | F20: 0 | G20: 0 | H20: 4.1435 | I20: 0 | J20: 0 | K20: 0 | L20: 0 | M20: 0
A21: FFSAF-C-SGD | B21: 2019-07-02 | C21: 0 | D21: 0 | E21: 0 | F21: 0 | G21: 0 | H21: 1.35607 | I21: 0 | J21: 0 | K21: 0 | L21: 0 | M21: 0
A22: FFSAF-C-USD | B22: 2019-07-02 | C22: -41.9 | D22: 0 | E22: -12.33 | F22: 0 | G22: -439.44 | H22: 1 | I22: -41.9 | J22: 0 | K22: -12.33 | L22: 0 | M22: -439.44
A23: FFSAF | B23: 2019-07-03 | C23: -41.75 | D23: 0 | E23: -12.33 | F23: 0 | G23: 274.65 | H23: 1 | I23: -41.75 | J23: 0 | K23: -12.33 | L23: 0 | M23: 274.65
A24: FFSAF-A-MYR | B24: 2019-07-03 | C24: 0 | D24: 0 | E24: 0 | F24: 0 | G24: 0 | H24: 4.1395 | I24: 0 | J24: 0 | K24: 0 | L24: 0 | M24: 0
A25: FFSAF-A-SGD | B25: 2019-07-03 | C25: 0 | D25: 0 | E25: 0 | F25: 0 | G25: 0 | H25: 1.35613 | I25: 0 | J25: 0 | K25: 0 | L25: 0 | M25: 0
A26: FFSAF-A-USD | B26: 2019-07-03 | C26: 0 | D26: 0 | E26: 0 | F26: 0 | G26: 0 | H26: 1 | I26: 0 | J26: 0 | K26: 0 | L26: 0 | M26: 0
A27: FFSAF-B-MYR | B27: 2019-07-03 | C27: 0 | D27: 0 | E27: 0 | F27: 0 | G27: 0 | H27: 4.1395 | I27: 0 | J27: 0 | K27: 0 | L27: 0 | M27: 0
A28: FFSAF-B-SGD | B28: 2019-07-03 | C28: 0 | D28: 0 | E28: 0 | F28: 0 | G28: 0 | H28: 1.35613 | I28: 0 | J28: 0 | K28: 0 | L28: 0 | M28: 0
A29: FFSAF-B-USD | B29: 2019-07-03 | C29: 0 | D29: 0 | E29: 0 | F29: 0 | G29: 0 | H29: 1 | I29: 0 | J29: 0 | K29: 0 | L29: 0 | M29: 0
A30: FFSAF-C-MYR | B30: 2019-07-03 | C30: 0 | D30: 0 | E30: 0 | F30: 0 | G30: 0 | H30: 4.1395 | I30: 0 | J30: 0 | K30: 0 | L30: 0 | M30: 0
A31: FFSAF-C-SGD | B31: 2019-07-03 | C31: 0 | D31: 0 | E31: 0 | F31: 0 | G31: 0 | H31: 1.35613 | I31: 0 | J31: 0 | K31: 0 | L31: 0 | M31: 0
A32: FFSAF-C-USD | B32: 2019-07-03 | C32: -41.75 | D32: 0 | E32: -12.33 | F32: 0 | G32: 274.65 | H32: 1 | I32: -41.75 | J32: 0 | K32: -12.33 | L32: 0 | M32: 274.65
A33: FFSAF | B33: 2019-07-04 | C33: -41.54 | D33: 0 | E33: -12.33 | F33: 0 | G33: 164.79 | H33: 1 | I33: -41.54 | J33: 0 | K33: -12.33 | L33: 0 | M33: 164.79
A34: FFSAF-A-MYR | B34: 2019-07-04 | C34: 0 | D34: 0 | E34: 0 | F34: 0 | G34: 0 | H34: 4.131 | I34: 0 | J34: 0 | K34: 0 | L34: 0 | M34: 0
A35: FFSAF-A-SGD | B35: 2019-07-04 | C35: 0 | D35: 0 | E35: 0 | F35: 0 | G35: 0 | H35: 1.3559 | I35: 0 | J35: 0 | K35: 0 | L35: 0 | M35: 0
A36: FFSAF-A-USD | B36: 2019-07-04 | C36: 0 | D36: 0 | E36: 0 | F36: 0 | G36: 0 | H36: 1 | I36: 0 | J36: 0 | K36: 0 | L36: 0 | M36: 0
A37: FFSAF-B-MYR | B37: 2019-07-04 | C37: 0 | D37: 0 | E37: 0 | F37: 0 | G37: 0 | H37: 4.131 | I37: 0 | J37: 0 | K37: 0 | L37: 0 | M37: 0
A38: FFSAF-B-SGD | B38: 2019-07-04 | C38: 0 | D38: 0 | E38: 0 | F38: 0 | G38: 0 | H38: 1.3559 | I38: 0 | J38: 0 | K38: 0 | L38: 0 | M38: 0
A39: FFSAF-B-USD | B39: 2019-07-04 | C39: 0 | D39: 0 | E39: 0 | F39: 0 | G39: 0 | H39: 1 | I39: 0 | J39: 0 | K39: 0 | L39: 0 | M39: 0
A40: FFSAF-C-MYR | B40: 2019-07-04 | C40: 0 | D40: 0 | E40: 0 | F40: 0 | G40: 0 | H40: 4.131 | I40: 0 | J40: 0 | K40: 0 | L40: 0 | M40: 0
A41: FFSAF-C-SGD | B41: 2019-07-04 | C41: 0 | D41: 0 | E41: 0 | F41: 0 | G41: 0 | H41: 1.3559 | I41: 0 | J41: 0 | K41: 0 | L41: 0 | M41: 0
A42: FFSAF-C-USD | B42: 2019-07-04 | C42: -41.54 | D42: 0 | E42: -12.33 | F42: 0 | G42: 164.79 | H42: 1 | I42: -41.54 | J42: 0 | K42: -12.33 | L42: 0 | M42: 164.79
A43: FFSAF | B43: 2019-07-05 | C43: -41.41 | D43: 0 | E43: -12.33 | F43: 0 | G43: 0 | H43: 1 | I43: -41.41 | J43: 0 | K43: -12.33 | L43: 0 | M43: 0
A44: FFSAF-A-MYR | B44: 2019-07-05 | C44: 0 | D44: 0 | E44: 0 | F44: 0 | G44: 0 | H44: 4.1385 | I44: 0 | J44: 0 | K44: 0 | L44: 0 | M44: 0
A45: FFSAF-A-SGD | B45: 2019-07-05 | C45: 0 | D45: 0 | E45: 0 | F45: 0 | G45: 0 | H45: 1.36152 | I45: 0 | J45: 0 | K45: 0 | L45: 0 | M45: 0
A46: FFSAF-A-USD | B46: 2019-07-05 | C46: 0 | D46: 0 | E46: 0 | F46: 0 | G46: 0 | H46: 1 | I46: 0 | J46: 0 | K46: 0 | L46: 0 | M46: 0
A47: FFSAF-B-MYR | B47: 2019-07-05 | C47: 0 | D47: 0 | E47: 0 | F47: 0 | G47: 0 | H47: 4.1385 | I47: 0 | J47: 0 | K47: 0 | L47: 0 | M47: 0
A48: FFSAF-B-SGD | B48: 2019-07-05 | C48: 0 | D48: 0 | E48: 0 | F48: 0 | G48: 0 | H48: 1.36152 | I48: 0 | J48: 0 | K48: 0 | L48: 0 | M48: 0
A49: FFSAF-B-USD | B49: 2019-07-05 | C49: 0 | D49: 0 | E49: 0 | F49: 0 | G49: 0 | H49: 1 | I49: 0 | J49: 0 | K49: 0 | L49: 0 | M49: 0
A50: FFSAF-C-MYR | B50: 2019-07-05 | C50: 0 | D50: 0 | E50: 0 | F50: 0 | G50: 0 | H50: 4.1385 | I50: 0 | J50: 0 | K50: 0 | L50: 0 | M50: 0
A51: FFSAF-C-SGD | B51: 2019-07-05 | C51: 0 | D51: 0 | E51: 0 | F51: 0 | G51: 0 | H51: 1.36152 | I51: 0 | J51: 0 | K51: 0 | L51: 0 | M51: 0
A52: FFSAF-C-USD | B52: 2019-07-05 | C52: -41.41 | D52: 0 | E52: -12.33 | F52: 0 | G52: 0 | H52: 1 | I52: -41.41 | J52: 0 | K52: -12.33 | L52: 0 | M52: 0
A53: FFSAF | B53: 2019-07-08 | C53: -123.85 | D53: 0 | E53: -36.99 | F53: 0 | G53: 0 | H53: 1 | I53: -123.85 | J53: 0 | K53: -36.99 | L53: 0 | M53: 0
A54: FFSAF-A-MYR | B54: 2019-07-08 | C54: 0 | D54: 0 | E54: 0 | F54: 0 | G54: 0 | H54: 4.132 | I54: 0 | J54: 0 | K54: 0 | L54: 0 | M54: 0
A55: FFSAF-A-SGD | B55: 2019-07-08 | C55: 0 | D55: 0 | E55: 0 | F55: 0 | G55: 0 | H55: 1.35965 | I55: 0 | J55: 0 | K55: 0 | L55: 0 | M55: 0
A56: FFSAF-A-USD | B56: 2019-07-08 | C56: 0 | D56: 0 | E56: 0 | F56: 0 | G56: 0 | H56: 1 | I56: 0 | J56: 0 | K56: 0 | L56: 0 | M56: 0
A57: FFSAF-B-MYR | B57: 2019-07-08 | C57: 0 | D57: 0 | E57: 0 | F57: 0 | G57: 0 | H57: 4.132 | I57: 0 | J57: 0 | K57: 0 | L57: 0 | M57: 0
A58: FFSAF-B-SGD | B58: 2019-07-08 | C58: 0 | D58: 0 | E58: 0 | F58: 0 | G58: 0 | H58: 1.35965 | I58: 0 | J58: 0 | K58: 0 | L58: 0 | M58: 0
A59: FFSAF-B-USD | B59: 2019-07-08 | C59: 0 | D59: 0 | E59: 0 | F59: 0 | G59: 0 | H59: 1 | I59: 0 | J59: 0 | K59: 0 | L59: 0 | M59: 0
A60: FFSAF-C-MYR | B60: 2019-07-08 | C60: 0 | D60: 0 | E60: 0 | F60: 0 | G60: 0 | H60: 4.132 | I60: 0 | J60: 0 | K60: 0 | L60: 0 | M60: 0
A61: FFSAF-C-SGD | B61: 2019-07-08 | C61: 0 | D61: 0 | E61: 0 | F61: 0 | G61: 0 | H61: 1.35965 | I61: 0 | J61: 0 | K61: 0 | L61: 0 | M61: 0
A62: FFSAF-C-USD | B62: 2019-07-08 | C62: -123.85 | D62: 0 | E62: -12.33 | F62: 0 | G62: 0 | H62: 1 | I62: -123.85 | J62: 0 | K62: -36.99 | L62: 0 | M62: 0
A63: FFSAF | B63: 2019-07-09 | C63: -41.44 | D63: 0 | E63: -12.33 | F63: 0 | G63: 0 | H63: 1 | I63: -41.44 | J63: 0 | K63: -12.33 | L63: 0 | M63: 0
A64: FFSAF-A-MYR | B64: 2019-07-09 | C64: 0 | D64: 0 | E64: 0 | F64: 0 | G64: 0 | H64: 4.142 | I64: 0 | J64: 0 | K64: 0 | L64: 0 | M64: 0
A65: FFSAF-A-SGD | B65: 2019-07-09 | C65: 0 | D65: 0 | E65: 0 | F65: 0 | G65: 0 | H65: 1.36173 | I65: 0 | J65: 0 | K65: 0 | L65: 0 | M65: 0
A66: FFSAF-A-USD | B66: 2019-07-09 | C66: 0 | D66: 0 | E66: 0 | F66: 0 | G66: 0 | H66: 1 | I66: 0 | J66: 0 | K66: 0 | L66: 0 | M66: 0
A67: FFSAF-B-MYR | B67: 2019-07-09 | C67: 0 | D67: 0 | E67: 0 | F67: 0 | G67: 0 | H67: 4.142 | I67: 0 | J67: 0 | K67: 0 | L67: 0 | M67: 0
A68: FFSAF-B-SGD | B68: 2019-07-09 | C68: 0 | D68: 0 | E68: 0 | F68: 0 | G68: 0 | H68: 1.36173 | I68: 0 | J68: 0 | K68: 0 | L68: 0 | M68: 0
A69: FFSAF-B-USD | B69: 2019-07-09 | C69: 0 | D69: 0 | E69: 0 | F69: 0 | G69: 0 | H69: 1 | I69: 0 | J69: 0 | K69: 0 | L69: 0 | M69: 0
A70: FFSAF-C-MYR | B70: 2019-07-09 | C70: 0 | D70: 0 | E70: 0 | F70: 0 | G70: 0 | H70: 4.142 | I70: 0 | J70: 0 | K70: 0 | L70: 0 | M70: 0
A71: FFSAF-C-SGD | B71: 2019-07-09 | C71: 0 | D71: 0 | E71: 0 | F71: 0 | G71: 0 | H71: 1.36173 | I71: 0 | J71: 0 | K71: 0 | L71: 0 | M71: 0
A72: FFSAF-C-USD | B72: 2019-07-09 | C72: -41.44 | D72: 0 | E72: -12.33 | F72: 0 | G72: 0 | H72: 1 | I72: -41.44 | J72: 0 | K72: -12.33 | L72: 0 | M72: 0
A73: FFSAF | B73: 2019-07-10 | C73: -41.36 | D73: 0 | E73: -12.33 | F73: 0 | G73: 0 | H73: 1 | I73: -41.36 | J73: 0 | K73: -12.33 | L73: 0 | M73: 0
A74: FFSAF-A-MYR | B74: 2019-07-10 | C74: 0 | D74: 0 | E74: 0 | F74: 0 | G74: 0 | H74: 4.1255 | I74: 0 | J74: 0 | K74: 0 | L74: 0 | M74: 0
A75: FFSAF-A-SGD | B75: 2019-07-10 | C75: 0 | D75: 0 | E75: 0 | F75: 0 | G75: 0 | H75: 1.35778 | I75: 0 | J75: 0 | K75: 0 | L75: 0 | M75: 0
A76: FFSAF-A-USD | B76: 2019-07-10 | C76: 0 | D76: 0 | E76: 0 | F76: 0 | G76: 0 | H76: 1 | I76: 0 | J76: 0 | K76: 0 | L76: 0 | M76: 0
A77: FFSAF-B-MYR | B77: 2019-07-10 | C77: 0 | D77: 0 | E77: 0 | F77: 0 | G77: 0 | H77: 4.1255 | I77: 0 | J77: 0 | K77: 0 | L77: 0 | M77: 0
A78: FFSAF-B-SGD | B78: 2019-07-10 | C78: 0 | D78: 0 | E78: 0 | F78: 0 | G78: 0 | H78: 1.35778 | I78: 0 | J78: 0 | K78: 0 | L78: 0 | M78: 0
A79: FFSAF-B-USD | B79: 2019-07-10 | C79: 0 | D79: 0 | E79: 0 | F79: 0 | G79: 0 | H79: 1 | I79: 0 | J79: 0 | K79: 0 | L79: 0 | M79: 0
A80: FFSAF-C-MYR | B80: 2019-07-10 | C80: 0 | D80: 0 | E80: 0 | F80: 0 | G80: 0 | H80: 4.1255 | I80: 0 | J80: 0 | K80: 0 | L80: 0 | M80: 0
A81: FFSAF-C-SGD | B81: 2019-07-10 | C81: 0 | D81: 0 | E81: 0 | F81: 0 | G81: 0 | H81: 1.35778 | I81: 0 | J81: 0 | K81: 0 | L81: 0 | M81: 0
A82: FFSAF-C-USD | B82: 2019-07-10 | C82: -41.36 | D82: 0 | E82: -12.33 | F82: 0 | G82: 0 | H82: 1 | I82: -41.36 | J82: 0 | K82: -12.33 | L82: 0 | M82: 0
A83: FFSAF | B83: 2019-07-11 | C83: -41.46 | D83: 0 | E83: -12.33 | F83: 0 | G83: 0 | H83: 1 | I83: -41.46 | J83: 0 | K83: -12.33 | L83: 0 | M83: 0
A84: FFSAF-A-MYR | B84: 2019-07-11 | C84: 0 | D84: 0 | E84: 0 | F84: 0 | G84: 0 | H84: 4.1135 | I84: 0 | J84: 0 | K84: 0 | L84: 0 | M84: 0
A85: FFSAF-A-SGD | B85: 2019-07-11 | C85: 0 | D85: 0 | E85: 0 | F85: 0 | G85: 0 | H85: 1.3562 | I85: 0 | J85: 0 | K85: 0 | L85: 0 | M85: 0
A86: FFSAF-A-USD | B86: 2019-07-11 | C86: 0 | D86: 0 | E86: 0 | F86: 0 | G86: 0 | H86: 1 | I86: 0 | J86: 0 | K86: 0 | L86: 0 | M86: 0
A87: FFSAF-B-MYR | B87: 2019-07-11 | C87: 0 | D87: 0 | E87: 0 | F87: 0 | G87: 0 | H87: 4.1135 | I87: 0 | J87: 0 | K87: 0 | L87: 0 | M87: 0
A88: FFSAF-B-SGD | B88: 2019-07-11 | C88: 0 | D88: 0 | E88: 0 | F88: 0 | G88: 0 | H88: 1.3562 | I88: 0 | J88: 0 | K88: 0 | L88: 0 | M88: 0
A89: FFSAF-B-USD | B89: 2019-07-11 | C89: 0 | D89: 0 | E89: 0 | F89: 0 | G89: 0 | H89: 1 | I89: 0 | J89: 0 | K89: 0 | L89: 0 | M89: 0
A90: FFSAF-C-MYR | B90: 2019-07-11 | C90: 0 | D90: 0 | E90: 0 | F90: 0 | G90: 0 | H90: 4.1135 | I90: 0 | J90: 0 | K90: 0 | L90: 0 | M90: 0
A91: FFSAF-C-SGD | B91: 2019-07-11 | C91: 0 | D91: 0 | E91: 0 | F91: 0 | G91: 0 | H91: 1.3562 | I91: 0 | J91: 0 | K91: 0 | L91: 0 | M91: 0
A92: FFSAF-C-USD | B92: 2019-07-11 | C92: -41.46 | D92: 0 | E92: -12.33 | F92: 0 | G92: 0 | H92: 1 | I92: -41.46 | J92: 0 | K92: -12.33 | L92: 0 | M92: 0
A93: FFSAF | B93: 2019-07-12 | C93: -41.28 | D93: 0 | E93: -12.33 | F93: 0 | G93: 0 | H93: 1 | I93: -41.28 | J93: 0 | K93: -12.33 | L93: 0 | M93: 0
A94: FFSAF-A-MYR | B94: 2019-07-12 | C94: 0 | D94: 0 | E94: 0 | F94: 0 | G94: 0 | H94: 4.1155 | I94: 0 | J94: 0 | K94: 0 | L94: 0 | M94: 0
A95: FFSAF-A-SGD | B95: 2019-07-12 | C95: 0 | D95: 0 | E95: 0 | F95: 0 | G95: 0 | H95: 1.35915 | I95: 0 | J95: 0 | K95: 0 | L95: 0 | M95: 0
A96: FFSAF-A-USD | B96: 2019-07-12 | C96: 0 | D96: 0 | E96: 0 | F96: 0 | G96: 0 | H96: 1 | I96: 0 | J96: 0 | K96: 0 | L96: 0 | M96: 0
A97: FFSAF-B-MYR | B97: 2019-07-12 | C97: 0 | D97: 0 | E97: 0 | F97: 0 | G97: 0 | H97: 4.1155 | I97: 0 | J97: 0 | K97: 0 | L97: 0 | M97: 0
A98: FFSAF-B-SGD | B98: 2019-07-12 | C98: 0 | D98: 0 | E98: 0 | F98: 0 | G98: 0 | H98: 1.35915 | I98: 0 | J98: 0 | K98: 0 | L98: 0 | M98: 0
A99: FFSAF-B-USD | B99: 2019-07-12 | C99: 0 | D99: 0 | E99: 0 | F99: 0 | G99: 0 | H99: 1 | I99: 0 | J99: 0 | K99: 0 | L99: 0 | M99: 0
A100: FFSAF-C-MYR | B100: 2019-07-12 | C100: 0 | D100: 0 | E100: 0 | F100: 0 | G100: 0 | H100: 4.1155 | I100: 0 | J100: 0 | K100: 0 | L100: 0 | M100: 0
A101: FFSAF-C-SGD | B101: 2019-07-12 | C101: 0 | D101: 0 | E101: 0 | F101: 0 | G101: 0 | H101: 1.35915 | I101: 0 | J101: 0 | K101: 0 | L101: 0 | M101: 0
A102: FFSAF-C-USD | B102: 2019-07-12 | C102: -41.28 | D102: 0 | E102: -12.33 | F102: 0 | G102: 0 | H102: 1 | I102: -41.28 | J102: 0 | K102: -12.33 | L102: 0 | M102: 0
A103: FFSAF | B103: 2019-07-15 | C103: -124.18 | D103: 0 | E103: -36.99 | F103: 0 | G103: 0 | H103: 1 | I103: -124.18 | J103: 0 | K103: -36.99 | L103: 0 | M103: 0
A104: FFSAF-A-MYR | B104: 2019-07-15 | C104: 0 | D104: 0 | E104: 0 | F104: 0 | G104: 0 | H104: 4.1075 | I104: 0 | J104: 0 | K104: 0 | L104: 0 | M104: 0
A105: FFSAF-A-SGD | B105: 2019-07-15 | C105: 0 | D105: 0 | E105: 0 | F105: 0 | G105: 0 | H105: 1.35657 | I105: 0 | J105: 0 | K105: 0 | L105: 0 | M105: 0
A106: FFSAF-A-USD | B106: 2019-07-15 | C106: 0 | D106: 0 | E106: 0 | F106: 0 | G106: 0 | H106: 1 | I106: 0 | J106: 0 | K106: 0 | L106: 0 | M106: 0
A107: FFSAF-B-MYR | B107: 2019-07-15 | C107: 0 | D107: 0 | E107: 0 | F107: 0 | G107: 0 | H107: 4.1075 | I107: 0 | J107: 0 | K107: 0 | L107: 0 | M107: 0
A108: FFSAF-B-SGD | B108: 2019-07-15 | C108: 0 | D108: 0 | E108: 0 | F108: 0 | G108: 0 | H108: 1.35657 | I108: 0 | J108: 0 | K108: 0 | L108: 0 | M108: 0
A109: FFSAF-B-USD | B109: 2019-07-15 | C109: 0 | D109: 0 | E109: 0 | F109: 0 | G109: 0 | H109: 1 | I109: 0 | J109: 0 | K109: 0 | L109: 0 | M109: 0
A110: FFSAF-C-MYR | B110: 2019-07-15 | C110: 0 | D110: 0 | E110: 0 | F110: 0 | G110: 0 | H110: 4.1075 | I110: 0 | J110: 0 | K110: 0 | L110: 0 | M110: 0
A111: FFSAF-C-SGD | B111: 2019-07-15 | C111: 0 | D111: 0 | E111: 0 | F111: 0 | G111: 0 | H111: 1.35657 | I111: 0 | J111: 0 | K111: 0 | L111: 0 | M111: 0
A112: FFSAF-C-USD | B112: 2019-07-15 | C112: -124.18 | D112: 0 | E112: -12.33 | F112: 0 | G112: 0 | H112: 1 | I112: -124.18 | J112: 0 | K112: -36.99 | L112: 0 | M112: 0
A113: FFSAF | B113: 2019-07-16 | C113: -41.19 | D113: 0 | E113: -12.33 | F113: 0 | G113: 0 | H113: 1 | I113: -41.19 | J113: 0 | K113: -12.33 | L113: 0 | M113: 0
A114: FFSAF-A-MYR | B114: 2019-07-16 | C114: 0 | D114: 0 | E114: 0 | F114: 0 | G114: 0 | H114: 4.1085 | I114: 0 | J114: 0 | K114: 0 | L114: 0 | M114: 0
A115: FFSAF-A-SGD | B115: 2019-07-16 | C115: 0 | D115: 0 | E115: 0 | F115: 0 | G115: 0 | H115: 1.35805 | I115: 0 | J115: 0 | K115: 0 | L115: 0 | M115: 0
A116: FFSAF-A-USD | B116: 2019-07-16 | C116: 0 | D116: 0 | E116: 0 | F116: 0 | G116: 0 | H116: 1 | I116: 0 | J116: 0 | K116: 0 | L116: 0 | M116: 0
A117: FFSAF-B-MYR | B117: 2019-07-16 | C117: 0 | D117: 0 | E117: 0 | F117: 0 | G117: 0 | H117: 4.1085 | I117: 0 | J117: 0 | K117: 0 | L117: 0 | M117: 0
A118: FFSAF-B-SGD | B118: 2019-07-16 | C118: 0 | D118: 0 | E118: 0 | F118: 0 | G118: 0 | H118: 1.35805 | I118: 0 | J118: 0 | K118: 0 | L118: 0 | M118: 0
A119: FFSAF-B-USD | B119: 2019-07-16 | C119: 0 | D119: 0 | E119: 0 | F119: 0 | G119: 0 | H119: 1 | I119: 0 | J119: 0 | K119: 0 | L119: 0 | M119: 0
A120: FFSAF-C-MYR | B120: 2019-07-16 | C120: 0 | D120: 0 | E120: 0 | F120: 0 | G120: 0 | H120: 4.1085 | I120: 0 | J120: 0 | K120: 0 | L120: 0 | M120: 0
A121: FFSAF-C-SGD | B121: 2019-07-16 | C121: 0 | D121: 0 | E121: 0 | F121: 0 | G121: 0 | H121: 1.35805 | I121: 0 | J121: 0 | K121: 0 | L121: 0 | M121: 0
A122: FFSAF-C-USD | B122: 2019-07-16 | C122: -41.19 | D122: 0 | E122: -12.33 | F122: 0 | G122: 0 | H122: 1 | I122: -41.19 | J122: 0 | K122: -12.33 | L122: 0 | M122: 0
A123: FFSAF | B123: 2019-07-17 | C123: -41.08 | D123: 0 | E123: -12.33 | F123: 0 | G123: 0 | H123: 1 | I123: -41.08 | J123: 0 | K123: -12.33 | L123: 0 | M123: 0
A124: FFSAF-A-MYR | B124: 2019-07-17 | C124: 0 | D124: 0 | E124: 0 | F124: 0 | G124: 0 | H124: 4.1165 | I124: 0 | J124: 0 | K124: 0 | L124: 0 | M124: 0
A125: FFSAF-A-SGD | B125: 2019-07-17 | C125: 0 | D125: 0 | E125: 0 | F125: 0 | G125: 0 | H125: 1.36131 | I125: 0 | J125: 0 | K125: 0 | L125: 0 | M125: 0
A126: FFSAF-A-USD | B126: 2019-07-17 | C126: 0 | D126: 0 | E126: 0 | F126: 0 | G126: 0 | H126: 1 | I126: 0 | J126: 0 | K126: 0 | L126: 0 | M126: 0
A127: FFSAF-B-MYR | B127: 2019-07-17 | C127: 0 | D127: 0 | E127: 0 | F127: 0 | G127: 0 | H127: 4.1165 | I127: 0 | J127: 0 | K127: 0 | L127: 0 | M127: 0
A128: FFSAF-B-SGD | B128: 2019-07-17 | C128: 0 | D128: 0 | E128: 0 | F128: 0 | G128: 0 | H128: 1.36131 | I128: 0 | J128: 0 | K128: 0 | L128: 0 | M128: 0
A129: FFSAF-B-USD | B129: 2019-07-17 | C129: 0 | D129: 0 | E129: 0 | F129: 0 | G129: 0 | H129: 1 | I129: 0 | J129: 0 | K129: 0 | L129: 0 | M129: 0
A130: FFSAF-C-MYR | B130: 2019-07-17 | C130: 0 | D130: 0 | E130: 0 | F130: 0 | G130: 0 | H130: 4.1165 | I130: 0 | J130: 0 | K130: 0 | L130: 0 | M130: 0
A131: FFSAF-C-SGD | B131: 2019-07-17 | C131: 0 | D131: 0 | E131: 0 | F131: 0 | G131: 0 | H131: 1.36131 | I131: 0 | J131: 0 | K131: 0 | L131: 0 | M131: 0
A132: FFSAF-C-USD | B132: 2019-07-17 | C132: -41.08 | D132: 0 | E132: -12.33 | F132: 0 | G132: 0 | H132: 1 | I132: -41.08 | J132: 0 | K132: -12.33 | L132: 0 | M132: 0
A133: FFSAF | B133: 2019-07-18 | C133: -41.24 | D133: 0 | E133: -12.33 | F133: 0 | G133: 0 | H133: 1 | I133: -41.24 | J133: 0 | K133: -12.33 | L133: 0 | M133: 0
A134: FFSAF-A-MYR | B134: 2019-07-18 | C134: 0 | D134: 0 | E134: 0 | F134: 0 | G134: 0 | H134: 4.1138 | I134: 0 | J134: 0 | K134: 0 | L134: 0 | M134: 0
A135: FFSAF-A-SGD | B135: 2019-07-18 | C135: 0 | D135: 0 | E135: 0 | F135: 0 | G135: 0 | H135: 1.36083 | I135: 0 | J135: 0 | K135: 0 | L135: 0 | M135: 0
A136: FFSAF-A-USD | B136: 2019-07-18 | C136: 0 | D136: 0 | E136: 0 | F136: 0 | G136: 0 | H136: 1 | I136: 0 | J136: 0 | K136: 0 | L136: 0 | M136: 0
A137: FFSAF-B-MYR | B137: 2019-07-18 | C137: 0 | D137: 0 | E137: 0 | F137: 0 | G137: 0 | H137: 4.1138 | I137: 0 | J137: 0 | K137: 0 | L137: 0 | M137: 0
A138: FFSAF-B-SGD | B138: 2019-07-18 | C138: 0 | D138: 0 | E138: 0 | F138: 0 | G138: 0 | H138: 1.36083 | I138: 0 | J138: 0 | K138: 0 | L138: 0 | M138: 0
A139: FFSAF-B-USD | B139: 2019-07-18 | C139: 0 | D139: 0 | E139: 0 | F139: 0 | G139: 0 | H139: 1 | I139: 0 | J139: 0 | K139: 0 | L139: 0 | M139: 0
A140: FFSAF-C-MYR | B140: 2019-07-18 | C140: 0 | D140: 0 | E140: 0 | F140: 0 | G140: 0 | H140: 4.1138 | I140: 0 | J140: 0 | K140: 0 | L140: 0 | M140: 0
A141: FFSAF-C-SGD | B141: 2019-07-18 | C141: 0 | D141: 0 | E141: 0 | F141: 0 | G141: 0 | H141: 1.36083 | I141: 0 | J141: 0 | K141: 0 | L141: 0 | M141: 0
A142: FFSAF-C-USD | B142: 2019-07-18 | C142: -41.24 | D142: 0 | E142: -12.33 | F142: 0 | G142: 0 | H142: 1 | I142: -41.24 | J142: 0 | K142: -12.33 | L142: 0 | M142: 0
A143: FFSAF | B143: 2019-07-19 | C143: -41.63 | D143: 0 | E143: -12.33 | F143: 0 | G143: 0 | H143: 1 | I143: -41.63 | J143: 0 | K143: -12.33 | L143: 0 | M143: 0
A144: FFSAF-A-MYR | B144: 2019-07-19 | C144: 0 | D144: 0 | E144: 0 | F144: 0 | G144: 0 | H144: 4.1098 | I144: 0 | J144: 0 | K144: 0 | L144: 0 | M144: 0
A145: FFSAF-A-SGD | B145: 2019-07-19 | C145: 0 | D145: 0 | E145: 0 | F145: 0 | G145: 0 | H145: 1.36014 | I145: 0 | J145: 0 | K145: 0 | L145: 0 | M145: 0
A146: FFSAF-A-USD | B146: 2019-07-19 | C146: 0 | D146: 0 | E146: 0 | F146: 0 | G146: 0 | H146: 1 | I146: 0 | J146: 0 | K146: 0 | L146: 0 | M146: 0
A147: FFSAF-B-MYR | B147: 2019-07-19 | C147: 0 | D147: 0 | E147: 0 | F147: 0 | G147: 0 | H147: 4.1098 | I147: 0 | J147: 0 | K147: 0 | L147: 0 | M147: 0
A148: FFSAF-B-SGD | B148: 2019-07-19 | C148: 0 | D148: 0 | E148: 0 | F148: 0 | G148: 0 | H148: 1.36014 | I148: 0 | J148: 0 | K148: 0 | L148: 0 | M148: 0
A149: FFSAF-B-USD | B149: 2019-07-19 | C149: 0 | D149: 0 | E149: 0 | F149: 0 | G149: 0 | H149: 1 | I149: 0 | J149: 0 | K149: 0 | L149: 0 | M149: 0
A150: FFSAF-C-MYR | B150: 2019-07-19 | C150: 0 | D150: 0 | E150: 0 | F150: 0 | G150: 0 | H150: 4.1098 | I150: 0 | J150: 0 | K150: 0 | L150: 0 | M150: 0
A151: FFSAF-C-SGD | B151: 2019-07-19 | C151: 0 | D151: 0 | E151: 0 | F151: 0 | G151: 0 | H151: 1.36014 | I151: 0 | J151: 0 | K151: 0 | L151: 0 | M151: 0
A152: FFSAF-C-USD | B152: 2019-07-19 | C152: -41.63 | D152: 0 | E152: -12.33 | F152: 0 | G152: 0 | H152: 1 | I152: -41.63 | J152: 0 | K152: -12.33 | L152: 0 | M152: 0
A153: FFSAF | B153: 2019-07-22 | C153: -124.34 | D153: 0 | E153: -36.99 | F153: 0 | G153: 0 | H153: 1 | I153: -124.34 | J153: 0 | K153: -36.99 | L153: 0 | M153: 0
A154: FFSAF-A-MYR | B154: 2019-07-22 | C154: 0 | D154: 0 | E154: 0 | F154: 0 | G154: 0 | H154: 4.1137 | I154: 0 | J154: 0 | K154: 0 | L154: 0 | M154: 0
A155: FFSAF-A-SGD | B155: 2019-07-22 | C155: 0 | D155: 0 | E155: 0 | F155: 0 | G155: 0 | H155: 1.36035 | I155: 0 | J155: 0 | K155: 0 | L155: 0 | M155: 0
A156: FFSAF-A-USD | B156: 2019-07-22 | C156: 0 | D156: 0 | E156: 0 | F156: 0 | G156: 0 | H156: 1 | I156: 0 | J156: 0 | K156: 0 | L156: 0 | M156: 0
A157: FFSAF-B-MYR | B157: 2019-07-22 | C157: 0 | D157: 0 | E157: 0 | F157: 0 | G157: 0 | H157: 4.1137 | I157: 0 | J157: 0 | K157: 0 | L157: 0 | M157: 0
A158: FFSAF-B-SGD | B158: 2019-07-22 | C158: 0 | D158: 0 | E158: 0 | F158: 0 | G158: 0 | H158: 1.36035 | I158: 0 | J158: 0 | K158: 0 | L158: 0 | M158: 0
A159: FFSAF-B-USD | B159: 2019-07-22 | C159: 0 | D159: 0 | E159: 0 | F159: 0 | G159: 0 | H159: 1 | I159: 0 | J159: 0 | K159: 0 | L159: 0 | M159: 0
A160: FFSAF-C-MYR | B160: 2019-07-22 | C160: 0 | D160: 0 | E160: 0 | F160: 0 | G160: 0 | H160: 4.1137 | I160: 0 | J160: 0 | K160: 0 | L160: 0 | M160: 0
A161: FFSAF-C-SGD | B161: 2019-07-22 | C161: 0 | D161: 0 | E161: 0 | F161: 0 | G161: 0 | H161: 1.36035 | I161: 0 | J161: 0 | K161: 0 | L161: 0 | M161: 0
A162: FFSAF-C-USD | B162: 2019-07-22 | C162: -124.34 | D162: 0 | E162: -12.33 | F162: 0 | G162: 0 | H162: 1 | I162: -124.34 | J162: 0 | K162: -36.99 | L162: 0 | M162: 0
A163: FFSAF | B163: 2019-07-23 | C163: -41 | D163: 0 | E163: -12.33 | F163: 0 | G163: 0 | H163: 1 | I163: -41 | J163: 0 | K163: -12.33 | L163: 0 | M163: 0
A164: FFSAF-A-MYR | B164: 2019-07-23 | C164: 0 | D164: 0 | E164: 0 | F164: 0 | G164: 0 | H164: 4.1179 | I164: 0 | J164: 0 | K164: 0 | L164: 0 | M164: 0
A165: FFSAF-A-SGD | B165: 2019-07-23 | C165: 0 | D165: 0 | E165: 0 | F165: 0 | G165: 0 | H165: 1.36491 | I165: 0 | J165: 0 | K165: 0 | L165: 0 | M165: 0
A166: FFSAF-A-USD | B166: 2019-07-23 | C166: 0 | D166: 0 | E166: 0 | F166: 0 | G166: 0 | H166: 1 | I166: 0 | J166: 0 | K166: 0 | L166: 0 | M166: 0
A167: FFSAF-B-MYR | B167: 2019-07-23 | C167: 0 | D167: 0 | E167: 0 | F167: 0 | G167: 0 | H167: 4.1179 | I167: 0 | J167: 0 | K167: 0 | L167: 0 | M167: 0
A168: FFSAF-B-SGD | B168: 2019-07-23 | C168: 0 | D168: 0 | E168: 0 | F168: 0 | G168: 0 | H168: 1.36491 | I168: 0 | J168: 0 | K168: 0 | L168: 0 | M168: 0
A169: FFSAF-B-USD | B169: 2019-07-23 | C169: 0 | D169: 0 | E169: 0 | F169: 0 | G169: 0 | H169: 1 | I169: 0 | J169: 0 | K169: 0 | L169: 0 | M169: 0
A170: FFSAF-C-MYR | B170: 2019-07-23 | C170: 0 | D170: 0 | E170: 0 | F170: 0 | G170: 0 | H170: 4.1179 | I170: 0 | J170: 0 | K170: 0 | L170: 0 | M170: 0
A171: FFSAF-C-SGD | B171: 2019-07-23 | C171: 0 | D171: 0 | E171: 0 | F171: 0 | G171: 0 | H171: 1.36491 | I171: 0 | J171: 0 | K171: 0 | L171: 0 | M171: 0
A172: FFSAF-C-USD | B172: 2019-07-23 | C172: -41 | D172: 0 | E172: -12.33 | F172: 0 | G172: 0 | H172: 1 | I172: -41 | J172: 0 | K172: -12.33 | L172: 0 | M172: 0
A173: FFSAF | B173: 2019-07-24 | C173: -40.89 | D173: 0 | E173: -12.33 | F173: 0 | G173: 0 | H173: 1 | I173: -40.89 | J173: 0 | K173: -12.33 | L173: 0 | M173: 0
A174: FFSAF-A-MYR | B174: 2019-07-24 | C174: 0 | D174: 0 | E174: 0 | F174: 0 | G174: 0 | H174: 4.1149 | I174: 0 | J174: 0 | K174: 0 | L174: 0 | M174: 0
A175: FFSAF-A-SGD | B175: 2019-07-24 | C175: 0 | D175: 0 | E175: 0 | F175: 0 | G175: 0 | H175: 1.36386 | I175: 0 | J175: 0 | K175: 0 | L175: 0 | M175: 0
A176: FFSAF-A-USD | B176: 2019-07-24 | C176: 0 | D176: 0 | E176: 0 | F176: 0 | G176: 0 | H176: 1 | I176: 0 | J176: 0 | K176: 0 | L176: 0 | M176: 0
A177: FFSAF-B-MYR | B177: 2019-07-24 | C177: 0 | D177: 0 | E177: 0 | F177: 0 | G177: 0 | H177: 4.1149 | I177: 0 | J177: 0 | K177: 0 | L177: 0 | M177: 0
A178: FFSAF-B-SGD | B178: 2019-07-24 | C178: 0 | D178: 0 | E178: 0 | F178: 0 | G178: 0 | H178: 1.36386 | I178: 0 | J178: 0 | K178: 0 | L178: 0 | M178: 0
A179: FFSAF-B-USD | B179: 2019-07-24 | C179: 0 | D179: 0 | E179: 0 | F179: 0 | G179: 0 | H179: 1 | I179: 0 | J179: 0 | K179: 0 | L179: 0 | M179: 0
A180: FFSAF-C-MYR | B180: 2019-07-24 | C180: 0 | D180: 0 | E180: 0 | F180: 0 | G180: 0 | H180: 4.1149 | I180: 0 | J180: 0 | K180: 0 | L180: 0 | M180: 0
A181: FFSAF-C-SGD | B181: 2019-07-24 | C181: 0 | D181: 0 | E181: 0 | F181: 0 | G181: 0 | H181: 1.36386 | I181: 0 | J181: 0 | K181: 0 | L181: 0 | M181: 0
A182: FFSAF-C-USD | B182: 2019-07-24 | C182: -40.89 | D182: 0 | E182: -12.33 | F182: 0 | G182: 0 | H182: 1 | I182: -40.89 | J182: 0 | K182: -12.33 | L182: 0 | M182: 0
A183: FFSAF | B183: 2019-07-25 | C183: -40.89 | D183: 0 | E183: -12.33 | F183: 0 | G183: 0 | H183: 1 | I183: -40.89 | J183: 0 | K183: -12.33 | L183: 0 | M183: 0
A184: FFSAF-A-MYR | B184: 2019-07-25 | C184: 0 | D184: 0 | E184: 0 | F184: 0 | G184: 0 | H184: 4.1184 | I184: 0 | J184: 0 | K184: 0 | L184: 0 | M184: 0
A185: FFSAF-A-SGD | B185: 2019-07-25 | C185: 0 | D185: 0 | E185: 0 | F185: 0 | G185: 0 | H185: 1.36657 | I185: 0 | J185: 0 | K185: 0 | L185: 0 | M185: 0
A186: FFSAF-A-USD | B186: 2019-07-25 | C186: 0 | D186: 0 | E186: 0 | F186: 0 | G186: 0 | H186: 1 | I186: 0 | J186: 0 | K186: 0 | L186: 0 | M186: 0
A187: FFSAF-B-MYR | B187: 2019-07-25 | C187: 0 | D187: 0 | E187: 0 | F187: 0 | G187: 0 | H187: 4.1184 | I187: 0 | J187: 0 | K187: 0 | L187: 0 | M187: 0
A188: FFSAF-B-SGD | B188: 2019-07-25 | C188: 0 | D188: 0 | E188: 0 | F188: 0 | G188: 0 | H188: 1.36657 | I188: 0 | J188: 0 | K188: 0 | L188: 0 | M188: 0
A189: FFSAF-B-USD | B189: 2019-07-25 | C189: 0 | D189: 0 | E189: 0 | F189: 0 | G189: 0 | H189: 1 | I189: 0 | J189: 0 | K189: 0 | L189: 0 | M189: 0
A190: FFSAF-C-MYR | B190: 2019-07-25 | C190: 0 | D190: 0 | E190: 0 | F190: 0 | G190: 0 | H190: 4.1184 | I190: 0 | J190: 0 | K190: 0 | L190: 0 | M190: 0
A191: FFSAF-C-SGD | B191: 2019-07-25 | C191: 0 | D191: 0 | E191: 0 | F191: 0 | G191: 0 | H191: 1.36657 | I191: 0 | J191: 0 | K191: 0 | L191: 0 | M191: 0
A192: FFSAF-C-USD | B192: 2019-07-25 | C192: -40.89 | D192: 0 | E192: -12.33 | F192: 0 | G192: 0 | H192: 1 | I192: -40.89 | J192: 0 | K192: -12.33 | L192: 0 | M192: 0
A193: FFSAF | B193: 2019-07-26 | C193: -40.71 | D193: 0 | E193: -12.33 | F193: 0 | G193: 0 | H193: 1 | I193: -40.71 | J193: 0 | K193: -12.33 | L193: 0 | M193: 0
A194: FFSAF-A-MYR | B194: 2019-07-26 | C194: 0 | D194: 0 | E194: 0 | F194: 0 | G194: 0 | H194: 4.1231 | I194: 0 | J194: 0 | K194: 0 | L194: 0 | M194: 0
A195: FFSAF-A-SGD | B195: 2019-07-26 | C195: 0 | D195: 0 | E195: 0 | F195: 0 | G195: 0 | H195: 1.37023 | I195: 0 | J195: 0 | K195: 0 | L195: 0 | M195: 0
A196: FFSAF-A-USD | B196: 2019-07-26 | C196: 0 | D196: 0 | E196: 0 | F196: 0 | G196: 0 | H196: 1 | I196: 0 | J196: 0 | K196: 0 | L196: 0 | M196: 0
A197: FFSAF-B-MYR | B197: 2019-07-26 | C197: 0 | D197: 0 | E197: 0 | F197: 0 | G197: 0 | H197: 4.1231 | I197: 0 | J197: 0 | K197: 0 | L197: 0 | M197: 0
A198: FFSAF-B-SGD | B198: 2019-07-26 | C198: 0 | D198: 0 | E198: 0 | F198: 0 | G198: 0 | H198: 1.37023 | I198: 0 | J198: 0 | K198: 0 | L198: 0 | M198: 0
A199: FFSAF-B-USD | B199: 2019-07-26 | C199: 0 | D199: 0 | E199: 0 | F199: 0 | G199: 0 | H199: 1 | I199: 0 | J199: 0 | K199: 0 | L199: 0 | M199: 0
A200: FFSAF-C-MYR | B200: 2019-07-26 | C200: 0 | D200: 0 | E200: 0 | F200: 0 | G200: 0 | H200: 4.1231 | I200: 0 | J200: 0 | K200: 0 | L200: 0 | M200: 0
A201: FFSAF-C-SGD | B201: 2019-07-26 | C201: 0 | D201: 0 | E201: 0 | F201: 0 | G201: 0 | H201: 1.37023 | I201: 0 | J201: 0 | K201: 0 | L201: 0 | M201: 0
... 2311 more rows

Sheet InTB (hidden)
A2: TBDate | B2: GLCode | C2: qFundCode | D2: qCurrencyCode | E2: ShortGL | F2: qAssetAccType | G2: DebitAmt | H2: CreditAmt | I2: TBValue | J2: ExRate | K2: TBValueFC | L2: Description | M2: qRptGrp1ID | N2: qAssetRptGrp | O2: TBType | P2: CashFlag | Q2: ValuationGL
A3: 2020-06-30 | B3: FFSAF-USD010-100000 | C3: FFSAF | D3: USD | E3: 100000 | F3: 010 | G3: 365073.52 | H3: -200282.55 | I3: 164790.97 | J3: 1 | K3: 164790.97 | L3: Cost: Investment | M3: BICOST | N3: BICOST_EQT | O3: BS | P3: 0 | Q3: FALSE
A4: 2020-06-30 | B4: FFSAF-USD015-100000 | C4: FFSAF | D4: USD | E4: 100000 | F4: 015 | G4: 9016570.93 | H4: -7963533.25 | I4: 1053037.68 | J4: 1 | K4: 1053037.68 | L4: Cost: Investment | M4: BICOST | N4: BICOST_O-EQT | O4: BS | P4: 0 | Q4: FALSE
A5: 2020-06-30 | B5: FFSAF-USD010-189000 | C5: FFSAF | D5: USD | E5: 189000 | F5: 010 | G5: 14294.65 | H5: 0 | I5: 14294.65 | J5: 1 | K5: 14294.65 | L5: Unrealised GnL - Investment | M5: BIURGL | N5: BIURGL_EQT | O5: BS | P5: 0 | Q5: TRUE
A6: 2020-06-30 | B6: FFSAF-USD015-189000 | C6: FFSAF | D6: USD | E6: 189000 | F6: 015 | G6: 112432.03 | H6: -21781.6 | I6: 90650.43 | J6: 1 | K6: 90650.43 | L6: Unrealised GnL - Investment | M6: BIURGL | N6: BIURGL_O-EQT | O6: BS | P6: 0 | Q6: TRUE
A7: 2020-06-30 | B7: FFSAF-USD010-199000 | C7: FFSAF | D7: USD | E7: 199000 | F7: 010 | G7: 789.92 | H7: -2306.44 | I7: -1516.52 | J7: 1 | K7: -1516.52 | L7: Unrealised FX GnL - Investment | M7: BIURFX | N7: BIURFX_EQT | O7: BS | P7: 0 | Q7: TRUE
A8: 2020-06-30 | B8: FFSAF-USD015-199000 | C8: FFSAF | D8: USD | E8: 199000 | F8: 015 | G8: 3102.8 | H8: -4393.87 | I8: -1291.07 | J8: 1 | K8: -1291.07 | L8: Unrealised FX GnL - Investment | M8: BIURFX | N8: BIURFX_O-EQT | O8: BS | P8: 0 | Q8: TRUE
A9: 2020-06-30 | B9: FFSAF-HKD015-299000 | C9: FFSAF | D9: HKD | E9: 299000 | F9: 015 | G9: 2380 | H9: 0 | I9: 2380 | J9: 7.751040347 | K9: 307.0555556 | L9: DivDebtor: Dividend Receivable | M9: BOADVL | N9: BOADVL_O-EQT | O9: BS | P9: 3 | Q9: FALSE
A10: 2020-06-30 | B10: FFSAF-IDR015-299000 | C10: FFSAF | D10: IDR | E10: 299000 | F10: 015 | G10: 4924396.8 | H10: 0 | I10: 4924396.8 | J10: 14342.14931 | K10: 343.3513829 | L10: DivDebtor: Dividend Receivable | M10: BOADVL | N10: BOADVL_O-EQT | O10: BS | P10: 3 | Q10: FALSE
A11: 2020-06-30 | B11: FFSAF-USD000-320103 | C11: FFSAF | D11: USD | E11: 320103 | F11: 000 | G11: 32740.81 | H11: -33938.52 | I11: -1197.71 | J11: 1 | K11: -1197.71 | L11: Creditor: Amount Due to Managers(Mngt Fee) | M11: BLMNGE | N11: BLMNGE_CSH | O11: BS | P11: 15 | Q11: FALSE
A12: 2020-06-30 | B12: FFSAF-USD000-320104 | C12: FFSAF | D12: USD | E12: 320104 | F12: 000 | G12: 9029.07 | H12: -9391.03 | I12: -361.96 | J12: 1 | K12: -361.96 | L12: Creditor: Amount Due to Trustee | M12: BLTRUS | N12: BLTRUS_CSH | O12: BS | P12: 17 | Q12: FALSE
A13: 2020-06-30 | B13: FFSAF-USD000-320105 | C13: FFSAF | D13: USD | E13: 320105 | F13: 000 | G13: 17411.49 | H13: -22493.49 | I13: -5082 | J13: 1 | K13: -5082 | L13: Creditor: Audit Fees Payable | M13: BLAUDP | N13: BLAUDP_CSH | O13: BS | P13: 18 | Q13: FALSE
A14: 2020-06-30 | B14: FFSAF-USD000-320107 | C14: FFSAF | D14: USD | E14: 320107 | F14: 000 | G14: 121.76 | H14: -1978.41 | I14: -1856.65 | J14: 1 | K14: -1856.65 | L14: Creditor: Tax Agent's fees payable | M14: BLTXFP | N14: BLTXFP_CSH | O14: BS | P14: 21 | Q14: FALSE
A15: 2020-06-30 | B15: FFSAF-USD000-320208 | C15: FFSAF | D15: USD | E15: 320208 | F15: 000 | G15: 0 | H15: -2059.8 | I15: -2059.8 | J15: 1 | K15: -2059.8 | L15: Creditor: Other Charges 1 | M15: BLSUNA | N15: BLSUNA_CSH | O15: BS | P15: 21 | Q15: FALSE
A16: 2020-06-30 | B16: FFSAF-HKD000-500000 | C16: FFSAF | D16: HKD | E16: 500000 | F16: 000 | G16: 3956278.92 | H16: -3840674.18 | I16: 115604.74 | J16: 7.751040347 | K16: 14914.73852 | L16: Bank: Default Bank | M16: BOABNK | N16: BOABNK_CSH | O16: BS | P16: 5 | Q16: FALSE
A17: 2020-06-30 | B17: FFSAF-KRW000-500000 | C17: FFSAF | D17: KRW | E17: 500000 | F17: 000 | G17: 417791055 | H17: -412306676 | I17: 5484379 | J17: 1202.863962 | K17: 4559.434128 | L17: Bank: Default Bank | M17: BOABNK | N17: BOABNK_CSH | O17: BS | P17: 5 | Q17: FALSE
A18: 2020-06-30 | B18: FFSAF-MYR000-500000 | C18: FFSAF | D18: MYR | E18: 500000 | F18: 000 | G18: 7051055.72 | H18: -7017278.18 | I18: 33777.54 | J18: 4.284 | K18: 7884.579832 | L18: Bank: Default Bank | M18: BOABNK | N18: BOABNK_CSH | O18: BS | P18: 5 | Q18: FALSE
A19: 2020-06-30 | B19: FFSAF-PHP000-500000 | C19: FFSAF | D19: PHP | E19: 500000 | F19: 000 | G19: 3980504.95 | H19: 0 | I19: 3980504.95 | J19: 49.81394492 | K19: 79907.44271 | L19: Bank: Default Bank | M19: BOABNK | N19: BOABNK_CSH | O19: BS | P19: 5 | Q19: FALSE
A20: 2020-06-30 | B20: FFSAF-THB000-500000 | C20: FFSAF | D20: THB | E20: 500000 | F20: 000 | G20: 5336644.49 | H20: -4969359.84 | I20: 367284.65 | J20: 30.87456308 | K20: 11896.02745 | L20: Bank: Default Bank | M20: BOABNK | N20: BOABNK_CSH | O20: BS | P20: 5 | Q20: FALSE
A21: 2020-06-30 | B21: FFSAF-TWD000-500000 | C21: FFSAF | D21: TWD | E21: 500000 | F21: 000 | G21: 34760 | H21: 0 | I21: 34760 | J21: 29.66759003 | K21: 1171.648926 | L21: Bank: Default Bank | M21: BOABNK | N21: BOABNK_CSH | O21: BS | P21: 5 | Q21: FALSE
A22: 2020-06-30 | B22: FFSAF-USD000-500000 | C22: FFSAF | D22: USD | E22: 500000 | F22: 000 | G22: 2388348.34 | H22: -2344881.25 | I22: 43467.09 | J22: 1 | K22: 43467.09 | L22: Bank: Default Bank | M22: BOABNK | N22: BOABNK_CSH | O22: BS | P22: 5 | Q22: FALSE
A23: 2020-06-30 | B23: FFSAF-USD000-500001 | C23: FFSAF | D23: USD | E23: 500001 | F23: 000 | G23: 71.96 | H23: -30 | I23: 41.96 | J23: 1 | K23: 41.96 | L23: Bank: Other Bank 1 | M23: BOABNK | N23: BOABNK_CSH | O23: BS | P23: 5 | Q23: FALSE
A24: 2020-06-30 | B24: FFSAF-USD010-600000 | C24: FFSAF | D24: USD | E24: 600000 | F24: 010 | G24: 24086.21 | H24: -98767.96 | I24: -74681.75 | J24: 1 | K24: -74681.75 | L24: Gains: Realised GnL | M24: PRRGNL | N24: PRRGNL_EQT | O24: PLR | P24: 0 | Q24: FALSE
A25: 2020-06-30 | B25: FFSAF-USD015-600000 | C25: FFSAF | D25: USD | E25: 600000 | F25: 015 | G25: 260510.84 | H25: -128522.74 | I25: 131988.1 | J25: 1 | K25: 131988.1 | L25: Gains: Realised GnL | M25: PRRGNL | N25: PRRGNL_O-EQT | O25: PLR | P25: 0 | Q25: FALSE
A26: 2020-06-30 | B26: FFSAF-USD015-635000 | C26: FFSAF | D26: USD | E26: 635000 | F26: 015 | G26: 16044.68 | H26: -44322.95 | I26: -28278.27 | J26: 1 | K26: -28278.27 | L26: Dividend: Taxable Dividend Income | M26: PRDVTA | N26: PRDVTA_O-EQT | O26: PLR | P26: 0 | Q26: FALSE
A27: 2020-06-30 | B27: FFSAF-USD010-636000 | C27: FFSAF | D27: USD | E27: 636000 | F27: 010 | G27: 0 | H27: -3662.87 | I27: -3662.87 | J27: 1 | K27: -3662.87 | L27: Dividend: Tax Exempted Dividend Income | M27: PRDVTE | N27: PRDVTE_EQT | O27: PLR | P27: 0 | Q27: FALSE
A28: 2020-06-30 | B28: FFSAF-USD015-636000 | C28: FFSAF | D28: USD | E28: 636000 | F28: 015 | G28: 2996.58 | H28: -11864.52 | I28: -8867.94 | J28: 1 | K28: -8867.94 | L28: Dividend: Tax Exempted Dividend Income | M28: PRDVTE | N28: PRDVTE_O-EQT | O28: PLR | P28: 0 | Q28: FALSE
A29: 2020-06-30 | B29: FFSAF-USD000-640002 | C29: FFSAF | D29: USD | E29: 640002 | F29: 000 | G29: 0 | H29: -19.86 | I29: -19.86 | J29: 1 | K29: -19.86 | L29: Income: Bank Interest | M29: PRINBK | N29: PRINBK_CSH | O29: PLR | P29: 0 | Q29: FALSE
A30: 2020-06-30 | B30: FFSAF-USD000-640003 | C30: FFSAF | D30: USD | E30: 640003 | F30: 000 | G30: 0 | H30: -5.08 | I30: -5.08 | J30: 1 | K30: -5.08 | L30: Income: Other Income | M30: PRINOT | N30: PRINOT_CSH | O30: PLR | P30: 0 | Q30: FALSE
A31: 2020-06-30 | B31: FFSAF-USD000-650000 | C31: FFSAF | D31: USD | E31: 650000 | F31: 000 | G31: 3568.86 | H31: -26297.96 | I31: -22729.1 | J31: 1 | K31: -22729.1 | L31: FXGnL:Foreign FX Gains and Loss | M31: PRGNFX | N31: PRGNFX_CSH | O31: PLR | P31: 0 | Q31: FALSE
A32: 2020-06-30 | B32: FFSAF-USD010-650000 | C32: FFSAF | D32: USD | E32: 650000 | F32: 010 | G32: 7378.9 | H32: -3317.67 | I32: 4061.23 | J32: 1 | K32: 4061.23 | L32: FXGnL:Foreign FX Gains and Loss | M32: PRGNFX | N32: PRGNFX_EQT | O32: PLR | P32: 0 | Q32: FALSE
A33: 2020-06-30 | B33: FFSAF-USD015-650000 | C33: FFSAF | D33: USD | E33: 650000 | F33: 015 | G33: 36831.81 | H33: -48905.63 | I33: -12073.82 | J33: 1 | K33: -12073.82 | L33: FXGnL:Foreign FX Gains and Loss | M33: PRGNFX | N33: PRGNFX_O-EQT | O33: PLR | P33: 0 | Q33: FALSE
A34: 2020-06-30 | B34: FFSAF-USD010-689000 | C34: FFSAF | D34: USD | E34: 689000 | F34: 010 | G34: 0 | H34: -14294.65 | I34: -14294.65 | J34: 1 | K34: -14294.65 | L34: Unrealised GnL PL - Investment | M34: PUGINV | N34: PUGINV_EQT | O34: PLU | P34: 0 | Q34: TRUE
A35: 2020-06-30 | B35: FFSAF-USD015-689000 | C35: FFSAF | D35: USD | E35: 689000 | F35: 015 | G35: 21781.6 | H35: -112432.03 | I35: -90650.43 | J35: 1 | K35: -90650.43 | L35: Unrealised GnL PL - Investment | M35: PUGINV | N35: PUGINV_O-EQT | O35: PLU | P35: 0 | Q35: TRUE
A36: 2020-06-30 | B36: FFSAF-USD010-699000 | C36: FFSAF | D36: USD | E36: 699000 | F36: 010 | G36: 2306.44 | H36: -789.92 | I36: 1516.52 | J36: 1 | K36: 1516.52 | L36: Unrealised FX GnL PL - Investment | M36: PUGNFX | N36: PUGNFX_EQT | O36: PLU | P36: 0 | Q36: TRUE
A37: 2020-06-30 | B37: FFSAF-USD015-699000 | C37: FFSAF | D37: USD | E37: 699000 | F37: 015 | G37: 4393.87 | H37: -3102.8 | I37: 1291.07 | J37: 1 | K37: 1291.07 | L37: Unrealised FX GnL PL - Investment | M37: PUGNFX | N37: PUGNFX_O-EQT | O37: PLU | P37: 0 | Q37: TRUE
A38: 2020-06-30 | B38: FFSAF-USD015-700000 | C38: FFSAF | D38: USD | E38: 700000 | F38: 015 | G38: 0 | H38: -0.03 | I38: -0.03 | J38: 1 | K38: -0.03 | L38: Expenses: Rounding Adjustment | M38: N/A | N38: N/A_O-EQT | O38: PLR | P38: 0 | Q38: FALSE
A39: 2020-06-30 | B39: FFSAF-USD000-700301 | C39: FFSAF | D39: USD | E39: 700301 | F39: 000 | G39: 549.04 | H39: 0 | I39: 549.04 | J39: 1 | K39: 549.04 | L39: Expenses: Custodian & Registration service | M39: PREACF | N39: PREACF_CSH | O39: PLR | P39: 0 | Q39: FALSE
A40: 2020-06-30 | B40: FFSAF-USD000-710101 | C40: FFSAF | D40: USD | E40: 710101 | F40: 000 | G40: 5709.49 | H40: -203.49 | I40: 5506 | J40: 1 | K40: 5506 | L40: Expenses: Audit Fees | M40: PREAUD | N40: PREAUD_CSH | O40: PLR | P40: 0 | Q40: FALSE
A41: 2020-06-30 | B41: FFSAF-MYR000-710102 | C41: FFSAF | D41: MYR | E41: 710102 | F41: 000 | G41: 5 | H41: 0 | I41: 5 | J41: 4.284 | K41: 1.16713352 | L41: Expenses: Bank Charges | M41: PREBKC | N41: PREBKC_CSH | O41: PLR | P41: 0 | Q41: FALSE
A42: 2020-06-30 | B42: FFSAF-MYR010-710102 | C42: FFSAF | D42: MYR | E42: 710102 | F42: 010 | G42: 0 | H42: -5 | I42: -5 | J42: 4.284 | K42: -1.16713352 | L42: Expenses: Bank Charges | M42: PREBKC | N42: PREBKC_EQT | O42: PLR | P42: 0 | Q42: FALSE
A43: 2020-06-30 | B43: FFSAF-USD000-710102 | C43: FFSAF | D43: USD | E43: 710102 | F43: 000 | G43: 79.22 | H43: -45 | I43: 34.22 | J43: 1 | K43: 34.22 | L43: Expenses: Bank Charges | M43: PREBKC | N43: PREBKC_CSH | O43: PLR | P43: 0 | Q43: FALSE
A44: 2020-06-30 | B44: FFSAF-USD000-710104 | C44: FFSAF | D44: USD | E44: 710104 | F44: 000 | G44: 914.76 | H44: 0 | I44: 914.76 | J44: 1 | K44: 914.76 | L44: Expenses: Other Expenses | M44: PREGEN | N44: PREGEN_CSH | O44: PLR | P44: 0 | Q44: FALSE
A45: 2020-06-30 | B45: FFSAF-USD000-710106 | C45: FFSAF | D45: USD | E45: 710106 | F45: 000 | G45: 14692.41 | H45: -552.01 | I45: 14140.4 | J45: 1 | K45: 14140.4 | L45: Expenses: Management Fees | M45: PREMNG | N45: PREMNG_CSH | O45: PLR | P45: 0 | Q45: FALSE
A46: 2020-06-30 | B46: FFSAF-USD000-710113 | C46: FFSAF | D46: USD | E46: 710113 | F46: 000 | G46: 4684.71 | H46: -184.71 | I46: 4500 | J46: 1 | K46: 4500 | L46: Expenses: Trustee Fees | M46: PRETRS | N46: PRETRS_CSH | O46: PLR | P46: 0 | Q46: FALSE
A47: 2020-06-30 | B47: FFSAF-USD000-710115 | C47: FFSAF | D47: USD | E47: 710115 | F47: 000 | G47: 3054.55 | H47: -121.76 | I47: 2932.79 | J47: 1 | K47: 2932.79 | L47: Expenses:Tax Agent Fee | M47: PRETXA | N47: PRETXA_CSH | O47: PLR | P47: 0 | Q47: FALSE
A48: 2020-06-30 | B48: FFSAF-USD000-710122 | C48: FFSAF | D48: USD | E48: 710122 | F48: 000 | G48: 2613.09 | H48: -280.48 | I48: 2332.61 | J48: 1 | K48: 2332.61 | L48: Expenses: Foreign Custodian Fees -Annually | M48: PREACF | N48: PREACF_CSH | O48: PLR | P48: 0 | Q48: FALSE
A49: 2020-06-30 | B49: FFSAF-USD000-710129 | C49: FFSAF | D49: USD | E49: 710129 | F49: 000 | G49: 2816.23 | H49: 0 | I49: 2816.23 | J49: 1 | K49: 2816.23 | L49: Expenses:Foreign Taxation | M49: PRETXF | N49: PRETXF_CSH | O49: PLR | P49: 0 | Q49: FALSE
A50: 2020-06-30 | B50: FFSAF-USD015-799020 | C50: FFSAF | D50: USD | E50: 799020 | F50: 015 | G50: 7334.01 | H50: -2568.27 | I50: 4765.74 | J50: 1 | K50: 4765.74 | L50: Expenses:Witholding Tax | M50: PREWHT | N50: PREWHT_O-EQT | O50: PLR | P50: 0 | Q50: FALSE
A51: 2020-06-30 | B51: FFSAF-USD000-800000 | C51: FFSAF | D51: USD | E51: 800000 | F51: 000 | G51: 0 | H51: -1479238.15 | I51: -1479238.15 | J51: 1 | K51: -1479238.15 | L51: Capital: Unitholder Capital | M51: BCUCAP | N51: BCUCAP_CSH | O51: BS | P51: 0 | Q51: FALSE
A52: 2020-06-30 | B52: FFSAF-USD000-810000 | C52: FFSAF | D52: USD | E52: 810000 | F52: 000 | G52: 13986445.61 | H52: -13998452 | I52: -12006.39 | J52: 1 | K52: -12006.39 | L52: Interest: Last Year Unrealised Reserved | M52: BSURPF | N52: BSURPF_CSH | O52: BS | P52: 0 | Q52: FALSE
A53: 2020-06-30 | B53: FFSAF-USD010-810000 | C53: FFSAF | D53: USD | E53: 810000 | F53: 010 | G53: 2120260.43 | H53: -2120990.79 | I53: -730.36 | J53: 1 | K53: -730.36 | L53: Interest: Last Year Unrealised Reserved | M53: BSURPF | N53: BSURPF_EQT | O53: BS | P53: 0 | Q53: FALSE
A54: 2020-06-30 | B54: FFSAF-USD015-810000 | C54: FFSAF | D54: USD | E54: 810000 | F54: 015 | G54: 21253755.62 | H54: -21347712.23 | I54: -93956.61 | J54: 1 | K54: -93956.61 | L54: Interest: Last Year Unrealised Reserved | M54: BSURPF | N54: BSURPF_O-EQT | O54: BS | P54: 0 | Q54: FALSE
A55: 2020-06-30 | B55: FFSAF-USD000-830000 | C55: FFSAF | D55: USD | E55: 830000 | F55: 000 | G55: 50154.15 | H55: -249379.38 | I55: -199225.23 | J55: 1 | K55: -199225.23 | L55: Interest: Last Year Realised Retained Interest | M55: BSRRPF | N55: BSRRPF_CSH | O55: BS | P55: 0 | Q55: FALSE
A56: 2020-06-30 | B56: FFSAF-USD010-830000 | C56: FFSAF | D56: USD | E56: 830000 | F56: 010 | G56: 34571.74 | H56: -36506.88 | I56: -1935.14 | J56: 1 | K56: -1935.14 | L56: Interest: Last Year Realised Retained Interest | M56: BSRRPF | N56: BSRRPF_EQT | O56: BS | P56: 0 | Q56: FALSE
A57: 2020-06-30 | B57: FFSAF-USD015-830000 | C57: FFSAF | D57: USD | E57: 830000 | F57: 015 | G57: 562978.47 | H57: -300369.09 | I57: 262609.38 | J57: 1 | K57: 262609.38 | L57: Interest: Last Year Realised Retained Interest | M57: BSRRPF | N57: BSRRPF_O-EQT | O57: BS | P57: 0 | Q57: FALSE
A58: 2020-06-30 | B58: FFSAF-USD010-989000 | C58: FFSAF | D58: USD | E58: 989000 | F58: 010 | G58: -631.17 | H58: 0 | I58: -631.17 | J58: 1 | K58: -631.17 | L58: Control: Last Year Unrealised GnL Investment | M58: PUGINV | N58: PUGINV_EQT | O58: PLU | P58: 0 | Q58: FALSE
A59: 2020-06-30 | B59: FFSAF-USD015-989000 | C59: FFSAF | D59: USD | E59: 989000 | F59: 015 | G59: -224.55 | H59: 85268.84 | I59: 85044.29 | J59: 1 | K59: 85044.29 | L59: Control: Last Year Unrealised GnL Investment | M59: PUGINV | N59: PUGINV_O-EQT | O59: PLU | P59: 0 | Q59: FALSE
A60: 2020-06-30 | B60: FFSAF-USD010-999000 | C60: FFSAF | D60: USD | E60: 999000 | F60: 010 | G60: 0 | H60: 934.57 | I60: 934.57 | J60: 1 | K60: 934.57 | L60: Control: Last Year Unrealised GnL FX Investment | M60: PUGNFX | N60: PUGNFX_EQT | O60: PLU | P60: 0 | Q60: FALSE
A61: 2020-06-30 | B61: FFSAF-USD015-999000 | C61: FFSAF | D61: USD | E61: 999000 | F61: 015 | G61: 0 | H61: 24722.83 | I61: 24722.83 | J61: 1 | K61: 24722.83 | L61: Control: Last Year Unrealised GnL FX Investment | M61: PUGNFX | N61: PUGNFX_O-EQT | O61: PLU | P61: 0 | Q61: FALSE
A62: 2020-06-30 | B62: FFSAF-USD000-999111 | C62: FFSAF | D62: USD | E62: 999111 | F62: 000 | G62: -13986445.61 | H62: 13998452 | I62: 12006.39 | J62: 1 | K62: 12006.39 | L62: Control: Last Year UnFXGnL of Cash, DR and CR | M62: PUGNFX | N62: PUGNFX_CSH | O62: PLU | P62: 0 | Q62: FALSE
A63: 2020-06-30 | B63: FFSAF-USD010-999111 | C63: FFSAF | D63: USD | E63: 999111 | F63: 010 | G63: -2119629.26 | H63: 2120056.22 | I63: 426.96 | J63: 1 | K63: 426.96 | L63: Control: Last Year UnFXGnL of Cash, DR and CR | M63: PUGNFX | N63: PUGNFX_EQT | O63: PLU | P63: 0 | Q63: FALSE
